{"text_format":"1","workbook":"xlsx","n_sheets":24,"sheets":["TTools Data","Land Cover Codes","Morphology Data","Continuous Data","Flow Data","Validation Data","Chart-Diel Temp","Chart-Shade","Chart-TIR","Output - Hydraulics","Chart-Heat Flux","Chart-Long Temp","Chart-Solar Flux","Output - Temperature","Output - Solar Potential","Output - Solar Surface","Output - Solar Received","Output - Longwave","Output - Evaporation","Output - Convection","Output - Conduction","Output - Total Heat","Output - Evaporation Rate","Output - Daily Heat Flux"],"not_rendered":{"charts":12,"images":104,"macros":1,"external_links":0,"defined_names":2031,"comments":1,"pivot_tables":0},"unopened":[],"bounds":{"document_bytes":16777216,"sheet_cells":100000,"rows_first":2000,"rows_last":500,"rows_between":2000,"halvings":0,"cell_chars":16384,"cell_head_chars":4096},"cells_cut":0,"cells_raw":0,"read":"whole","date_system":"1900"}

{"sheet":"TTools Data","index":0,"n_rows":16,"n_cols":161,"rows_kept":16,"cut":false,"hidden":false,"merged":[]}
[]
[null,null,null,null,null,null,null,"Simulation Name:"]
[null,null,null,null,null,null,null,"Date:",null,null,null,null,null,null,null,null,null,null,null,null,null,null,null,null,null,null,null,null,null,null,null,null,null,null,null,null,null,null,null,null,null,null,null,null,null,null,null,null,null,null,null,null,null,null,null,null,null,null,null,null,null,null,null,null,null,null,null,null,null,null,null,null,null,null,null,null,null,null,null,null,null,null,null,null,null,null,null,null,null,null,null,null,null,null,null,null,null,null,null,null,null,null,null,null,null,null,null,null,null,null,null,null,null,null,null,null,null,null,null,null,null,null,null,null,null,null,{"$f":"DV13+1","v":1}]
[null,null,null,null,null,null,null,"Time Step - dT (min):"]
[null,null,null,null,null,null,null,"Distance Step - dX (m):"]
[null,null,null,null,null,null,null,"Stream Length (km):"]
[null,null,null,null,null,null,null,"Longitudinal Sample Rate (m):"]
[null,null,null,null,null,null,null,"Transverse Sample Rate (m):"]
[null,null,null,null,null,null,null,"Inflow Sites:"]
[null,null,null,null,null,null,null,"Continuous Data Sites:"]
[null,null,null,null,null,null,null,"Flush Initial Condition (days):"]
[null,null,null,null,null,null,null,"Time Zone:"]
[null,null,null,null,null,null,null,"Simulation Period (days):"]
[null,null,null,null,null,null,null,null,null,null,null,null,null,null,null,null,null,null,null,null,null,null,null,null,null,null,null,"Ttools Sampled Land Cover Codes",null,null,null,null,null,null,null,null,null,null,null,null,null,null,null,null,null,null,null,null,null,null,null,null,null,null,null,"Ttools Sampled Elevations for at Land Cover Sample Sites (meters)",null,null,null,null,null,null,null,null,null,null,null,null,null,null,null,null,"Northeast Land Cover Physical Attributes",null,null,null,null,null,null,null,"East Land Cover Physical Attributes",null,null,null,null,null,null,null,"Southeast Land Cover Physical Attributes",null,null,null,null,null,null,null,"South Land Cover Physical Attributes",null,null,null,null,null,null,null,"Southwest Land Cover Physical Attributes",null,null,null,null,null,null,null," West Land Cover Physical Attributes",null,null,null,null,null,null,null,"Northwest Land Cover Physical Attributes",null,null,null,null,null,null,null,null,null,"Average Land Cover Height (m)",null,null,null,null,null,null,null,null,"Average Land Cover Density (%)",null,null,null,null,null,"   Average Land",null,null,"   Average Land"]
[null,null,null,null,null,null,null,null,null,null,null,"Topo Shade (deg)",null,null,null,"         Northeast",null,null,null,"           East",null,null,null,"       Southeast",null,null,null,"           South",null,null,null,"       Southwest",null,null,null,"          West",null,null,null,"        Northwest",null,null,null,"        Northeast",null,null,null,"    East",null,null,null,"        Southeast",null,null,null,"          South",null,null,null,"        Southwest",null,null,null,"    West",null,null,null,"Northwest",null,null,"            Zone 1",null,"           Zone 2",null,"          Zone 3",null,"          Zone 4",null,"            Zone 1",null,"           Zone 2",null,"          Zone 3",null,"          Zone 4",null,"            Zone 1",null,"           Zone 2",null,"          Zone 3",null,"          Zone 4",null,"            Zone 1",null,"           Zone 2",null,"          Zone 3",null,"          Zone 4",null,"            Zone 1",null,"           Zone 2",null,"          Zone 3",null,"          Zone 4",null,"            Zone 1",null,"           Zone 2",null,"          Zone 3",null,"          Zone 4",null,"            Zone 1",null,"           Zone 2",null,"          Zone 3",null,"          Zone 4",null,null,"    Left Bank Distance from Stream (m)",null,null,null,"    Right Bank Distance from Stream (m)",null,null,null,null,"    Left Bank Distance from Stream (m)",null,null,null,"    Right Bank Distance from Stream (m)",null,null,null,null,"  Cover Height (m)",null,null,"Cover Density (%)",null,null,null,null,null,"Average Overhanging Distance (m)",null,null,null,null,"Emergent Vegetation"]
[null,"Locational Information (optional)","Heat Source Node","Long. Distance (km)","Stream km","Longitude (deg)","Latitude (deg)","Stream Elevation (m)","Bankfull Width (m)","Aspect (deg)","West","South","East","Emergent Vegetation","Zone 1","Zone 2","Zone 3","Zone 4","Zone 1","Zone 2","Zone 3","Zone 4","Zone 1","Zone 2","Zone 3","Zone 4","Zone 1","Zone 2","Zone 3","Zone 4","Zone 1","Zone 2","Zone 3","Zone 4","Zone 1","Zone 2","Zone 3","Zone 4","Zone 1","Zone 2","Zone 3","Zone 4","Zone 1","Zone 2","Zone 3","Zone 4","Zone 1","Zone 2","Zone 3","Zone 4","Zone 1","Zone 2","Zone 3","Zone 4","Zone 1","Zone 2","Zone 3","Zone 4","Zone 1","Zone 2","Zone 3","Zone 4","Zone 1","Zone 2","Zone 3","Zone 4","Zone 1","Zone 2","Zone 3","Zone 4","Density","Height (m)","Density","Height (m)","Density","Height (m)","Density","Height (m)","Density","Height (m)","Density","Height (m)","Density","Height (m)","Density","Height (m)","Density","Height (m)","Density","Height (m)","Density","Height (m)","Density","Height (m)","Density","Height (m)","Density","Height (m)","Density","Height (m)","Density","Height (m)","Density","Height (m)","Density","Height (m)","Density","Height (m)","Density","Height (m)","Density","Height (m)","Density","Height (m)","Density","Height (m)","Density","Height (m)","Density","Height (m)","Density","Height (m)","Density","Height (m)","Density","Height (m)",null,{"$f":"$I$8*3+$I$8/2 & \" (m)\"","v":"0 (m)"},{"$f":"$I$8*2+$I$8/2 & \" (m)\"","v":"0 (m)"},{"$f":"$I$8*1+$I$8/2 & \" (m)\"","v":"0 (m)"},{"$f":"$I$8*0+$I$8/2 & \" (m)\"","v":"0 (m)"},{"$f":"$I$8*0+$I$8/2 & \" (m)\"","v":"0 (m)"},{"$f":"$I$8*1+$I$8/2 & \" (m)\"","v":"0 (m)"},{"$f":"$I$8*2+$I$8/2 & \" (m)\"","v":"0 (m)"},{"$f":"$I$8*3+$I$8/2 & \" (m)\"","v":"0 (m)"},null,{"$f":"$I$8*3+$I$8/2 & \" (m)\"","v":"0 (m)"},{"$f":"$I$8*2+$I$8/2 & \" (m)\"","v":"0 (m)"},{"$f":"$I$8*1+$I$8/2 & \" (m)\"","v":"0 (m)"},{"$f":"$I$8*0+$I$8/2 & \" (m)\"","v":"0 (m)"},{"$f":"$I$8*0+$I$8/2 & \" (m)\"","v":"0 (m)"},{"$f":"$I$8*1+$I$8/2 & \" (m)\"","v":"0 (m)"},{"$f":"$I$8*2+$I$8/2 & \" (m)\"","v":"0 (m)"},{"$f":"$I$8*3+$I$8/2 & \" (m)\"","v":"0 (m)"},null,"Left Bank","Right Bank",null,"Left Bank","Right Bank",null,"NE","E","SE","S","SW","W","NW",null,"Height (m)","Density (%)"]

{"sheet":"Land Cover Codes","index":1,"n_rows":23,"n_cols":256,"rows_kept":23,"cut":false,"hidden":false,"merged":[]}
[null,null,null,null,null,null,null,null,null,null,null,null,null,null,null,null,null,null,null,null,null,null,null,null,null,null,null,null,null,null,null,null,null,null,null,null,null,null,null,null,null,null,null,null,null,null,null,null,null,null,null,null,null,null,null,null,null,null,null,null,null,null,null,null,null,null,null,null,null,null,null,null,null,null,null,null,null,null,null,null,null,null,null,null,null,null,null,null,null,null,null,null,null,null,null,null,null,null,null,null,null,null,null,null,null,null,null,null,null,null,null,null,null,null,null,null,null,null,null,null,null,null,null,null,null,null,null,null,null,null,null,null,null,null,null,null,null,null,null,null,null,null,null,null,null,null,null,null,null,null,null,null,null,null,null,null,null,null,null,null,null,null,null,null,null,null,null,null,null,null,null,null,null,null,null,null,null,null,null,null,null,null,null,null,null,null,null,null,null,null,null,null,null,null,null,null,null,null,null,null,null,null,null,null,null,null,null,null,null,null,null,null,null,null,null,null,null,null,null,null,null,null,null,null,null,null,null,null,null,null,null,null,null,null,null,null,null,null,null,null,null,null,null,null,null,null,null,null,null,null,null,0,1,1,0,0]
[null,null,null,null,null,null,null,"Simulation Name:",null,null,null,null,null,null,null,null,null,null,null,null,null,null,null,null,null,null,null,null,null,null,null,null,null,null,null,null,null,null,null,null,null,null,null,null,null,null,null,null,null,null,null,null,null,null,null,null,null,null,null,null,null,null,null,null,null,null,null,null,null,null,null,null,null,null,null,null,null,null,null,null,null,null,null,null,null,null,null,null,null,null,null,null,null,null,null,null,null,null,null,null,null,null,null,null,null,null,null,null,null,null,null,null,null,null,null,null,null,null,null,null,null,null,null,null,null,null,null,null,null,null,null,null,null,null,null,null,null,null,null,null,null,null,null,null,null,null,null,null,null,null,null,null,null,null,null,null,null,null,null,null,null,null,null,null,null,null,null,null,null,null,null,null,null,null,null,null,null,null,null,null,null,null,null,null,null,null,null,null,null,null,null,null,null,null,null,null,null,null,null,null,null,null,null,null,null,null,null,null,null,null,null,null,null,null,null,null,null,null,null,null,null,null,null,null,null,null,null,null,null,null,null,null,null,null,null,null,null,null,null,null,null,null,null,null,null,null,null,null,null,null,null,null,null,null,null,1]
[null,null,null,null,null,null,null,"Date:",null,null,null,null,null,null,null,null,null,null,null,null,null,null,null,null,null,null,null,null,null,null,null,null,null,null,null,null,null,null,null,null,null,null,null,null,null,null,null,null,null,null,null,null,null,null,null,null,null,null,null,null,null,null,null,null,null,null,null,null,null,null,null,null,null,null,null,null,null,null,null,null,null,null,null,null,null,null,null,null,null,null,null,null,null,null,null,null,null,null,null,null,null,null,null,null,null,null,null,null,null,null,null,null,null,null,null,null,null,null,null,null,null,null,null,null,null,null,null,null,null,null,null,null,null,null,null,null,null,null,null,null,null,null,null,null,null,null,null,null,null,null,null,null,null,null,null,null,null,null,null,null,null,null,null,null,null,null,null,null,null,null,null,null,null,null,null,null,null,null,null,null,null,null,null,null,null,null,null,null,null,null,null,null,null,null,null,null,null,null,null,null,null,null,null,null,null,null,null,null,null,null,null,null,null,null,null,null,null,null,null,null,null,null,null,null,null,null,null,null,null,null,null,null,null,null,null,null,null,null,null,null,null,null,null,null,null,null,null,null,null,null,null,null,null,null,null,1.5050000000000001E-9]
[null,null,null,null,null,null,null,"Time Step - dT (min):",null,null,null,null,null,null,null,null,null,null,null,null,null,null,null,null,null,null,null,null,null,null,null,null,null,null,null,null,null,null,null,null,null,null,null,null,null,null,null,null,null,null,null,null,null,null,null,null,null,null,null,null,null,null,null,null,null,null,null,null,null,null,null,null,null,null,null,null,null,null,null,null,null,null,null,null,null,null,null,null,null,null,null,null,null,null,null,null,null,null,null,null,null,null,null,null,null,null,null,null,null,null,null,null,null,null,null,null,null,null,null,null,null,null,null,null,null,null,null,null,null,null,null,null,null,null,null,null,null,null,null,null,null,null,null,null,null,null,null,null,null,null,null,null,null,null,null,null,null,null,null,null,null,null,null,null,null,null,null,null,null,null,null,null,null,null,null,null,null,null,null,null,null,null,null,null,null,null,null,null,null,null,null,null,null,null,null,null,null,null,null,null,null,null,null,null,null,null,null,null,null,null,null,null,null,null,null,null,null,null,null,null,null,null,null,null,null,null,null,null,null,null,null,null,null,null,null,null,null,null,null,null,null,null,null,null,null,null,null,null,null,null,null,null,null,null,null,1.6000000000000001E-9]
[null,null,null,null,null,null,null,"Distance Step - dX (m):",null,null,null,null,null,null,null,null,null,null,null,null,null,null,null,null,null,null,null,null,null,null,null,null,null,null,null,null,null,null,null,null,null,null,null,null,null,null,null,null,null,null,null,null,null,null,null,null,null,null,null,null,null,null,null,null,null,null,null,null,null,null,null,null,null,null,null,null,null,null,null,null,null,null,null,null,null,null,null,null,null,null,null,null,null,null,null,null,null,null,null,null,null,null,null,null,null,null,null,null,null,null,null,null,null,null,null,null,null,null,null,null,null,null,null,null,null,null,null,null,null,null,null,null,null,null,null,null,null,null,null,null,null,null,null,null,null,null,null,null,null,null,null,null,null,null,null,null,null,null,null,null,null,null,null,null,null,null,null,null,null,null,null,null,null,null,null,null,null,null,null,null,null,null,null,null,null,null,null,null,null,null,null,null,null,null,null,null,null,null,null,null,null,null,null,null,null,null,null,null,null,null,null,null,null,null,null,null,null,null,null,null,null,null,null,null,null,null,null,null,null,null,null,null,null,null,null,null,null,null,null,null,null,null,null,null,null,null,null,null,null,null,null,null,null,null,null,0]
[null,null,null,null,null,null,null,"Stream Length (km):"]
[null,null,null,null,null,null,null,"Longitudinal Sample Rate (m):"]
[null,null,null,null,null,null,null,"Transverse Sample Rate (m):"]
[null,null,null,null,null,null,null,"Inflow Sites:"]
[null,null,null,null,null,null,null,"Continuous Data Sites:"]
[null,null,null,null,null,null,null,"Flush Initial Condition (days):"]
[null,null,null,null,null,null,null,"Time Zone:"]
[null,null,null,null,null,null,null,"Simulation Period (days):"]
[]
[]
[null,null,null,"Land Cover Name (optional)","Code","Height (m)","Density (%)","Overhang (m)"]
[]
[]
[]
[null,null,null,null,null,null,null,null,null,null,null,null,null,null,null,null,null,null,null,null,null,null,null,null,null,null,null,null,null,null,null,null,null,null,null,null,null,null,null,null,null,null,null,null,null,null,null,null,null,null,null,null,null,null,null,null,null,null,null,null,null,null,null,null,null,null,null,null,null,null,null,null,null,null,null,null,null,null,null,null,null,null,null,null,null,null,null,null,null,null,null,null,null,null,null,null,null,null,null,null,null,null,null,null,null,null,null,null,null,null,null,null,null,null,null,null,null,null,null,null,null,null,null,null,null,null,null,null,null,null,null,null,null,null,null,null,null,null,null,null,null,null,null,null,null,null,null,null,null,null,null,null,null,null,null,null,null,null,null,null,null,null,null,null,null,null,null,null,null,null,null,null,null,null,null,null,null,null,null,null,null,null,null,null,null,null,null,null,null,null,null,null,null,null,null,null,null,null,null,null,null,null,null,null,null,null,null,null,null,null,null,null,null,null,null,null,null,null,null,null,null,null,null,null,null,null,null,null,null,null,null,null,null,null,null,null,null,null,null,null,null,null,null,null,null,null,null,null,null,null,null,null,null,null,null,12]
[null,null,null,null,null,null,null,null,null,null,null,null,null,null,null,null,null,null,null,null,null,null,null,null,null,null,null,null,null,null,null,null,null,null,null,null,null,null,null,null,null,null,null,null,null,null,null,null,null,null,null,null,null,null,null,null,null,null,null,null,null,null,null,null,null,null,null,null,null,null,null,null,null,null,null,null,null,null,null,null,null,null,null,null,null,null,null,null,null,null,null,null,null,null,null,null,null,null,null,null,null,null,null,null,null,null,null,null,null,null,null,null,null,null,null,null,null,null,null,null,null,null,null,null,null,null,null,null,null,null,null,null,null,null,null,null,null,null,null,null,null,null,null,null,null,null,null,null,null,null,null,null,null,null,null,null,null,null,null,null,null,null,null,null,null,null,null,null,null,null,null,null,null,null,null,null,null,null,null,null,null,null,null,null,null,null,null,null,null,null,null,null,null,null,null,null,null,null,null,null,null,null,null,null,null,null,null,null,null,null,null,null,null,null,null,null,null,null,null,null,null,null,null,null,null,null,null,null,null,null,null,null,null,null,null,null,null,null,null,null,null,null,null,null,null,null,null,null,null,null,null,null,null,null,null,0]
[]
[null,null,null,null,null,null,null,null,null,null,null,null,null,null,null,null,null,null,null,null,null,null,null,null,null,null,null,null,null,null,null,null,null,null,null,null,null,null,null,null,null,null,null,null,null,null,null,null,null,null,null,null,null,null,null,null,null,null,null,null,null,null,null,null,null,null,null,null,null,null,null,null,null,null,null,null,null,null,null,null,null,null,null,null,null,null,null,null,null,null,null,null,null,null,null,null,null,null,null,null,null,null,null,null,null,null,null,null,null,null,null,null,null,null,null,null,null,null,null,null,null,null,null,null,null,null,null,null,null,null,null,null,null,null,null,null,null,null,null,null,null,null,null,null,null,null,null,null,null,null,null,null,null,null,null,null,null,null,null,null,null,null,null,null,null,null,null,null,null,null,null,null,null,null,null,null,null,null,null,null,null,null,null,null,null,null,null,null,null,null,null,null,null,null,null,null,null,null,null,null,null,null,null,null,null,null,null,null,null,null,null,null,null,null,null,null,null,null,null,null,null,null,null,null,null,null,null,null,null,null,null,null,null,null,null,null,null,null,null,null,null,null,null,null,null,null,null,null,null,null,null,null,null,null,null,1]

{"sheet":"Morphology Data","index":2,"n_rows":16,"n_cols":27,"rows_kept":16,"cut":false,"hidden":false,"merged":[]}
[]
[null,null,null,null,null,null,null,"Simulation Name:",null,null,null,null,null,null,null,null,null,"Horizontal Bed Conductivity (from Bedient & Huber 1992)"]
[null,null,null,null,null,null,null,"Date:",null,null,null,null,null,null,null,null,null,"Silt:","< 0.02 mm/s (0.00079 in/s)",null,null,"Gravel:","6.0 - 30 mm/s (0.236 - 1.18 in/s)"]
[null,null,null,null,null,null,null,"Time Step - dT (min):",null,null,null,null,null,null,null,null,null,"Sand:","0.02 - 6.0 mm/s (0.00079 - 0.236 in/s)",null,null,"Cobble:","> 30 mm/s (1.18 in/s)"]
[null,null,null,null,null,null,null,"Distance Step - dX (m):"]
[null,null,null,null,null,null,null,"Stream Length (km):",null,null,null,null,null,null,null,null,null,null,"Bed Particle Size (from Bedient & Huber 1992, Rosgen 1996)"]
[null,null,null,null,null,null,null,"Longitudinal Sample Rate (m):",null,null,null,"Stream",null,null,null,null,null,null,"Silt:","< 0.062 mm (< 0.0024 in)",null,"Gravel:","2.0 - 63.5 mm ( 0.0787 - 2.5 in)"]
[null,null,null,null,null,null,null,"Transverse Sample Rate (m):",null,null,null,"Type","W:D",null,null,null,null,null,"Sand:","0.062 - 2.0 mm (0.0024 - 0.0787 in)",null,"Cobble:","63.5 - 254 mm (2.5 - 10 in)"]
[null,null,null,null,null,null,null,"Inflow Sites:",null,null,null,"A",7.89]
[null,null,null,null,null,null,null,"Continuous Data Sites:",null,null,null,"B",17,null,null,null,null,null,null,"Percent Embeddedness: (Simonson et al., 1994)"]
[null,null,null,null,null,null,null,"Flush Initial Condition (days):",null,null,null,"C",24,null,null,null,null,null,null,"100% = Rocks are completely surrounded by sediment and completely covered by fines."]
[null,null,null,null,null,null,null,"Time Zone:",null,null,null,"E",7.0533333333333337,null,null,null,null,null,null," 75% = Rocks are completely surrounded by sediment and half covered by fines."]
[null,null,null,null,null,null,null,"Simulation Period (days):",null,null,null,"F",28,null,null,null,null,null,null," 50% = Rocks are completely surrounded by sediment but are not covered by fines."]
[null,null,null,null,null,null,null,null,null,null,null,"G",7.97,null,null,null,null,null,null," 25% = Rocks are half surrounded by sediment and are not covered by fines."]
[null,null,null,null,null,null,null,null,null,null,null,null,null,null,null,null,null,null,null,null,null,null,null,null,null,null,"0% embeddedness= No fine sediments on substrate."]
[null,"Locational Information (optional)","Heat Source Node","Long. Distance (km)","Stream km",null,"Gradient","Mannings n","Rosgen Level I Stream Type (optional)","W:D Ratio","Bankfull Width (m)","Estimated Bottom Width (m)","Maximum Bankfull Depth (m)","Average Bankfull Depth (m)","Cross-Sectional Area (m2)","Channel Angle -z","X Factor (0.0-0.5)","Horizontal Bed Conductivity (mm/s)","Bed Particle Size (mm)","Embedded-ness","TIR Date/Time","TIR Temps. (*C)","Controlled      Flows (cms)","Controlled Depth       (m)","Controlled Temperature (*C)","Suggested Cross-Sectional Area (m2)"]

{"sheet":"Continuous Data","index":3,"n_rows":16,"n_cols":23,"rows_kept":16,"cut":false,"hidden":false,"merged":[]}
[]
[null,null,null,null,null,null,null,"Simulation Name:"]
[null,null,null,null,null,null,null,"Date:"]
[null,null,null,null,null,null,null,"Time Step - dT (min):"]
[null,null,null,null,null,null,null,"Distance Step - dX (m):"]
[null,null,null,null,null,null,null,"Stream Length (km):"]
[null,null,null,null,null,null,null,"Longitudinal Sample Rate (m):"]
[null,null,null,null,null,null,null,"Transverse Sample Rate (m):"]
[null,null,null,null,null,null,null,"Inflow Sites:"]
[null,null,null,null,null,null,null,"Continuous Data Sites:"]
[null,null,null,null,null,null,null,"Flush Initial Condition (days):"]
[null,null,null,null,null,null,null,"Time Zone:"]
[null,null,null,null,null,null,null,"Simulation Period (days):"]
[]
[null,null,null,null,null,null,null,null,null,null,null,"Continuous Data Node 1","Continuous Data Node 1","Continuous Data Node 1","Continuous Data Node 1","Continuous Data Node 2","Continuous Data Node 2","Continuous Data Node 2","Continuous Data Node 2","Continuous Data Node 3","Continuous Data Node 3","Continuous Data Node 3","Continuous Data Node 3"]
[null,"Locational Information (optional)","Continuous Node","Heat Source Node (optional)","Stream km",null,"Time","Flow (cms)","Stream Temperature (*C)","Cloudiness (0-1)",null,"Wind Speed (m/s)","Relative Humidity (%)","Air Temp (*C)","Stream Temp (*C)","Wind Speed (m/s)","Relative Humidity (%)","Air Temp (*C)","Stream Temp (*C)","Wind Speed (m/s)","Relative Humidity (%)","Air Temp (*C)","Stream Temp (*C)"]

{"sheet":"Flow Data","index":4,"n_rows":16,"n_cols":36,"rows_kept":16,"cut":false,"hidden":false,"merged":[]}
[]
[null,null,null,null,null,null,null,"Simulation Name:"]
[null,null,null,null,null,null,null,"Date:"]
[null,null,null,null,null,null,null,"Time Step - dT (min):"]
[null,null,null,null,null,null,null,"Distance Step - dX (m):"]
[null,null,null,null,null,null,null,"Stream Length (km):"]
[null,null,null,null,null,null,null,"Longitudinal Sample Rate (m):"]
[null,null,null,null,null,null,null,"Transverse Sample Rate (m):"]
[null,null,null,null,null,null,null,"Inflow Sites:"]
[null,null,null,null,null,null,null,"Continuous Data Sites:"]
[null,null,null,null,null,null,null,"Flush Initial Condition (days):"]
[null,null,null,null,null,null,null,"Time Zone:"]
[null,null,null,null,null,null,null,"Simulation Period (days):"]
[]
[]
[null,"Locational Information (optional)","Heat Source Node","Stream km","Accretion Flow (cms)","Accretion Flow Temp. (*C)","Withdrawal Flows (cms)",null,"Locational Information (optional)","Inflow Mass Transfer Process","Heat Source Node (optional)","Stream km",null,"Time","#1     Inflow Rate (cms)","#1     Inflow Temp (*C)","#2     Inflow Rate (cms)","#2     Inflow Temp (*C)","#3     Inflow Rate (cms)","#3     Inflow Temp (*C)","#4     Inflow Rate (cms)","#4     Inflow Temp (*C)","#5     Inflow Rate (cms)","#5     Inflow Temp (*C)","#6     Inflow Rate (cms)","#6     Inflow Temp (*C)","#7     Inflow Rate (cms)","#7     Inflow Temp (*C)","#8     Inflow Rate (cms)","#8     Inflow Temp (*C)","#9     Inflow Rate (cms)","#9     Inflow Temp (*C)","#10     Inflow Rate (cms)","#10     Inflow Temp (*C)","#11     Inflow Rate (cms)","#11     Inflow Temp (*C)"]

{"sheet":"Validation Data","index":5,"n_rows":16,"n_cols":16,"rows_kept":16,"cut":false,"hidden":false,"merged":[]}
[]
[null,null,null,null,null,null,null,"Simulation Name:"]
[null,null,null,null,null,null,null,"Date:"]
[null,null,null,null,null,null,null,"Time Step - dT (min):"]
[null,null,null,null,null,null,null,"Distance Step - dX (m):"]
[null,null,null,null,null,null,null,"Stream Length (km):"]
[null,null,null,null,null,null,null,"Longitudinal Sample Rate (m):"]
[null,null,null,null,null,null,null,"Transverse Sample Rate (m):"]
[null,null,null,null,null,null,null,"Inflow Sites:"]
[null,null,null,null,null,null,null,"Continuous Data Sites:"]
[null,null,null,null,null,null,null,"Flush Initial Condition (days):"]
[null,null,null,null,null,null,null,"Time Zone:"]
[null,null,null,null,null,null,null,"Simulation Period (days):"]
[]
[]
[null,"Locational Information (optional)","Date","Stream km","Flow (cms)","Velocity (m/s)","Wetted Width (m)","Average Wetted Depth (m)","Max. Wetted Depth (m)",null,null,"Flow (cms)","Velocity (m/s)","Wetted Width (m)","Average Wetted Depth (m)","Max. Wetted Depth (m)"]

{"sheet":"Chart-Diel Temp","index":6,"n_rows":256,"n_cols":12,"rows_kept":256,"cut":false,"hidden":false,"merged":[]}
[]
[null,null,null,null,null,null,null,null,null,null,null,"Diel Temperature Profile for Continuous Node 3"]
[]
[]
[]
[]
[]
[]
[]
[null,null,"R2=",{"$f":"RSQ(C17:C300,D17:D300)","v":{"$error":"#DIV/0!"}}]
[null,null,"S.E. =",{"$f":"STEYX(C17:C300,D17:D300)","v":{"$error":"#DIV/0!"}}]
[]
[null,null,"Measured","Simulated"]
[null,null,"Steam","Stream"]
[null,null,"Temp","Temp"]
[null,null,"(*C)","(*C)"]
[null,"2002-07-12"]
[null,"2002-07-12T02:00:00"]
[null,"2002-07-12T04:00:00"]
[null,"2002-07-12T06:00:00"]
[null,"2002-07-12T08:00:00"]
[null,"2002-07-12T10:00:00"]
[null,"2002-07-12T12:00:00"]
[null,"2002-07-12T14:00:00"]
[null,"2002-07-12T16:00:00"]
[null,"2002-07-12T18:00:00"]
[null,"2002-07-12T20:00:00"]
[null,"2002-07-12T22:00:00"]
[null,"2002-07-13"]
[null,"2002-07-13T02:00:00"]
[null,"2002-07-13T04:00:00"]
[null,"2002-07-13T06:00:00"]
[null,"2002-07-13T08:00:00"]
[null,"2002-07-13T10:00:00"]
[null,"2002-07-13T12:00:00"]
[null,"2002-07-13T14:00:00"]
[null,"2002-07-13T16:00:00"]
[null,"2002-07-13T18:00:00"]
[null,"2002-07-13T20:00:00"]
[null,"2002-07-13T22:00:00"]
[null,"2002-07-14"]
[null,"2002-07-14T02:00:00"]
[null,"2002-07-14T04:00:00"]
[null,"2002-07-14T06:00:00"]
[null,"2002-07-14T08:00:00"]
[null,"2002-07-14T10:00:00"]
[null,"2002-07-14T12:00:00"]
[null,"2002-07-14T14:00:00"]
[null,"2002-07-14T16:00:00"]
[null,"2002-07-14T18:00:00"]
[null,"2002-07-14T20:00:00"]
[null,"2002-07-14T22:00:00"]
[null,"2002-07-15"]
[null,"2002-07-15T02:00:00"]
[null,"2002-07-15T04:00:00"]
[null,"2002-07-15T06:00:00"]
[null,"2002-07-15T08:00:00"]
[null,"2002-07-15T10:00:00"]
[null,"2002-07-15T12:00:00"]
[null,"2002-07-15T14:00:00"]
[null,"2002-07-15T16:00:00"]
[null,"2002-07-15T18:00:00"]
[null,"2002-07-15T20:00:00"]
[null,"2002-07-15T22:00:00"]
[null,"2002-07-16"]
[null,"2002-07-16T02:00:00"]
[null,"2002-07-16T04:00:00"]
[null,"2002-07-16T06:00:00"]
[null,"2002-07-16T08:00:00"]
[null,"2002-07-16T10:00:00"]
[null,"2002-07-16T12:00:00"]
[null,"2002-07-16T14:00:00"]
[null,"2002-07-16T16:00:00"]
[null,"2002-07-16T18:00:00"]
[null,"2002-07-16T20:00:00"]
[null,"2002-07-16T22:00:00"]
[null,"2002-07-17"]
[null,"2002-07-17T02:00:00"]
[null,"2002-07-17T04:00:00"]
[null,"2002-07-17T06:00:00"]
[null,"2002-07-17T08:00:00"]
[null,"2002-07-17T10:00:00"]
[null,"2002-07-17T12:00:00"]
[null,"2002-07-17T14:00:00"]
[null,"2002-07-17T16:00:00"]
[null,"2002-07-17T18:00:00"]
[null,"2002-07-17T20:00:00"]
[null,"2002-07-17T22:00:00"]
[null,"2002-07-18"]
[null,"2002-07-18T02:00:00"]
[null,"2002-07-18T04:00:00"]
[null,"2002-07-18T06:00:00"]
[null,"2002-07-18T08:00:00"]
[null,"2002-07-18T10:00:00"]
[null,"2002-07-18T12:00:00"]
[null,"2002-07-18T14:00:00"]
[null,"2002-07-18T16:00:00"]
[null,"2002-07-18T18:00:00"]
[null,"2002-07-18T20:00:00"]
[null,"2002-07-18T22:00:00"]
[null,"2002-07-19"]
[null,"2002-07-19T02:00:00"]
[null,"2002-07-19T04:00:00"]
[null,"2002-07-19T06:00:00"]
[null,"2002-07-19T08:00:00"]
[null,"2002-07-19T10:00:00"]
[null,"2002-07-19T12:00:00"]
[null,"2002-07-19T14:00:00"]
[null,"2002-07-19T16:00:00"]
[null,"2002-07-19T18:00:00"]
[null,"2002-07-19T20:00:00"]
[null,"2002-07-19T22:00:00"]
[null,"2002-07-20"]
[null,"2002-07-20T02:00:00"]
[null,"2002-07-20T04:00:00"]
[null,"2002-07-20T06:00:00"]
[null,"2002-07-20T08:00:00"]
[null,"2002-07-20T10:00:00"]
[null,"2002-07-20T12:00:00"]
[null,"2002-07-20T14:00:00"]
[null,"2002-07-20T16:00:00"]
[null,"2002-07-20T18:00:00"]
[null,"2002-07-20T20:00:00"]
[null,"2002-07-20T22:00:00"]
[null,"2002-07-21"]
[null,"2002-07-21T02:00:00"]
[null,"2002-07-21T04:00:00"]
[null,"2002-07-21T06:00:00"]
[null,"2002-07-21T08:00:00"]
[null,"2002-07-21T10:00:00"]
[null,"2002-07-21T12:00:00"]
[null,"2002-07-21T14:00:00"]
[null,"2002-07-21T16:00:00"]
[null,"2002-07-21T18:00:00"]
[null,"2002-07-21T20:00:00"]
[null,"2002-07-21T22:00:00"]
[null,"2002-07-22"]
[null,"2002-07-22T02:00:00"]
[null,"2002-07-22T04:00:00"]
[null,"2002-07-22T06:00:00"]
[null,"2002-07-22T08:00:00"]
[null,"2002-07-22T10:00:00"]
[null,"2002-07-22T12:00:00"]
[null,"2002-07-22T14:00:00"]
[null,"2002-07-22T16:00:00"]
[null,"2002-07-22T18:00:00"]
[null,"2002-07-22T20:00:00"]
[null,"2002-07-22T22:00:00"]
[null,"2002-07-23"]
[null,"2002-07-23T02:00:00"]
[null,"2002-07-23T04:00:00"]
[null,"2002-07-23T06:00:00"]
[null,"2002-07-23T08:00:00"]
[null,"2002-07-23T10:00:00"]
[null,"2002-07-23T12:00:00"]
[null,"2002-07-23T14:00:00"]
[null,"2002-07-23T16:00:00"]
[null,"2002-07-23T18:00:00"]
[null,"2002-07-23T20:00:00"]
[null,"2002-07-23T22:00:00"]
[null,"2002-07-24"]
[null,"2002-07-24T02:00:00"]
[null,"2002-07-24T04:00:00"]
[null,"2002-07-24T06:00:00"]
[null,"2002-07-24T08:00:00"]
[null,"2002-07-24T10:00:00"]
[null,"2002-07-24T12:00:00"]
[null,"2002-07-24T14:00:00"]
[null,"2002-07-24T16:00:00"]
[null,"2002-07-24T18:00:00"]
[null,"2002-07-24T20:00:00"]
[null,"2002-07-24T22:00:00"]
[null,"2002-07-25"]
[null,"2002-07-25T02:00:00"]
[null,"2002-07-25T04:00:00"]
[null,"2002-07-25T06:00:00"]
[null,"2002-07-25T08:00:00"]
[null,"2002-07-25T10:00:00"]
[null,"2002-07-25T12:00:00"]
[null,"2002-07-25T14:00:00"]
[null,"2002-07-25T16:00:00"]
[null,"2002-07-25T18:00:00"]
[null,"2002-07-25T20:00:00"]
[null,"2002-07-25T22:00:00"]
[null,"2002-07-26"]
[null,"2002-07-26T02:00:00"]
[null,"2002-07-26T04:00:00"]
[null,"2002-07-26T06:00:00"]
[null,"2002-07-26T08:00:00"]
[null,"2002-07-26T10:00:00"]
[null,"2002-07-26T12:00:00"]
[null,"2002-07-26T14:00:00"]
[null,"2002-07-26T16:00:00"]
[null,"2002-07-26T18:00:00"]
[null,"2002-07-26T20:00:00"]
[null,"2002-07-26T22:00:00"]
[null,"2002-07-27"]
[null,"2002-07-27T02:00:00"]
[null,"2002-07-27T04:00:00"]
[null,"2002-07-27T06:00:00"]
[null,"2002-07-27T08:00:00"]
[null,"2002-07-27T10:00:00"]
[null,"2002-07-27T12:00:00"]
[null,"2002-07-27T14:00:00"]
[null,"2002-07-27T16:00:00"]
[null,"2002-07-27T18:00:00"]
[null,"2002-07-27T20:00:00"]
[null,"2002-07-27T22:00:00"]
[null,"2002-07-28"]
[null,"2002-07-28T02:00:00"]
[null,"2002-07-28T04:00:00"]
[null,"2002-07-28T06:00:00"]
[null,"2002-07-28T08:00:00"]
[null,"2002-07-28T10:00:00"]
[null,"2002-07-28T12:00:00"]
[null,"2002-07-28T14:00:00"]
[null,"2002-07-28T16:00:00"]
[null,"2002-07-28T18:00:00"]
[null,"2002-07-28T20:00:00"]
[null,"2002-07-28T22:00:00"]
[null,"2002-07-29"]
[null,"2002-07-29T02:00:00"]
[null,"2002-07-29T04:00:00"]
[null,"2002-07-29T06:00:00"]
[null,"2002-07-29T08:00:00"]
[null,"2002-07-29T10:00:00"]
[null,"2002-07-29T12:00:00"]
[null,"2002-07-29T14:00:00"]
[null,"2002-07-29T16:00:00"]
[null,"2002-07-29T18:00:00"]
[null,"2002-07-29T20:00:00"]
[null,"2002-07-29T22:00:00"]
[null,"2002-07-30"]
[null,"2002-07-30T02:00:00"]
[null,"2002-07-30T04:00:00"]
[null,"2002-07-30T06:00:00"]
[null,"2002-07-30T08:00:00"]
[null,"2002-07-30T10:00:00"]
[null,"2002-07-30T12:00:00"]
[null,"2002-07-30T14:00:00"]
[null,"2002-07-30T16:00:00"]
[null,"2002-07-30T18:00:00"]
[null,"2002-07-30T20:00:00"]
[null,"2002-07-30T22:00:00"]
[null,"2002-07-31"]
[null,"2002-07-31T02:00:00"]
[null,"2002-07-31T04:00:00"]
[null,"2002-07-31T06:00:00"]
[null,"2002-07-31T08:00:00"]
[null,"2002-07-31T10:00:00"]
[null,"2002-07-31T12:00:00"]
[null,"2002-07-31T14:00:00"]
[null,"2002-07-31T16:00:00"]
[null,"2002-07-31T18:00:00"]
[null,"2002-07-31T20:00:00"]
[null,"2002-07-31T22:00:00"]

{"sheet":"Chart-Shade","index":7,"n_rows":12,"n_cols":3,"rows_kept":12,"cut":false,"hidden":false,"merged":[]}
[]
[]
[]
[]
[]
[]
[]
[]
[]
[]
["Stream",null,"Effective"]
["KM","Date","Shade"]

{"sheet":"Chart-TIR","index":8,"n_rows":12,"n_cols":4,"rows_kept":12,"cut":false,"hidden":false,"merged":[]}
[]
[]
[]
[null,"                                                                                      "]
[]
[]
[]
[null,null,"R2 = ",{"$f":"RSQ(C13:C10001,D13:D10001)","v":{"$error":"#DIV/0!"}}]
[null,null,"Standard Error = ",{"$f":"STEYX(C13:C10000,D13:D10000)","v":{"$error":"#DIV/0!"}}]
[null,"TIR","TIR","Simulated"]
["Stream","Sample","Temp","Temp"]
["KM","Time","(oC)","(oC)"]

{"sheet":"Output - Hydraulics","index":9,"n_rows":16,"n_cols":151,"rows_kept":16,"cut":false,"hidden":false,"merged":[]}
[]
[null,null,null,null,null,null,null,"Simulation Name:"]
[null,null,null,null,null,null,null,"Date:"]
[null,null,null,null,null,null,null,"Time Step - dT (min):"]
[null,null,null,null,null,null,null,"Distance Step - dX (m):"]
[null,null,null,null,null,null,null,"Stream Length (km):"]
[null,null,null,null,null,null,null,"Longitudinal Sample Rate (m):"]
[null,null,null,null,null,null,null,"Transverse Sample Rate (m):"]
[null,null,null,null,null,null,null,"Inflow Sites:"]
[null,null,null,null,null,null,null,"Continuous Data Sites:"]
[null,null,null,null,null,null,null,"Flush Initial Condition (days):"]
[null,null,null,null,null,null,null,"Time Zone:"]
[null,null,null,null,null,null,null,"Simulation Period (days):"]
[]
[]
[null,"Locational Information (optional)","Heat Source Node","Long. Distance (km)","Stream km","7/13/2002 Flow (cms)","7/14/2002 Flow (cms)","7/15/2002 Flow (cms)","7/16/2002 Flow (cms)","7/17/2002 Flow (cms)","7/18/2002 Flow (cms)","7/19/2002 Flow (cms)","7/20/2002 Flow (cms)","7/21/2002 Flow (cms)","7/22/2002 Flow (cms)","7/23/2002 Flow (cms)","7/24/2002 Flow (cms)","7/25/2002 Flow (cms)","7/26/2002 Flow (cms)","7/27/2002 Flow (cms)","7/28/2002 Flow (cms)","7/29/2002 Flow (cms)","7/30/2002 Flow (cms)","7/31/2002 Flow (cms)","8/1/2002 Flow (cms)",null,"7/13/2002 Velocity (m/s)","7/14/2002 Velocity (m/s)","7/15/2002 Velocity (m/s)","7/16/2002 Velocity (m/s)","7/17/2002 Velocity (m/s)","7/18/2002 Velocity (m/s)","7/19/2002 Velocity (m/s)","7/20/2002 Velocity (m/s)","7/21/2002 Velocity (m/s)","7/22/2002 Velocity (m/s)","7/23/2002 Velocity (m/s)","7/24/2002 Velocity (m/s)","7/25/2002 Velocity (m/s)","7/26/2002 Velocity (m/s)","7/27/2002 Velocity (m/s)","7/28/2002 Velocity (m/s)","7/29/2002 Velocity (m/s)","7/30/2002 Velocity (m/s)","7/31/2002 Velocity (m/s)","8/1/2002 Velocity (m/s)",null,"7/13/2002 Wetted Width (m)","7/14/2002 Wetted Width (m)","7/15/2002 Wetted Width (m)","7/16/2002 Wetted Width (m)","7/17/2002 Wetted Width (m)","7/18/2002 Wetted Width (m)","7/19/2002 Wetted Width (m)","7/20/2002 Wetted Width (m)","7/21/2002 Wetted Width (m)","7/22/2002 Wetted Width (m)","7/23/2002 Wetted Width (m)","7/24/2002 Wetted Width (m)","7/25/2002 Wetted Width (m)","7/26/2002 Wetted Width (m)","7/27/2002 Wetted Width (m)","7/28/2002 Wetted Width (m)","7/29/2002 Wetted Width (m)","7/30/2002 Wetted Width (m)","7/31/2002 Wetted Width (m)","8/1/2002 Wetted Width (m)",null,"7/13/2002 Ave Wetted Depth (m)","7/14/2002 Ave Wetted Depth (m)","7/15/2002 Ave Wetted Depth (m)","7/16/2002 Ave Wetted Depth (m)","7/17/2002 Ave Wetted Depth (m)","7/18/2002 Ave Wetted Depth (m)","7/19/2002 Ave Wetted Depth (m)","7/20/2002 Ave Wetted Depth (m)","7/21/2002 Ave Wetted Depth (m)","7/22/2002 Ave Wetted Depth (m)","7/23/2002 Ave Wetted Depth (m)","7/24/2002 Ave Wetted Depth (m)","7/25/2002 Ave Wetted Depth (m)","7/26/2002 Ave Wetted Depth (m)","7/27/2002 Ave Wetted Depth (m)","7/28/2002 Ave Wetted Depth (m)","7/29/2002 Ave Wetted Depth (m)","7/30/2002 Ave Wetted Depth (m)","7/31/2002 Ave Wetted Depth (m)","8/1/2002 Ave Wetted Depth (m)",null,"7/13/2002 Max Wetted Depth (m)","7/14/2002 Max Wetted Depth (m)","7/15/2002 Max Wetted Depth (m)","7/16/2002 Max Wetted Depth (m)","7/17/2002 Max Wetted Depth (m)","7/18/2002 Max Wetted Depth (m)","7/19/2002 Max Wetted Depth (m)","7/20/2002 Max Wetted Depth (m)","7/21/2002 Max Wetted Depth (m)","7/22/2002 Max Wetted Depth (m)","7/23/2002 Max Wetted Depth (m)","7/24/2002 Max Wetted Depth (m)","7/25/2002 Max Wetted Depth (m)","7/26/2002 Max Wetted Depth (m)","7/27/2002 Max Wetted Depth (m)","7/28/2002 Max Wetted Depth (m)","7/29/2002 Max Wetted Depth (m)","7/30/2002 Max Wetted Depth (m)","7/31/2002 Max Wetted Depth (m)","8/1/2002 Max Wetted Depth (m)",null,"7/13/2002 Hyporheic Exchange (cms)","7/14/2002 Hyporheic Exchange (cms)","7/15/2002 Hyporheic Exchange (cms)","7/16/2002 Hyporheic Exchange (cms)","7/17/2002 Hyporheic Exchange (cms)","7/18/2002 Hyporheic Exchange (cms)","7/19/2002 Hyporheic Exchange (cms)","7/20/2002 Hyporheic Exchange (cms)","7/21/2002 Hyporheic Exchange (cms)","7/22/2002 Hyporheic Exchange (cms)","7/23/2002 Hyporheic Exchange (cms)","7/24/2002 Hyporheic Exchange (cms)","7/25/2002 Hyporheic Exchange (cms)","7/26/2002 Hyporheic Exchange (cms)","7/27/2002 Hyporheic Exchange (cms)","7/28/2002 Hyporheic Exchange (cms)","7/29/2002 Hyporheic Exchange (cms)","7/30/2002 Hyporheic Exchange (cms)","7/31/2002 Hyporheic Exchange (cms)","8/1/2002 Hyporheic Exchange (cms)",null,"7/13/2002 Tendency to Stratify","7/14/2002 Tendency to Stratify","7/15/2002 Tendency to Stratify","7/16/2002 Tendency to Stratify","7/17/2002 Tendency to Stratify","7/18/2002 Tendency to Stratify","7/19/2002 Tendency to Stratify","7/20/2002 Tendency to Stratify","7/21/2002 Tendency to Stratify","7/22/2002 Tendency to Stratify","7/23/2002 Tendency to Stratify","7/24/2002 Tendency to Stratify","7/25/2002 Tendency to Stratify","7/26/2002 Tendency to Stratify","7/27/2002 Tendency to Stratify","7/28/2002 Tendency to Stratify","7/29/2002 Tendency to Stratify","7/30/2002 Tendency to Stratify","7/31/2002 Tendency to Stratify","8/1/2002 Tendency to Stratify"]

{"sheet":"Chart-Heat Flux","index":10,"n_rows":12,"n_cols":7,"rows_kept":12,"cut":false,"hidden":false,"merged":[]}
[]
[]
[]
[]
[]
[]
[]
[]
[]
[null,null,null,"     Heat Energy Flux (W/m2)"]
[null,"Total","Solar","LW","Air","Bed"]
[null,"Heat","Rad.","Rad.","Conv.","Cond.","Evap."]

{"sheet":"Chart-Long Temp","index":11,"n_rows":10000,"n_cols":5,"rows_kept":10000,"cut":false,"hidden":false,"merged":[]}
[]
[]
[]
[]
[]
[]
[]
[]
[]
[]
[null,"Simulated"]
["Stream","Temp"]
["KM","(oC)",null,null,{"$f":"ABS(D13-C13)","v":0}]
[null,null,null,null,0]
[null,null,null,null,0]
[null,null,null,null,0]
[null,null,null,null,0]
[null,null,null,null,0]
[null,null,null,null,0]
[null,null,null,null,0]
[null,null,null,null,0]
[null,null,null,null,0]
[null,null,null,null,0]
[null,null,null,null,0]
[null,null,null,null,0]
[null,null,null,null,0]
[null,null,null,null,0]
[null,null,null,null,0]
[null,null,null,null,0]
[null,null,null,null,0]
[null,null,null,null,0]
[null,null,null,null,0]
[null,null,null,null,0]
[null,null,null,null,0]
[null,null,null,null,0]
[null,null,null,null,0]
[null,null,null,null,0]
[null,null,null,null,0]
[null,null,null,null,0]
[null,null,null,null,0]
[null,null,null,null,0]
[null,null,null,null,0]
[null,null,null,null,0]
[null,null,null,null,0]
[null,null,null,null,0]
[null,null,null,null,0]
[null,null,null,null,0]
[null,null,null,null,0]
[null,null,null,null,0]
[null,null,null,null,0]
[null,null,null,null,0]
[null,null,null,null,0]
[null,null,null,null,0]
[null,null,null,null,0]
[null,null,null,null,0]
[null,null,null,null,0]
[null,null,null,null,0]
[null,null,null,null,0]
[null,null,null,null,0]
[null,null,null,null,0]
[null,null,null,null,0]
[null,null,null,null,0]
[null,null,null,null,0]
[null,null,null,null,0]
[null,null,null,null,0]
[null,null,null,null,0]
[null,null,null,null,0]
[null,null,null,null,0]
[null,null,null,null,0]
[null,null,null,null,0]
[null,null,null,null,0]
[null,null,null,null,0]
[null,null,null,null,0]
[null,null,null,null,0]
[null,null,null,null,0]
[null,null,null,null,0]
[null,null,null,null,{"$f":"ABS(D77-C77)","v":0}]
[null,null,null,null,0]
[null,null,null,null,0]
[null,null,null,null,0]
[null,null,null,null,0]
[null,null,null,null,0]
[null,null,null,null,0]
[null,null,null,null,0]
[null,null,null,null,0]
[null,null,null,null,0]
[null,null,null,null,0]
[null,null,null,null,0]
[null,null,null,null,0]
[null,null,null,null,0]
[null,null,null,null,0]
[null,null,null,null,0]
[null,null,null,null,0]
[null,null,null,null,0]
[null,null,null,null,0]
[null,null,null,null,0]
[null,null,null,null,0]
[null,null,null,null,0]
[null,null,null,null,0]
[null,null,null,null,0]
[null,null,null,null,0]
[null,null,null,null,0]
[null,null,null,null,0]
[null,null,null,null,0]
[null,null,null,null,0]
[null,null,null,null,0]
[null,null,null,null,0]
[null,null,null,null,0]
[null,null,null,null,0]
[null,null,null,null,0]
[null,null,null,null,0]
[null,null,null,null,0]
[null,null,null,null,0]
[null,null,null,null,0]
[null,null,null,null,0]
[null,null,null,null,0]
[null,null,null,null,0]
[null,null,null,null,0]
[null,null,null,null,0]
[null,null,null,null,0]
[null,null,null,null,0]
[null,null,null,null,0]
[null,null,null,null,0]
[null,null,null,null,0]
[null,null,null,null,0]
[null,null,null,null,0]
[null,null,null,null,0]
[null,null,null,null,0]
[null,null,null,null,0]
[null,null,null,null,0]
[null,null,null,null,0]
[null,null,null,null,0]
[null,null,null,null,0]
[null,null,null,null,0]
[null,null,null,null,0]
[null,null,null,null,0]
[null,null,null,null,0]
[null,null,null,null,0]
[null,null,null,null,0]
[null,null,null,null,0]
[null,null,null,null,{"$f":"ABS(D141-C141)","v":0}]
[null,null,null,null,0]
[null,null,null,null,0]
[null,null,null,null,0]
[null,null,null,null,0]
[null,null,null,null,0]
[null,null,null,null,0]
[null,null,null,null,0]
[null,null,null,null,0]
[null,null,null,null,0]
[null,null,null,null,0]
[null,null,null,null,0]
[null,null,null,null,0]
[null,null,null,null,0]
[null,null,null,null,0]
[null,null,null,null,0]
[null,null,null,null,0]
[null,null,null,null,0]
[null,null,null,null,0]
[null,null,null,null,0]
[null,null,null,null,0]
[null,null,null,null,0]
[null,null,null,null,0]
[null,null,null,null,0]
[null,null,null,null,0]
[null,null,null,null,0]
[null,null,null,null,0]
[null,null,null,null,0]
[null,null,null,null,0]
[null,null,null,null,0]
[null,null,null,null,0]
[null,null,null,null,0]
[null,null,null,null,0]
[null,null,null,null,0]
[null,null,null,null,0]
[null,null,null,null,0]
[null,null,null,null,0]
[null,null,null,null,0]
[null,null,null,null,0]
[null,null,null,null,0]
[null,null,null,null,0]
[null,null,null,null,0]
[null,null,null,null,0]
[null,null,null,null,0]
[null,null,null,null,0]
[null,null,null,null,0]
[null,null,null,null,0]
[null,null,null,null,0]
[null,null,null,null,0]
[null,null,null,null,0]
[null,null,null,null,0]
[null,null,null,null,0]
[null,null,null,null,0]
[null,null,null,null,0]
[null,null,null,null,0]
[null,null,null,null,0]
[null,null,null,null,0]
[null,null,null,null,0]
[null,null,null,null,0]
[null,null,null,null,0]
[null,null,null,null,0]
[null,null,null,null,0]
[null,null,null,null,0]
[null,null,null,null,0]
[null,null,null,null,{"$f":"ABS(D205-C205)","v":0}]
[null,null,null,null,0]
[null,null,null,null,0]
[null,null,null,null,0]
[null,null,null,null,0]
[null,null,null,null,0]
[null,null,null,null,0]
[null,null,null,null,0]
[null,null,null,null,0]
[null,null,null,null,0]
[null,null,null,null,0]
[null,null,null,null,0]
[null,null,null,null,0]
[null,null,null,null,0]
[null,null,null,null,0]
[null,null,null,null,0]
[null,null,null,null,0]
[null,null,null,null,0]
[null,null,null,null,0]
[null,null,null,null,0]
[null,null,null,null,0]
[null,null,null,null,0]
[null,null,null,null,0]
[null,null,null,null,0]
[null,null,null,null,0]
[null,null,null,null,0]
[null,null,null,null,0]
[null,null,null,null,0]
[null,null,null,null,0]
[null,null,null,null,0]
[null,null,null,null,0]
[null,null,null,null,0]
[null,null,null,null,0]
[null,null,null,null,0]
[null,null,null,null,0]
[null,null,null,null,0]
[null,null,null,null,0]
[null,null,null,null,0]
[null,null,null,null,0]
[null,null,null,null,0]
[null,null,null,null,0]
[null,null,null,null,0]
[null,null,null,null,0]
[null,null,null,null,0]
[null,null,null,null,0]
[null,null,null,null,0]
[null,null,null,null,0]
[null,null,null,null,0]
[null,null,null,null,0]
[null,null,null,null,0]
[null,null,null,null,0]
[null,null,null,null,0]
[null,null,null,null,0]
[null,null,null,null,0]
[null,null,null,null,0]
[null,null,null,null,0]
[null,null,null,null,0]
[null,null,null,null,0]
[null,null,null,null,0]
[null,null,null,null,0]
[null,null,null,null,0]
[null,null,null,null,0]
[null,null,null,null,0]
[null,null,null,null,0]
[null,null,null,null,{"$f":"ABS(D269-C269)","v":0}]
[null,null,null,null,0]
[null,null,null,null,0]
[null,null,null,null,0]
[null,null,null,null,0]
[null,null,null,null,0]
[null,null,null,null,0]
[null,null,null,null,0]
[null,null,null,null,0]
[null,null,null,null,0]
[null,null,null,null,0]
[null,null,null,null,0]
[null,null,null,null,0]
[null,null,null,null,0]
[null,null,null,null,0]
[null,null,null,null,0]
[null,null,null,null,0]
[null,null,null,null,0]
[null,null,null,null,0]
[null,null,null,null,0]
[null,null,null,null,0]
[null,null,null,null,0]
[null,null,null,null,0]
[null,null,null,null,0]
[null,null,null,null,0]
[null,null,null,null,0]
[null,null,null,null,0]
[null,null,null,null,0]
[null,null,null,null,0]
[null,null,null,null,0]
[null,null,null,null,0]
[null,null,null,null,0]
[null,null,null,null,0]
[null,null,null,null,0]
[null,null,null,null,0]
[null,null,null,null,0]
[null,null,null,null,0]
[null,null,null,null,0]
[null,null,null,null,0]
[null,null,null,null,0]
[null,null,null,null,0]
[null,null,null,null,0]
[null,null,null,null,0]
[null,null,null,null,0]
[null,null,null,null,0]
[null,null,null,null,0]
[null,null,null,null,0]
[null,null,null,null,0]
[null,null,null,null,0]
[null,null,null,null,0]
[null,null,null,null,0]
[null,null,null,null,0]
[null,null,null,null,0]
[null,null,null,null,0]
[null,null,null,null,0]
[null,null,null,null,0]
[null,null,null,null,0]
[null,null,null,null,0]
[null,null,null,null,0]
[null,null,null,null,0]
[null,null,null,null,0]
[null,null,null,null,0]
[null,null,null,null,0]
[null,null,null,null,0]
[null,null,null,null,{"$f":"ABS(D333-C333)","v":0}]
[null,null,null,null,0]
[null,null,null,null,0]
[null,null,null,null,0]
[null,null,null,null,0]
[null,null,null,null,0]
[null,null,null,null,0]
[null,null,null,null,0]
[null,null,null,null,0]
[null,null,null,null,0]
[null,null,null,null,0]
[null,null,null,null,0]
[null,null,null,null,0]
[null,null,null,null,0]
[null,null,null,null,0]
[null,null,null,null,0]
[null,null,null,null,0]
[null,null,null,null,0]
[null,null,null,null,0]
[null,null,null,null,0]
[null,null,null,null,0]
[null,null,null,null,0]
[null,null,null,null,0]
[null,null,null,null,0]
[null,null,null,null,0]
[null,null,null,null,0]
[null,null,null,null,0]
[null,null,null,null,0]
[null,null,null,null,0]
[null,null,null,null,0]
[null,null,null,null,0]
[null,null,null,null,0]
[null,null,null,null,0]
[null,null,null,null,0]
[null,null,null,null,0]
[null,null,null,null,0]
[null,null,null,null,0]
[null,null,null,null,0]
[null,null,null,null,0]
[null,null,null,null,0]
[null,null,null,null,0]
[null,null,null,null,0]
[null,null,null,null,0]
[null,null,null,null,0]
[null,null,null,null,0]
[null,null,null,null,0]
[null,null,null,null,0]
[null,null,null,null,0]
[null,null,null,null,0]
[null,null,null,null,0]
[null,null,null,null,0]
[null,null,null,null,0]
[null,null,null,null,0]
[null,null,null,null,0]
[null,null,null,null,0]
[null,null,null,null,0]
[null,null,null,null,0]
[null,null,null,null,0]
[null,null,null,null,0]
[null,null,null,null,0]
[null,null,null,null,0]
[null,null,null,null,0]
[null,null,null,null,0]
[null,null,null,null,0]
[null,null,null,null,{"$f":"ABS(D397-C397)","v":0}]
[null,null,null,null,0]
[null,null,null,null,0]
[null,null,null,null,0]
[null,null,null,null,0]
[null,null,null,null,0]
[null,null,null,null,0]
[null,null,null,null,0]
[null,null,null,null,0]
[null,null,null,null,0]
[null,null,null,null,0]
[null,null,null,null,0]
[null,null,null,null,0]
[null,null,null,null,0]
[null,null,null,null,0]
[null,null,null,null,0]
[null,null,null,null,0]
[null,null,null,null,0]
[null,null,null,null,0]
[null,null,null,null,0]
[null,null,null,null,0]
[null,null,null,null,0]
[null,null,null,null,0]
[null,null,null,null,0]
[null,null,null,null,0]
[null,null,null,null,0]
[null,null,null,null,0]
[null,null,null,null,0]
[null,null,null,null,0]
[null,null,null,null,0]
[null,null,null,null,0]
[null,null,null,null,0]
[null,null,null,null,0]
[null,null,null,null,0]
[null,null,null,null,0]
[null,null,null,null,0]
[null,null,null,null,0]
[null,null,null,null,0]
[null,null,null,null,0]
[null,null,null,null,0]
[null,null,null,null,0]
[null,null,null,null,0]
[null,null,null,null,0]
[null,null,null,null,0]
[null,null,null,null,0]
[null,null,null,null,0]
[null,null,null,null,0]
[null,null,null,null,0]
[null,null,null,null,0]
[null,null,null,null,0]
[null,null,null,null,0]
[null,null,null,null,0]
[null,null,null,null,0]
[null,null,null,null,0]
[null,null,null,null,0]
[null,null,null,null,0]
[null,null,null,null,0]
[null,null,null,null,0]
[null,null,null,null,0]
[null,null,null,null,0]
[null,null,null,null,0]
[null,null,null,null,0]
[null,null,null,null,0]
[null,null,null,null,0]
[null,null,null,null,{"$f":"ABS(D461-C461)","v":0}]
[null,null,null,null,0]
[null,null,null,null,0]
[null,null,null,null,0]
[null,null,null,null,0]
[null,null,null,null,0]
[null,null,null,null,0]
[null,null,null,null,0]
[null,null,null,null,0]
[null,null,null,null,0]
[null,null,null,null,0]
[null,null,null,null,0]
[null,null,null,null,0]
[null,null,null,null,0]
[null,null,null,null,0]
[null,null,null,null,0]
[null,null,null,null,0]
[null,null,null,null,0]
[null,null,null,null,0]
[null,null,null,null,0]
[null,null,null,null,0]
[null,null,null,null,0]
[null,null,null,null,0]
[null,null,null,null,0]
[null,null,null,null,0]
[null,null,null,null,0]
[null,null,null,null,0]
[null,null,null,null,0]
[null,null,null,null,0]
[null,null,null,null,0]
[null,null,null,null,0]
[null,null,null,null,0]
[null,null,null,null,0]
[null,null,null,null,0]
[null,null,null,null,0]
[null,null,null,null,0]
[null,null,null,null,0]
[null,null,null,null,0]
[null,null,null,null,0]
[null,null,null,null,0]
[null,null,null,null,0]
[null,null,null,null,0]
[null,null,null,null,0]
[null,null,null,null,0]
[null,null,null,null,0]
[null,null,null,null,0]
[null,null,null,null,0]
[null,null,null,null,0]
[null,null,null,null,0]
[null,null,null,null,0]
[null,null,null,null,0]
[null,null,null,null,0]
[null,null,null,null,0]
[null,null,null,null,0]
[null,null,null,null,0]
[null,null,null,null,0]
[null,null,null,null,0]
[null,null,null,null,0]
[null,null,null,null,0]
[null,null,null,null,0]
[null,null,null,null,0]
[null,null,null,null,0]
[null,null,null,null,0]
[null,null,null,null,0]
[null,null,null,null,{"$f":"ABS(D525-C525)","v":0}]
[null,null,null,null,0]
[null,null,null,null,0]
[null,null,null,null,0]
[null,null,null,null,0]
[null,null,null,null,0]
[null,null,null,null,0]
[null,null,null,null,0]
[null,null,null,null,0]
[null,null,null,null,0]
[null,null,null,null,0]
[null,null,null,null,0]
[null,null,null,null,0]
[null,null,null,null,0]
[null,null,null,null,0]
[null,null,null,null,0]
[null,null,null,null,0]
[null,null,null,null,0]
[null,null,null,null,0]
[null,null,null,null,0]
[null,null,null,null,0]
[null,null,null,null,0]
[null,null,null,null,0]
[null,null,null,null,0]
[null,null,null,null,0]
[null,null,null,null,0]
[null,null,null,null,0]
[null,null,null,null,0]
[null,null,null,null,0]
[null,null,null,null,0]
[null,null,null,null,0]
[null,null,null,null,0]
[null,null,null,null,0]
[null,null,null,null,0]
[null,null,null,null,0]
[null,null,null,null,0]
[null,null,null,null,0]
[null,null,null,null,0]
[null,null,null,null,0]
[null,null,null,null,0]
[null,null,null,null,0]
[null,null,null,null,0]
[null,null,null,null,0]
[null,null,null,null,0]
[null,null,null,null,0]
[null,null,null,null,0]
[null,null,null,null,0]
[null,null,null,null,0]
[null,null,null,null,0]
[null,null,null,null,0]
[null,null,null,null,0]
[null,null,null,null,0]
[null,null,null,null,0]
[null,null,null,null,0]
[null,null,null,null,0]
[null,null,null,null,0]
[null,null,null,null,0]
[null,null,null,null,0]
[null,null,null,null,0]
[null,null,null,null,0]
[null,null,null,null,0]
[null,null,null,null,0]
[null,null,null,null,0]
[null,null,null,null,0]
[null,null,null,null,{"$f":"ABS(D589-C589)","v":0}]
[null,null,null,null,0]
[null,null,null,null,0]
[null,null,null,null,0]
[null,null,null,null,0]
[null,null,null,null,0]
[null,null,null,null,0]
[null,null,null,null,0]
[null,null,null,null,0]
[null,null,null,null,0]
[null,null,null,null,0]
[null,null,null,null,0]
[null,null,null,null,0]
[null,null,null,null,0]
[null,null,null,null,0]
[null,null,null,null,0]
[null,null,null,null,0]
[null,null,null,null,0]
[null,null,null,null,0]
[null,null,null,null,0]
[null,null,null,null,0]
[null,null,null,null,0]
[null,null,null,null,0]
[null,null,null,null,0]
[null,null,null,null,0]
[null,null,null,null,0]
[null,null,null,null,0]
[null,null,null,null,0]
[null,null,null,null,0]
[null,null,null,null,0]
[null,null,null,null,0]
[null,null,null,null,0]
[null,null,null,null,0]
[null,null,null,null,0]
[null,null,null,null,0]
[null,null,null,null,0]
[null,null,null,null,0]
[null,null,null,null,0]
[null,null,null,null,0]
[null,null,null,null,0]
[null,null,null,null,0]
[null,null,null,null,0]
[null,null,null,null,0]
[null,null,null,null,0]
[null,null,null,null,0]
[null,null,null,null,0]
[null,null,null,null,0]
[null,null,null,null,0]
[null,null,null,null,0]
[null,null,null,null,0]
[null,null,null,null,0]
[null,null,null,null,0]
[null,null,null,null,0]
[null,null,null,null,0]
[null,null,null,null,0]
[null,null,null,null,0]
[null,null,null,null,0]
[null,null,null,null,0]
[null,null,null,null,0]
[null,null,null,null,0]
[null,null,null,null,0]
[null,null,null,null,0]
[null,null,null,null,0]
[null,null,null,null,0]
[null,null,null,null,{"$f":"ABS(D653-C653)","v":0}]
[null,null,null,null,0]
[null,null,null,null,0]
[null,null,null,null,0]
[null,null,null,null,0]
[null,null,null,null,0]
[null,null,null,null,0]
[null,null,null,null,0]
[null,null,null,null,0]
[null,null,null,null,0]
[null,null,null,null,0]
[null,null,null,null,0]
[null,null,null,null,0]
[null,null,null,null,0]
[null,null,null,null,0]
[null,null,null,null,0]
[null,null,null,null,0]
[null,null,null,null,0]
[null,null,null,null,0]
[null,null,null,null,0]
[null,null,null,null,0]
[null,null,null,null,0]
[null,null,null,null,0]
[null,null,null,null,0]
[null,null,null,null,0]
[null,null,null,null,0]
[null,null,null,null,0]
[null,null,null,null,0]
[null,null,null,null,0]
[null,null,null,null,0]
[null,null,null,null,0]
[null,null,null,null,0]
[null,null,null,null,0]
[null,null,null,null,0]
[null,null,null,null,0]
[null,null,null,null,0]
[null,null,null,null,0]
[null,null,null,null,0]
[null,null,null,null,0]
[null,null,null,null,0]
[null,null,null,null,0]
[null,null,null,null,0]
[null,null,null,null,0]
[null,null,null,null,0]
[null,null,null,null,0]
[null,null,null,null,0]
[null,null,null,null,0]
[null,null,null,null,0]
[null,null,null,null,0]
[null,null,null,null,0]
[null,null,null,null,0]
[null,null,null,null,0]
[null,null,null,null,0]
[null,null,null,null,0]
[null,null,null,null,0]
[null,null,null,null,0]
[null,null,null,null,0]
[null,null,null,null,0]
[null,null,null,null,0]
[null,null,null,null,0]
[null,null,null,null,0]
[null,null,null,null,0]
[null,null,null,null,0]
[null,null,null,null,0]
[null,null,null,null,{"$f":"ABS(D717-C717)","v":0}]
[null,null,null,null,0]
[null,null,null,null,0]
[null,null,null,null,0]
[null,null,null,null,0]
[null,null,null,null,0]
[null,null,null,null,0]
[null,null,null,null,0]
[null,null,null,null,0]
[null,null,null,null,0]
[null,null,null,null,0]
[null,null,null,null,0]
[null,null,null,null,0]
[null,null,null,null,0]
[null,null,null,null,0]
[null,null,null,null,0]
[null,null,null,null,0]
[null,null,null,null,0]
[null,null,null,null,0]
[null,null,null,null,0]
[null,null,null,null,0]
[null,null,null,null,0]
[null,null,null,null,0]
[null,null,null,null,0]
[null,null,null,null,0]
[null,null,null,null,0]
[null,null,null,null,0]
[null,null,null,null,0]
[null,null,null,null,0]
[null,null,null,null,0]
[null,null,null,null,0]
[null,null,null,null,0]
[null,null,null,null,0]
[null,null,null,null,0]
[null,null,null,null,0]
[null,null,null,null,0]
[null,null,null,null,0]
[null,null,null,null,0]
[null,null,null,null,0]
[null,null,null,null,0]
[null,null,null,null,0]
[null,null,null,null,0]
[null,null,null,null,0]
[null,null,null,null,0]
[null,null,null,null,0]
[null,null,null,null,0]
[null,null,null,null,0]
[null,null,null,null,0]
[null,null,null,null,0]
[null,null,null,null,0]
[null,null,null,null,0]
[null,null,null,null,0]
[null,null,null,null,0]
[null,null,null,null,0]
[null,null,null,null,0]
[null,null,null,null,0]
[null,null,null,null,0]
[null,null,null,null,0]
[null,null,null,null,0]
[null,null,null,null,0]
[null,null,null,null,0]
[null,null,null,null,0]
[null,null,null,null,0]
[null,null,null,null,0]
[null,null,null,null,{"$f":"ABS(D781-C781)","v":0}]
[null,null,null,null,0]
[null,null,null,null,0]
[null,null,null,null,0]
[null,null,null,null,0]
[null,null,null,null,0]
[null,null,null,null,0]
[null,null,null,null,0]
[null,null,null,null,0]
[null,null,null,null,0]
[null,null,null,null,0]
[null,null,null,null,0]
[null,null,null,null,0]
[null,null,null,null,0]
[null,null,null,null,0]
[null,null,null,null,0]
[null,null,null,null,0]
[null,null,null,null,0]
[null,null,null,null,0]
[null,null,null,null,0]
[null,null,null,null,0]
[null,null,null,null,0]
[null,null,null,null,0]
[null,null,null,null,0]
[null,null,null,null,0]
[null,null,null,null,0]
[null,null,null,null,0]
[null,null,null,null,0]
[null,null,null,null,0]
[null,null,null,null,0]
[null,null,null,null,0]
[null,null,null,null,0]
[null,null,null,null,0]
[null,null,null,null,0]
[null,null,null,null,0]
[null,null,null,null,0]
[null,null,null,null,0]
[null,null,null,null,0]
[null,null,null,null,0]
[null,null,null,null,0]
[null,null,null,null,0]
[null,null,null,null,0]
[null,null,null,null,0]
[null,null,null,null,0]
[null,null,null,null,0]
[null,null,null,null,0]
[null,null,null,null,0]
[null,null,null,null,0]
[null,null,null,null,0]
[null,null,null,null,0]
[null,null,null,null,0]
[null,null,null,null,0]
[null,null,null,null,0]
[null,null,null,null,0]
[null,null,null,null,0]
[null,null,null,null,0]
[null,null,null,null,0]
[null,null,null,null,0]
[null,null,null,null,0]
[null,null,null,null,0]
[null,null,null,null,0]
[null,null,null,null,0]
[null,null,null,null,0]
[null,null,null,null,0]
[null,null,null,null,{"$f":"ABS(D845-C845)","v":0}]
[null,null,null,null,0]
[null,null,null,null,0]
[null,null,null,null,0]
[null,null,null,null,0]
[null,null,null,null,0]
[null,null,null,null,0]
[null,null,null,null,0]
[null,null,null,null,0]
[null,null,null,null,0]
[null,null,null,null,0]
[null,null,null,null,0]
[null,null,null,null,0]
[null,null,null,null,0]
[null,null,null,null,0]
[null,null,null,null,0]
[null,null,null,null,0]
[null,null,null,null,0]
[null,null,null,null,0]
[null,null,null,null,0]
[null,null,null,null,0]
[null,null,null,null,0]
[null,null,null,null,0]
[null,null,null,null,0]
[null,null,null,null,0]
[null,null,null,null,0]
[null,null,null,null,0]
[null,null,null,null,0]
[null,null,null,null,0]
[null,null,null,null,0]
[null,null,null,null,0]
[null,null,null,null,0]
[null,null,null,null,0]
[null,null,null,null,0]
[null,null,null,null,0]
[null,null,null,null,0]
[null,null,null,null,0]
[null,null,null,null,0]
[null,null,null,null,0]
[null,null,null,null,0]
[null,null,null,null,0]
[null,null,null,null,0]
[null,null,null,null,0]
[null,null,null,null,0]
[null,null,null,null,0]
[null,null,null,null,0]
[null,null,null,null,0]
[null,null,null,null,0]
[null,null,null,null,0]
[null,null,null,null,0]
[null,null,null,null,0]
[null,null,null,null,0]
[null,null,null,null,0]
[null,null,null,null,0]
[null,null,null,null,0]
[null,null,null,null,0]
[null,null,null,null,0]
[null,null,null,null,0]
[null,null,null,null,0]
[null,null,null,null,0]
[null,null,null,null,0]
[null,null,null,null,0]
[null,null,null,null,0]
[null,null,null,null,0]
[null,null,null,null,{"$f":"ABS(D909-C909)","v":0}]
[null,null,null,null,0]
[null,null,null,null,0]
[null,null,null,null,0]
[null,null,null,null,0]
[null,null,null,null,0]
[null,null,null,null,0]
[null,null,null,null,0]
[null,null,null,null,0]
[null,null,null,null,0]
[null,null,null,null,0]
[null,null,null,null,0]
[null,null,null,null,0]
[null,null,null,null,0]
[null,null,null,null,0]
[null,null,null,null,0]
[null,null,null,null,0]
[null,null,null,null,0]
[null,null,null,null,0]
[null,null,null,null,0]
[null,null,null,null,0]
[null,null,null,null,0]
[null,null,null,null,0]
[null,null,null,null,0]
[null,null,null,null,0]
[null,null,null,null,0]
[null,null,null,null,0]
[null,null,null,null,0]
[null,null,null,null,0]
[null,null,null,null,0]
[null,null,null,null,0]
[null,null,null,null,0]
[null,null,null,null,0]
[null,null,null,null,0]
[null,null,null,null,0]
[null,null,null,null,0]
[null,null,null,null,0]
[null,null,null,null,0]
[null,null,null,null,0]
[null,null,null,null,0]
[null,null,null,null,0]
[null,null,null,null,0]
[null,null,null,null,0]
[null,null,null,null,0]
[null,null,null,null,0]
[null,null,null,null,0]
[null,null,null,null,0]
[null,null,null,null,0]
[null,null,null,null,0]
[null,null,null,null,0]
[null,null,null,null,0]
[null,null,null,null,0]
[null,null,null,null,0]
[null,null,null,null,0]
[null,null,null,null,0]
[null,null,null,null,0]
[null,null,null,null,0]
[null,null,null,null,0]
[null,null,null,null,0]
[null,null,null,null,0]
[null,null,null,null,0]
[null,null,null,null,0]
[null,null,null,null,0]
[null,null,null,null,0]
[null,null,null,null,{"$f":"ABS(D973-C973)","v":0}]
[null,null,null,null,0]
[null,null,null,null,0]
[null,null,null,null,0]
[null,null,null,null,0]
[null,null,null,null,0]
[null,null,null,null,0]
[null,null,null,null,0]
[null,null,null,null,0]
[null,null,null,null,0]
[null,null,null,null,0]
[null,null,null,null,0]
[null,null,null,null,0]
[null,null,null,null,0]
[null,null,null,null,0]
[null,null,null,null,0]
[null,null,null,null,0]
[null,null,null,null,0]
[null,null,null,null,0]
[null,null,null,null,0]
[null,null,null,null,0]
[null,null,null,null,0]
[null,null,null,null,0]
[null,null,null,null,0]
[null,null,null,null,0]
[null,null,null,null,0]
[null,null,null,null,0]
[null,null,null,null,0]
[null,null,null,null,0]
[null,null,null,null,0]
[null,null,null,null,0]
[null,null,null,null,0]
[null,null,null,null,0]
[null,null,null,null,0]
[null,null,null,null,0]
[null,null,null,null,0]
[null,null,null,null,0]
[null,null,null,null,0]
[null,null,null,null,0]
[null,null,null,null,0]
[null,null,null,null,0]
[null,null,null,null,0]
[null,null,null,null,0]
[null,null,null,null,0]
[null,null,null,null,0]
[null,null,null,null,0]
[null,null,null,null,0]
[null,null,null,null,0]
[null,null,null,null,0]
[null,null,null,null,0]
[null,null,null,null,0]
[null,null,null,null,0]
[null,null,null,null,0]
[null,null,null,null,0]
[null,null,null,null,0]
[null,null,null,null,0]
[null,null,null,null,0]
[null,null,null,null,0]
[null,null,null,null,0]
[null,null,null,null,0]
[null,null,null,null,0]
[null,null,null,null,0]
[null,null,null,null,0]
[null,null,null,null,0]
[null,null,null,null,{"$f":"ABS(D1037-C1037)","v":0}]
[null,null,null,null,0]
[null,null,null,null,0]
[null,null,null,null,0]
[null,null,null,null,0]
[null,null,null,null,0]
[null,null,null,null,0]
[null,null,null,null,0]
[null,null,null,null,0]
[null,null,null,null,0]
[null,null,null,null,0]
[null,null,null,null,0]
[null,null,null,null,0]
[null,null,null,null,0]
[null,null,null,null,0]
[null,null,null,null,0]
[null,null,null,null,0]
[null,null,null,null,0]
[null,null,null,null,0]
[null,null,null,null,0]
[null,null,null,null,0]
[null,null,null,null,0]
[null,null,null,null,0]
[null,null,null,null,0]
[null,null,null,null,0]
[null,null,null,null,0]
[null,null,null,null,0]
[null,null,null,null,0]
[null,null,null,null,0]
[null,null,null,null,0]
[null,null,null,null,0]
[null,null,null,null,0]
[null,null,null,null,0]
[null,null,null,null,0]
[null,null,null,null,0]
[null,null,null,null,0]
[null,null,null,null,0]
[null,null,null,null,0]
[null,null,null,null,0]
[null,null,null,null,0]
[null,null,null,null,0]
[null,null,null,null,0]
[null,null,null,null,0]
[null,null,null,null,0]
[null,null,null,null,0]
[null,null,null,null,0]
[null,null,null,null,0]
[null,null,null,null,0]
[null,null,null,null,0]
[null,null,null,null,0]
[null,null,null,null,0]
[null,null,null,null,0]
[null,null,null,null,0]
[null,null,null,null,0]
[null,null,null,null,0]
[null,null,null,null,0]
[null,null,null,null,0]
[null,null,null,null,0]
[null,null,null,null,0]
[null,null,null,null,0]
[null,null,null,null,0]
[null,null,null,null,0]
[null,null,null,null,0]
[null,null,null,null,0]
[null,null,null,null,{"$f":"ABS(D1101-C1101)","v":0}]
[null,null,null,null,0]
[null,null,null,null,0]
[null,null,null,null,0]
[null,null,null,null,0]
[null,null,null,null,0]
[null,null,null,null,0]
[null,null,null,null,0]
[null,null,null,null,0]
[null,null,null,null,0]
[null,null,null,null,0]
[null,null,null,null,0]
[null,null,null,null,0]
[null,null,null,null,0]
[null,null,null,null,0]
[null,null,null,null,0]
[null,null,null,null,0]
[null,null,null,null,0]
[null,null,null,null,0]
[null,null,null,null,0]
[null,null,null,null,0]
[null,null,null,null,0]
[null,null,null,null,0]
[null,null,null,null,0]
[null,null,null,null,0]
[null,null,null,null,0]
[null,null,null,null,0]
[null,null,null,null,0]
[null,null,null,null,0]
[null,null,null,null,0]
[null,null,null,null,0]
[null,null,null,null,0]
[null,null,null,null,0]
[null,null,null,null,0]
[null,null,null,null,0]
[null,null,null,null,0]
[null,null,null,null,0]
[null,null,null,null,0]
[null,null,null,null,0]
[null,null,null,null,0]
[null,null,null,null,0]
[null,null,null,null,0]
[null,null,null,null,0]
[null,null,null,null,0]
[null,null,null,null,0]
[null,null,null,null,0]
[null,null,null,null,0]
[null,null,null,null,0]
[null,null,null,null,0]
[null,null,null,null,0]
[null,null,null,null,0]
[null,null,null,null,0]
[null,null,null,null,0]
[null,null,null,null,0]
[null,null,null,null,0]
[null,null,null,null,0]
[null,null,null,null,0]
[null,null,null,null,0]
[null,null,null,null,0]
[null,null,null,null,0]
[null,null,null,null,0]
[null,null,null,null,0]
[null,null,null,null,0]
[null,null,null,null,0]
[null,null,null,null,{"$f":"ABS(D1165-C1165)","v":0}]
[null,null,null,null,0]
[null,null,null,null,0]
[null,null,null,null,0]
[null,null,null,null,0]
[null,null,null,null,0]
[null,null,null,null,0]
[null,null,null,null,0]
[null,null,null,null,0]
[null,null,null,null,0]
[null,null,null,null,0]
[null,null,null,null,0]
[null,null,null,null,0]
[null,null,null,null,0]
[null,null,null,null,0]
[null,null,null,null,0]
[null,null,null,null,0]
[null,null,null,null,0]
[null,null,null,null,0]
[null,null,null,null,0]
[null,null,null,null,0]
[null,null,null,null,0]
[null,null,null,null,0]
[null,null,null,null,0]
[null,null,null,null,0]
[null,null,null,null,0]
[null,null,null,null,0]
[null,null,null,null,0]
[null,null,null,null,0]
[null,null,null,null,0]
[null,null,null,null,0]
[null,null,null,null,0]
[null,null,null,null,0]
[null,null,null,null,0]
[null,null,null,null,0]
[null,null,null,null,0]
[null,null,null,null,0]
[null,null,null,null,0]
[null,null,null,null,0]
[null,null,null,null,0]
[null,null,null,null,0]
[null,null,null,null,0]
[null,null,null,null,0]
[null,null,null,null,0]
[null,null,null,null,0]
[null,null,null,null,0]
[null,null,null,null,0]
[null,null,null,null,0]
[null,null,null,null,0]
[null,null,null,null,0]
[null,null,null,null,0]
[null,null,null,null,0]
[null,null,null,null,0]
[null,null,null,null,0]
[null,null,null,null,0]
[null,null,null,null,0]
[null,null,null,null,0]
[null,null,null,null,0]
[null,null,null,null,0]
[null,null,null,null,0]
[null,null,null,null,0]
[null,null,null,null,0]
[null,null,null,null,0]
[null,null,null,null,0]
[null,null,null,null,{"$f":"ABS(D1229-C1229)","v":0}]
[null,null,null,null,0]
[null,null,null,null,0]
[null,null,null,null,0]
[null,null,null,null,0]
[null,null,null,null,0]
[null,null,null,null,0]
[null,null,null,null,0]
[null,null,null,null,0]
[null,null,null,null,0]
[null,null,null,null,0]
[null,null,null,null,0]
[null,null,null,null,0]
[null,null,null,null,0]
[null,null,null,null,0]
[null,null,null,null,0]
[null,null,null,null,0]
[null,null,null,null,0]
[null,null,null,null,0]
[null,null,null,null,0]
[null,null,null,null,0]
[null,null,null,null,0]
[null,null,null,null,0]
[null,null,null,null,0]
[null,null,null,null,0]
[null,null,null,null,0]
[null,null,null,null,0]
[null,null,null,null,0]
[null,null,null,null,0]
[null,null,null,null,0]
[null,null,null,null,0]
[null,null,null,null,0]
[null,null,null,null,0]
[null,null,null,null,0]
[null,null,null,null,0]
[null,null,null,null,0]
[null,null,null,null,0]
[null,null,null,null,0]
[null,null,null,null,0]
[null,null,null,null,0]
[null,null,null,null,0]
[null,null,null,null,0]
[null,null,null,null,0]
[null,null,null,null,0]
[null,null,null,null,0]
[null,null,null,null,0]
[null,null,null,null,0]
[null,null,null,null,0]
[null,null,null,null,0]
[null,null,null,null,0]
[null,null,null,null,0]
[null,null,null,null,0]
[null,null,null,null,0]
[null,null,null,null,0]
[null,null,null,null,0]
[null,null,null,null,0]
[null,null,null,null,0]
[null,null,null,null,0]
[null,null,null,null,0]
[null,null,null,null,0]
[null,null,null,null,0]
[null,null,null,null,0]
[null,null,null,null,0]
[null,null,null,null,0]
[null,null,null,null,{"$f":"ABS(D1293-C1293)","v":0}]
[null,null,null,null,0]
[null,null,null,null,0]
[null,null,null,null,0]
[null,null,null,null,0]
[null,null,null,null,0]
[null,null,null,null,0]
[null,null,null,null,0]
[null,null,null,null,0]
[null,null,null,null,0]
[null,null,null,null,0]
[null,null,null,null,0]
[null,null,null,null,0]
[null,null,null,null,0]
[null,null,null,null,0]
[null,null,null,null,0]
[null,null,null,null,0]
[null,null,null,null,0]
[null,null,null,null,0]
[null,null,null,null,0]
[null,null,null,null,0]
[null,null,null,null,0]
[null,null,null,null,0]
[null,null,null,null,0]
[null,null,null,null,0]
[null,null,null,null,0]
[null,null,null,null,0]
[null,null,null,null,0]
[null,null,null,null,0]
[null,null,null,null,0]
[null,null,null,null,0]
[null,null,null,null,0]
[null,null,null,null,0]
[null,null,null,null,0]
[null,null,null,null,0]
[null,null,null,null,0]
[null,null,null,null,0]
[null,null,null,null,0]
[null,null,null,null,0]
[null,null,null,null,0]
[null,null,null,null,0]
[null,null,null,null,0]
[null,null,null,null,0]
[null,null,null,null,0]
[null,null,null,null,0]
[null,null,null,null,0]
[null,null,null,null,0]
[null,null,null,null,0]
[null,null,null,null,0]
[null,null,null,null,0]
[null,null,null,null,0]
[null,null,null,null,0]
[null,null,null,null,0]
[null,null,null,null,0]
[null,null,null,null,0]
[null,null,null,null,0]
[null,null,null,null,0]
[null,null,null,null,0]
[null,null,null,null,0]
[null,null,null,null,0]
[null,null,null,null,0]
[null,null,null,null,0]
[null,null,null,null,0]
[null,null,null,null,0]
[null,null,null,null,{"$f":"ABS(D1357-C1357)","v":0}]
[null,null,null,null,0]
[null,null,null,null,0]
[null,null,null,null,0]
[null,null,null,null,0]
[null,null,null,null,0]
[null,null,null,null,0]
[null,null,null,null,0]
[null,null,null,null,0]
[null,null,null,null,0]
[null,null,null,null,0]
[null,null,null,null,0]
[null,null,null,null,0]
[null,null,null,null,0]
[null,null,null,null,0]
[null,null,null,null,0]
[null,null,null,null,0]
[null,null,null,null,0]
[null,null,null,null,0]
[null,null,null,null,0]
[null,null,null,null,0]
[null,null,null,null,0]
[null,null,null,null,0]
[null,null,null,null,0]
[null,null,null,null,0]
[null,null,null,null,0]
[null,null,null,null,0]
[null,null,null,null,0]
[null,null,null,null,0]
[null,null,null,null,0]
[null,null,null,null,0]
[null,null,null,null,0]
[null,null,null,null,0]
[null,null,null,null,0]
[null,null,null,null,0]
[null,null,null,null,0]
[null,null,null,null,0]
[null,null,null,null,0]
[null,null,null,null,0]
[null,null,null,null,0]
[null,null,null,null,0]
[null,null,null,null,0]
[null,null,null,null,0]
[null,null,null,null,0]
[null,null,null,null,0]
[null,null,null,null,0]
[null,null,null,null,0]
[null,null,null,null,0]
[null,null,null,null,0]
[null,null,null,null,0]
[null,null,null,null,0]
[null,null,null,null,0]
[null,null,null,null,0]
[null,null,null,null,0]
[null,null,null,null,0]
[null,null,null,null,0]
[null,null,null,null,0]
[null,null,null,null,0]
[null,null,null,null,0]
[null,null,null,null,0]
[null,null,null,null,0]
[null,null,null,null,0]
[null,null,null,null,0]
[null,null,null,null,0]
[null,null,null,null,{"$f":"ABS(D1421-C1421)","v":0}]
[null,null,null,null,0]
[null,null,null,null,0]
[null,null,null,null,0]
[null,null,null,null,0]
[null,null,null,null,0]
[null,null,null,null,0]
[null,null,null,null,0]
[null,null,null,null,0]
[null,null,null,null,0]
[null,null,null,null,0]
[null,null,null,null,0]
[null,null,null,null,0]
[null,null,null,null,0]
[null,null,null,null,0]
[null,null,null,null,0]
[null,null,null,null,0]
[null,null,null,null,0]
[null,null,null,null,0]
[null,null,null,null,0]
[null,null,null,null,0]
[null,null,null,null,0]
[null,null,null,null,0]
[null,null,null,null,0]
[null,null,null,null,0]
[null,null,null,null,0]
[null,null,null,null,0]
[null,null,null,null,0]
[null,null,null,null,0]
[null,null,null,null,0]
[null,null,null,null,0]
[null,null,null,null,0]
[null,null,null,null,0]
[null,null,null,null,0]
[null,null,null,null,0]
[null,null,null,null,0]
[null,null,null,null,0]
[null,null,null,null,0]
[null,null,null,null,0]
[null,null,null,null,0]
[null,null,null,null,0]
[null,null,null,null,0]
[null,null,null,null,0]
[null,null,null,null,0]
[null,null,null,null,0]
[null,null,null,null,0]
[null,null,null,null,0]
[null,null,null,null,0]
[null,null,null,null,0]
[null,null,null,null,0]
[null,null,null,null,0]
[null,null,null,null,0]
[null,null,null,null,0]
[null,null,null,null,0]
[null,null,null,null,0]
[null,null,null,null,0]
[null,null,null,null,0]
[null,null,null,null,0]
[null,null,null,null,0]
[null,null,null,null,0]
[null,null,null,null,0]
[null,null,null,null,0]
[null,null,null,null,0]
[null,null,null,null,0]
[null,null,null,null,{"$f":"ABS(D1485-C1485)","v":0}]
[null,null,null,null,0]
[null,null,null,null,0]
[null,null,null,null,0]
[null,null,null,null,0]
[null,null,null,null,0]
[null,null,null,null,0]
[null,null,null,null,0]
[null,null,null,null,0]
[null,null,null,null,0]
[null,null,null,null,0]
[null,null,null,null,0]
[null,null,null,null,0]
[null,null,null,null,0]
[null,null,null,null,0]
[null,null,null,null,0]
[null,null,null,null,0]
[null,null,null,null,0]
[null,null,null,null,0]
[null,null,null,null,0]
[null,null,null,null,0]
[null,null,null,null,0]
[null,null,null,null,0]
[null,null,null,null,0]
[null,null,null,null,0]
[null,null,null,null,0]
[null,null,null,null,0]
[null,null,null,null,0]
[null,null,null,null,0]
[null,null,null,null,0]
[null,null,null,null,0]
[null,null,null,null,0]
[null,null,null,null,0]
[null,null,null,null,0]
[null,null,null,null,0]
[null,null,null,null,0]
[null,null,null,null,0]
[null,null,null,null,0]
[null,null,null,null,0]
[null,null,null,null,0]
[null,null,null,null,0]
[null,null,null,null,0]
[null,null,null,null,0]
[null,null,null,null,0]
[null,null,null,null,0]
[null,null,null,null,0]
[null,null,null,null,0]
[null,null,null,null,0]
[null,null,null,null,0]
[null,null,null,null,0]
[null,null,null,null,0]
[null,null,null,null,0]
[null,null,null,null,0]
[null,null,null,null,0]
[null,null,null,null,0]
[null,null,null,null,0]
[null,null,null,null,0]
[null,null,null,null,0]
[null,null,null,null,0]
[null,null,null,null,0]
[null,null,null,null,0]
[null,null,null,null,0]
[null,null,null,null,0]
[null,null,null,null,0]
[null,null,null,null,{"$f":"ABS(D1549-C1549)","v":0}]
[null,null,null,null,0]
[null,null,null,null,0]
[null,null,null,null,0]
[null,null,null,null,0]
[null,null,null,null,0]
[null,null,null,null,0]
[null,null,null,null,0]
[null,null,null,null,0]
[null,null,null,null,0]
[null,null,null,null,0]
[null,null,null,null,0]
[null,null,null,null,0]
[null,null,null,null,0]
[null,null,null,null,0]
[null,null,null,null,0]
[null,null,null,null,0]
[null,null,null,null,0]
[null,null,null,null,0]
[null,null,null,null,0]
[null,null,null,null,0]
[null,null,null,null,0]
[null,null,null,null,0]
[null,null,null,null,0]
[null,null,null,null,0]
[null,null,null,null,0]
[null,null,null,null,0]
[null,null,null,null,0]
[null,null,null,null,0]
[null,null,null,null,0]
[null,null,null,null,0]
[null,null,null,null,0]
[null,null,null,null,0]
[null,null,null,null,0]
[null,null,null,null,0]
[null,null,null,null,0]
[null,null,null,null,0]
[null,null,null,null,0]
[null,null,null,null,0]
[null,null,null,null,0]
[null,null,null,null,0]
[null,null,null,null,0]
[null,null,null,null,0]
[null,null,null,null,0]
[null,null,null,null,0]
[null,null,null,null,0]
[null,null,null,null,0]
[null,null,null,null,0]
[null,null,null,null,0]
[null,null,null,null,0]
[null,null,null,null,0]
[null,null,null,null,0]
[null,null,null,null,0]
[null,null,null,null,0]
[null,null,null,null,0]
[null,null,null,null,0]
[null,null,null,null,0]
[null,null,null,null,0]
[null,null,null,null,0]
[null,null,null,null,0]
[null,null,null,null,0]
[null,null,null,null,0]
[null,null,null,null,0]
[null,null,null,null,0]
[null,null,null,null,{"$f":"ABS(D1613-C1613)","v":0}]
[null,null,null,null,0]
[null,null,null,null,0]
[null,null,null,null,0]
[null,null,null,null,0]
[null,null,null,null,0]
[null,null,null,null,0]
[null,null,null,null,0]
[null,null,null,null,0]
[null,null,null,null,0]
[null,null,null,null,0]
[null,null,null,null,0]
[null,null,null,null,0]
[null,null,null,null,0]
[null,null,null,null,0]
[null,null,null,null,0]
[null,null,null,null,0]
[null,null,null,null,0]
[null,null,null,null,0]
[null,null,null,null,0]
[null,null,null,null,0]
[null,null,null,null,0]
[null,null,null,null,0]
[null,null,null,null,0]
[null,null,null,null,0]
[null,null,null,null,0]
[null,null,null,null,0]
[null,null,null,null,0]
[null,null,null,null,0]
[null,null,null,null,0]
[null,null,null,null,0]
[null,null,null,null,0]
[null,null,null,null,0]
[null,null,null,null,0]
[null,null,null,null,0]
[null,null,null,null,0]
[null,null,null,null,0]
[null,null,null,null,0]
[null,null,null,null,0]
[null,null,null,null,0]
[null,null,null,null,0]
[null,null,null,null,0]
[null,null,null,null,0]
[null,null,null,null,0]
[null,null,null,null,0]
[null,null,null,null,0]
[null,null,null,null,0]
[null,null,null,null,0]
[null,null,null,null,0]
[null,null,null,null,0]
[null,null,null,null,0]
[null,null,null,null,0]
[null,null,null,null,0]
[null,null,null,null,0]
[null,null,null,null,0]
[null,null,null,null,0]
[null,null,null,null,0]
[null,null,null,null,0]
[null,null,null,null,0]
[null,null,null,null,0]
[null,null,null,null,0]
[null,null,null,null,0]
[null,null,null,null,0]
[null,null,null,null,0]
[null,null,null,null,{"$f":"ABS(D1677-C1677)","v":0}]
[null,null,null,null,0]
[null,null,null,null,0]
[null,null,null,null,0]
[null,null,null,null,0]
[null,null,null,null,0]
[null,null,null,null,0]
[null,null,null,null,0]
[null,null,null,null,0]
[null,null,null,null,0]
[null,null,null,null,0]
[null,null,null,null,0]
[null,null,null,null,0]
[null,null,null,null,0]
[null,null,null,null,0]
[null,null,null,null,0]
[null,null,null,null,0]
[null,null,null,null,0]
[null,null,null,null,0]
[null,null,null,null,0]
[null,null,null,null,0]
[null,null,null,null,0]
[null,null,null,null,0]
[null,null,null,null,0]
[null,null,null,null,0]
[null,null,null,null,0]
[null,null,null,null,0]
[null,null,null,null,0]
[null,null,null,null,0]
[null,null,null,null,0]
[null,null,null,null,0]
[null,null,null,null,0]
[null,null,null,null,0]
[null,null,null,null,0]
[null,null,null,null,0]
[null,null,null,null,0]
[null,null,null,null,0]
[null,null,null,null,0]
[null,null,null,null,0]
[null,null,null,null,0]
[null,null,null,null,0]
[null,null,null,null,0]
[null,null,null,null,0]
[null,null,null,null,0]
[null,null,null,null,0]
[null,null,null,null,0]
[null,null,null,null,0]
[null,null,null,null,0]
[null,null,null,null,0]
[null,null,null,null,0]
[null,null,null,null,0]
[null,null,null,null,0]
[null,null,null,null,0]
[null,null,null,null,0]
[null,null,null,null,0]
[null,null,null,null,0]
[null,null,null,null,0]
[null,null,null,null,0]
[null,null,null,null,0]
[null,null,null,null,0]
[null,null,null,null,0]
[null,null,null,null,0]
[null,null,null,null,0]
[null,null,null,null,0]
[null,null,null,null,{"$f":"ABS(D1741-C1741)","v":0}]
[null,null,null,null,0]
[null,null,null,null,0]
[null,null,null,null,0]
[null,null,null,null,0]
[null,null,null,null,0]
[null,null,null,null,0]
[null,null,null,null,0]
[null,null,null,null,0]
[null,null,null,null,0]
[null,null,null,null,0]
[null,null,null,null,0]
[null,null,null,null,0]
[null,null,null,null,0]
[null,null,null,null,0]
[null,null,null,null,0]
[null,null,null,null,0]
[null,null,null,null,0]
[null,null,null,null,0]
[null,null,null,null,0]
[null,null,null,null,0]
[null,null,null,null,0]
[null,null,null,null,0]
[null,null,null,null,0]
[null,null,null,null,0]
[null,null,null,null,0]
[null,null,null,null,0]
[null,null,null,null,0]
[null,null,null,null,0]
[null,null,null,null,0]
[null,null,null,null,0]
[null,null,null,null,0]
[null,null,null,null,0]
[null,null,null,null,0]
[null,null,null,null,0]
[null,null,null,null,0]
[null,null,null,null,0]
[null,null,null,null,0]
[null,null,null,null,0]
[null,null,null,null,0]
[null,null,null,null,0]
[null,null,null,null,0]
[null,null,null,null,0]
[null,null,null,null,0]
[null,null,null,null,0]
[null,null,null,null,0]
[null,null,null,null,0]
[null,null,null,null,0]
[null,null,null,null,0]
[null,null,null,null,0]
[null,null,null,null,0]
[null,null,null,null,0]
[null,null,null,null,0]
[null,null,null,null,0]
[null,null,null,null,0]
[null,null,null,null,0]
[null,null,null,null,0]
[null,null,null,null,0]
[null,null,null,null,0]
[null,null,null,null,0]
[null,null,null,null,0]
[null,null,null,null,0]
[null,null,null,null,0]
[null,null,null,null,0]
[null,null,null,null,{"$f":"ABS(D1805-C1805)","v":0}]
[null,null,null,null,0]
[null,null,null,null,0]
[null,null,null,null,0]
[null,null,null,null,0]
[null,null,null,null,0]
[null,null,null,null,0]
[null,null,null,null,0]
[null,null,null,null,0]
[null,null,null,null,0]
[null,null,null,null,0]
[null,null,null,null,0]
[null,null,null,null,0]
[null,null,null,null,0]
[null,null,null,null,0]
[null,null,null,null,0]
[null,null,null,null,0]
[null,null,null,null,0]
[null,null,null,null,0]
[null,null,null,null,0]
[null,null,null,null,0]
[null,null,null,null,0]
[null,null,null,null,0]
[null,null,null,null,0]
[null,null,null,null,0]
[null,null,null,null,0]
[null,null,null,null,0]
[null,null,null,null,0]
[null,null,null,null,0]
[null,null,null,null,0]
[null,null,null,null,0]
[null,null,null,null,0]
[null,null,null,null,0]
[null,null,null,null,0]
[null,null,null,null,0]
[null,null,null,null,0]
[null,null,null,null,0]
[null,null,null,null,0]
[null,null,null,null,0]
[null,null,null,null,0]
[null,null,null,null,0]
[null,null,null,null,0]
[null,null,null,null,0]
[null,null,null,null,0]
[null,null,null,null,0]
[null,null,null,null,0]
[null,null,null,null,0]
[null,null,null,null,0]
[null,null,null,null,0]
[null,null,null,null,0]
[null,null,null,null,0]
[null,null,null,null,0]
[null,null,null,null,0]
[null,null,null,null,0]
[null,null,null,null,0]
[null,null,null,null,0]
[null,null,null,null,0]
[null,null,null,null,0]
[null,null,null,null,0]
[null,null,null,null,0]
[null,null,null,null,0]
[null,null,null,null,0]
[null,null,null,null,0]
[null,null,null,null,0]
[null,null,null,null,{"$f":"ABS(D1869-C1869)","v":0}]
[null,null,null,null,0]
[null,null,null,null,0]
[null,null,null,null,0]
[null,null,null,null,0]
[null,null,null,null,0]
[null,null,null,null,0]
[null,null,null,null,0]
[null,null,null,null,0]
[null,null,null,null,0]
[null,null,null,null,0]
[null,null,null,null,0]
[null,null,null,null,0]
[null,null,null,null,0]
[null,null,null,null,0]
[null,null,null,null,0]
[null,null,null,null,0]
[null,null,null,null,0]
[null,null,null,null,0]
[null,null,null,null,0]
[null,null,null,null,0]
[null,null,null,null,0]
[null,null,null,null,0]
[null,null,null,null,0]
[null,null,null,null,0]
[null,null,null,null,0]
[null,null,null,null,0]
[null,null,null,null,0]
[null,null,null,null,0]
[null,null,null,null,0]
[null,null,null,null,0]
[null,null,null,null,0]
[null,null,null,null,0]
[null,null,null,null,0]
[null,null,null,null,0]
[null,null,null,null,0]
[null,null,null,null,0]
[null,null,null,null,0]
[null,null,null,null,0]
[null,null,null,null,0]
[null,null,null,null,0]
[null,null,null,null,0]
[null,null,null,null,0]
[null,null,null,null,0]
[null,null,null,null,0]
[null,null,null,null,0]
[null,null,null,null,0]
[null,null,null,null,0]
[null,null,null,null,0]
[null,null,null,null,0]
[null,null,null,null,0]
[null,null,null,null,0]
[null,null,null,null,0]
[null,null,null,null,0]
[null,null,null,null,0]
[null,null,null,null,0]
[null,null,null,null,0]
[null,null,null,null,0]
[null,null,null,null,0]
[null,null,null,null,0]
[null,null,null,null,0]
[null,null,null,null,0]
[null,null,null,null,0]
[null,null,null,null,0]
[null,null,null,null,{"$f":"ABS(D1933-C1933)","v":0}]
[null,null,null,null,0]
[null,null,null,null,0]
[null,null,null,null,0]
[null,null,null,null,0]
[null,null,null,null,0]
[null,null,null,null,0]
[null,null,null,null,0]
[null,null,null,null,0]
[null,null,null,null,0]
[null,null,null,null,0]
[null,null,null,null,0]
[null,null,null,null,0]
[null,null,null,null,0]
[null,null,null,null,0]
[null,null,null,null,0]
[null,null,null,null,0]
[null,null,null,null,0]
[null,null,null,null,0]
[null,null,null,null,0]
[null,null,null,null,0]
[null,null,null,null,0]
[null,null,null,null,0]
[null,null,null,null,0]
[null,null,null,null,0]
[null,null,null,null,0]
[null,null,null,null,0]
[null,null,null,null,0]
[null,null,null,null,0]
[null,null,null,null,0]
[null,null,null,null,0]
[null,null,null,null,0]
[null,null,null,null,0]
[null,null,null,null,0]
[null,null,null,null,0]
[null,null,null,null,0]
[null,null,null,null,0]
[null,null,null,null,0]
[null,null,null,null,0]
[null,null,null,null,0]
[null,null,null,null,0]
[null,null,null,null,0]
[null,null,null,null,0]
[null,null,null,null,0]
[null,null,null,null,0]
[null,null,null,null,0]
[null,null,null,null,0]
[null,null,null,null,0]
[null,null,null,null,0]
[null,null,null,null,0]
[null,null,null,null,0]
[null,null,null,null,0]
[null,null,null,null,0]
[null,null,null,null,0]
[null,null,null,null,0]
[null,null,null,null,0]
[null,null,null,null,0]
[null,null,null,null,0]
[null,null,null,null,0]
[null,null,null,null,0]
[null,null,null,null,0]
[null,null,null,null,0]
[null,null,null,null,0]
[null,null,null,null,0]
[null,null,null,null,{"$f":"ABS(D1997-C1997)","v":0}]
[null,null,null,null,0]
[null,null,null,null,0]
[null,null,null,null,0]
[null,null,null,null,0]
[null,null,null,null,0]
[null,null,null,null,0]
[null,null,null,null,0]
[null,null,null,null,0]
[null,null,null,null,0]
[null,null,null,null,0]
[null,null,null,null,0]
[null,null,null,null,0]
[null,null,null,null,0]
[null,null,null,null,0]
[null,null,null,null,0]
[null,null,null,null,0]
[null,null,null,null,0]
[null,null,null,null,0]
[null,null,null,null,0]
[null,null,null,null,0]
[null,null,null,null,0]
[null,null,null,null,0]
[null,null,null,null,0]
[null,null,null,null,0]
[null,null,null,null,0]
[null,null,null,null,0]
[null,null,null,null,0]
[null,null,null,null,0]
[null,null,null,null,0]
[null,null,null,null,0]
[null,null,null,null,0]
[null,null,null,null,0]
[null,null,null,null,0]
[null,null,null,null,0]
[null,null,null,null,0]
[null,null,null,null,0]
[null,null,null,null,0]
[null,null,null,null,0]
[null,null,null,null,0]
[null,null,null,null,0]
[null,null,null,null,0]
[null,null,null,null,0]
[null,null,null,null,0]
[null,null,null,null,0]
[null,null,null,null,0]
[null,null,null,null,0]
[null,null,null,null,0]
[null,null,null,null,0]
[null,null,null,null,0]
[null,null,null,null,0]
[null,null,null,null,0]
[null,null,null,null,0]
[null,null,null,null,0]
[null,null,null,null,0]
[null,null,null,null,0]
[null,null,null,null,0]
[null,null,null,null,0]
[null,null,null,null,0]
[null,null,null,null,0]
[null,null,null,null,0]
[null,null,null,null,0]
[null,null,null,null,0]
[null,null,null,null,0]
[null,null,null,null,{"$f":"ABS(D2061-C2061)","v":0}]
[null,null,null,null,0]
[null,null,null,null,0]
[null,null,null,null,0]
[null,null,null,null,0]
[null,null,null,null,0]
[null,null,null,null,0]
[null,null,null,null,0]
[null,null,null,null,0]
[null,null,null,null,0]
[null,null,null,null,0]
[null,null,null,null,0]
[null,null,null,null,0]
[null,null,null,null,0]
[null,null,null,null,0]
[null,null,null,null,0]
[null,null,null,null,0]
[null,null,null,null,0]
[null,null,null,null,0]
[null,null,null,null,0]
[null,null,null,null,0]
[null,null,null,null,0]
[null,null,null,null,0]
[null,null,null,null,0]
[null,null,null,null,0]
[null,null,null,null,0]
[null,null,null,null,0]
[null,null,null,null,0]
[null,null,null,null,0]
[null,null,null,null,0]
[null,null,null,null,0]
[null,null,null,null,0]
[null,null,null,null,0]
[null,null,null,null,0]
[null,null,null,null,0]
[null,null,null,null,0]
[null,null,null,null,0]
[null,null,null,null,0]
[null,null,null,null,0]
[null,null,null,null,0]
[null,null,null,null,0]
[null,null,null,null,0]
[null,null,null,null,0]
[null,null,null,null,0]
[null,null,null,null,0]
[null,null,null,null,0]
[null,null,null,null,0]
[null,null,null,null,0]
[null,null,null,null,0]
[null,null,null,null,0]
[null,null,null,null,0]
[null,null,null,null,0]
[null,null,null,null,0]
[null,null,null,null,0]
[null,null,null,null,0]
[null,null,null,null,0]
[null,null,null,null,0]
[null,null,null,null,0]
[null,null,null,null,0]
[null,null,null,null,0]
[null,null,null,null,0]
[null,null,null,null,0]
[null,null,null,null,0]
[null,null,null,null,0]
[null,null,null,null,{"$f":"ABS(D2125-C2125)","v":0}]
[null,null,null,null,0]
[null,null,null,null,0]
[null,null,null,null,0]
[null,null,null,null,0]
[null,null,null,null,0]
[null,null,null,null,0]
[null,null,null,null,0]
[null,null,null,null,0]
[null,null,null,null,0]
[null,null,null,null,0]
[null,null,null,null,0]
[null,null,null,null,0]
[null,null,null,null,0]
[null,null,null,null,0]
[null,null,null,null,0]
[null,null,null,null,0]
[null,null,null,null,0]
[null,null,null,null,0]
[null,null,null,null,0]
[null,null,null,null,0]
[null,null,null,null,0]
[null,null,null,null,0]
[null,null,null,null,0]
[null,null,null,null,0]
[null,null,null,null,0]
[null,null,null,null,0]
[null,null,null,null,0]
[null,null,null,null,0]
[null,null,null,null,0]
[null,null,null,null,0]
[null,null,null,null,0]
[null,null,null,null,0]
[null,null,null,null,0]
[null,null,null,null,0]
[null,null,null,null,0]
[null,null,null,null,0]
[null,null,null,null,0]
[null,null,null,null,0]
[null,null,null,null,0]
[null,null,null,null,0]
[null,null,null,null,0]
[null,null,null,null,0]
[null,null,null,null,0]
[null,null,null,null,0]
[null,null,null,null,0]
[null,null,null,null,0]
[null,null,null,null,0]
[null,null,null,null,0]
[null,null,null,null,0]
[null,null,null,null,0]
[null,null,null,null,0]
[null,null,null,null,0]
[null,null,null,null,0]
[null,null,null,null,0]
[null,null,null,null,0]
[null,null,null,null,0]
[null,null,null,null,0]
[null,null,null,null,0]
[null,null,null,null,0]
[null,null,null,null,0]
[null,null,null,null,0]
[null,null,null,null,0]
[null,null,null,null,0]
[null,null,null,null,{"$f":"ABS(D2189-C2189)","v":0}]
[null,null,null,null,0]
[null,null,null,null,0]
[null,null,null,null,0]
[null,null,null,null,0]
[null,null,null,null,0]
[null,null,null,null,0]
[null,null,null,null,0]
[null,null,null,null,0]
[null,null,null,null,0]
[null,null,null,null,0]
[null,null,null,null,0]
[null,null,null,null,0]
[null,null,null,null,0]
[null,null,null,null,0]
[null,null,null,null,0]
[null,null,null,null,0]
[null,null,null,null,0]
[null,null,null,null,0]
[null,null,null,null,0]
[null,null,null,null,0]
[null,null,null,null,0]
[null,null,null,null,0]
[null,null,null,null,0]
[null,null,null,null,0]
[null,null,null,null,0]
[null,null,null,null,0]
[null,null,null,null,0]
[null,null,null,null,0]
[null,null,null,null,0]
[null,null,null,null,0]
[null,null,null,null,0]
[null,null,null,null,0]
[null,null,null,null,0]
[null,null,null,null,0]
[null,null,null,null,0]
[null,null,null,null,0]
[null,null,null,null,0]
[null,null,null,null,0]
[null,null,null,null,0]
[null,null,null,null,0]
[null,null,null,null,0]
[null,null,null,null,0]
[null,null,null,null,0]
[null,null,null,null,0]
[null,null,null,null,0]
[null,null,null,null,0]
[null,null,null,null,0]
[null,null,null,null,0]
[null,null,null,null,0]
[null,null,null,null,0]
[null,null,null,null,0]
[null,null,null,null,0]
[null,null,null,null,0]
[null,null,null,null,0]
[null,null,null,null,0]
[null,null,null,null,0]
[null,null,null,null,0]
[null,null,null,null,0]
[null,null,null,null,0]
[null,null,null,null,0]
[null,null,null,null,0]
[null,null,null,null,0]
[null,null,null,null,0]
[null,null,null,null,{"$f":"ABS(D2253-C2253)","v":0}]
[null,null,null,null,0]
[null,null,null,null,0]
[null,null,null,null,0]
[null,null,null,null,0]
[null,null,null,null,0]
[null,null,null,null,0]
[null,null,null,null,0]
[null,null,null,null,0]
[null,null,null,null,0]
[null,null,null,null,0]
[null,null,null,null,0]
[null,null,null,null,0]
[null,null,null,null,0]
[null,null,null,null,0]
[null,null,null,null,0]
[null,null,null,null,0]
[null,null,null,null,0]
[null,null,null,null,0]
[null,null,null,null,0]
[null,null,null,null,0]
[null,null,null,null,0]
[null,null,null,null,0]
[null,null,null,null,0]
[null,null,null,null,0]
[null,null,null,null,0]
[null,null,null,null,0]
[null,null,null,null,0]
[null,null,null,null,0]
[null,null,null,null,0]
[null,null,null,null,0]
[null,null,null,null,0]
[null,null,null,null,0]
[null,null,null,null,0]
[null,null,null,null,0]
[null,null,null,null,0]
[null,null,null,null,0]
[null,null,null,null,0]
[null,null,null,null,0]
[null,null,null,null,0]
[null,null,null,null,0]
[null,null,null,null,0]
[null,null,null,null,0]
[null,null,null,null,0]
[null,null,null,null,0]
[null,null,null,null,0]
[null,null,null,null,0]
[null,null,null,null,0]
[null,null,null,null,0]
[null,null,null,null,0]
[null,null,null,null,0]
[null,null,null,null,0]
[null,null,null,null,0]
[null,null,null,null,0]
[null,null,null,null,0]
[null,null,null,null,0]
[null,null,null,null,0]
[null,null,null,null,0]
[null,null,null,null,0]
[null,null,null,null,0]
[null,null,null,null,0]
[null,null,null,null,0]
[null,null,null,null,0]
[null,null,null,null,0]
[null,null,null,null,{"$f":"ABS(D2317-C2317)","v":0}]
[null,null,null,null,0]
[null,null,null,null,0]
[null,null,null,null,0]
[null,null,null,null,0]
[null,null,null,null,0]
[null,null,null,null,0]
[null,null,null,null,0]
[null,null,null,null,0]
[null,null,null,null,0]
[null,null,null,null,0]
[null,null,null,null,0]
[null,null,null,null,0]
[null,null,null,null,0]
[null,null,null,null,0]
[null,null,null,null,0]
[null,null,null,null,0]
[null,null,null,null,0]
[null,null,null,null,0]
[null,null,null,null,0]
[null,null,null,null,0]
[null,null,null,null,0]
[null,null,null,null,0]
[null,null,null,null,0]
[null,null,null,null,0]
[null,null,null,null,0]
[null,null,null,null,0]
[null,null,null,null,0]
[null,null,null,null,0]
[null,null,null,null,0]
[null,null,null,null,0]
[null,null,null,null,0]
[null,null,null,null,0]
[null,null,null,null,0]
[null,null,null,null,0]
[null,null,null,null,0]
[null,null,null,null,0]
[null,null,null,null,0]
[null,null,null,null,0]
[null,null,null,null,0]
[null,null,null,null,0]
[null,null,null,null,0]
[null,null,null,null,0]
[null,null,null,null,0]
[null,null,null,null,0]
[null,null,null,null,0]
[null,null,null,null,0]
[null,null,null,null,0]
[null,null,null,null,0]
[null,null,null,null,0]
[null,null,null,null,0]
[null,null,null,null,0]
[null,null,null,null,0]
[null,null,null,null,0]
[null,null,null,null,0]
[null,null,null,null,0]
[null,null,null,null,0]
[null,null,null,null,0]
[null,null,null,null,0]
[null,null,null,null,0]
[null,null,null,null,0]
[null,null,null,null,0]
[null,null,null,null,0]
[null,null,null,null,0]
[null,null,null,null,{"$f":"ABS(D2381-C2381)","v":0}]
[null,null,null,null,0]
[null,null,null,null,0]
[null,null,null,null,0]
[null,null,null,null,0]
[null,null,null,null,0]
[null,null,null,null,0]
[null,null,null,null,0]
[null,null,null,null,0]
[null,null,null,null,0]
[null,null,null,null,0]
[null,null,null,null,0]
[null,null,null,null,0]
[null,null,null,null,0]
[null,null,null,null,0]
[null,null,null,null,0]
[null,null,null,null,0]
[null,null,null,null,0]
[null,null,null,null,0]
[null,null,null,null,0]
[null,null,null,null,0]
[null,null,null,null,0]
[null,null,null,null,0]
[null,null,null,null,0]
[null,null,null,null,0]
[null,null,null,null,0]
[null,null,null,null,0]
[null,null,null,null,0]
[null,null,null,null,0]
[null,null,null,null,0]
[null,null,null,null,0]
[null,null,null,null,0]
[null,null,null,null,0]
[null,null,null,null,0]
[null,null,null,null,0]
[null,null,null,null,0]
[null,null,null,null,0]
[null,null,null,null,0]
[null,null,null,null,0]
[null,null,null,null,0]
[null,null,null,null,0]
[null,null,null,null,0]
[null,null,null,null,0]
[null,null,null,null,0]
[null,null,null,null,0]
[null,null,null,null,0]
[null,null,null,null,0]
[null,null,null,null,0]
[null,null,null,null,0]
[null,null,null,null,0]
[null,null,null,null,0]
[null,null,null,null,0]
[null,null,null,null,0]
[null,null,null,null,0]
[null,null,null,null,0]
[null,null,null,null,0]
[null,null,null,null,0]
[null,null,null,null,0]
[null,null,null,null,0]
[null,null,null,null,0]
[null,null,null,null,0]
[null,null,null,null,0]
[null,null,null,null,0]
[null,null,null,null,0]
[null,null,null,null,{"$f":"ABS(D2445-C2445)","v":0}]
[null,null,null,null,0]
[null,null,null,null,0]
[null,null,null,null,0]
[null,null,null,null,0]
[null,null,null,null,0]
[null,null,null,null,0]
[null,null,null,null,0]
[null,null,null,null,0]
[null,null,null,null,0]
[null,null,null,null,0]
[null,null,null,null,0]
[null,null,null,null,0]
[null,null,null,null,0]
[null,null,null,null,0]
[null,null,null,null,0]
[null,null,null,null,0]
[null,null,null,null,0]
[null,null,null,null,0]
[null,null,null,null,0]
[null,null,null,null,0]
[null,null,null,null,0]
[null,null,null,null,0]
[null,null,null,null,0]
[null,null,null,null,0]
[null,null,null,null,0]
[null,null,null,null,0]
[null,null,null,null,0]
[null,null,null,null,0]
[null,null,null,null,0]
[null,null,null,null,0]
[null,null,null,null,0]
[null,null,null,null,0]
[null,null,null,null,0]
[null,null,null,null,0]
[null,null,null,null,0]
[null,null,null,null,0]
[null,null,null,null,0]
[null,null,null,null,0]
[null,null,null,null,0]
[null,null,null,null,0]
[null,null,null,null,0]
[null,null,null,null,0]
[null,null,null,null,0]
[null,null,null,null,0]
[null,null,null,null,0]
[null,null,null,null,0]
[null,null,null,null,0]
[null,null,null,null,0]
[null,null,null,null,0]
[null,null,null,null,0]
[null,null,null,null,0]
[null,null,null,null,0]
[null,null,null,null,0]
[null,null,null,null,0]
[null,null,null,null,0]
[null,null,null,null,0]
[null,null,null,null,0]
[null,null,null,null,0]
[null,null,null,null,0]
[null,null,null,null,0]
[null,null,null,null,0]
[null,null,null,null,0]
[null,null,null,null,0]
[null,null,null,null,{"$f":"ABS(D2509-C2509)","v":0}]
[null,null,null,null,0]
[null,null,null,null,0]
[null,null,null,null,0]
[null,null,null,null,0]
[null,null,null,null,0]
[null,null,null,null,0]
[null,null,null,null,0]
[null,null,null,null,0]
[null,null,null,null,0]
[null,null,null,null,0]
[null,null,null,null,0]
[null,null,null,null,0]
[null,null,null,null,0]
[null,null,null,null,0]
[null,null,null,null,0]
[null,null,null,null,0]
[null,null,null,null,0]
[null,null,null,null,0]
[null,null,null,null,0]
[null,null,null,null,0]
[null,null,null,null,0]
[null,null,null,null,0]
[null,null,null,null,0]
[null,null,null,null,0]
[null,null,null,null,0]
[null,null,null,null,0]
[null,null,null,null,0]
[null,null,null,null,0]
[null,null,null,null,0]
[null,null,null,null,0]
[null,null,null,null,0]
[null,null,null,null,0]
[null,null,null,null,0]
[null,null,null,null,0]
[null,null,null,null,0]
[null,null,null,null,0]
[null,null,null,null,0]
[null,null,null,null,0]
[null,null,null,null,0]
[null,null,null,null,0]
[null,null,null,null,0]
[null,null,null,null,0]
[null,null,null,null,0]
[null,null,null,null,0]
[null,null,null,null,0]
[null,null,null,null,0]
[null,null,null,null,0]
[null,null,null,null,0]
[null,null,null,null,0]
[null,null,null,null,0]
[null,null,null,null,0]
[null,null,null,null,0]
[null,null,null,null,0]
[null,null,null,null,0]
[null,null,null,null,0]
[null,null,null,null,0]
[null,null,null,null,0]
[null,null,null,null,0]
[null,null,null,null,0]
[null,null,null,null,0]
[null,null,null,null,0]
[null,null,null,null,0]
[null,null,null,null,0]
[null,null,null,null,{"$f":"ABS(D2573-C2573)","v":0}]
[null,null,null,null,0]
[null,null,null,null,0]
[null,null,null,null,0]
[null,null,null,null,0]
[null,null,null,null,0]
[null,null,null,null,0]
[null,null,null,null,0]
[null,null,null,null,0]
[null,null,null,null,0]
[null,null,null,null,0]
[null,null,null,null,0]
[null,null,null,null,0]
[null,null,null,null,0]
[null,null,null,null,0]
[null,null,null,null,0]
[null,null,null,null,0]
[null,null,null,null,0]
[null,null,null,null,0]
[null,null,null,null,0]
[null,null,null,null,0]
[null,null,null,null,0]
[null,null,null,null,0]
[null,null,null,null,0]
[null,null,null,null,0]
[null,null,null,null,0]
[null,null,null,null,0]
[null,null,null,null,0]
[null,null,null,null,0]
[null,null,null,null,0]
[null,null,null,null,0]
[null,null,null,null,0]
[null,null,null,null,0]
[null,null,null,null,0]
[null,null,null,null,0]
[null,null,null,null,0]
[null,null,null,null,0]
[null,null,null,null,0]
[null,null,null,null,0]
[null,null,null,null,0]
[null,null,null,null,0]
[null,null,null,null,0]
[null,null,null,null,0]
[null,null,null,null,0]
[null,null,null,null,0]
[null,null,null,null,0]
[null,null,null,null,0]
[null,null,null,null,0]
[null,null,null,null,0]
[null,null,null,null,0]
[null,null,null,null,0]
[null,null,null,null,0]
[null,null,null,null,0]
[null,null,null,null,0]
[null,null,null,null,0]
[null,null,null,null,0]
[null,null,null,null,0]
[null,null,null,null,0]
[null,null,null,null,0]
[null,null,null,null,0]
[null,null,null,null,0]
[null,null,null,null,0]
[null,null,null,null,0]
[null,null,null,null,0]
[null,null,null,null,{"$f":"ABS(D2637-C2637)","v":0}]
[null,null,null,null,0]
[null,null,null,null,0]
[null,null,null,null,0]
[null,null,null,null,0]
[null,null,null,null,0]
[null,null,null,null,0]
[null,null,null,null,0]
[null,null,null,null,0]
[null,null,null,null,0]
[null,null,null,null,0]
[null,null,null,null,0]
[null,null,null,null,0]
[null,null,null,null,0]
[null,null,null,null,0]
[null,null,null,null,0]
[null,null,null,null,0]
[null,null,null,null,0]
[null,null,null,null,0]
[null,null,null,null,0]
[null,null,null,null,0]
[null,null,null,null,0]
[null,null,null,null,0]
[null,null,null,null,0]
[null,null,null,null,0]
[null,null,null,null,0]
[null,null,null,null,0]
[null,null,null,null,0]
[null,null,null,null,0]
[null,null,null,null,0]
[null,null,null,null,0]
[null,null,null,null,0]
[null,null,null,null,0]
[null,null,null,null,0]
[null,null,null,null,0]
[null,null,null,null,0]
[null,null,null,null,0]
[null,null,null,null,0]
[null,null,null,null,0]
[null,null,null,null,0]
[null,null,null,null,0]
[null,null,null,null,0]
[null,null,null,null,0]
[null,null,null,null,0]
[null,null,null,null,0]
[null,null,null,null,0]
[null,null,null,null,0]
[null,null,null,null,0]
[null,null,null,null,0]
[null,null,null,null,0]
[null,null,null,null,0]
[null,null,null,null,0]
[null,null,null,null,0]
[null,null,null,null,0]
[null,null,null,null,0]
[null,null,null,null,0]
[null,null,null,null,0]
[null,null,null,null,0]
[null,null,null,null,0]
[null,null,null,null,0]
[null,null,null,null,0]
[null,null,null,null,0]
[null,null,null,null,0]
[null,null,null,null,0]
[null,null,null,null,{"$f":"ABS(D2701-C2701)","v":0}]
[null,null,null,null,0]
[null,null,null,null,0]
[null,null,null,null,0]
[null,null,null,null,0]
[null,null,null,null,0]
[null,null,null,null,0]
[null,null,null,null,0]
[null,null,null,null,0]
[null,null,null,null,0]
[null,null,null,null,0]
[null,null,null,null,0]
[null,null,null,null,0]
[null,null,null,null,0]
[null,null,null,null,0]
[null,null,null,null,0]
[null,null,null,null,0]
[null,null,null,null,0]
[null,null,null,null,0]
[null,null,null,null,0]
[null,null,null,null,0]
[null,null,null,null,0]
[null,null,null,null,0]
[null,null,null,null,0]
[null,null,null,null,0]
[null,null,null,null,0]
[null,null,null,null,0]
[null,null,null,null,0]
[null,null,null,null,0]
[null,null,null,null,0]
[null,null,null,null,0]
[null,null,null,null,0]
[null,null,null,null,0]
[null,null,null,null,0]
[null,null,null,null,0]
[null,null,null,null,0]
[null,null,null,null,0]
[null,null,null,null,0]
[null,null,null,null,0]
[null,null,null,null,0]
[null,null,null,null,0]
[null,null,null,null,0]
[null,null,null,null,0]
[null,null,null,null,0]
[null,null,null,null,0]
[null,null,null,null,0]
[null,null,null,null,0]
[null,null,null,null,0]
[null,null,null,null,0]
[null,null,null,null,0]
[null,null,null,null,0]
[null,null,null,null,0]
[null,null,null,null,0]
[null,null,null,null,0]
[null,null,null,null,0]
[null,null,null,null,0]
[null,null,null,null,0]
[null,null,null,null,0]
[null,null,null,null,0]
[null,null,null,null,0]
[null,null,null,null,0]
[null,null,null,null,0]
[null,null,null,null,0]
[null,null,null,null,0]
[null,null,null,null,{"$f":"ABS(D2765-C2765)","v":0}]
[null,null,null,null,0]
[null,null,null,null,0]
[null,null,null,null,0]
[null,null,null,null,0]
[null,null,null,null,0]
[null,null,null,null,0]
[null,null,null,null,0]
[null,null,null,null,0]
[null,null,null,null,0]
[null,null,null,null,0]
[null,null,null,null,0]
[null,null,null,null,0]
[null,null,null,null,0]
[null,null,null,null,0]
[null,null,null,null,0]
[null,null,null,null,0]
[null,null,null,null,0]
[null,null,null,null,0]
[null,null,null,null,0]
[null,null,null,null,0]
[null,null,null,null,0]
[null,null,null,null,0]
[null,null,null,null,0]
[null,null,null,null,0]
[null,null,null,null,0]
[null,null,null,null,0]
[null,null,null,null,0]
[null,null,null,null,0]
[null,null,null,null,0]
[null,null,null,null,0]
[null,null,null,null,0]
[null,null,null,null,0]
[null,null,null,null,0]
[null,null,null,null,0]
[null,null,null,null,0]
[null,null,null,null,0]
[null,null,null,null,0]
[null,null,null,null,0]
[null,null,null,null,0]
[null,null,null,null,0]
[null,null,null,null,0]
[null,null,null,null,0]
[null,null,null,null,0]
[null,null,null,null,0]
[null,null,null,null,0]
[null,null,null,null,0]
[null,null,null,null,0]
[null,null,null,null,0]
[null,null,null,null,0]
[null,null,null,null,0]
[null,null,null,null,0]
[null,null,null,null,0]
[null,null,null,null,0]
[null,null,null,null,0]
[null,null,null,null,0]
[null,null,null,null,0]
[null,null,null,null,0]
[null,null,null,null,0]
[null,null,null,null,0]
[null,null,null,null,0]
[null,null,null,null,0]
[null,null,null,null,0]
[null,null,null,null,0]
[null,null,null,null,{"$f":"ABS(D2829-C2829)","v":0}]
[null,null,null,null,0]
[null,null,null,null,0]
[null,null,null,null,0]
[null,null,null,null,0]
[null,null,null,null,0]
[null,null,null,null,0]
[null,null,null,null,0]
[null,null,null,null,0]
[null,null,null,null,0]
[null,null,null,null,0]
[null,null,null,null,0]
[null,null,null,null,0]
[null,null,null,null,0]
[null,null,null,null,0]
[null,null,null,null,0]
[null,null,null,null,0]
[null,null,null,null,0]
[null,null,null,null,0]
[null,null,null,null,0]
[null,null,null,null,0]
[null,null,null,null,0]
[null,null,null,null,0]
[null,null,null,null,0]
[null,null,null,null,0]
[null,null,null,null,0]
[null,null,null,null,0]
[null,null,null,null,0]
[null,null,null,null,0]
[null,null,null,null,0]
[null,null,null,null,0]
[null,null,null,null,0]
[null,null,null,null,0]
[null,null,null,null,0]
[null,null,null,null,0]
[null,null,null,null,0]
[null,null,null,null,0]
[null,null,null,null,0]
[null,null,null,null,0]
[null,null,null,null,0]
[null,null,null,null,0]
[null,null,null,null,0]
[null,null,null,null,0]
[null,null,null,null,0]
[null,null,null,null,0]
[null,null,null,null,0]
[null,null,null,null,0]
[null,null,null,null,0]
[null,null,null,null,0]
[null,null,null,null,0]
[null,null,null,null,0]
[null,null,null,null,0]
[null,null,null,null,0]
[null,null,null,null,0]
[null,null,null,null,0]
[null,null,null,null,0]
[null,null,null,null,0]
[null,null,null,null,0]
[null,null,null,null,0]
[null,null,null,null,0]
[null,null,null,null,0]
[null,null,null,null,0]
[null,null,null,null,0]
[null,null,null,null,0]
[null,null,null,null,{"$f":"ABS(D2893-C2893)","v":0}]
[null,null,null,null,0]
[null,null,null,null,0]
[null,null,null,null,0]
[null,null,null,null,0]
[null,null,null,null,0]
[null,null,null,null,0]
[null,null,null,null,0]
[null,null,null,null,0]
[null,null,null,null,0]
[null,null,null,null,0]
[null,null,null,null,0]
[null,null,null,null,0]
[null,null,null,null,0]
[null,null,null,null,0]
[null,null,null,null,0]
[null,null,null,null,0]
[null,null,null,null,0]
[null,null,null,null,0]
[null,null,null,null,0]
[null,null,null,null,0]
[null,null,null,null,0]
[null,null,null,null,0]
[null,null,null,null,0]
[null,null,null,null,0]
[null,null,null,null,0]
[null,null,null,null,0]
[null,null,null,null,0]
[null,null,null,null,0]
[null,null,null,null,0]
[null,null,null,null,0]
[null,null,null,null,0]
[null,null,null,null,0]
[null,null,null,null,0]
[null,null,null,null,0]
[null,null,null,null,0]
[null,null,null,null,0]
[null,null,null,null,0]
[null,null,null,null,0]
[null,null,null,null,0]
[null,null,null,null,0]
[null,null,null,null,0]
[null,null,null,null,0]
[null,null,null,null,0]
[null,null,null,null,0]
[null,null,null,null,0]
[null,null,null,null,0]
[null,null,null,null,0]
[null,null,null,null,0]
[null,null,null,null,0]
[null,null,null,null,0]
[null,null,null,null,0]
[null,null,null,null,0]
[null,null,null,null,0]
[null,null,null,null,0]
[null,null,null,null,0]
[null,null,null,null,0]
[null,null,null,null,0]
[null,null,null,null,0]
[null,null,null,null,0]
[null,null,null,null,0]
[null,null,null,null,0]
[null,null,null,null,0]
[null,null,null,null,0]
[null,null,null,null,{"$f":"ABS(D2957-C2957)","v":0}]
[null,null,null,null,0]
[null,null,null,null,0]
[null,null,null,null,0]
[null,null,null,null,0]
[null,null,null,null,0]
[null,null,null,null,0]
[null,null,null,null,0]
[null,null,null,null,0]
[null,null,null,null,0]
[null,null,null,null,0]
[null,null,null,null,0]
[null,null,null,null,0]
[null,null,null,null,0]
[null,null,null,null,0]
[null,null,null,null,0]
[null,null,null,null,0]
[null,null,null,null,0]
[null,null,null,null,0]
[null,null,null,null,0]
[null,null,null,null,0]
[null,null,null,null,0]
[null,null,null,null,0]
[null,null,null,null,0]
[null,null,null,null,0]
[null,null,null,null,0]
[null,null,null,null,0]
[null,null,null,null,0]
[null,null,null,null,0]
[null,null,null,null,0]
[null,null,null,null,0]
[null,null,null,null,0]
[null,null,null,null,0]
[null,null,null,null,0]
[null,null,null,null,0]
[null,null,null,null,0]
[null,null,null,null,0]
[null,null,null,null,0]
[null,null,null,null,0]
[null,null,null,null,0]
[null,null,null,null,0]
[null,null,null,null,0]
[null,null,null,null,0]
[null,null,null,null,0]
[null,null,null,null,0]
[null,null,null,null,0]
[null,null,null,null,0]
[null,null,null,null,0]
[null,null,null,null,0]
[null,null,null,null,0]
[null,null,null,null,0]
[null,null,null,null,0]
[null,null,null,null,0]
[null,null,null,null,0]
[null,null,null,null,0]
[null,null,null,null,0]
[null,null,null,null,0]
[null,null,null,null,0]
[null,null,null,null,0]
[null,null,null,null,0]
[null,null,null,null,0]
[null,null,null,null,0]
[null,null,null,null,0]
[null,null,null,null,0]
[null,null,null,null,{"$f":"ABS(D3021-C3021)","v":0}]
[null,null,null,null,0]
[null,null,null,null,0]
[null,null,null,null,0]
[null,null,null,null,0]
[null,null,null,null,0]
[null,null,null,null,0]
[null,null,null,null,0]
[null,null,null,null,0]
[null,null,null,null,0]
[null,null,null,null,0]
[null,null,null,null,0]
[null,null,null,null,0]
[null,null,null,null,0]
[null,null,null,null,0]
[null,null,null,null,0]
[null,null,null,null,0]
[null,null,null,null,0]
[null,null,null,null,0]
[null,null,null,null,0]
[null,null,null,null,0]
[null,null,null,null,0]
[null,null,null,null,0]
[null,null,null,null,0]
[null,null,null,null,0]
[null,null,null,null,0]
[null,null,null,null,0]
[null,null,null,null,0]
[null,null,null,null,0]
[null,null,null,null,0]
[null,null,null,null,0]
[null,null,null,null,0]
[null,null,null,null,0]
[null,null,null,null,0]
[null,null,null,null,0]
[null,null,null,null,0]
[null,null,null,null,0]
[null,null,null,null,0]
[null,null,null,null,0]
[null,null,null,null,0]
[null,null,null,null,0]
[null,null,null,null,0]
[null,null,null,null,0]
[null,null,null,null,0]
[null,null,null,null,0]
[null,null,null,null,0]
[null,null,null,null,0]
[null,null,null,null,0]
[null,null,null,null,0]
[null,null,null,null,0]
[null,null,null,null,0]
[null,null,null,null,0]
[null,null,null,null,0]
[null,null,null,null,0]
[null,null,null,null,0]
[null,null,null,null,0]
[null,null,null,null,0]
[null,null,null,null,0]
[null,null,null,null,0]
[null,null,null,null,0]
[null,null,null,null,0]
[null,null,null,null,0]
[null,null,null,null,0]
[null,null,null,null,0]
[null,null,null,null,{"$f":"ABS(D3085-C3085)","v":0}]
[null,null,null,null,0]
[null,null,null,null,0]
[null,null,null,null,0]
[null,null,null,null,0]
[null,null,null,null,0]
[null,null,null,null,0]
[null,null,null,null,0]
[null,null,null,null,0]
[null,null,null,null,0]
[null,null,null,null,0]
[null,null,null,null,0]
[null,null,null,null,0]
[null,null,null,null,0]
[null,null,null,null,0]
[null,null,null,null,0]
[null,null,null,null,0]
[null,null,null,null,0]
[null,null,null,null,0]
[null,null,null,null,0]
[null,null,null,null,0]
[null,null,null,null,0]
[null,null,null,null,0]
[null,null,null,null,0]
[null,null,null,null,0]
[null,null,null,null,0]
[null,null,null,null,0]
[null,null,null,null,0]
[null,null,null,null,0]
[null,null,null,null,0]
[null,null,null,null,0]
[null,null,null,null,0]
[null,null,null,null,0]
[null,null,null,null,0]
[null,null,null,null,0]
[null,null,null,null,0]
[null,null,null,null,0]
[null,null,null,null,0]
[null,null,null,null,0]
[null,null,null,null,0]
[null,null,null,null,0]
[null,null,null,null,0]
[null,null,null,null,0]
[null,null,null,null,0]
[null,null,null,null,0]
[null,null,null,null,0]
[null,null,null,null,0]
[null,null,null,null,0]
[null,null,null,null,0]
[null,null,null,null,0]
[null,null,null,null,0]
[null,null,null,null,0]
[null,null,null,null,0]
[null,null,null,null,0]
[null,null,null,null,0]
[null,null,null,null,0]
[null,null,null,null,0]
[null,null,null,null,0]
[null,null,null,null,0]
[null,null,null,null,0]
[null,null,null,null,0]
[null,null,null,null,0]
[null,null,null,null,0]
[null,null,null,null,0]
[null,null,null,null,{"$f":"ABS(D3149-C3149)","v":0}]
[null,null,null,null,0]
[null,null,null,null,0]
[null,null,null,null,0]
[null,null,null,null,0]
[null,null,null,null,0]
[null,null,null,null,0]
[null,null,null,null,0]
[null,null,null,null,0]
[null,null,null,null,0]
[null,null,null,null,0]
[null,null,null,null,0]
[null,null,null,null,0]
[null,null,null,null,0]
[null,null,null,null,0]
[null,null,null,null,0]
[null,null,null,null,0]
[null,null,null,null,0]
[null,null,null,null,0]
[null,null,null,null,0]
[null,null,null,null,0]
[null,null,null,null,0]
[null,null,null,null,0]
[null,null,null,null,0]
[null,null,null,null,0]
[null,null,null,null,0]
[null,null,null,null,0]
[null,null,null,null,0]
[null,null,null,null,0]
[null,null,null,null,0]
[null,null,null,null,0]
[null,null,null,null,0]
[null,null,null,null,0]
[null,null,null,null,0]
[null,null,null,null,0]
[null,null,null,null,0]
[null,null,null,null,0]
[null,null,null,null,0]
[null,null,null,null,0]
[null,null,null,null,0]
[null,null,null,null,0]
[null,null,null,null,0]
[null,null,null,null,0]
[null,null,null,null,0]
[null,null,null,null,0]
[null,null,null,null,0]
[null,null,null,null,0]
[null,null,null,null,0]
[null,null,null,null,0]
[null,null,null,null,0]
[null,null,null,null,0]
[null,null,null,null,0]
[null,null,null,null,0]
[null,null,null,null,0]
[null,null,null,null,0]
[null,null,null,null,0]
[null,null,null,null,0]
[null,null,null,null,0]
[null,null,null,null,0]
[null,null,null,null,0]
[null,null,null,null,0]
[null,null,null,null,0]
[null,null,null,null,0]
[null,null,null,null,0]
[null,null,null,null,{"$f":"ABS(D3213-C3213)","v":0}]
[null,null,null,null,0]
[null,null,null,null,0]
[null,null,null,null,0]
[null,null,null,null,0]
[null,null,null,null,0]
[null,null,null,null,0]
[null,null,null,null,0]
[null,null,null,null,0]
[null,null,null,null,0]
[null,null,null,null,0]
[null,null,null,null,0]
[null,null,null,null,0]
[null,null,null,null,0]
[null,null,null,null,0]
[null,null,null,null,0]
[null,null,null,null,0]
[null,null,null,null,0]
[null,null,null,null,0]
[null,null,null,null,0]
[null,null,null,null,0]
[null,null,null,null,0]
[null,null,null,null,0]
[null,null,null,null,0]
[null,null,null,null,0]
[null,null,null,null,0]
[null,null,null,null,0]
[null,null,null,null,0]
[null,null,null,null,0]
[null,null,null,null,0]
[null,null,null,null,0]
[null,null,null,null,0]
[null,null,null,null,0]
[null,null,null,null,0]
[null,null,null,null,0]
[null,null,null,null,0]
[null,null,null,null,0]
[null,null,null,null,0]
[null,null,null,null,0]
[null,null,null,null,0]
[null,null,null,null,0]
[null,null,null,null,0]
[null,null,null,null,0]
[null,null,null,null,0]
[null,null,null,null,0]
[null,null,null,null,0]
[null,null,null,null,0]
[null,null,null,null,0]
[null,null,null,null,0]
[null,null,null,null,0]
[null,null,null,null,0]
[null,null,null,null,0]
[null,null,null,null,0]
[null,null,null,null,0]
[null,null,null,null,0]
[null,null,null,null,0]
[null,null,null,null,0]
[null,null,null,null,0]
[null,null,null,null,0]
[null,null,null,null,0]
[null,null,null,null,0]
[null,null,null,null,0]
[null,null,null,null,0]
[null,null,null,null,0]
[null,null,null,null,{"$f":"ABS(D3277-C3277)","v":0}]
[null,null,null,null,0]
[null,null,null,null,0]
[null,null,null,null,0]
[null,null,null,null,0]
[null,null,null,null,0]
[null,null,null,null,0]
[null,null,null,null,0]
[null,null,null,null,0]
[null,null,null,null,0]
[null,null,null,null,0]
[null,null,null,null,0]
[null,null,null,null,0]
[null,null,null,null,0]
[null,null,null,null,0]
[null,null,null,null,0]
[null,null,null,null,0]
[null,null,null,null,0]
[null,null,null,null,0]
[null,null,null,null,0]
[null,null,null,null,0]
[null,null,null,null,0]
[null,null,null,null,0]
[null,null,null,null,0]
[null,null,null,null,0]
[null,null,null,null,0]
[null,null,null,null,0]
[null,null,null,null,0]
[null,null,null,null,0]
[null,null,null,null,0]
[null,null,null,null,0]
[null,null,null,null,0]
[null,null,null,null,0]
[null,null,null,null,0]
[null,null,null,null,0]
[null,null,null,null,0]
[null,null,null,null,0]
[null,null,null,null,0]
[null,null,null,null,0]
[null,null,null,null,0]
[null,null,null,null,0]
[null,null,null,null,0]
[null,null,null,null,0]
[null,null,null,null,0]
[null,null,null,null,0]
[null,null,null,null,0]
[null,null,null,null,0]
[null,null,null,null,0]
[null,null,null,null,0]
[null,null,null,null,0]
[null,null,null,null,0]
[null,null,null,null,0]
[null,null,null,null,0]
[null,null,null,null,0]
[null,null,null,null,0]
[null,null,null,null,0]
[null,null,null,null,0]
[null,null,null,null,0]
[null,null,null,null,0]
[null,null,null,null,0]
[null,null,null,null,0]
[null,null,null,null,0]
[null,null,null,null,0]
[null,null,null,null,0]
[null,null,null,null,{"$f":"ABS(D3341-C3341)","v":0}]
[null,null,null,null,0]
[null,null,null,null,0]
[null,null,null,null,0]
[null,null,null,null,0]
[null,null,null,null,0]
[null,null,null,null,0]
[null,null,null,null,0]
[null,null,null,null,0]
[null,null,null,null,0]
[null,null,null,null,0]
[null,null,null,null,0]
[null,null,null,null,0]
[null,null,null,null,0]
[null,null,null,null,0]
[null,null,null,null,0]
[null,null,null,null,0]
[null,null,null,null,0]
[null,null,null,null,0]
[null,null,null,null,0]
[null,null,null,null,0]
[null,null,null,null,0]
[null,null,null,null,0]
[null,null,null,null,0]
[null,null,null,null,0]
[null,null,null,null,0]
[null,null,null,null,0]
[null,null,null,null,0]
[null,null,null,null,0]
[null,null,null,null,0]
[null,null,null,null,0]
[null,null,null,null,0]
[null,null,null,null,0]
[null,null,null,null,0]
[null,null,null,null,0]
[null,null,null,null,0]
[null,null,null,null,0]
[null,null,null,null,0]
[null,null,null,null,0]
[null,null,null,null,0]
[null,null,null,null,0]
[null,null,null,null,0]
[null,null,null,null,0]
[null,null,null,null,0]
[null,null,null,null,0]
[null,null,null,null,0]
[null,null,null,null,0]
[null,null,null,null,0]
[null,null,null,null,0]
[null,null,null,null,0]
[null,null,null,null,0]
[null,null,null,null,0]
[null,null,null,null,0]
[null,null,null,null,0]
[null,null,null,null,0]
[null,null,null,null,0]
[null,null,null,null,0]
[null,null,null,null,0]
[null,null,null,null,0]
[null,null,null,null,0]
[null,null,null,null,0]
[null,null,null,null,0]
[null,null,null,null,0]
[null,null,null,null,0]
[null,null,null,null,{"$f":"ABS(D3405-C3405)","v":0}]
[null,null,null,null,0]
[null,null,null,null,0]
[null,null,null,null,0]
[null,null,null,null,0]
[null,null,null,null,0]
[null,null,null,null,0]
[null,null,null,null,0]
[null,null,null,null,0]
[null,null,null,null,0]
[null,null,null,null,0]
[null,null,null,null,0]
[null,null,null,null,0]
[null,null,null,null,0]
[null,null,null,null,0]
[null,null,null,null,0]
[null,null,null,null,0]
[null,null,null,null,0]
[null,null,null,null,0]
[null,null,null,null,0]
[null,null,null,null,0]
[null,null,null,null,0]
[null,null,null,null,0]
[null,null,null,null,0]
[null,null,null,null,0]
[null,null,null,null,0]
[null,null,null,null,0]
[null,null,null,null,0]
[null,null,null,null,0]
[null,null,null,null,0]
[null,null,null,null,0]
[null,null,null,null,0]
[null,null,null,null,0]
[null,null,null,null,0]
[null,null,null,null,0]
[null,null,null,null,0]
[null,null,null,null,0]
[null,null,null,null,0]
[null,null,null,null,0]
[null,null,null,null,0]
[null,null,null,null,0]
[null,null,null,null,0]
[null,null,null,null,0]
[null,null,null,null,0]
[null,null,null,null,0]
[null,null,null,null,0]
[null,null,null,null,0]
[null,null,null,null,0]
[null,null,null,null,0]
[null,null,null,null,0]
[null,null,null,null,0]
[null,null,null,null,0]
[null,null,null,null,0]
[null,null,null,null,0]
[null,null,null,null,0]
[null,null,null,null,0]
[null,null,null,null,0]
[null,null,null,null,0]
[null,null,null,null,0]
[null,null,null,null,0]
[null,null,null,null,0]
[null,null,null,null,0]
[null,null,null,null,0]
[null,null,null,null,0]
[null,null,null,null,{"$f":"ABS(D3469-C3469)","v":0}]
[null,null,null,null,0]
[null,null,null,null,0]
[null,null,null,null,0]
[null,null,null,null,0]
[null,null,null,null,0]
[null,null,null,null,0]
[null,null,null,null,0]
[null,null,null,null,0]
[null,null,null,null,0]
[null,null,null,null,0]
[null,null,null,null,0]
[null,null,null,null,0]
[null,null,null,null,0]
[null,null,null,null,0]
[null,null,null,null,0]
[null,null,null,null,0]
[null,null,null,null,0]
[null,null,null,null,0]
[null,null,null,null,0]
[null,null,null,null,0]
[null,null,null,null,0]
[null,null,null,null,0]
[null,null,null,null,0]
[null,null,null,null,0]
[null,null,null,null,0]
[null,null,null,null,0]
[null,null,null,null,0]
[null,null,null,null,0]
[null,null,null,null,0]
[null,null,null,null,0]
[null,null,null,null,0]
[null,null,null,null,0]
[null,null,null,null,0]
[null,null,null,null,0]
[null,null,null,null,0]
[null,null,null,null,0]
[null,null,null,null,0]
[null,null,null,null,0]
[null,null,null,null,0]
[null,null,null,null,0]
[null,null,null,null,0]
[null,null,null,null,0]
[null,null,null,null,0]
[null,null,null,null,0]
[null,null,null,null,0]
[null,null,null,null,0]
[null,null,null,null,0]
[null,null,null,null,0]
[null,null,null,null,0]
[null,null,null,null,0]
[null,null,null,null,0]
[null,null,null,null,0]
[null,null,null,null,0]
[null,null,null,null,0]
[null,null,null,null,0]
[null,null,null,null,0]
[null,null,null,null,0]
[null,null,null,null,0]
[null,null,null,null,0]
[null,null,null,null,0]
[null,null,null,null,0]
[null,null,null,null,0]
[null,null,null,null,0]
[null,null,null,null,{"$f":"ABS(D3533-C3533)","v":0}]
[null,null,null,null,0]
[null,null,null,null,0]
[null,null,null,null,0]
[null,null,null,null,0]
[null,null,null,null,0]
[null,null,null,null,0]
[null,null,null,null,0]
[null,null,null,null,0]
[null,null,null,null,0]
[null,null,null,null,0]
[null,null,null,null,0]
[null,null,null,null,0]
[null,null,null,null,0]
[null,null,null,null,0]
[null,null,null,null,0]
[null,null,null,null,0]
[null,null,null,null,0]
[null,null,null,null,0]
[null,null,null,null,0]
[null,null,null,null,0]
[null,null,null,null,0]
[null,null,null,null,0]
[null,null,null,null,0]
[null,null,null,null,0]
[null,null,null,null,0]
[null,null,null,null,0]
[null,null,null,null,0]
[null,null,null,null,0]
[null,null,null,null,0]
[null,null,null,null,0]
[null,null,null,null,0]
[null,null,null,null,0]
[null,null,null,null,0]
[null,null,null,null,0]
[null,null,null,null,0]
[null,null,null,null,0]
[null,null,null,null,0]
[null,null,null,null,0]
[null,null,null,null,0]
[null,null,null,null,0]
[null,null,null,null,0]
[null,null,null,null,0]
[null,null,null,null,0]
[null,null,null,null,0]
[null,null,null,null,0]
[null,null,null,null,0]
[null,null,null,null,0]
[null,null,null,null,0]
[null,null,null,null,0]
[null,null,null,null,0]
[null,null,null,null,0]
[null,null,null,null,0]
[null,null,null,null,0]
[null,null,null,null,0]
[null,null,null,null,0]
[null,null,null,null,0]
[null,null,null,null,0]
[null,null,null,null,0]
[null,null,null,null,0]
[null,null,null,null,0]
[null,null,null,null,0]
[null,null,null,null,0]
[null,null,null,null,0]
[null,null,null,null,{"$f":"ABS(D3597-C3597)","v":0}]
[null,null,null,null,0]
[null,null,null,null,0]
[null,null,null,null,0]
[null,null,null,null,0]
[null,null,null,null,0]
[null,null,null,null,0]
[null,null,null,null,0]
[null,null,null,null,0]
[null,null,null,null,0]
[null,null,null,null,0]
[null,null,null,null,0]
[null,null,null,null,0]
[null,null,null,null,0]
[null,null,null,null,0]
[null,null,null,null,0]
[null,null,null,null,0]
[null,null,null,null,0]
[null,null,null,null,0]
[null,null,null,null,0]
[null,null,null,null,0]
[null,null,null,null,0]
[null,null,null,null,0]
[null,null,null,null,0]
[null,null,null,null,0]
[null,null,null,null,0]
[null,null,null,null,0]
[null,null,null,null,0]
[null,null,null,null,0]
[null,null,null,null,0]
[null,null,null,null,0]
[null,null,null,null,0]
[null,null,null,null,0]
[null,null,null,null,0]
[null,null,null,null,0]
[null,null,null,null,0]
[null,null,null,null,0]
[null,null,null,null,0]
[null,null,null,null,0]
[null,null,null,null,0]
[null,null,null,null,0]
[null,null,null,null,0]
[null,null,null,null,0]
[null,null,null,null,0]
[null,null,null,null,0]
[null,null,null,null,0]
[null,null,null,null,0]
[null,null,null,null,0]
[null,null,null,null,0]
[null,null,null,null,0]
[null,null,null,null,0]
[null,null,null,null,0]
[null,null,null,null,0]
[null,null,null,null,0]
[null,null,null,null,0]
[null,null,null,null,0]
[null,null,null,null,0]
[null,null,null,null,0]
[null,null,null,null,0]
[null,null,null,null,0]
[null,null,null,null,0]
[null,null,null,null,0]
[null,null,null,null,0]
[null,null,null,null,0]
[null,null,null,null,{"$f":"ABS(D3661-C3661)","v":0}]
[null,null,null,null,0]
[null,null,null,null,0]
[null,null,null,null,0]
[null,null,null,null,0]
[null,null,null,null,0]
[null,null,null,null,0]
[null,null,null,null,0]
[null,null,null,null,0]
[null,null,null,null,0]
[null,null,null,null,0]
[null,null,null,null,0]
[null,null,null,null,0]
[null,null,null,null,0]
[null,null,null,null,0]
[null,null,null,null,0]
[null,null,null,null,0]
[null,null,null,null,0]
[null,null,null,null,0]
[null,null,null,null,0]
[null,null,null,null,0]
[null,null,null,null,0]
[null,null,null,null,0]
[null,null,null,null,0]
[null,null,null,null,0]
[null,null,null,null,0]
[null,null,null,null,0]
[null,null,null,null,0]
[null,null,null,null,0]
[null,null,null,null,0]
[null,null,null,null,0]
[null,null,null,null,0]
[null,null,null,null,0]
[null,null,null,null,0]
[null,null,null,null,0]
[null,null,null,null,0]
[null,null,null,null,0]
[null,null,null,null,0]
[null,null,null,null,0]
[null,null,null,null,0]
[null,null,null,null,0]
[null,null,null,null,0]
[null,null,null,null,0]
[null,null,null,null,0]
[null,null,null,null,0]
[null,null,null,null,0]
[null,null,null,null,0]
[null,null,null,null,0]
[null,null,null,null,0]
[null,null,null,null,0]
[null,null,null,null,0]
[null,null,null,null,0]
[null,null,null,null,0]
[null,null,null,null,0]
[null,null,null,null,0]
[null,null,null,null,0]
[null,null,null,null,0]
[null,null,null,null,0]
[null,null,null,null,0]
[null,null,null,null,0]
[null,null,null,null,0]
[null,null,null,null,0]
[null,null,null,null,0]
[null,null,null,null,0]
[null,null,null,null,{"$f":"ABS(D3725-C3725)","v":0}]
[null,null,null,null,0]
[null,null,null,null,0]
[null,null,null,null,0]
[null,null,null,null,0]
[null,null,null,null,0]
[null,null,null,null,0]
[null,null,null,null,0]
[null,null,null,null,0]
[null,null,null,null,0]
[null,null,null,null,0]
[null,null,null,null,0]
[null,null,null,null,0]
[null,null,null,null,0]
[null,null,null,null,0]
[null,null,null,null,0]
[null,null,null,null,0]
[null,null,null,null,0]
[null,null,null,null,0]
[null,null,null,null,0]
[null,null,null,null,0]
[null,null,null,null,0]
[null,null,null,null,0]
[null,null,null,null,0]
[null,null,null,null,0]
[null,null,null,null,0]
[null,null,null,null,0]
[null,null,null,null,0]
[null,null,null,null,0]
[null,null,null,null,0]
[null,null,null,null,0]
[null,null,null,null,0]
[null,null,null,null,0]
[null,null,null,null,0]
[null,null,null,null,0]
[null,null,null,null,0]
[null,null,null,null,0]
[null,null,null,null,0]
[null,null,null,null,0]
[null,null,null,null,0]
[null,null,null,null,0]
[null,null,null,null,0]
[null,null,null,null,0]
[null,null,null,null,0]
[null,null,null,null,0]
[null,null,null,null,0]
[null,null,null,null,0]
[null,null,null,null,0]
[null,null,null,null,0]
[null,null,null,null,0]
[null,null,null,null,0]
[null,null,null,null,0]
[null,null,null,null,0]
[null,null,null,null,0]
[null,null,null,null,0]
[null,null,null,null,0]
[null,null,null,null,0]
[null,null,null,null,0]
[null,null,null,null,0]
[null,null,null,null,0]
[null,null,null,null,0]
[null,null,null,null,0]
[null,null,null,null,0]
[null,null,null,null,0]
[null,null,null,null,{"$f":"ABS(D3789-C3789)","v":0}]
[null,null,null,null,0]
[null,null,null,null,0]
[null,null,null,null,0]
[null,null,null,null,0]
[null,null,null,null,0]
[null,null,null,null,0]
[null,null,null,null,0]
[null,null,null,null,0]
[null,null,null,null,0]
[null,null,null,null,0]
[null,null,null,null,0]
[null,null,null,null,0]
[null,null,null,null,0]
[null,null,null,null,0]
[null,null,null,null,0]
[null,null,null,null,0]
[null,null,null,null,0]
[null,null,null,null,0]
[null,null,null,null,0]
[null,null,null,null,0]
[null,null,null,null,0]
[null,null,null,null,0]
[null,null,null,null,0]
[null,null,null,null,0]
[null,null,null,null,0]
[null,null,null,null,0]
[null,null,null,null,0]
[null,null,null,null,0]
[null,null,null,null,0]
[null,null,null,null,0]
[null,null,null,null,0]
[null,null,null,null,0]
[null,null,null,null,0]
[null,null,null,null,0]
[null,null,null,null,0]
[null,null,null,null,0]
[null,null,null,null,0]
[null,null,null,null,0]
[null,null,null,null,0]
[null,null,null,null,0]
[null,null,null,null,0]
[null,null,null,null,0]
[null,null,null,null,0]
[null,null,null,null,0]
[null,null,null,null,0]
[null,null,null,null,0]
[null,null,null,null,0]
[null,null,null,null,0]
[null,null,null,null,0]
[null,null,null,null,0]
[null,null,null,null,0]
[null,null,null,null,0]
[null,null,null,null,0]
[null,null,null,null,0]
[null,null,null,null,0]
[null,null,null,null,0]
[null,null,null,null,0]
[null,null,null,null,0]
[null,null,null,null,0]
[null,null,null,null,0]
[null,null,null,null,0]
[null,null,null,null,0]
[null,null,null,null,0]
[null,null,null,null,{"$f":"ABS(D3853-C3853)","v":0}]
[null,null,null,null,0]
[null,null,null,null,0]
[null,null,null,null,0]
[null,null,null,null,0]
[null,null,null,null,0]
[null,null,null,null,0]
[null,null,null,null,0]
[null,null,null,null,0]
[null,null,null,null,0]
[null,null,null,null,0]
[null,null,null,null,0]
[null,null,null,null,0]
[null,null,null,null,0]
[null,null,null,null,0]
[null,null,null,null,0]
[null,null,null,null,0]
[null,null,null,null,0]
[null,null,null,null,0]
[null,null,null,null,0]
[null,null,null,null,0]
[null,null,null,null,0]
[null,null,null,null,0]
[null,null,null,null,0]
[null,null,null,null,0]
[null,null,null,null,0]
[null,null,null,null,0]
[null,null,null,null,0]
[null,null,null,null,0]
[null,null,null,null,0]
[null,null,null,null,0]
[null,null,null,null,0]
[null,null,null,null,0]
[null,null,null,null,0]
[null,null,null,null,0]
[null,null,null,null,0]
[null,null,null,null,0]
[null,null,null,null,0]
[null,null,null,null,0]
[null,null,null,null,0]
[null,null,null,null,0]
[null,null,null,null,0]
[null,null,null,null,0]
[null,null,null,null,0]
[null,null,null,null,0]
[null,null,null,null,0]
[null,null,null,null,0]
[null,null,null,null,0]
[null,null,null,null,0]
[null,null,null,null,0]
[null,null,null,null,0]
[null,null,null,null,0]
[null,null,null,null,0]
[null,null,null,null,0]
[null,null,null,null,0]
[null,null,null,null,0]
[null,null,null,null,0]
[null,null,null,null,0]
[null,null,null,null,0]
[null,null,null,null,0]
[null,null,null,null,0]
[null,null,null,null,0]
[null,null,null,null,0]
[null,null,null,null,0]
[null,null,null,null,{"$f":"ABS(D3917-C3917)","v":0}]
[null,null,null,null,0]
[null,null,null,null,0]
[null,null,null,null,0]
[null,null,null,null,0]
[null,null,null,null,0]
[null,null,null,null,0]
[null,null,null,null,0]
[null,null,null,null,0]
[null,null,null,null,0]
[null,null,null,null,0]
[null,null,null,null,0]
[null,null,null,null,0]
[null,null,null,null,0]
[null,null,null,null,0]
[null,null,null,null,0]
[null,null,null,null,0]
[null,null,null,null,0]
[null,null,null,null,0]
[null,null,null,null,0]
[null,null,null,null,0]
[null,null,null,null,0]
[null,null,null,null,0]
[null,null,null,null,0]
[null,null,null,null,0]
[null,null,null,null,0]
[null,null,null,null,0]
[null,null,null,null,0]
[null,null,null,null,0]
[null,null,null,null,0]
[null,null,null,null,0]
[null,null,null,null,0]
[null,null,null,null,0]
[null,null,null,null,0]
[null,null,null,null,0]
[null,null,null,null,0]
[null,null,null,null,0]
[null,null,null,null,0]
[null,null,null,null,0]
[null,null,null,null,0]
[null,null,null,null,0]
[null,null,null,null,0]
[null,null,null,null,0]
[null,null,null,null,0]
[null,null,null,null,0]
[null,null,null,null,0]
[null,null,null,null,0]
[null,null,null,null,0]
[null,null,null,null,0]
[null,null,null,null,0]
[null,null,null,null,0]
[null,null,null,null,0]
[null,null,null,null,0]
[null,null,null,null,0]
[null,null,null,null,0]
[null,null,null,null,0]
[null,null,null,null,0]
[null,null,null,null,0]
[null,null,null,null,0]
[null,null,null,null,0]
[null,null,null,null,0]
[null,null,null,null,0]
[null,null,null,null,0]
[null,null,null,null,0]
[null,null,null,null,{"$f":"ABS(D3981-C3981)","v":0}]
[null,null,null,null,0]
[null,null,null,null,0]
[null,null,null,null,0]
[null,null,null,null,0]
[null,null,null,null,0]
[null,null,null,null,0]
[null,null,null,null,0]
[null,null,null,null,0]
[null,null,null,null,0]
[null,null,null,null,0]
[null,null,null,null,0]
[null,null,null,null,0]
[null,null,null,null,0]
[null,null,null,null,0]
[null,null,null,null,0]
[null,null,null,null,0]
[null,null,null,null,0]
[null,null,null,null,0]
[null,null,null,null,0]
[null,null,null,null,0]
[null,null,null,null,0]
[null,null,null,null,0]
[null,null,null,null,0]
[null,null,null,null,0]
[null,null,null,null,0]
[null,null,null,null,0]
[null,null,null,null,0]
[null,null,null,null,0]
[null,null,null,null,0]
[null,null,null,null,0]
[null,null,null,null,0]
[null,null,null,null,0]
[null,null,null,null,0]
[null,null,null,null,0]
[null,null,null,null,0]
[null,null,null,null,0]
[null,null,null,null,0]
[null,null,null,null,0]
[null,null,null,null,0]
[null,null,null,null,0]
[null,null,null,null,0]
[null,null,null,null,0]
[null,null,null,null,0]
[null,null,null,null,0]
[null,null,null,null,0]
[null,null,null,null,0]
[null,null,null,null,0]
[null,null,null,null,0]
[null,null,null,null,0]
[null,null,null,null,0]
[null,null,null,null,0]
[null,null,null,null,0]
[null,null,null,null,0]
[null,null,null,null,0]
[null,null,null,null,0]
[null,null,null,null,0]
[null,null,null,null,0]
[null,null,null,null,0]
[null,null,null,null,0]
[null,null,null,null,0]
[null,null,null,null,0]
[null,null,null,null,0]
[null,null,null,null,0]
[null,null,null,null,{"$f":"ABS(D4045-C4045)","v":0}]
[null,null,null,null,0]
[null,null,null,null,0]
[null,null,null,null,0]
[null,null,null,null,0]
[null,null,null,null,0]
[null,null,null,null,0]
[null,null,null,null,0]
[null,null,null,null,0]
[null,null,null,null,0]
[null,null,null,null,0]
[null,null,null,null,0]
[null,null,null,null,0]
[null,null,null,null,0]
[null,null,null,null,0]
[null,null,null,null,0]
[null,null,null,null,0]
[null,null,null,null,0]
[null,null,null,null,0]
[null,null,null,null,0]
[null,null,null,null,0]
[null,null,null,null,0]
[null,null,null,null,0]
[null,null,null,null,0]
[null,null,null,null,0]
[null,null,null,null,0]
[null,null,null,null,0]
[null,null,null,null,0]
[null,null,null,null,0]
[null,null,null,null,0]
[null,null,null,null,0]
[null,null,null,null,0]
[null,null,null,null,0]
[null,null,null,null,0]
[null,null,null,null,0]
[null,null,null,null,0]
[null,null,null,null,0]
[null,null,null,null,0]
[null,null,null,null,0]
[null,null,null,null,0]
[null,null,null,null,0]
[null,null,null,null,0]
[null,null,null,null,0]
[null,null,null,null,0]
[null,null,null,null,0]
[null,null,null,null,0]
[null,null,null,null,0]
[null,null,null,null,0]
[null,null,null,null,0]
[null,null,null,null,0]
[null,null,null,null,0]
[null,null,null,null,0]
[null,null,null,null,0]
[null,null,null,null,0]
[null,null,null,null,0]
[null,null,null,null,0]
[null,null,null,null,0]
[null,null,null,null,0]
[null,null,null,null,0]
[null,null,null,null,0]
[null,null,null,null,0]
[null,null,null,null,0]
[null,null,null,null,0]
[null,null,null,null,0]
[null,null,null,null,{"$f":"ABS(D4109-C4109)","v":0}]
[null,null,null,null,0]
[null,null,null,null,0]
[null,null,null,null,0]
[null,null,null,null,0]
[null,null,null,null,0]
[null,null,null,null,0]
[null,null,null,null,0]
[null,null,null,null,0]
[null,null,null,null,0]
[null,null,null,null,0]
[null,null,null,null,0]
[null,null,null,null,0]
[null,null,null,null,0]
[null,null,null,null,0]
[null,null,null,null,0]
[null,null,null,null,0]
[null,null,null,null,0]
[null,null,null,null,0]
[null,null,null,null,0]
[null,null,null,null,0]
[null,null,null,null,0]
[null,null,null,null,0]
[null,null,null,null,0]
[null,null,null,null,0]
[null,null,null,null,0]
[null,null,null,null,0]
[null,null,null,null,0]
[null,null,null,null,0]
[null,null,null,null,0]
[null,null,null,null,0]
[null,null,null,null,0]
[null,null,null,null,0]
[null,null,null,null,0]
[null,null,null,null,0]
[null,null,null,null,0]
[null,null,null,null,0]
[null,null,null,null,0]
[null,null,null,null,0]
[null,null,null,null,0]
[null,null,null,null,0]
[null,null,null,null,0]
[null,null,null,null,0]
[null,null,null,null,0]
[null,null,null,null,0]
[null,null,null,null,0]
[null,null,null,null,0]
[null,null,null,null,0]
[null,null,null,null,0]
[null,null,null,null,0]
[null,null,null,null,0]
[null,null,null,null,0]
[null,null,null,null,0]
[null,null,null,null,0]
[null,null,null,null,0]
[null,null,null,null,0]
[null,null,null,null,0]
[null,null,null,null,0]
[null,null,null,null,0]
[null,null,null,null,0]
[null,null,null,null,0]
[null,null,null,null,0]
[null,null,null,null,0]
[null,null,null,null,0]
[null,null,null,null,{"$f":"ABS(D4173-C4173)","v":0}]
[null,null,null,null,0]
[null,null,null,null,0]
[null,null,null,null,0]
[null,null,null,null,0]
[null,null,null,null,0]
[null,null,null,null,0]
[null,null,null,null,0]
[null,null,null,null,0]
[null,null,null,null,0]
[null,null,null,null,0]
[null,null,null,null,0]
[null,null,null,null,0]
[null,null,null,null,0]
[null,null,null,null,0]
[null,null,null,null,0]
[null,null,null,null,0]
[null,null,null,null,0]
[null,null,null,null,0]
[null,null,null,null,0]
[null,null,null,null,0]
[null,null,null,null,0]
[null,null,null,null,0]
[null,null,null,null,0]
[null,null,null,null,0]
[null,null,null,null,0]
[null,null,null,null,0]
[null,null,null,null,0]
[null,null,null,null,0]
[null,null,null,null,0]
[null,null,null,null,0]
[null,null,null,null,0]
[null,null,null,null,0]
[null,null,null,null,0]
[null,null,null,null,0]
[null,null,null,null,0]
[null,null,null,null,0]
[null,null,null,null,0]
[null,null,null,null,0]
[null,null,null,null,0]
[null,null,null,null,0]
[null,null,null,null,0]
[null,null,null,null,0]
[null,null,null,null,0]
[null,null,null,null,0]
[null,null,null,null,0]
[null,null,null,null,0]
[null,null,null,null,0]
[null,null,null,null,0]
[null,null,null,null,0]
[null,null,null,null,0]
[null,null,null,null,0]
[null,null,null,null,0]
[null,null,null,null,0]
[null,null,null,null,0]
[null,null,null,null,0]
[null,null,null,null,0]
[null,null,null,null,0]
[null,null,null,null,0]
[null,null,null,null,0]
[null,null,null,null,0]
[null,null,null,null,0]
[null,null,null,null,0]
[null,null,null,null,0]
[null,null,null,null,{"$f":"ABS(D4237-C4237)","v":0}]
[null,null,null,null,0]
[null,null,null,null,0]
[null,null,null,null,0]
[null,null,null,null,0]
[null,null,null,null,0]
[null,null,null,null,0]
[null,null,null,null,0]
[null,null,null,null,0]
[null,null,null,null,0]
[null,null,null,null,0]
[null,null,null,null,0]
[null,null,null,null,0]
[null,null,null,null,0]
[null,null,null,null,0]
[null,null,null,null,0]
[null,null,null,null,0]
[null,null,null,null,0]
[null,null,null,null,0]
[null,null,null,null,0]
[null,null,null,null,0]
[null,null,null,null,0]
[null,null,null,null,0]
[null,null,null,null,0]
[null,null,null,null,0]
[null,null,null,null,0]
[null,null,null,null,0]
[null,null,null,null,0]
[null,null,null,null,0]
[null,null,null,null,0]
[null,null,null,null,0]
[null,null,null,null,0]
[null,null,null,null,0]
[null,null,null,null,0]
[null,null,null,null,0]
[null,null,null,null,0]
[null,null,null,null,0]
[null,null,null,null,0]
[null,null,null,null,0]
[null,null,null,null,0]
[null,null,null,null,0]
[null,null,null,null,0]
[null,null,null,null,0]
[null,null,null,null,0]
[null,null,null,null,0]
[null,null,null,null,0]
[null,null,null,null,0]
[null,null,null,null,0]
[null,null,null,null,0]
[null,null,null,null,0]
[null,null,null,null,0]
[null,null,null,null,0]
[null,null,null,null,0]
[null,null,null,null,0]
[null,null,null,null,0]
[null,null,null,null,0]
[null,null,null,null,0]
[null,null,null,null,0]
[null,null,null,null,0]
[null,null,null,null,0]
[null,null,null,null,0]
[null,null,null,null,0]
[null,null,null,null,0]
[null,null,null,null,0]
[null,null,null,null,{"$f":"ABS(D4301-C4301)","v":0}]
[null,null,null,null,0]
[null,null,null,null,0]
[null,null,null,null,0]
[null,null,null,null,0]
[null,null,null,null,0]
[null,null,null,null,0]
[null,null,null,null,0]
[null,null,null,null,0]
[null,null,null,null,0]
[null,null,null,null,0]
[null,null,null,null,0]
[null,null,null,null,0]
[null,null,null,null,0]
[null,null,null,null,0]
[null,null,null,null,0]
[null,null,null,null,0]
[null,null,null,null,0]
[null,null,null,null,0]
[null,null,null,null,0]
[null,null,null,null,0]
[null,null,null,null,0]
[null,null,null,null,0]
[null,null,null,null,0]
[null,null,null,null,0]
[null,null,null,null,0]
[null,null,null,null,0]
[null,null,null,null,0]
[null,null,null,null,0]
[null,null,null,null,0]
[null,null,null,null,0]
[null,null,null,null,0]
[null,null,null,null,0]
[null,null,null,null,0]
[null,null,null,null,0]
[null,null,null,null,0]
[null,null,null,null,0]
[null,null,null,null,0]
[null,null,null,null,0]
[null,null,null,null,0]
[null,null,null,null,0]
[null,null,null,null,0]
[null,null,null,null,0]
[null,null,null,null,0]
[null,null,null,null,0]
[null,null,null,null,0]
[null,null,null,null,0]
[null,null,null,null,0]
[null,null,null,null,0]
[null,null,null,null,0]
[null,null,null,null,0]
[null,null,null,null,0]
[null,null,null,null,0]
[null,null,null,null,0]
[null,null,null,null,0]
[null,null,null,null,0]
[null,null,null,null,0]
[null,null,null,null,0]
[null,null,null,null,0]
[null,null,null,null,0]
[null,null,null,null,0]
[null,null,null,null,0]
[null,null,null,null,0]
[null,null,null,null,0]
[null,null,null,null,{"$f":"ABS(D4365-C4365)","v":0}]
[null,null,null,null,0]
[null,null,null,null,0]
[null,null,null,null,0]
[null,null,null,null,0]
[null,null,null,null,0]
[null,null,null,null,0]
[null,null,null,null,0]
[null,null,null,null,0]
[null,null,null,null,0]
[null,null,null,null,0]
[null,null,null,null,0]
[null,null,null,null,0]
[null,null,null,null,0]
[null,null,null,null,0]
[null,null,null,null,0]
[null,null,null,null,0]
[null,null,null,null,0]
[null,null,null,null,0]
[null,null,null,null,0]
[null,null,null,null,0]
[null,null,null,null,0]
[null,null,null,null,0]
[null,null,null,null,0]
[null,null,null,null,0]
[null,null,null,null,0]
[null,null,null,null,0]
[null,null,null,null,0]
[null,null,null,null,0]
[null,null,null,null,0]
[null,null,null,null,0]
[null,null,null,null,0]
[null,null,null,null,0]
[null,null,null,null,0]
[null,null,null,null,0]
[null,null,null,null,0]
[null,null,null,null,0]
[null,null,null,null,0]
[null,null,null,null,0]
[null,null,null,null,0]
[null,null,null,null,0]
[null,null,null,null,0]
[null,null,null,null,0]
[null,null,null,null,0]
[null,null,null,null,0]
[null,null,null,null,0]
[null,null,null,null,0]
[null,null,null,null,0]
[null,null,null,null,0]
[null,null,null,null,0]
[null,null,null,null,0]
[null,null,null,null,0]
[null,null,null,null,0]
[null,null,null,null,0]
[null,null,null,null,0]
[null,null,null,null,0]
[null,null,null,null,0]
[null,null,null,null,0]
[null,null,null,null,0]
[null,null,null,null,0]
[null,null,null,null,0]
[null,null,null,null,0]
[null,null,null,null,0]
[null,null,null,null,0]
[null,null,null,null,{"$f":"ABS(D4429-C4429)","v":0}]
[null,null,null,null,0]
[null,null,null,null,0]
[null,null,null,null,0]
[null,null,null,null,0]
[null,null,null,null,0]
[null,null,null,null,0]
[null,null,null,null,0]
[null,null,null,null,0]
[null,null,null,null,0]
[null,null,null,null,0]
[null,null,null,null,0]
[null,null,null,null,0]
[null,null,null,null,0]
[null,null,null,null,0]
[null,null,null,null,0]
[null,null,null,null,0]
[null,null,null,null,0]
[null,null,null,null,0]
[null,null,null,null,0]
[null,null,null,null,0]
[null,null,null,null,0]
[null,null,null,null,0]
[null,null,null,null,0]
[null,null,null,null,0]
[null,null,null,null,0]
[null,null,null,null,0]
[null,null,null,null,0]
[null,null,null,null,0]
[null,null,null,null,0]
[null,null,null,null,0]
[null,null,null,null,0]
[null,null,null,null,0]
[null,null,null,null,0]
[null,null,null,null,0]
[null,null,null,null,0]
[null,null,null,null,0]
[null,null,null,null,0]
[null,null,null,null,0]
[null,null,null,null,0]
[null,null,null,null,0]
[null,null,null,null,0]
[null,null,null,null,0]
[null,null,null,null,0]
[null,null,null,null,0]
[null,null,null,null,0]
[null,null,null,null,0]
[null,null,null,null,0]
[null,null,null,null,0]
[null,null,null,null,0]
[null,null,null,null,0]
[null,null,null,null,0]
[null,null,null,null,0]
[null,null,null,null,0]
[null,null,null,null,0]
[null,null,null,null,0]
[null,null,null,null,0]
[null,null,null,null,0]
[null,null,null,null,0]
[null,null,null,null,0]
[null,null,null,null,0]
[null,null,null,null,0]
[null,null,null,null,0]
[null,null,null,null,0]
[null,null,null,null,{"$f":"ABS(D4493-C4493)","v":0}]
[null,null,null,null,0]
[null,null,null,null,0]
[null,null,null,null,0]
[null,null,null,null,0]
[null,null,null,null,0]
[null,null,null,null,0]
[null,null,null,null,0]
[null,null,null,null,0]
[null,null,null,null,0]
[null,null,null,null,0]
[null,null,null,null,0]
[null,null,null,null,0]
[null,null,null,null,0]
[null,null,null,null,0]
[null,null,null,null,0]
[null,null,null,null,0]
[null,null,null,null,0]
[null,null,null,null,0]
[null,null,null,null,0]
[null,null,null,null,0]
[null,null,null,null,0]
[null,null,null,null,0]
[null,null,null,null,0]
[null,null,null,null,0]
[null,null,null,null,0]
[null,null,null,null,0]
[null,null,null,null,0]
[null,null,null,null,0]
[null,null,null,null,0]
[null,null,null,null,0]
[null,null,null,null,0]
[null,null,null,null,0]
[null,null,null,null,0]
[null,null,null,null,0]
[null,null,null,null,0]
[null,null,null,null,0]
[null,null,null,null,0]
[null,null,null,null,0]
[null,null,null,null,0]
[null,null,null,null,0]
[null,null,null,null,0]
[null,null,null,null,0]
[null,null,null,null,0]
[null,null,null,null,0]
[null,null,null,null,0]
[null,null,null,null,0]
[null,null,null,null,0]
[null,null,null,null,0]
[null,null,null,null,0]
[null,null,null,null,0]
[null,null,null,null,0]
[null,null,null,null,0]
[null,null,null,null,0]
[null,null,null,null,0]
[null,null,null,null,0]
[null,null,null,null,0]
[null,null,null,null,0]
[null,null,null,null,0]
[null,null,null,null,0]
[null,null,null,null,0]
[null,null,null,null,0]
[null,null,null,null,0]
[null,null,null,null,0]
[null,null,null,null,{"$f":"ABS(D4557-C4557)","v":0}]
[null,null,null,null,0]
[null,null,null,null,0]
[null,null,null,null,0]
[null,null,null,null,0]
[null,null,null,null,0]
[null,null,null,null,0]
[null,null,null,null,0]
[null,null,null,null,0]
[null,null,null,null,0]
[null,null,null,null,0]
[null,null,null,null,0]
[null,null,null,null,0]
[null,null,null,null,0]
[null,null,null,null,0]
[null,null,null,null,0]
[null,null,null,null,0]
[null,null,null,null,0]
[null,null,null,null,0]
[null,null,null,null,0]
[null,null,null,null,0]
[null,null,null,null,0]
[null,null,null,null,0]
[null,null,null,null,0]
[null,null,null,null,0]
[null,null,null,null,0]
[null,null,null,null,0]
[null,null,null,null,0]
[null,null,null,null,0]
[null,null,null,null,0]
[null,null,null,null,0]
[null,null,null,null,0]
[null,null,null,null,0]
[null,null,null,null,0]
[null,null,null,null,0]
[null,null,null,null,0]
[null,null,null,null,0]
[null,null,null,null,0]
[null,null,null,null,0]
[null,null,null,null,0]
[null,null,null,null,0]
[null,null,null,null,0]
[null,null,null,null,0]
[null,null,null,null,0]
[null,null,null,null,0]
[null,null,null,null,0]
[null,null,null,null,0]
[null,null,null,null,0]
[null,null,null,null,0]
[null,null,null,null,0]
[null,null,null,null,0]
[null,null,null,null,0]
[null,null,null,null,0]
[null,null,null,null,0]
[null,null,null,null,0]
[null,null,null,null,0]
[null,null,null,null,0]
[null,null,null,null,0]
[null,null,null,null,0]
[null,null,null,null,0]
[null,null,null,null,0]
[null,null,null,null,0]
[null,null,null,null,0]
[null,null,null,null,0]
[null,null,null,null,{"$f":"ABS(D4621-C4621)","v":0}]
[null,null,null,null,0]
[null,null,null,null,0]
[null,null,null,null,0]
[null,null,null,null,0]
[null,null,null,null,0]
[null,null,null,null,0]
[null,null,null,null,0]
[null,null,null,null,0]
[null,null,null,null,0]
[null,null,null,null,0]
[null,null,null,null,0]
[null,null,null,null,0]
[null,null,null,null,0]
[null,null,null,null,0]
[null,null,null,null,0]
[null,null,null,null,0]
[null,null,null,null,0]
[null,null,null,null,0]
[null,null,null,null,0]
[null,null,null,null,0]
[null,null,null,null,0]
[null,null,null,null,0]
[null,null,null,null,0]
[null,null,null,null,0]
[null,null,null,null,0]
[null,null,null,null,0]
[null,null,null,null,0]
[null,null,null,null,0]
[null,null,null,null,0]
[null,null,null,null,0]
[null,null,null,null,0]
[null,null,null,null,0]
[null,null,null,null,0]
[null,null,null,null,0]
[null,null,null,null,0]
[null,null,null,null,0]
[null,null,null,null,0]
[null,null,null,null,0]
[null,null,null,null,0]
[null,null,null,null,0]
[null,null,null,null,0]
[null,null,null,null,0]
[null,null,null,null,0]
[null,null,null,null,0]
[null,null,null,null,0]
[null,null,null,null,0]
[null,null,null,null,0]
[null,null,null,null,0]
[null,null,null,null,0]
[null,null,null,null,0]
[null,null,null,null,0]
[null,null,null,null,0]
[null,null,null,null,0]
[null,null,null,null,0]
[null,null,null,null,0]
[null,null,null,null,0]
[null,null,null,null,0]
[null,null,null,null,0]
[null,null,null,null,0]
[null,null,null,null,0]
[null,null,null,null,0]
[null,null,null,null,0]
[null,null,null,null,0]
[null,null,null,null,{"$f":"ABS(D4685-C4685)","v":0}]
[null,null,null,null,0]
[null,null,null,null,0]
[null,null,null,null,0]
[null,null,null,null,0]
[null,null,null,null,0]
[null,null,null,null,0]
[null,null,null,null,0]
[null,null,null,null,0]
[null,null,null,null,0]
[null,null,null,null,0]
[null,null,null,null,0]
[null,null,null,null,0]
[null,null,null,null,0]
[null,null,null,null,0]
[null,null,null,null,0]
[null,null,null,null,0]
[null,null,null,null,0]
[null,null,null,null,0]
[null,null,null,null,0]
[null,null,null,null,0]
[null,null,null,null,0]
[null,null,null,null,0]
[null,null,null,null,0]
[null,null,null,null,0]
[null,null,null,null,0]
[null,null,null,null,0]
[null,null,null,null,0]
[null,null,null,null,0]
[null,null,null,null,0]
[null,null,null,null,0]
[null,null,null,null,0]
[null,null,null,null,0]
[null,null,null,null,0]
[null,null,null,null,0]
[null,null,null,null,0]
[null,null,null,null,0]
[null,null,null,null,0]
[null,null,null,null,0]
[null,null,null,null,0]
[null,null,null,null,0]
[null,null,null,null,0]
[null,null,null,null,0]
[null,null,null,null,0]
[null,null,null,null,0]
[null,null,null,null,0]
[null,null,null,null,0]
[null,null,null,null,0]
[null,null,null,null,0]
[null,null,null,null,0]
[null,null,null,null,0]
[null,null,null,null,0]
[null,null,null,null,0]
[null,null,null,null,0]
[null,null,null,null,0]
[null,null,null,null,0]
[null,null,null,null,0]
[null,null,null,null,0]
[null,null,null,null,0]
[null,null,null,null,0]
[null,null,null,null,0]
[null,null,null,null,0]
[null,null,null,null,0]
[null,null,null,null,0]
[null,null,null,null,{"$f":"ABS(D4749-C4749)","v":0}]
[null,null,null,null,0]
[null,null,null,null,0]
[null,null,null,null,0]
[null,null,null,null,0]
[null,null,null,null,0]
[null,null,null,null,0]
[null,null,null,null,0]
[null,null,null,null,0]
[null,null,null,null,0]
[null,null,null,null,0]
[null,null,null,null,0]
[null,null,null,null,0]
[null,null,null,null,0]
[null,null,null,null,0]
[null,null,null,null,0]
[null,null,null,null,0]
[null,null,null,null,0]
[null,null,null,null,0]
[null,null,null,null,0]
[null,null,null,null,0]
[null,null,null,null,0]
[null,null,null,null,0]
[null,null,null,null,0]
[null,null,null,null,0]
[null,null,null,null,0]
[null,null,null,null,0]
[null,null,null,null,0]
[null,null,null,null,0]
[null,null,null,null,0]
[null,null,null,null,0]
[null,null,null,null,0]
[null,null,null,null,0]
[null,null,null,null,0]
[null,null,null,null,0]
[null,null,null,null,0]
[null,null,null,null,0]
[null,null,null,null,0]
[null,null,null,null,0]
[null,null,null,null,0]
[null,null,null,null,0]
[null,null,null,null,0]
[null,null,null,null,0]
[null,null,null,null,0]
[null,null,null,null,0]
[null,null,null,null,0]
[null,null,null,null,0]
[null,null,null,null,0]
[null,null,null,null,0]
[null,null,null,null,0]
[null,null,null,null,0]
[null,null,null,null,0]
[null,null,null,null,0]
[null,null,null,null,0]
[null,null,null,null,0]
[null,null,null,null,0]
[null,null,null,null,0]
[null,null,null,null,0]
[null,null,null,null,0]
[null,null,null,null,0]
[null,null,null,null,0]
[null,null,null,null,0]
[null,null,null,null,0]
[null,null,null,null,0]
[null,null,null,null,{"$f":"ABS(D4813-C4813)","v":0}]
[null,null,null,null,0]
[null,null,null,null,0]
[null,null,null,null,0]
[null,null,null,null,0]
[null,null,null,null,0]
[null,null,null,null,0]
[null,null,null,null,0]
[null,null,null,null,0]
[null,null,null,null,0]
[null,null,null,null,0]
[null,null,null,null,0]
[null,null,null,null,0]
[null,null,null,null,0]
[null,null,null,null,0]
[null,null,null,null,0]
[null,null,null,null,0]
[null,null,null,null,0]
[null,null,null,null,0]
[null,null,null,null,0]
[null,null,null,null,0]
[null,null,null,null,0]
[null,null,null,null,0]
[null,null,null,null,0]
[null,null,null,null,0]
[null,null,null,null,0]
[null,null,null,null,0]
[null,null,null,null,0]
[null,null,null,null,0]
[null,null,null,null,0]
[null,null,null,null,0]
[null,null,null,null,0]
[null,null,null,null,0]
[null,null,null,null,0]
[null,null,null,null,0]
[null,null,null,null,0]
[null,null,null,null,0]
[null,null,null,null,0]
[null,null,null,null,0]
[null,null,null,null,0]
[null,null,null,null,0]
[null,null,null,null,0]
[null,null,null,null,0]
[null,null,null,null,0]
[null,null,null,null,0]
[null,null,null,null,0]
[null,null,null,null,0]
[null,null,null,null,0]
[null,null,null,null,0]
[null,null,null,null,0]
[null,null,null,null,0]
[null,null,null,null,0]
[null,null,null,null,0]
[null,null,null,null,0]
[null,null,null,null,0]
[null,null,null,null,0]
[null,null,null,null,0]
[null,null,null,null,0]
[null,null,null,null,0]
[null,null,null,null,0]
[null,null,null,null,0]
[null,null,null,null,0]
[null,null,null,null,0]
[null,null,null,null,0]
[null,null,null,null,{"$f":"ABS(D4877-C4877)","v":0}]
[null,null,null,null,0]
[null,null,null,null,0]
[null,null,null,null,0]
[null,null,null,null,0]
[null,null,null,null,0]
[null,null,null,null,0]
[null,null,null,null,0]
[null,null,null,null,0]
[null,null,null,null,0]
[null,null,null,null,0]
[null,null,null,null,0]
[null,null,null,null,0]
[null,null,null,null,0]
[null,null,null,null,0]
[null,null,null,null,0]
[null,null,null,null,0]
[null,null,null,null,0]
[null,null,null,null,0]
[null,null,null,null,0]
[null,null,null,null,0]
[null,null,null,null,0]
[null,null,null,null,0]
[null,null,null,null,0]
[null,null,null,null,0]
[null,null,null,null,0]
[null,null,null,null,0]
[null,null,null,null,0]
[null,null,null,null,0]
[null,null,null,null,0]
[null,null,null,null,0]
[null,null,null,null,0]
[null,null,null,null,0]
[null,null,null,null,0]
[null,null,null,null,0]
[null,null,null,null,0]
[null,null,null,null,0]
[null,null,null,null,0]
[null,null,null,null,0]
[null,null,null,null,0]
[null,null,null,null,0]
[null,null,null,null,0]
[null,null,null,null,0]
[null,null,null,null,0]
[null,null,null,null,0]
[null,null,null,null,0]
[null,null,null,null,0]
[null,null,null,null,0]
[null,null,null,null,0]
[null,null,null,null,0]
[null,null,null,null,0]
[null,null,null,null,0]
[null,null,null,null,0]
[null,null,null,null,0]
[null,null,null,null,0]
[null,null,null,null,0]
[null,null,null,null,0]
[null,null,null,null,0]
[null,null,null,null,0]
[null,null,null,null,0]
[null,null,null,null,0]
[null,null,null,null,0]
[null,null,null,null,0]
[null,null,null,null,0]
[null,null,null,null,{"$f":"ABS(D4941-C4941)","v":0}]
[null,null,null,null,0]
[null,null,null,null,0]
[null,null,null,null,0]
[null,null,null,null,0]
[null,null,null,null,0]
[null,null,null,null,0]
[null,null,null,null,0]
[null,null,null,null,0]
[null,null,null,null,0]
[null,null,null,null,0]
[null,null,null,null,0]
[null,null,null,null,0]
[null,null,null,null,0]
[null,null,null,null,0]
[null,null,null,null,0]
[null,null,null,null,0]
[null,null,null,null,0]
[null,null,null,null,0]
[null,null,null,null,0]
[null,null,null,null,0]
[null,null,null,null,0]
[null,null,null,null,0]
[null,null,null,null,0]
[null,null,null,null,0]
[null,null,null,null,0]
[null,null,null,null,0]
[null,null,null,null,0]
[null,null,null,null,0]
[null,null,null,null,0]
[null,null,null,null,0]
[null,null,null,null,0]
[null,null,null,null,0]
[null,null,null,null,0]
[null,null,null,null,0]
[null,null,null,null,0]
[null,null,null,null,0]
[null,null,null,null,0]
[null,null,null,null,0]
[null,null,null,null,0]
[null,null,null,null,0]
[null,null,null,null,0]
[null,null,null,null,0]
[null,null,null,null,0]
[null,null,null,null,0]
[null,null,null,null,0]
[null,null,null,null,0]
[null,null,null,null,0]
[null,null,null,null,0]
[null,null,null,null,0]
[null,null,null,null,0]
[null,null,null,null,0]
[null,null,null,null,0]
[null,null,null,null,0]
[null,null,null,null,0]
[null,null,null,null,0]
[null,null,null,null,0]
[null,null,null,null,0]
[null,null,null,null,0]
[null,null,null,null,0]
[null,null,null,null,0]
[null,null,null,null,0]
[null,null,null,null,0]
[null,null,null,null,0]
[null,null,null,null,{"$f":"ABS(D5005-C5005)","v":0}]
[null,null,null,null,0]
[null,null,null,null,0]
[null,null,null,null,0]
[null,null,null,null,0]
[null,null,null,null,0]
[null,null,null,null,0]
[null,null,null,null,0]
[null,null,null,null,0]
[null,null,null,null,0]
[null,null,null,null,0]
[null,null,null,null,0]
[null,null,null,null,0]
[null,null,null,null,0]
[null,null,null,null,0]
[null,null,null,null,0]
[null,null,null,null,0]
[null,null,null,null,0]
[null,null,null,null,0]
[null,null,null,null,0]
[null,null,null,null,0]
[null,null,null,null,0]
[null,null,null,null,0]
[null,null,null,null,0]
[null,null,null,null,0]
[null,null,null,null,0]
[null,null,null,null,0]
[null,null,null,null,0]
[null,null,null,null,0]
[null,null,null,null,0]
[null,null,null,null,0]
[null,null,null,null,0]
[null,null,null,null,0]
[null,null,null,null,0]
[null,null,null,null,0]
[null,null,null,null,0]
[null,null,null,null,0]
[null,null,null,null,0]
[null,null,null,null,0]
[null,null,null,null,0]
[null,null,null,null,0]
[null,null,null,null,0]
[null,null,null,null,0]
[null,null,null,null,0]
[null,null,null,null,0]
[null,null,null,null,0]
[null,null,null,null,0]
[null,null,null,null,0]
[null,null,null,null,0]
[null,null,null,null,0]
[null,null,null,null,0]
[null,null,null,null,0]
[null,null,null,null,0]
[null,null,null,null,0]
[null,null,null,null,0]
[null,null,null,null,0]
[null,null,null,null,0]
[null,null,null,null,0]
[null,null,null,null,0]
[null,null,null,null,0]
[null,null,null,null,0]
[null,null,null,null,0]
[null,null,null,null,0]
[null,null,null,null,0]
[null,null,null,null,{"$f":"ABS(D5069-C5069)","v":0}]
[null,null,null,null,0]
[null,null,null,null,0]
[null,null,null,null,0]
[null,null,null,null,0]
[null,null,null,null,0]
[null,null,null,null,0]
[null,null,null,null,0]
[null,null,null,null,0]
[null,null,null,null,0]
[null,null,null,null,0]
[null,null,null,null,0]
[null,null,null,null,0]
[null,null,null,null,0]
[null,null,null,null,0]
[null,null,null,null,0]
[null,null,null,null,0]
[null,null,null,null,0]
[null,null,null,null,0]
[null,null,null,null,0]
[null,null,null,null,0]
[null,null,null,null,0]
[null,null,null,null,0]
[null,null,null,null,0]
[null,null,null,null,0]
[null,null,null,null,0]
[null,null,null,null,0]
[null,null,null,null,0]
[null,null,null,null,0]
[null,null,null,null,0]
[null,null,null,null,0]
[null,null,null,null,0]
[null,null,null,null,0]
[null,null,null,null,0]
[null,null,null,null,0]
[null,null,null,null,0]
[null,null,null,null,0]
[null,null,null,null,0]
[null,null,null,null,0]
[null,null,null,null,0]
[null,null,null,null,0]
[null,null,null,null,0]
[null,null,null,null,0]
[null,null,null,null,0]
[null,null,null,null,0]
[null,null,null,null,0]
[null,null,null,null,0]
[null,null,null,null,0]
[null,null,null,null,0]
[null,null,null,null,0]
[null,null,null,null,0]
[null,null,null,null,0]
[null,null,null,null,0]
[null,null,null,null,0]
[null,null,null,null,0]
[null,null,null,null,0]
[null,null,null,null,0]
[null,null,null,null,0]
[null,null,null,null,0]
[null,null,null,null,0]
[null,null,null,null,0]
[null,null,null,null,0]
[null,null,null,null,0]
[null,null,null,null,0]
[null,null,null,null,{"$f":"ABS(D5133-C5133)","v":0}]
[null,null,null,null,0]
[null,null,null,null,0]
[null,null,null,null,0]
[null,null,null,null,0]
[null,null,null,null,0]
[null,null,null,null,0]
[null,null,null,null,0]
[null,null,null,null,0]
[null,null,null,null,0]
[null,null,null,null,0]
[null,null,null,null,0]
[null,null,null,null,0]
[null,null,null,null,0]
[null,null,null,null,0]
[null,null,null,null,0]
[null,null,null,null,0]
[null,null,null,null,0]
[null,null,null,null,0]
[null,null,null,null,0]
[null,null,null,null,0]
[null,null,null,null,0]
[null,null,null,null,0]
[null,null,null,null,0]
[null,null,null,null,0]
[null,null,null,null,0]
[null,null,null,null,0]
[null,null,null,null,0]
[null,null,null,null,0]
[null,null,null,null,0]
[null,null,null,null,0]
[null,null,null,null,0]
[null,null,null,null,0]
[null,null,null,null,0]
[null,null,null,null,0]
[null,null,null,null,0]
[null,null,null,null,0]
[null,null,null,null,0]
[null,null,null,null,0]
[null,null,null,null,0]
[null,null,null,null,0]
[null,null,null,null,0]
[null,null,null,null,0]
[null,null,null,null,0]
[null,null,null,null,0]
[null,null,null,null,0]
[null,null,null,null,0]
[null,null,null,null,0]
[null,null,null,null,0]
[null,null,null,null,0]
[null,null,null,null,0]
[null,null,null,null,0]
[null,null,null,null,0]
[null,null,null,null,0]
[null,null,null,null,0]
[null,null,null,null,0]
[null,null,null,null,0]
[null,null,null,null,0]
[null,null,null,null,0]
[null,null,null,null,0]
[null,null,null,null,0]
[null,null,null,null,0]
[null,null,null,null,0]
[null,null,null,null,0]
[null,null,null,null,{"$f":"ABS(D5197-C5197)","v":0}]
[null,null,null,null,0]
[null,null,null,null,0]
[null,null,null,null,0]
[null,null,null,null,0]
[null,null,null,null,0]
[null,null,null,null,0]
[null,null,null,null,0]
[null,null,null,null,0]
[null,null,null,null,0]
[null,null,null,null,0]
[null,null,null,null,0]
[null,null,null,null,0]
[null,null,null,null,0]
[null,null,null,null,0]
[null,null,null,null,0]
[null,null,null,null,0]
[null,null,null,null,0]
[null,null,null,null,0]
[null,null,null,null,0]
[null,null,null,null,0]
[null,null,null,null,0]
[null,null,null,null,0]
[null,null,null,null,0]
[null,null,null,null,0]
[null,null,null,null,0]
[null,null,null,null,0]
[null,null,null,null,0]
[null,null,null,null,0]
[null,null,null,null,0]
[null,null,null,null,0]
[null,null,null,null,0]
[null,null,null,null,0]
[null,null,null,null,0]
[null,null,null,null,0]
[null,null,null,null,0]
[null,null,null,null,0]
[null,null,null,null,0]
[null,null,null,null,0]
[null,null,null,null,0]
[null,null,null,null,0]
[null,null,null,null,0]
[null,null,null,null,0]
[null,null,null,null,0]
[null,null,null,null,0]
[null,null,null,null,0]
[null,null,null,null,0]
[null,null,null,null,0]
[null,null,null,null,0]
[null,null,null,null,0]
[null,null,null,null,0]
[null,null,null,null,0]
[null,null,null,null,0]
[null,null,null,null,0]
[null,null,null,null,0]
[null,null,null,null,0]
[null,null,null,null,0]
[null,null,null,null,0]
[null,null,null,null,0]
[null,null,null,null,0]
[null,null,null,null,0]
[null,null,null,null,0]
[null,null,null,null,0]
[null,null,null,null,0]
[null,null,null,null,{"$f":"ABS(D5261-C5261)","v":0}]
[null,null,null,null,0]
[null,null,null,null,0]
[null,null,null,null,0]
[null,null,null,null,0]
[null,null,null,null,0]
[null,null,null,null,0]
[null,null,null,null,0]
[null,null,null,null,0]
[null,null,null,null,0]
[null,null,null,null,0]
[null,null,null,null,0]
[null,null,null,null,0]
[null,null,null,null,0]
[null,null,null,null,0]
[null,null,null,null,0]
[null,null,null,null,0]
[null,null,null,null,0]
[null,null,null,null,0]
[null,null,null,null,0]
[null,null,null,null,0]
[null,null,null,null,0]
[null,null,null,null,0]
[null,null,null,null,0]
[null,null,null,null,0]
[null,null,null,null,0]
[null,null,null,null,0]
[null,null,null,null,0]
[null,null,null,null,0]
[null,null,null,null,0]
[null,null,null,null,0]
[null,null,null,null,0]
[null,null,null,null,0]
[null,null,null,null,0]
[null,null,null,null,0]
[null,null,null,null,0]
[null,null,null,null,0]
[null,null,null,null,0]
[null,null,null,null,0]
[null,null,null,null,0]
[null,null,null,null,0]
[null,null,null,null,0]
[null,null,null,null,0]
[null,null,null,null,0]
[null,null,null,null,0]
[null,null,null,null,0]
[null,null,null,null,0]
[null,null,null,null,0]
[null,null,null,null,0]
[null,null,null,null,0]
[null,null,null,null,0]
[null,null,null,null,0]
[null,null,null,null,0]
[null,null,null,null,0]
[null,null,null,null,0]
[null,null,null,null,0]
[null,null,null,null,0]
[null,null,null,null,0]
[null,null,null,null,0]
[null,null,null,null,0]
[null,null,null,null,0]
[null,null,null,null,0]
[null,null,null,null,0]
[null,null,null,null,0]
[null,null,null,null,{"$f":"ABS(D5325-C5325)","v":0}]
[null,null,null,null,0]
[null,null,null,null,0]
[null,null,null,null,0]
[null,null,null,null,0]
[null,null,null,null,0]
[null,null,null,null,0]
[null,null,null,null,0]
[null,null,null,null,0]
[null,null,null,null,0]
[null,null,null,null,0]
[null,null,null,null,0]
[null,null,null,null,0]
[null,null,null,null,0]
[null,null,null,null,0]
[null,null,null,null,0]
[null,null,null,null,0]
[null,null,null,null,0]
[null,null,null,null,0]
[null,null,null,null,0]
[null,null,null,null,0]
[null,null,null,null,0]
[null,null,null,null,0]
[null,null,null,null,0]
[null,null,null,null,0]
[null,null,null,null,0]
[null,null,null,null,0]
[null,null,null,null,0]
[null,null,null,null,0]
[null,null,null,null,0]
[null,null,null,null,0]
[null,null,null,null,0]
[null,null,null,null,0]
[null,null,null,null,0]
[null,null,null,null,0]
[null,null,null,null,0]
[null,null,null,null,0]
[null,null,null,null,0]
[null,null,null,null,0]
[null,null,null,null,0]
[null,null,null,null,0]
[null,null,null,null,0]
[null,null,null,null,0]
[null,null,null,null,0]
[null,null,null,null,0]
[null,null,null,null,0]
[null,null,null,null,0]
[null,null,null,null,0]
[null,null,null,null,0]
[null,null,null,null,0]
[null,null,null,null,0]
[null,null,null,null,0]
[null,null,null,null,0]
[null,null,null,null,0]
[null,null,null,null,0]
[null,null,null,null,0]
[null,null,null,null,0]
[null,null,null,null,0]
[null,null,null,null,0]
[null,null,null,null,0]
[null,null,null,null,0]
[null,null,null,null,0]
[null,null,null,null,0]
[null,null,null,null,0]
[null,null,null,null,{"$f":"ABS(D5389-C5389)","v":0}]
[null,null,null,null,0]
[null,null,null,null,0]
[null,null,null,null,0]
[null,null,null,null,0]
[null,null,null,null,0]
[null,null,null,null,0]
[null,null,null,null,0]
[null,null,null,null,0]
[null,null,null,null,0]
[null,null,null,null,0]
[null,null,null,null,0]
[null,null,null,null,0]
[null,null,null,null,0]
[null,null,null,null,0]
[null,null,null,null,0]
[null,null,null,null,0]
[null,null,null,null,0]
[null,null,null,null,0]
[null,null,null,null,0]
[null,null,null,null,0]
[null,null,null,null,0]
[null,null,null,null,0]
[null,null,null,null,0]
[null,null,null,null,0]
[null,null,null,null,0]
[null,null,null,null,0]
[null,null,null,null,0]
[null,null,null,null,0]
[null,null,null,null,0]
[null,null,null,null,0]
[null,null,null,null,0]
[null,null,null,null,0]
[null,null,null,null,0]
[null,null,null,null,0]
[null,null,null,null,0]
[null,null,null,null,0]
[null,null,null,null,0]
[null,null,null,null,0]
[null,null,null,null,0]
[null,null,null,null,0]
[null,null,null,null,0]
[null,null,null,null,0]
[null,null,null,null,0]
[null,null,null,null,0]
[null,null,null,null,0]
[null,null,null,null,0]
[null,null,null,null,0]
[null,null,null,null,0]
[null,null,null,null,0]
[null,null,null,null,0]
[null,null,null,null,0]
[null,null,null,null,0]
[null,null,null,null,0]
[null,null,null,null,0]
[null,null,null,null,0]
[null,null,null,null,0]
[null,null,null,null,0]
[null,null,null,null,0]
[null,null,null,null,0]
[null,null,null,null,0]
[null,null,null,null,0]
[null,null,null,null,0]
[null,null,null,null,0]
[null,null,null,null,{"$f":"ABS(D5453-C5453)","v":0}]
[null,null,null,null,0]
[null,null,null,null,0]
[null,null,null,null,0]
[null,null,null,null,0]
[null,null,null,null,0]
[null,null,null,null,0]
[null,null,null,null,0]
[null,null,null,null,0]
[null,null,null,null,0]
[null,null,null,null,0]
[null,null,null,null,0]
[null,null,null,null,0]
[null,null,null,null,0]
[null,null,null,null,0]
[null,null,null,null,0]
[null,null,null,null,0]
[null,null,null,null,0]
[null,null,null,null,0]
[null,null,null,null,0]
[null,null,null,null,0]
[null,null,null,null,0]
[null,null,null,null,0]
[null,null,null,null,0]
[null,null,null,null,0]
[null,null,null,null,0]
[null,null,null,null,0]
[null,null,null,null,0]
[null,null,null,null,0]
[null,null,null,null,0]
[null,null,null,null,0]
[null,null,null,null,0]
[null,null,null,null,0]
[null,null,null,null,0]
[null,null,null,null,0]
[null,null,null,null,0]
[null,null,null,null,0]
[null,null,null,null,0]
[null,null,null,null,0]
[null,null,null,null,0]
[null,null,null,null,0]
[null,null,null,null,0]
[null,null,null,null,0]
[null,null,null,null,0]
[null,null,null,null,0]
[null,null,null,null,0]
[null,null,null,null,0]
[null,null,null,null,0]
[null,null,null,null,0]
[null,null,null,null,0]
[null,null,null,null,0]
[null,null,null,null,0]
[null,null,null,null,0]
[null,null,null,null,0]
[null,null,null,null,0]
[null,null,null,null,0]
[null,null,null,null,0]
[null,null,null,null,0]
[null,null,null,null,0]
[null,null,null,null,0]
[null,null,null,null,0]
[null,null,null,null,0]
[null,null,null,null,0]
[null,null,null,null,0]
[null,null,null,null,{"$f":"ABS(D5517-C5517)","v":0}]
[null,null,null,null,0]
[null,null,null,null,0]
[null,null,null,null,0]
[null,null,null,null,0]
[null,null,null,null,0]
[null,null,null,null,0]
[null,null,null,null,0]
[null,null,null,null,0]
[null,null,null,null,0]
[null,null,null,null,0]
[null,null,null,null,0]
[null,null,null,null,0]
[null,null,null,null,0]
[null,null,null,null,0]
[null,null,null,null,0]
[null,null,null,null,0]
[null,null,null,null,0]
[null,null,null,null,0]
[null,null,null,null,0]
[null,null,null,null,0]
[null,null,null,null,0]
[null,null,null,null,0]
[null,null,null,null,0]
[null,null,null,null,0]
[null,null,null,null,0]
[null,null,null,null,0]
[null,null,null,null,0]
[null,null,null,null,0]
[null,null,null,null,0]
[null,null,null,null,0]
[null,null,null,null,0]
[null,null,null,null,0]
[null,null,null,null,0]
[null,null,null,null,0]
[null,null,null,null,0]
[null,null,null,null,0]
[null,null,null,null,0]
[null,null,null,null,0]
[null,null,null,null,0]
[null,null,null,null,0]
[null,null,null,null,0]
[null,null,null,null,0]
[null,null,null,null,0]
[null,null,null,null,0]
[null,null,null,null,0]
[null,null,null,null,0]
[null,null,null,null,0]
[null,null,null,null,0]
[null,null,null,null,0]
[null,null,null,null,0]
[null,null,null,null,0]
[null,null,null,null,0]
[null,null,null,null,0]
[null,null,null,null,0]
[null,null,null,null,0]
[null,null,null,null,0]
[null,null,null,null,0]
[null,null,null,null,0]
[null,null,null,null,0]
[null,null,null,null,0]
[null,null,null,null,0]
[null,null,null,null,0]
[null,null,null,null,0]
[null,null,null,null,{"$f":"ABS(D5581-C5581)","v":0}]
[null,null,null,null,0]
[null,null,null,null,0]
[null,null,null,null,0]
[null,null,null,null,0]
[null,null,null,null,0]
[null,null,null,null,0]
[null,null,null,null,0]
[null,null,null,null,0]
[null,null,null,null,0]
[null,null,null,null,0]
[null,null,null,null,0]
[null,null,null,null,0]
[null,null,null,null,0]
[null,null,null,null,0]
[null,null,null,null,0]
[null,null,null,null,0]
[null,null,null,null,0]
[null,null,null,null,0]
[null,null,null,null,0]
[null,null,null,null,0]
[null,null,null,null,0]
[null,null,null,null,0]
[null,null,null,null,0]
[null,null,null,null,0]
[null,null,null,null,0]
[null,null,null,null,0]
[null,null,null,null,0]
[null,null,null,null,0]
[null,null,null,null,0]
[null,null,null,null,0]
[null,null,null,null,0]
[null,null,null,null,0]
[null,null,null,null,0]
[null,null,null,null,0]
[null,null,null,null,0]
[null,null,null,null,0]
[null,null,null,null,0]
[null,null,null,null,0]
[null,null,null,null,0]
[null,null,null,null,0]
[null,null,null,null,0]
[null,null,null,null,0]
[null,null,null,null,0]
[null,null,null,null,0]
[null,null,null,null,0]
[null,null,null,null,0]
[null,null,null,null,0]
[null,null,null,null,0]
[null,null,null,null,0]
[null,null,null,null,0]
[null,null,null,null,0]
[null,null,null,null,0]
[null,null,null,null,0]
[null,null,null,null,0]
[null,null,null,null,0]
[null,null,null,null,0]
[null,null,null,null,0]
[null,null,null,null,0]
[null,null,null,null,0]
[null,null,null,null,0]
[null,null,null,null,0]
[null,null,null,null,0]
[null,null,null,null,0]
[null,null,null,null,{"$f":"ABS(D5645-C5645)","v":0}]
[null,null,null,null,0]
[null,null,null,null,0]
[null,null,null,null,0]
[null,null,null,null,0]
[null,null,null,null,0]
[null,null,null,null,0]
[null,null,null,null,0]
[null,null,null,null,0]
[null,null,null,null,0]
[null,null,null,null,0]
[null,null,null,null,0]
[null,null,null,null,0]
[null,null,null,null,0]
[null,null,null,null,0]
[null,null,null,null,0]
[null,null,null,null,0]
[null,null,null,null,0]
[null,null,null,null,0]
[null,null,null,null,0]
[null,null,null,null,0]
[null,null,null,null,0]
[null,null,null,null,0]
[null,null,null,null,0]
[null,null,null,null,0]
[null,null,null,null,0]
[null,null,null,null,0]
[null,null,null,null,0]
[null,null,null,null,0]
[null,null,null,null,0]
[null,null,null,null,0]
[null,null,null,null,0]
[null,null,null,null,0]
[null,null,null,null,0]
[null,null,null,null,0]
[null,null,null,null,0]
[null,null,null,null,0]
[null,null,null,null,0]
[null,null,null,null,0]
[null,null,null,null,0]
[null,null,null,null,0]
[null,null,null,null,0]
[null,null,null,null,0]
[null,null,null,null,0]
[null,null,null,null,0]
[null,null,null,null,0]
[null,null,null,null,0]
[null,null,null,null,0]
[null,null,null,null,0]
[null,null,null,null,0]
[null,null,null,null,0]
[null,null,null,null,0]
[null,null,null,null,0]
[null,null,null,null,0]
[null,null,null,null,0]
[null,null,null,null,0]
[null,null,null,null,0]
[null,null,null,null,0]
[null,null,null,null,0]
[null,null,null,null,0]
[null,null,null,null,0]
[null,null,null,null,0]
[null,null,null,null,0]
[null,null,null,null,0]
[null,null,null,null,{"$f":"ABS(D5709-C5709)","v":0}]
[null,null,null,null,0]
[null,null,null,null,0]
[null,null,null,null,0]
[null,null,null,null,0]
[null,null,null,null,0]
[null,null,null,null,0]
[null,null,null,null,0]
[null,null,null,null,0]
[null,null,null,null,0]
[null,null,null,null,0]
[null,null,null,null,0]
[null,null,null,null,0]
[null,null,null,null,0]
[null,null,null,null,0]
[null,null,null,null,0]
[null,null,null,null,0]
[null,null,null,null,0]
[null,null,null,null,0]
[null,null,null,null,0]
[null,null,null,null,0]
[null,null,null,null,0]
[null,null,null,null,0]
[null,null,null,null,0]
[null,null,null,null,0]
[null,null,null,null,0]
[null,null,null,null,0]
[null,null,null,null,0]
[null,null,null,null,0]
[null,null,null,null,0]
[null,null,null,null,0]
[null,null,null,null,0]
[null,null,null,null,0]
[null,null,null,null,0]
[null,null,null,null,0]
[null,null,null,null,0]
[null,null,null,null,0]
[null,null,null,null,0]
[null,null,null,null,0]
[null,null,null,null,0]
[null,null,null,null,0]
[null,null,null,null,0]
[null,null,null,null,0]
[null,null,null,null,0]
[null,null,null,null,0]
[null,null,null,null,0]
[null,null,null,null,0]
[null,null,null,null,0]
[null,null,null,null,0]
[null,null,null,null,0]
[null,null,null,null,0]
[null,null,null,null,0]
[null,null,null,null,0]
[null,null,null,null,0]
[null,null,null,null,0]
[null,null,null,null,0]
[null,null,null,null,0]
[null,null,null,null,0]
[null,null,null,null,0]
[null,null,null,null,0]
[null,null,null,null,0]
[null,null,null,null,0]
[null,null,null,null,0]
[null,null,null,null,0]
[null,null,null,null,{"$f":"ABS(D5773-C5773)","v":0}]
[null,null,null,null,0]
[null,null,null,null,0]
[null,null,null,null,0]
[null,null,null,null,0]
[null,null,null,null,0]
[null,null,null,null,0]
[null,null,null,null,0]
[null,null,null,null,0]
[null,null,null,null,0]
[null,null,null,null,0]
[null,null,null,null,0]
[null,null,null,null,0]
[null,null,null,null,0]
[null,null,null,null,0]
[null,null,null,null,0]
[null,null,null,null,0]
[null,null,null,null,0]
[null,null,null,null,0]
[null,null,null,null,0]
[null,null,null,null,0]
[null,null,null,null,0]
[null,null,null,null,0]
[null,null,null,null,0]
[null,null,null,null,0]
[null,null,null,null,0]
[null,null,null,null,0]
[null,null,null,null,0]
[null,null,null,null,0]
[null,null,null,null,0]
[null,null,null,null,0]
[null,null,null,null,0]
[null,null,null,null,0]
[null,null,null,null,0]
[null,null,null,null,0]
[null,null,null,null,0]
[null,null,null,null,0]
[null,null,null,null,0]
[null,null,null,null,0]
[null,null,null,null,0]
[null,null,null,null,0]
[null,null,null,null,0]
[null,null,null,null,0]
[null,null,null,null,0]
[null,null,null,null,0]
[null,null,null,null,0]
[null,null,null,null,0]
[null,null,null,null,0]
[null,null,null,null,0]
[null,null,null,null,0]
[null,null,null,null,0]
[null,null,null,null,0]
[null,null,null,null,0]
[null,null,null,null,0]
[null,null,null,null,0]
[null,null,null,null,0]
[null,null,null,null,0]
[null,null,null,null,0]
[null,null,null,null,0]
[null,null,null,null,0]
[null,null,null,null,0]
[null,null,null,null,0]
[null,null,null,null,0]
[null,null,null,null,0]
[null,null,null,null,{"$f":"ABS(D5837-C5837)","v":0}]
[null,null,null,null,0]
[null,null,null,null,0]
[null,null,null,null,0]
[null,null,null,null,0]
[null,null,null,null,0]
[null,null,null,null,0]
[null,null,null,null,0]
[null,null,null,null,0]
[null,null,null,null,0]
[null,null,null,null,0]
[null,null,null,null,0]
[null,null,null,null,0]
[null,null,null,null,0]
[null,null,null,null,0]
[null,null,null,null,0]
[null,null,null,null,0]
[null,null,null,null,0]
[null,null,null,null,0]
[null,null,null,null,0]
[null,null,null,null,0]
[null,null,null,null,0]
[null,null,null,null,0]
[null,null,null,null,0]
[null,null,null,null,0]
[null,null,null,null,0]
[null,null,null,null,0]
[null,null,null,null,0]
[null,null,null,null,0]
[null,null,null,null,0]
[null,null,null,null,0]
[null,null,null,null,0]
[null,null,null,null,0]
[null,null,null,null,0]
[null,null,null,null,0]
[null,null,null,null,0]
[null,null,null,null,0]
[null,null,null,null,0]
[null,null,null,null,0]
[null,null,null,null,0]
[null,null,null,null,0]
[null,null,null,null,0]
[null,null,null,null,0]
[null,null,null,null,0]
[null,null,null,null,0]
[null,null,null,null,0]
[null,null,null,null,0]
[null,null,null,null,0]
[null,null,null,null,0]
[null,null,null,null,0]
[null,null,null,null,0]
[null,null,null,null,0]
[null,null,null,null,0]
[null,null,null,null,0]
[null,null,null,null,0]
[null,null,null,null,0]
[null,null,null,null,0]
[null,null,null,null,0]
[null,null,null,null,0]
[null,null,null,null,0]
[null,null,null,null,0]
[null,null,null,null,0]
[null,null,null,null,0]
[null,null,null,null,0]
[null,null,null,null,{"$f":"ABS(D5901-C5901)","v":0}]
[null,null,null,null,0]
[null,null,null,null,0]
[null,null,null,null,0]
[null,null,null,null,0]
[null,null,null,null,0]
[null,null,null,null,0]
[null,null,null,null,0]
[null,null,null,null,0]
[null,null,null,null,0]
[null,null,null,null,0]
[null,null,null,null,0]
[null,null,null,null,0]
[null,null,null,null,0]
[null,null,null,null,0]
[null,null,null,null,0]
[null,null,null,null,0]
[null,null,null,null,0]
[null,null,null,null,0]
[null,null,null,null,0]
[null,null,null,null,0]
[null,null,null,null,0]
[null,null,null,null,0]
[null,null,null,null,0]
[null,null,null,null,0]
[null,null,null,null,0]
[null,null,null,null,0]
[null,null,null,null,0]
[null,null,null,null,0]
[null,null,null,null,0]
[null,null,null,null,0]
[null,null,null,null,0]
[null,null,null,null,0]
[null,null,null,null,0]
[null,null,null,null,0]
[null,null,null,null,0]
[null,null,null,null,0]
[null,null,null,null,0]
[null,null,null,null,0]
[null,null,null,null,0]
[null,null,null,null,0]
[null,null,null,null,0]
[null,null,null,null,0]
[null,null,null,null,0]
[null,null,null,null,0]
[null,null,null,null,0]
[null,null,null,null,0]
[null,null,null,null,0]
[null,null,null,null,0]
[null,null,null,null,0]
[null,null,null,null,0]
[null,null,null,null,0]
[null,null,null,null,0]
[null,null,null,null,0]
[null,null,null,null,0]
[null,null,null,null,0]
[null,null,null,null,0]
[null,null,null,null,0]
[null,null,null,null,0]
[null,null,null,null,0]
[null,null,null,null,0]
[null,null,null,null,0]
[null,null,null,null,0]
[null,null,null,null,0]
[null,null,null,null,{"$f":"ABS(D5965-C5965)","v":0}]
[null,null,null,null,0]
[null,null,null,null,0]
[null,null,null,null,0]
[null,null,null,null,0]
[null,null,null,null,0]
[null,null,null,null,0]
[null,null,null,null,0]
[null,null,null,null,0]
[null,null,null,null,0]
[null,null,null,null,0]
[null,null,null,null,0]
[null,null,null,null,0]
[null,null,null,null,0]
[null,null,null,null,0]
[null,null,null,null,0]
[null,null,null,null,0]
[null,null,null,null,0]
[null,null,null,null,0]
[null,null,null,null,0]
[null,null,null,null,0]
[null,null,null,null,0]
[null,null,null,null,0]
[null,null,null,null,0]
[null,null,null,null,0]
[null,null,null,null,0]
[null,null,null,null,0]
[null,null,null,null,0]
[null,null,null,null,0]
[null,null,null,null,0]
[null,null,null,null,0]
[null,null,null,null,0]
[null,null,null,null,0]
[null,null,null,null,0]
[null,null,null,null,0]
[null,null,null,null,0]
[null,null,null,null,0]
[null,null,null,null,0]
[null,null,null,null,0]
[null,null,null,null,0]
[null,null,null,null,0]
[null,null,null,null,0]
[null,null,null,null,0]
[null,null,null,null,0]
[null,null,null,null,0]
[null,null,null,null,0]
[null,null,null,null,0]
[null,null,null,null,0]
[null,null,null,null,0]
[null,null,null,null,0]
[null,null,null,null,0]
[null,null,null,null,0]
[null,null,null,null,0]
[null,null,null,null,0]
[null,null,null,null,0]
[null,null,null,null,0]
[null,null,null,null,0]
[null,null,null,null,0]
[null,null,null,null,0]
[null,null,null,null,0]
[null,null,null,null,0]
[null,null,null,null,0]
[null,null,null,null,0]
[null,null,null,null,0]
[null,null,null,null,{"$f":"ABS(D6029-C6029)","v":0}]
[null,null,null,null,0]
[null,null,null,null,0]
[null,null,null,null,0]
[null,null,null,null,0]
[null,null,null,null,0]
[null,null,null,null,0]
[null,null,null,null,0]
[null,null,null,null,0]
[null,null,null,null,0]
[null,null,null,null,0]
[null,null,null,null,0]
[null,null,null,null,0]
[null,null,null,null,0]
[null,null,null,null,0]
[null,null,null,null,0]
[null,null,null,null,0]
[null,null,null,null,0]
[null,null,null,null,0]
[null,null,null,null,0]
[null,null,null,null,0]
[null,null,null,null,0]
[null,null,null,null,0]
[null,null,null,null,0]
[null,null,null,null,0]
[null,null,null,null,0]
[null,null,null,null,0]
[null,null,null,null,0]
[null,null,null,null,0]
[null,null,null,null,0]
[null,null,null,null,0]
[null,null,null,null,0]
[null,null,null,null,0]
[null,null,null,null,0]
[null,null,null,null,0]
[null,null,null,null,0]
[null,null,null,null,0]
[null,null,null,null,0]
[null,null,null,null,0]
[null,null,null,null,0]
[null,null,null,null,0]
[null,null,null,null,0]
[null,null,null,null,0]
[null,null,null,null,0]
[null,null,null,null,0]
[null,null,null,null,0]
[null,null,null,null,0]
[null,null,null,null,0]
[null,null,null,null,0]
[null,null,null,null,0]
[null,null,null,null,0]
[null,null,null,null,0]
[null,null,null,null,0]
[null,null,null,null,0]
[null,null,null,null,0]
[null,null,null,null,0]
[null,null,null,null,0]
[null,null,null,null,0]
[null,null,null,null,0]
[null,null,null,null,0]
[null,null,null,null,0]
[null,null,null,null,0]
[null,null,null,null,0]
[null,null,null,null,0]
[null,null,null,null,{"$f":"ABS(D6093-C6093)","v":0}]
[null,null,null,null,0]
[null,null,null,null,0]
[null,null,null,null,0]
[null,null,null,null,0]
[null,null,null,null,0]
[null,null,null,null,0]
[null,null,null,null,0]
[null,null,null,null,0]
[null,null,null,null,0]
[null,null,null,null,0]
[null,null,null,null,0]
[null,null,null,null,0]
[null,null,null,null,0]
[null,null,null,null,0]
[null,null,null,null,0]
[null,null,null,null,0]
[null,null,null,null,0]
[null,null,null,null,0]
[null,null,null,null,0]
[null,null,null,null,0]
[null,null,null,null,0]
[null,null,null,null,0]
[null,null,null,null,0]
[null,null,null,null,0]
[null,null,null,null,0]
[null,null,null,null,0]
[null,null,null,null,0]
[null,null,null,null,0]
[null,null,null,null,0]
[null,null,null,null,0]
[null,null,null,null,0]
[null,null,null,null,0]
[null,null,null,null,0]
[null,null,null,null,0]
[null,null,null,null,0]
[null,null,null,null,0]
[null,null,null,null,0]
[null,null,null,null,0]
[null,null,null,null,0]
[null,null,null,null,0]
[null,null,null,null,0]
[null,null,null,null,0]
[null,null,null,null,0]
[null,null,null,null,0]
[null,null,null,null,0]
[null,null,null,null,0]
[null,null,null,null,0]
[null,null,null,null,0]
[null,null,null,null,0]
[null,null,null,null,0]
[null,null,null,null,0]
[null,null,null,null,0]
[null,null,null,null,0]
[null,null,null,null,0]
[null,null,null,null,0]
[null,null,null,null,0]
[null,null,null,null,0]
[null,null,null,null,0]
[null,null,null,null,0]
[null,null,null,null,0]
[null,null,null,null,0]
[null,null,null,null,0]
[null,null,null,null,0]
[null,null,null,null,{"$f":"ABS(D6157-C6157)","v":0}]
[null,null,null,null,0]
[null,null,null,null,0]
[null,null,null,null,0]
[null,null,null,null,0]
[null,null,null,null,0]
[null,null,null,null,0]
[null,null,null,null,0]
[null,null,null,null,0]
[null,null,null,null,0]
[null,null,null,null,0]
[null,null,null,null,0]
[null,null,null,null,0]
[null,null,null,null,0]
[null,null,null,null,0]
[null,null,null,null,0]
[null,null,null,null,0]
[null,null,null,null,0]
[null,null,null,null,0]
[null,null,null,null,0]
[null,null,null,null,0]
[null,null,null,null,0]
[null,null,null,null,0]
[null,null,null,null,0]
[null,null,null,null,0]
[null,null,null,null,0]
[null,null,null,null,0]
[null,null,null,null,0]
[null,null,null,null,0]
[null,null,null,null,0]
[null,null,null,null,0]
[null,null,null,null,0]
[null,null,null,null,0]
[null,null,null,null,0]
[null,null,null,null,0]
[null,null,null,null,0]
[null,null,null,null,0]
[null,null,null,null,0]
[null,null,null,null,0]
[null,null,null,null,0]
[null,null,null,null,0]
[null,null,null,null,0]
[null,null,null,null,0]
[null,null,null,null,0]
[null,null,null,null,0]
[null,null,null,null,0]
[null,null,null,null,0]
[null,null,null,null,0]
[null,null,null,null,0]
[null,null,null,null,0]
[null,null,null,null,0]
[null,null,null,null,0]
[null,null,null,null,0]
[null,null,null,null,0]
[null,null,null,null,0]
[null,null,null,null,0]
[null,null,null,null,0]
[null,null,null,null,0]
[null,null,null,null,0]
[null,null,null,null,0]
[null,null,null,null,0]
[null,null,null,null,0]
[null,null,null,null,0]
[null,null,null,null,0]
[null,null,null,null,{"$f":"ABS(D6221-C6221)","v":0}]
[null,null,null,null,0]
[null,null,null,null,0]
[null,null,null,null,0]
[null,null,null,null,0]
[null,null,null,null,0]
[null,null,null,null,0]
[null,null,null,null,0]
[null,null,null,null,0]
[null,null,null,null,0]
[null,null,null,null,0]
[null,null,null,null,0]
[null,null,null,null,0]
[null,null,null,null,0]
[null,null,null,null,0]
[null,null,null,null,0]
[null,null,null,null,0]
[null,null,null,null,0]
[null,null,null,null,0]
[null,null,null,null,0]
[null,null,null,null,0]
[null,null,null,null,0]
[null,null,null,null,0]
[null,null,null,null,0]
[null,null,null,null,0]
[null,null,null,null,0]
[null,null,null,null,0]
[null,null,null,null,0]
[null,null,null,null,0]
[null,null,null,null,0]
[null,null,null,null,0]
[null,null,null,null,0]
[null,null,null,null,0]
[null,null,null,null,0]
[null,null,null,null,0]
[null,null,null,null,0]
[null,null,null,null,0]
[null,null,null,null,0]
[null,null,null,null,0]
[null,null,null,null,0]
[null,null,null,null,0]
[null,null,null,null,0]
[null,null,null,null,0]
[null,null,null,null,0]
[null,null,null,null,0]
[null,null,null,null,0]
[null,null,null,null,0]
[null,null,null,null,0]
[null,null,null,null,0]
[null,null,null,null,0]
[null,null,null,null,0]
[null,null,null,null,0]
[null,null,null,null,0]
[null,null,null,null,0]
[null,null,null,null,0]
[null,null,null,null,0]
[null,null,null,null,0]
[null,null,null,null,0]
[null,null,null,null,0]
[null,null,null,null,0]
[null,null,null,null,0]
[null,null,null,null,0]
[null,null,null,null,0]
[null,null,null,null,0]
[null,null,null,null,{"$f":"ABS(D6285-C6285)","v":0}]
[null,null,null,null,0]
[null,null,null,null,0]
[null,null,null,null,0]
[null,null,null,null,0]
[null,null,null,null,0]
[null,null,null,null,0]
[null,null,null,null,0]
[null,null,null,null,0]
[null,null,null,null,0]
[null,null,null,null,0]
[null,null,null,null,0]
[null,null,null,null,0]
[null,null,null,null,0]
[null,null,null,null,0]
[null,null,null,null,0]
[null,null,null,null,0]
[null,null,null,null,0]
[null,null,null,null,0]
[null,null,null,null,0]
[null,null,null,null,0]
[null,null,null,null,0]
[null,null,null,null,0]
[null,null,null,null,0]
[null,null,null,null,0]
[null,null,null,null,0]
[null,null,null,null,0]
[null,null,null,null,0]
[null,null,null,null,0]
[null,null,null,null,0]
[null,null,null,null,0]
[null,null,null,null,0]
[null,null,null,null,0]
[null,null,null,null,0]
[null,null,null,null,0]
[null,null,null,null,0]
[null,null,null,null,0]
[null,null,null,null,0]
[null,null,null,null,0]
[null,null,null,null,0]
[null,null,null,null,0]
[null,null,null,null,0]
[null,null,null,null,0]
[null,null,null,null,0]
[null,null,null,null,0]
[null,null,null,null,0]
[null,null,null,null,0]
[null,null,null,null,0]
[null,null,null,null,0]
[null,null,null,null,0]
[null,null,null,null,0]
[null,null,null,null,0]
[null,null,null,null,0]
[null,null,null,null,0]
[null,null,null,null,0]
[null,null,null,null,0]
[null,null,null,null,0]
[null,null,null,null,0]
[null,null,null,null,0]
[null,null,null,null,0]
[null,null,null,null,0]
[null,null,null,null,0]
[null,null,null,null,0]
[null,null,null,null,0]
[null,null,null,null,{"$f":"ABS(D6349-C6349)","v":0}]
[null,null,null,null,0]
[null,null,null,null,0]
[null,null,null,null,0]
[null,null,null,null,0]
[null,null,null,null,0]
[null,null,null,null,0]
[null,null,null,null,0]
[null,null,null,null,0]
[null,null,null,null,0]
[null,null,null,null,0]
[null,null,null,null,0]
[null,null,null,null,0]
[null,null,null,null,0]
[null,null,null,null,0]
[null,null,null,null,0]
[null,null,null,null,0]
[null,null,null,null,0]
[null,null,null,null,0]
[null,null,null,null,0]
[null,null,null,null,0]
[null,null,null,null,0]
[null,null,null,null,0]
[null,null,null,null,0]
[null,null,null,null,0]
[null,null,null,null,0]
[null,null,null,null,0]
[null,null,null,null,0]
[null,null,null,null,0]
[null,null,null,null,0]
[null,null,null,null,0]
[null,null,null,null,0]
[null,null,null,null,0]
[null,null,null,null,0]
[null,null,null,null,0]
[null,null,null,null,0]
[null,null,null,null,0]
[null,null,null,null,0]
[null,null,null,null,0]
[null,null,null,null,0]
[null,null,null,null,0]
[null,null,null,null,0]
[null,null,null,null,0]
[null,null,null,null,0]
[null,null,null,null,0]
[null,null,null,null,0]
[null,null,null,null,0]
[null,null,null,null,0]
[null,null,null,null,0]
[null,null,null,null,0]
[null,null,null,null,0]
[null,null,null,null,0]
[null,null,null,null,0]
[null,null,null,null,0]
[null,null,null,null,0]
[null,null,null,null,0]
[null,null,null,null,0]
[null,null,null,null,0]
[null,null,null,null,0]
[null,null,null,null,0]
[null,null,null,null,0]
[null,null,null,null,0]
[null,null,null,null,0]
[null,null,null,null,0]
[null,null,null,null,{"$f":"ABS(D6413-C6413)","v":0}]
[null,null,null,null,0]
[null,null,null,null,0]
[null,null,null,null,0]
[null,null,null,null,0]
[null,null,null,null,0]
[null,null,null,null,0]
[null,null,null,null,0]
[null,null,null,null,0]
[null,null,null,null,0]
[null,null,null,null,0]
[null,null,null,null,0]
[null,null,null,null,0]
[null,null,null,null,0]
[null,null,null,null,0]
[null,null,null,null,0]
[null,null,null,null,0]
[null,null,null,null,0]
[null,null,null,null,0]
[null,null,null,null,0]
[null,null,null,null,0]
[null,null,null,null,0]
[null,null,null,null,0]
[null,null,null,null,0]
[null,null,null,null,0]
[null,null,null,null,0]
[null,null,null,null,0]
[null,null,null,null,0]
[null,null,null,null,0]
[null,null,null,null,0]
[null,null,null,null,0]
[null,null,null,null,0]
[null,null,null,null,0]
[null,null,null,null,0]
[null,null,null,null,0]
[null,null,null,null,0]
[null,null,null,null,0]
[null,null,null,null,0]
[null,null,null,null,0]
[null,null,null,null,0]
[null,null,null,null,0]
[null,null,null,null,0]
[null,null,null,null,0]
[null,null,null,null,0]
[null,null,null,null,0]
[null,null,null,null,0]
[null,null,null,null,0]
[null,null,null,null,0]
[null,null,null,null,0]
[null,null,null,null,0]
[null,null,null,null,0]
[null,null,null,null,0]
[null,null,null,null,0]
[null,null,null,null,0]
[null,null,null,null,0]
[null,null,null,null,0]
[null,null,null,null,0]
[null,null,null,null,0]
[null,null,null,null,0]
[null,null,null,null,0]
[null,null,null,null,0]
[null,null,null,null,0]
[null,null,null,null,0]
[null,null,null,null,0]
[null,null,null,null,{"$f":"ABS(D6477-C6477)","v":0}]
[null,null,null,null,0]
[null,null,null,null,0]
[null,null,null,null,0]
[null,null,null,null,0]
[null,null,null,null,0]
[null,null,null,null,0]
[null,null,null,null,0]
[null,null,null,null,0]
[null,null,null,null,0]
[null,null,null,null,0]
[null,null,null,null,0]
[null,null,null,null,0]
[null,null,null,null,0]
[null,null,null,null,0]
[null,null,null,null,0]
[null,null,null,null,0]
[null,null,null,null,0]
[null,null,null,null,0]
[null,null,null,null,0]
[null,null,null,null,0]
[null,null,null,null,0]
[null,null,null,null,0]
[null,null,null,null,0]
[null,null,null,null,0]
[null,null,null,null,0]
[null,null,null,null,0]
[null,null,null,null,0]
[null,null,null,null,0]
[null,null,null,null,0]
[null,null,null,null,0]
[null,null,null,null,0]
[null,null,null,null,0]
[null,null,null,null,0]
[null,null,null,null,0]
[null,null,null,null,0]
[null,null,null,null,0]
[null,null,null,null,0]
[null,null,null,null,0]
[null,null,null,null,0]
[null,null,null,null,0]
[null,null,null,null,0]
[null,null,null,null,0]
[null,null,null,null,0]
[null,null,null,null,0]
[null,null,null,null,0]
[null,null,null,null,0]
[null,null,null,null,0]
[null,null,null,null,0]
[null,null,null,null,0]
[null,null,null,null,0]
[null,null,null,null,0]
[null,null,null,null,0]
[null,null,null,null,0]
[null,null,null,null,0]
[null,null,null,null,0]
[null,null,null,null,0]
[null,null,null,null,0]
[null,null,null,null,0]
[null,null,null,null,0]
[null,null,null,null,0]
[null,null,null,null,0]
[null,null,null,null,0]
[null,null,null,null,0]
[null,null,null,null,{"$f":"ABS(D6541-C6541)","v":0}]
[null,null,null,null,0]
[null,null,null,null,0]
[null,null,null,null,0]
[null,null,null,null,0]
[null,null,null,null,0]
[null,null,null,null,0]
[null,null,null,null,0]
[null,null,null,null,0]
[null,null,null,null,0]
[null,null,null,null,0]
[null,null,null,null,0]
[null,null,null,null,0]
[null,null,null,null,0]
[null,null,null,null,0]
[null,null,null,null,0]
[null,null,null,null,0]
[null,null,null,null,0]
[null,null,null,null,0]
[null,null,null,null,0]
[null,null,null,null,0]
[null,null,null,null,0]
[null,null,null,null,0]
[null,null,null,null,0]
[null,null,null,null,0]
[null,null,null,null,0]
[null,null,null,null,0]
[null,null,null,null,0]
[null,null,null,null,0]
[null,null,null,null,0]
[null,null,null,null,0]
[null,null,null,null,0]
[null,null,null,null,0]
[null,null,null,null,0]
[null,null,null,null,0]
[null,null,null,null,0]
[null,null,null,null,0]
[null,null,null,null,0]
[null,null,null,null,0]
[null,null,null,null,0]
[null,null,null,null,0]
[null,null,null,null,0]
[null,null,null,null,0]
[null,null,null,null,0]
[null,null,null,null,0]
[null,null,null,null,0]
[null,null,null,null,0]
[null,null,null,null,0]
[null,null,null,null,0]
[null,null,null,null,0]
[null,null,null,null,0]
[null,null,null,null,0]
[null,null,null,null,0]
[null,null,null,null,0]
[null,null,null,null,0]
[null,null,null,null,0]
[null,null,null,null,0]
[null,null,null,null,0]
[null,null,null,null,0]
[null,null,null,null,0]
[null,null,null,null,0]
[null,null,null,null,0]
[null,null,null,null,0]
[null,null,null,null,0]
[null,null,null,null,{"$f":"ABS(D6605-C6605)","v":0}]
[null,null,null,null,0]
[null,null,null,null,0]
[null,null,null,null,0]
[null,null,null,null,0]
[null,null,null,null,0]
[null,null,null,null,0]
[null,null,null,null,0]
[null,null,null,null,0]
[null,null,null,null,0]
[null,null,null,null,0]
[null,null,null,null,0]
[null,null,null,null,0]
[null,null,null,null,0]
[null,null,null,null,0]
[null,null,null,null,0]
[null,null,null,null,0]
[null,null,null,null,0]
[null,null,null,null,0]
[null,null,null,null,0]
[null,null,null,null,0]
[null,null,null,null,0]
[null,null,null,null,0]
[null,null,null,null,0]
[null,null,null,null,0]
[null,null,null,null,0]
[null,null,null,null,0]
[null,null,null,null,0]
[null,null,null,null,0]
[null,null,null,null,0]
[null,null,null,null,0]
[null,null,null,null,0]
[null,null,null,null,0]
[null,null,null,null,0]
[null,null,null,null,0]
[null,null,null,null,0]
[null,null,null,null,0]
[null,null,null,null,0]
[null,null,null,null,0]
[null,null,null,null,0]
[null,null,null,null,0]
[null,null,null,null,0]
[null,null,null,null,0]
[null,null,null,null,0]
[null,null,null,null,0]
[null,null,null,null,0]
[null,null,null,null,0]
[null,null,null,null,0]
[null,null,null,null,0]
[null,null,null,null,0]
[null,null,null,null,0]
[null,null,null,null,0]
[null,null,null,null,0]
[null,null,null,null,0]
[null,null,null,null,0]
[null,null,null,null,0]
[null,null,null,null,0]
[null,null,null,null,0]
[null,null,null,null,0]
[null,null,null,null,0]
[null,null,null,null,0]
[null,null,null,null,0]
[null,null,null,null,0]
[null,null,null,null,0]
[null,null,null,null,{"$f":"ABS(D6669-C6669)","v":0}]
[null,null,null,null,0]
[null,null,null,null,0]
[null,null,null,null,0]
[null,null,null,null,0]
[null,null,null,null,0]
[null,null,null,null,0]
[null,null,null,null,0]
[null,null,null,null,0]
[null,null,null,null,0]
[null,null,null,null,0]
[null,null,null,null,0]
[null,null,null,null,0]
[null,null,null,null,0]
[null,null,null,null,0]
[null,null,null,null,0]
[null,null,null,null,0]
[null,null,null,null,0]
[null,null,null,null,0]
[null,null,null,null,0]
[null,null,null,null,0]
[null,null,null,null,0]
[null,null,null,null,0]
[null,null,null,null,0]
[null,null,null,null,0]
[null,null,null,null,0]
[null,null,null,null,0]
[null,null,null,null,0]
[null,null,null,null,0]
[null,null,null,null,0]
[null,null,null,null,0]
[null,null,null,null,0]
[null,null,null,null,0]
[null,null,null,null,0]
[null,null,null,null,0]
[null,null,null,null,0]
[null,null,null,null,0]
[null,null,null,null,0]
[null,null,null,null,0]
[null,null,null,null,0]
[null,null,null,null,0]
[null,null,null,null,0]
[null,null,null,null,0]
[null,null,null,null,0]
[null,null,null,null,0]
[null,null,null,null,0]
[null,null,null,null,0]
[null,null,null,null,0]
[null,null,null,null,0]
[null,null,null,null,0]
[null,null,null,null,0]
[null,null,null,null,0]
[null,null,null,null,0]
[null,null,null,null,0]
[null,null,null,null,0]
[null,null,null,null,0]
[null,null,null,null,0]
[null,null,null,null,0]
[null,null,null,null,0]
[null,null,null,null,0]
[null,null,null,null,0]
[null,null,null,null,0]
[null,null,null,null,0]
[null,null,null,null,0]
[null,null,null,null,{"$f":"ABS(D6733-C6733)","v":0}]
[null,null,null,null,0]
[null,null,null,null,0]
[null,null,null,null,0]
[null,null,null,null,0]
[null,null,null,null,0]
[null,null,null,null,0]
[null,null,null,null,0]
[null,null,null,null,0]
[null,null,null,null,0]
[null,null,null,null,0]
[null,null,null,null,0]
[null,null,null,null,0]
[null,null,null,null,0]
[null,null,null,null,0]
[null,null,null,null,0]
[null,null,null,null,0]
[null,null,null,null,0]
[null,null,null,null,0]
[null,null,null,null,0]
[null,null,null,null,0]
[null,null,null,null,0]
[null,null,null,null,0]
[null,null,null,null,0]
[null,null,null,null,0]
[null,null,null,null,0]
[null,null,null,null,0]
[null,null,null,null,0]
[null,null,null,null,0]
[null,null,null,null,0]
[null,null,null,null,0]
[null,null,null,null,0]
[null,null,null,null,0]
[null,null,null,null,0]
[null,null,null,null,0]
[null,null,null,null,0]
[null,null,null,null,0]
[null,null,null,null,0]
[null,null,null,null,0]
[null,null,null,null,0]
[null,null,null,null,0]
[null,null,null,null,0]
[null,null,null,null,0]
[null,null,null,null,0]
[null,null,null,null,0]
[null,null,null,null,0]
[null,null,null,null,0]
[null,null,null,null,0]
[null,null,null,null,0]
[null,null,null,null,0]
[null,null,null,null,0]
[null,null,null,null,0]
[null,null,null,null,0]
[null,null,null,null,0]
[null,null,null,null,0]
[null,null,null,null,0]
[null,null,null,null,0]
[null,null,null,null,0]
[null,null,null,null,0]
[null,null,null,null,0]
[null,null,null,null,0]
[null,null,null,null,0]
[null,null,null,null,0]
[null,null,null,null,0]
[null,null,null,null,{"$f":"ABS(D6797-C6797)","v":0}]
[null,null,null,null,0]
[null,null,null,null,0]
[null,null,null,null,0]
[null,null,null,null,0]
[null,null,null,null,0]
[null,null,null,null,0]
[null,null,null,null,0]
[null,null,null,null,0]
[null,null,null,null,0]
[null,null,null,null,0]
[null,null,null,null,0]
[null,null,null,null,0]
[null,null,null,null,0]
[null,null,null,null,0]
[null,null,null,null,0]
[null,null,null,null,0]
[null,null,null,null,0]
[null,null,null,null,0]
[null,null,null,null,0]
[null,null,null,null,0]
[null,null,null,null,0]
[null,null,null,null,0]
[null,null,null,null,0]
[null,null,null,null,0]
[null,null,null,null,0]
[null,null,null,null,0]
[null,null,null,null,0]
[null,null,null,null,0]
[null,null,null,null,0]
[null,null,null,null,0]
[null,null,null,null,0]
[null,null,null,null,0]
[null,null,null,null,0]
[null,null,null,null,0]
[null,null,null,null,0]
[null,null,null,null,0]
[null,null,null,null,0]
[null,null,null,null,0]
[null,null,null,null,0]
[null,null,null,null,0]
[null,null,null,null,0]
[null,null,null,null,0]
[null,null,null,null,0]
[null,null,null,null,0]
[null,null,null,null,0]
[null,null,null,null,0]
[null,null,null,null,0]
[null,null,null,null,0]
[null,null,null,null,0]
[null,null,null,null,0]
[null,null,null,null,0]
[null,null,null,null,0]
[null,null,null,null,0]
[null,null,null,null,0]
[null,null,null,null,0]
[null,null,null,null,0]
[null,null,null,null,0]
[null,null,null,null,0]
[null,null,null,null,0]
[null,null,null,null,0]
[null,null,null,null,0]
[null,null,null,null,0]
[null,null,null,null,0]
[null,null,null,null,{"$f":"ABS(D6861-C6861)","v":0}]
[null,null,null,null,0]
[null,null,null,null,0]
[null,null,null,null,0]
[null,null,null,null,0]
[null,null,null,null,0]
[null,null,null,null,0]
[null,null,null,null,0]
[null,null,null,null,0]
[null,null,null,null,0]
[null,null,null,null,0]
[null,null,null,null,0]
[null,null,null,null,0]
[null,null,null,null,0]
[null,null,null,null,0]
[null,null,null,null,0]
[null,null,null,null,0]
[null,null,null,null,0]
[null,null,null,null,0]
[null,null,null,null,0]
[null,null,null,null,0]
[null,null,null,null,0]
[null,null,null,null,0]
[null,null,null,null,0]
[null,null,null,null,0]
[null,null,null,null,0]
[null,null,null,null,0]
[null,null,null,null,0]
[null,null,null,null,0]
[null,null,null,null,0]
[null,null,null,null,0]
[null,null,null,null,0]
[null,null,null,null,0]
[null,null,null,null,0]
[null,null,null,null,0]
[null,null,null,null,0]
[null,null,null,null,0]
[null,null,null,null,0]
[null,null,null,null,0]
[null,null,null,null,0]
[null,null,null,null,0]
[null,null,null,null,0]
[null,null,null,null,0]
[null,null,null,null,0]
[null,null,null,null,0]
[null,null,null,null,0]
[null,null,null,null,0]
[null,null,null,null,0]
[null,null,null,null,0]
[null,null,null,null,0]
[null,null,null,null,0]
[null,null,null,null,0]
[null,null,null,null,0]
[null,null,null,null,0]
[null,null,null,null,0]
[null,null,null,null,0]
[null,null,null,null,0]
[null,null,null,null,0]
[null,null,null,null,0]
[null,null,null,null,0]
[null,null,null,null,0]
[null,null,null,null,0]
[null,null,null,null,0]
[null,null,null,null,0]
[null,null,null,null,{"$f":"ABS(D6925-C6925)","v":0}]
[null,null,null,null,0]
[null,null,null,null,0]
[null,null,null,null,0]
[null,null,null,null,0]
[null,null,null,null,0]
[null,null,null,null,0]
[null,null,null,null,0]
[null,null,null,null,0]
[null,null,null,null,0]
[null,null,null,null,0]
[null,null,null,null,0]
[null,null,null,null,0]
[null,null,null,null,0]
[null,null,null,null,0]
[null,null,null,null,0]
[null,null,null,null,0]
[null,null,null,null,0]
[null,null,null,null,0]
[null,null,null,null,0]
[null,null,null,null,0]
[null,null,null,null,0]
[null,null,null,null,0]
[null,null,null,null,0]
[null,null,null,null,0]
[null,null,null,null,0]
[null,null,null,null,0]
[null,null,null,null,0]
[null,null,null,null,0]
[null,null,null,null,0]
[null,null,null,null,0]
[null,null,null,null,0]
[null,null,null,null,0]
[null,null,null,null,0]
[null,null,null,null,0]
[null,null,null,null,0]
[null,null,null,null,0]
[null,null,null,null,0]
[null,null,null,null,0]
[null,null,null,null,0]
[null,null,null,null,0]
[null,null,null,null,0]
[null,null,null,null,0]
[null,null,null,null,0]
[null,null,null,null,0]
[null,null,null,null,0]
[null,null,null,null,0]
[null,null,null,null,0]
[null,null,null,null,0]
[null,null,null,null,0]
[null,null,null,null,0]
[null,null,null,null,0]
[null,null,null,null,0]
[null,null,null,null,0]
[null,null,null,null,0]
[null,null,null,null,0]
[null,null,null,null,0]
[null,null,null,null,0]
[null,null,null,null,0]
[null,null,null,null,0]
[null,null,null,null,0]
[null,null,null,null,0]
[null,null,null,null,0]
[null,null,null,null,0]
[null,null,null,null,{"$f":"ABS(D6989-C6989)","v":0}]
[null,null,null,null,0]
[null,null,null,null,0]
[null,null,null,null,0]
[null,null,null,null,0]
[null,null,null,null,0]
[null,null,null,null,0]
[null,null,null,null,0]
[null,null,null,null,0]
[null,null,null,null,0]
[null,null,null,null,0]
[null,null,null,null,0]
[null,null,null,null,0]
[null,null,null,null,0]
[null,null,null,null,0]
[null,null,null,null,0]
[null,null,null,null,0]
[null,null,null,null,0]
[null,null,null,null,0]
[null,null,null,null,0]
[null,null,null,null,0]
[null,null,null,null,0]
[null,null,null,null,0]
[null,null,null,null,0]
[null,null,null,null,0]
[null,null,null,null,0]
[null,null,null,null,0]
[null,null,null,null,0]
[null,null,null,null,0]
[null,null,null,null,0]
[null,null,null,null,0]
[null,null,null,null,0]
[null,null,null,null,0]
[null,null,null,null,0]
[null,null,null,null,0]
[null,null,null,null,0]
[null,null,null,null,0]
[null,null,null,null,0]
[null,null,null,null,0]
[null,null,null,null,0]
[null,null,null,null,0]
[null,null,null,null,0]
[null,null,null,null,0]
[null,null,null,null,0]
[null,null,null,null,0]
[null,null,null,null,0]
[null,null,null,null,0]
[null,null,null,null,0]
[null,null,null,null,0]
[null,null,null,null,0]
[null,null,null,null,0]
[null,null,null,null,0]
[null,null,null,null,0]
[null,null,null,null,0]
[null,null,null,null,0]
[null,null,null,null,0]
[null,null,null,null,0]
[null,null,null,null,0]
[null,null,null,null,0]
[null,null,null,null,0]
[null,null,null,null,0]
[null,null,null,null,0]
[null,null,null,null,0]
[null,null,null,null,0]
[null,null,null,null,{"$f":"ABS(D7053-C7053)","v":0}]
[null,null,null,null,0]
[null,null,null,null,0]
[null,null,null,null,0]
[null,null,null,null,0]
[null,null,null,null,0]
[null,null,null,null,0]
[null,null,null,null,0]
[null,null,null,null,0]
[null,null,null,null,0]
[null,null,null,null,0]
[null,null,null,null,0]
[null,null,null,null,0]
[null,null,null,null,0]
[null,null,null,null,0]
[null,null,null,null,0]
[null,null,null,null,0]
[null,null,null,null,0]
[null,null,null,null,0]
[null,null,null,null,0]
[null,null,null,null,0]
[null,null,null,null,0]
[null,null,null,null,0]
[null,null,null,null,0]
[null,null,null,null,0]
[null,null,null,null,0]
[null,null,null,null,0]
[null,null,null,null,0]
[null,null,null,null,0]
[null,null,null,null,0]
[null,null,null,null,0]
[null,null,null,null,0]
[null,null,null,null,0]
[null,null,null,null,0]
[null,null,null,null,0]
[null,null,null,null,0]
[null,null,null,null,0]
[null,null,null,null,0]
[null,null,null,null,0]
[null,null,null,null,0]
[null,null,null,null,0]
[null,null,null,null,0]
[null,null,null,null,0]
[null,null,null,null,0]
[null,null,null,null,0]
[null,null,null,null,0]
[null,null,null,null,0]
[null,null,null,null,0]
[null,null,null,null,0]
[null,null,null,null,0]
[null,null,null,null,0]
[null,null,null,null,0]
[null,null,null,null,0]
[null,null,null,null,0]
[null,null,null,null,0]
[null,null,null,null,0]
[null,null,null,null,0]
[null,null,null,null,0]
[null,null,null,null,0]
[null,null,null,null,0]
[null,null,null,null,0]
[null,null,null,null,0]
[null,null,null,null,0]
[null,null,null,null,0]
[null,null,null,null,{"$f":"ABS(D7117-C7117)","v":0}]
[null,null,null,null,0]
[null,null,null,null,0]
[null,null,null,null,0]
[null,null,null,null,0]
[null,null,null,null,0]
[null,null,null,null,0]
[null,null,null,null,0]
[null,null,null,null,0]
[null,null,null,null,0]
[null,null,null,null,0]
[null,null,null,null,0]
[null,null,null,null,0]
[null,null,null,null,0]
[null,null,null,null,0]
[null,null,null,null,0]
[null,null,null,null,0]
[null,null,null,null,0]
[null,null,null,null,0]
[null,null,null,null,0]
[null,null,null,null,0]
[null,null,null,null,0]
[null,null,null,null,0]
[null,null,null,null,0]
[null,null,null,null,0]
[null,null,null,null,0]
[null,null,null,null,0]
[null,null,null,null,0]
[null,null,null,null,0]
[null,null,null,null,0]
[null,null,null,null,0]
[null,null,null,null,0]
[null,null,null,null,0]
[null,null,null,null,0]
[null,null,null,null,0]
[null,null,null,null,0]
[null,null,null,null,0]
[null,null,null,null,0]
[null,null,null,null,0]
[null,null,null,null,0]
[null,null,null,null,0]
[null,null,null,null,0]
[null,null,null,null,0]
[null,null,null,null,0]
[null,null,null,null,0]
[null,null,null,null,0]
[null,null,null,null,0]
[null,null,null,null,0]
[null,null,null,null,0]
[null,null,null,null,0]
[null,null,null,null,0]
[null,null,null,null,0]
[null,null,null,null,0]
[null,null,null,null,0]
[null,null,null,null,0]
[null,null,null,null,0]
[null,null,null,null,0]
[null,null,null,null,0]
[null,null,null,null,0]
[null,null,null,null,0]
[null,null,null,null,0]
[null,null,null,null,0]
[null,null,null,null,0]
[null,null,null,null,0]
[null,null,null,null,{"$f":"ABS(D7181-C7181)","v":0}]
[null,null,null,null,0]
[null,null,null,null,0]
[null,null,null,null,0]
[null,null,null,null,0]
[null,null,null,null,0]
[null,null,null,null,0]
[null,null,null,null,0]
[null,null,null,null,0]
[null,null,null,null,0]
[null,null,null,null,0]
[null,null,null,null,0]
[null,null,null,null,0]
[null,null,null,null,0]
[null,null,null,null,0]
[null,null,null,null,0]
[null,null,null,null,0]
[null,null,null,null,0]
[null,null,null,null,0]
[null,null,null,null,0]
[null,null,null,null,0]
[null,null,null,null,0]
[null,null,null,null,0]
[null,null,null,null,0]
[null,null,null,null,0]
[null,null,null,null,0]
[null,null,null,null,0]
[null,null,null,null,0]
[null,null,null,null,0]
[null,null,null,null,0]
[null,null,null,null,0]
[null,null,null,null,0]
[null,null,null,null,0]
[null,null,null,null,0]
[null,null,null,null,0]
[null,null,null,null,0]
[null,null,null,null,0]
[null,null,null,null,0]
[null,null,null,null,0]
[null,null,null,null,0]
[null,null,null,null,0]
[null,null,null,null,0]
[null,null,null,null,0]
[null,null,null,null,0]
[null,null,null,null,0]
[null,null,null,null,0]
[null,null,null,null,0]
[null,null,null,null,0]
[null,null,null,null,0]
[null,null,null,null,0]
[null,null,null,null,0]
[null,null,null,null,0]
[null,null,null,null,0]
[null,null,null,null,0]
[null,null,null,null,0]
[null,null,null,null,0]
[null,null,null,null,0]
[null,null,null,null,0]
[null,null,null,null,0]
[null,null,null,null,0]
[null,null,null,null,0]
[null,null,null,null,0]
[null,null,null,null,0]
[null,null,null,null,0]
[null,null,null,null,{"$f":"ABS(D7245-C7245)","v":0}]
[null,null,null,null,0]
[null,null,null,null,0]
[null,null,null,null,0]
[null,null,null,null,0]
[null,null,null,null,0]
[null,null,null,null,0]
[null,null,null,null,0]
[null,null,null,null,0]
[null,null,null,null,0]
[null,null,null,null,0]
[null,null,null,null,0]
[null,null,null,null,0]
[null,null,null,null,0]
[null,null,null,null,0]
[null,null,null,null,0]
[null,null,null,null,0]
[null,null,null,null,0]
[null,null,null,null,0]
[null,null,null,null,0]
[null,null,null,null,0]
[null,null,null,null,0]
[null,null,null,null,0]
[null,null,null,null,0]
[null,null,null,null,0]
[null,null,null,null,0]
[null,null,null,null,0]
[null,null,null,null,0]
[null,null,null,null,0]
[null,null,null,null,0]
[null,null,null,null,0]
[null,null,null,null,0]
[null,null,null,null,0]
[null,null,null,null,0]
[null,null,null,null,0]
[null,null,null,null,0]
[null,null,null,null,0]
[null,null,null,null,0]
[null,null,null,null,0]
[null,null,null,null,0]
[null,null,null,null,0]
[null,null,null,null,0]
[null,null,null,null,0]
[null,null,null,null,0]
[null,null,null,null,0]
[null,null,null,null,0]
[null,null,null,null,0]
[null,null,null,null,0]
[null,null,null,null,0]
[null,null,null,null,0]
[null,null,null,null,0]
[null,null,null,null,0]
[null,null,null,null,0]
[null,null,null,null,0]
[null,null,null,null,0]
[null,null,null,null,0]
[null,null,null,null,0]
[null,null,null,null,0]
[null,null,null,null,0]
[null,null,null,null,0]
[null,null,null,null,0]
[null,null,null,null,0]
[null,null,null,null,0]
[null,null,null,null,0]
[null,null,null,null,{"$f":"ABS(D7309-C7309)","v":0}]
[null,null,null,null,0]
[null,null,null,null,0]
[null,null,null,null,0]
[null,null,null,null,0]
[null,null,null,null,0]
[null,null,null,null,0]
[null,null,null,null,0]
[null,null,null,null,0]
[null,null,null,null,0]
[null,null,null,null,0]
[null,null,null,null,0]
[null,null,null,null,0]
[null,null,null,null,0]
[null,null,null,null,0]
[null,null,null,null,0]
[null,null,null,null,0]
[null,null,null,null,0]
[null,null,null,null,0]
[null,null,null,null,0]
[null,null,null,null,0]
[null,null,null,null,0]
[null,null,null,null,0]
[null,null,null,null,0]
[null,null,null,null,0]
[null,null,null,null,0]
[null,null,null,null,0]
[null,null,null,null,0]
[null,null,null,null,0]
[null,null,null,null,0]
[null,null,null,null,0]
[null,null,null,null,0]
[null,null,null,null,0]
[null,null,null,null,0]
[null,null,null,null,0]
[null,null,null,null,0]
[null,null,null,null,0]
[null,null,null,null,0]
[null,null,null,null,0]
[null,null,null,null,0]
[null,null,null,null,0]
[null,null,null,null,0]
[null,null,null,null,0]
[null,null,null,null,0]
[null,null,null,null,0]
[null,null,null,null,0]
[null,null,null,null,0]
[null,null,null,null,0]
[null,null,null,null,0]
[null,null,null,null,0]
[null,null,null,null,0]
[null,null,null,null,0]
[null,null,null,null,0]
[null,null,null,null,0]
[null,null,null,null,0]
[null,null,null,null,0]
[null,null,null,null,0]
[null,null,null,null,0]
[null,null,null,null,0]
[null,null,null,null,0]
[null,null,null,null,0]
[null,null,null,null,0]
[null,null,null,null,0]
[null,null,null,null,0]
[null,null,null,null,{"$f":"ABS(D7373-C7373)","v":0}]
[null,null,null,null,0]
[null,null,null,null,0]
[null,null,null,null,0]
[null,null,null,null,0]
[null,null,null,null,0]
[null,null,null,null,0]
[null,null,null,null,0]
[null,null,null,null,0]
[null,null,null,null,0]
[null,null,null,null,0]
[null,null,null,null,0]
[null,null,null,null,0]
[null,null,null,null,0]
[null,null,null,null,0]
[null,null,null,null,0]
[null,null,null,null,0]
[null,null,null,null,0]
[null,null,null,null,0]
[null,null,null,null,0]
[null,null,null,null,0]
[null,null,null,null,0]
[null,null,null,null,0]
[null,null,null,null,0]
[null,null,null,null,0]
[null,null,null,null,0]
[null,null,null,null,0]
[null,null,null,null,0]
[null,null,null,null,0]
[null,null,null,null,0]
[null,null,null,null,0]
[null,null,null,null,0]
[null,null,null,null,0]
[null,null,null,null,0]
[null,null,null,null,0]
[null,null,null,null,0]
[null,null,null,null,0]
[null,null,null,null,0]
[null,null,null,null,0]
[null,null,null,null,0]
[null,null,null,null,0]
[null,null,null,null,0]
[null,null,null,null,0]
[null,null,null,null,0]
[null,null,null,null,0]
[null,null,null,null,0]
[null,null,null,null,0]
[null,null,null,null,0]
[null,null,null,null,0]
[null,null,null,null,0]
[null,null,null,null,0]
[null,null,null,null,0]
[null,null,null,null,0]
[null,null,null,null,0]
[null,null,null,null,0]
[null,null,null,null,0]
[null,null,null,null,0]
[null,null,null,null,0]
[null,null,null,null,0]
[null,null,null,null,0]
[null,null,null,null,0]
[null,null,null,null,0]
[null,null,null,null,0]
[null,null,null,null,0]
[null,null,null,null,{"$f":"ABS(D7437-C7437)","v":0}]
[null,null,null,null,0]
[null,null,null,null,0]
[null,null,null,null,0]
[null,null,null,null,0]
[null,null,null,null,0]
[null,null,null,null,0]
[null,null,null,null,0]
[null,null,null,null,0]
[null,null,null,null,0]
[null,null,null,null,0]
[null,null,null,null,0]
[null,null,null,null,0]
[null,null,null,null,0]
[null,null,null,null,0]
[null,null,null,null,0]
[null,null,null,null,0]
[null,null,null,null,0]
[null,null,null,null,0]
[null,null,null,null,0]
[null,null,null,null,0]
[null,null,null,null,0]
[null,null,null,null,0]
[null,null,null,null,0]
[null,null,null,null,0]
[null,null,null,null,0]
[null,null,null,null,0]
[null,null,null,null,0]
[null,null,null,null,0]
[null,null,null,null,0]
[null,null,null,null,0]
[null,null,null,null,0]
[null,null,null,null,0]
[null,null,null,null,0]
[null,null,null,null,0]
[null,null,null,null,0]
[null,null,null,null,0]
[null,null,null,null,0]
[null,null,null,null,0]
[null,null,null,null,0]
[null,null,null,null,0]
[null,null,null,null,0]
[null,null,null,null,0]
[null,null,null,null,0]
[null,null,null,null,0]
[null,null,null,null,0]
[null,null,null,null,0]
[null,null,null,null,0]
[null,null,null,null,0]
[null,null,null,null,0]
[null,null,null,null,0]
[null,null,null,null,0]
[null,null,null,null,0]
[null,null,null,null,0]
[null,null,null,null,0]
[null,null,null,null,0]
[null,null,null,null,0]
[null,null,null,null,0]
[null,null,null,null,0]
[null,null,null,null,0]
[null,null,null,null,0]
[null,null,null,null,0]
[null,null,null,null,0]
[null,null,null,null,0]
[null,null,null,null,{"$f":"ABS(D7501-C7501)","v":0}]
[null,null,null,null,0]
[null,null,null,null,0]
[null,null,null,null,0]
[null,null,null,null,0]
[null,null,null,null,0]
[null,null,null,null,0]
[null,null,null,null,0]
[null,null,null,null,0]
[null,null,null,null,0]
[null,null,null,null,0]
[null,null,null,null,0]
[null,null,null,null,0]
[null,null,null,null,0]
[null,null,null,null,0]
[null,null,null,null,0]
[null,null,null,null,0]
[null,null,null,null,0]
[null,null,null,null,0]
[null,null,null,null,0]
[null,null,null,null,0]
[null,null,null,null,0]
[null,null,null,null,0]
[null,null,null,null,0]
[null,null,null,null,0]
[null,null,null,null,0]
[null,null,null,null,0]
[null,null,null,null,0]
[null,null,null,null,0]
[null,null,null,null,0]
[null,null,null,null,0]
[null,null,null,null,0]
[null,null,null,null,0]
[null,null,null,null,0]
[null,null,null,null,0]
[null,null,null,null,0]
[null,null,null,null,0]
[null,null,null,null,0]
[null,null,null,null,0]
[null,null,null,null,0]
[null,null,null,null,0]
[null,null,null,null,0]
[null,null,null,null,0]
[null,null,null,null,0]
[null,null,null,null,0]
[null,null,null,null,0]
[null,null,null,null,0]
[null,null,null,null,0]
[null,null,null,null,0]
[null,null,null,null,0]
[null,null,null,null,0]
[null,null,null,null,0]
[null,null,null,null,0]
[null,null,null,null,0]
[null,null,null,null,0]
[null,null,null,null,0]
[null,null,null,null,0]
[null,null,null,null,0]
[null,null,null,null,0]
[null,null,null,null,0]
[null,null,null,null,0]
[null,null,null,null,0]
[null,null,null,null,0]
[null,null,null,null,0]
[null,null,null,null,{"$f":"ABS(D7565-C7565)","v":0}]
[null,null,null,null,0]
[null,null,null,null,0]
[null,null,null,null,0]
[null,null,null,null,0]
[null,null,null,null,0]
[null,null,null,null,0]
[null,null,null,null,0]
[null,null,null,null,0]
[null,null,null,null,0]
[null,null,null,null,0]
[null,null,null,null,0]
[null,null,null,null,0]
[null,null,null,null,0]
[null,null,null,null,0]
[null,null,null,null,0]
[null,null,null,null,0]
[null,null,null,null,0]
[null,null,null,null,0]
[null,null,null,null,0]
[null,null,null,null,0]
[null,null,null,null,0]
[null,null,null,null,0]
[null,null,null,null,0]
[null,null,null,null,0]
[null,null,null,null,0]
[null,null,null,null,0]
[null,null,null,null,0]
[null,null,null,null,0]
[null,null,null,null,0]
[null,null,null,null,0]
[null,null,null,null,0]
[null,null,null,null,0]
[null,null,null,null,0]
[null,null,null,null,0]
[null,null,null,null,0]
[null,null,null,null,0]
[null,null,null,null,0]
[null,null,null,null,0]
[null,null,null,null,0]
[null,null,null,null,0]
[null,null,null,null,0]
[null,null,null,null,0]
[null,null,null,null,0]
[null,null,null,null,0]
[null,null,null,null,0]
[null,null,null,null,0]
[null,null,null,null,0]
[null,null,null,null,0]
[null,null,null,null,0]
[null,null,null,null,0]
[null,null,null,null,0]
[null,null,null,null,0]
[null,null,null,null,0]
[null,null,null,null,0]
[null,null,null,null,0]
[null,null,null,null,0]
[null,null,null,null,0]
[null,null,null,null,0]
[null,null,null,null,0]
[null,null,null,null,0]
[null,null,null,null,0]
[null,null,null,null,0]
[null,null,null,null,0]
[null,null,null,null,{"$f":"ABS(D7629-C7629)","v":0}]
[null,null,null,null,0]
[null,null,null,null,0]
[null,null,null,null,0]
[null,null,null,null,0]
[null,null,null,null,0]
[null,null,null,null,0]
[null,null,null,null,0]
[null,null,null,null,0]
[null,null,null,null,0]
[null,null,null,null,0]
[null,null,null,null,0]
[null,null,null,null,0]
[null,null,null,null,0]
[null,null,null,null,0]
[null,null,null,null,0]
[null,null,null,null,0]
[null,null,null,null,0]
[null,null,null,null,0]
[null,null,null,null,0]
[null,null,null,null,0]
[null,null,null,null,0]
[null,null,null,null,0]
[null,null,null,null,0]
[null,null,null,null,0]
[null,null,null,null,0]
[null,null,null,null,0]
[null,null,null,null,0]
[null,null,null,null,0]
[null,null,null,null,0]
[null,null,null,null,0]
[null,null,null,null,0]
[null,null,null,null,0]
[null,null,null,null,0]
[null,null,null,null,0]
[null,null,null,null,0]
[null,null,null,null,0]
[null,null,null,null,0]
[null,null,null,null,0]
[null,null,null,null,0]
[null,null,null,null,0]
[null,null,null,null,0]
[null,null,null,null,0]
[null,null,null,null,0]
[null,null,null,null,0]
[null,null,null,null,0]
[null,null,null,null,0]
[null,null,null,null,0]
[null,null,null,null,0]
[null,null,null,null,0]
[null,null,null,null,0]
[null,null,null,null,0]
[null,null,null,null,0]
[null,null,null,null,0]
[null,null,null,null,0]
[null,null,null,null,0]
[null,null,null,null,0]
[null,null,null,null,0]
[null,null,null,null,0]
[null,null,null,null,0]
[null,null,null,null,0]
[null,null,null,null,0]
[null,null,null,null,0]
[null,null,null,null,0]
[null,null,null,null,{"$f":"ABS(D7693-C7693)","v":0}]
[null,null,null,null,0]
[null,null,null,null,0]
[null,null,null,null,0]
[null,null,null,null,0]
[null,null,null,null,0]
[null,null,null,null,0]
[null,null,null,null,0]
[null,null,null,null,0]
[null,null,null,null,0]
[null,null,null,null,0]
[null,null,null,null,0]
[null,null,null,null,0]
[null,null,null,null,0]
[null,null,null,null,0]
[null,null,null,null,0]
[null,null,null,null,0]
[null,null,null,null,0]
[null,null,null,null,0]
[null,null,null,null,0]
[null,null,null,null,0]
[null,null,null,null,0]
[null,null,null,null,0]
[null,null,null,null,0]
[null,null,null,null,0]
[null,null,null,null,0]
[null,null,null,null,0]
[null,null,null,null,0]
[null,null,null,null,0]
[null,null,null,null,0]
[null,null,null,null,0]
[null,null,null,null,0]
[null,null,null,null,0]
[null,null,null,null,0]
[null,null,null,null,0]
[null,null,null,null,0]
[null,null,null,null,0]
[null,null,null,null,0]
[null,null,null,null,0]
[null,null,null,null,0]
[null,null,null,null,0]
[null,null,null,null,0]
[null,null,null,null,0]
[null,null,null,null,0]
[null,null,null,null,0]
[null,null,null,null,0]
[null,null,null,null,0]
[null,null,null,null,0]
[null,null,null,null,0]
[null,null,null,null,0]
[null,null,null,null,0]
[null,null,null,null,0]
[null,null,null,null,0]
[null,null,null,null,0]
[null,null,null,null,0]
[null,null,null,null,0]
[null,null,null,null,0]
[null,null,null,null,0]
[null,null,null,null,0]
[null,null,null,null,0]
[null,null,null,null,0]
[null,null,null,null,0]
[null,null,null,null,0]
[null,null,null,null,0]
[null,null,null,null,{"$f":"ABS(D7757-C7757)","v":0}]
[null,null,null,null,0]
[null,null,null,null,0]
[null,null,null,null,0]
[null,null,null,null,0]
[null,null,null,null,0]
[null,null,null,null,0]
[null,null,null,null,0]
[null,null,null,null,0]
[null,null,null,null,0]
[null,null,null,null,0]
[null,null,null,null,0]
[null,null,null,null,0]
[null,null,null,null,0]
[null,null,null,null,0]
[null,null,null,null,0]
[null,null,null,null,0]
[null,null,null,null,0]
[null,null,null,null,0]
[null,null,null,null,0]
[null,null,null,null,0]
[null,null,null,null,0]
[null,null,null,null,0]
[null,null,null,null,0]
[null,null,null,null,0]
[null,null,null,null,0]
[null,null,null,null,0]
[null,null,null,null,0]
[null,null,null,null,0]
[null,null,null,null,0]
[null,null,null,null,0]
[null,null,null,null,0]
[null,null,null,null,0]
[null,null,null,null,0]
[null,null,null,null,0]
[null,null,null,null,0]
[null,null,null,null,0]
[null,null,null,null,0]
[null,null,null,null,0]
[null,null,null,null,0]
[null,null,null,null,0]
[null,null,null,null,0]
[null,null,null,null,0]
[null,null,null,null,0]
[null,null,null,null,0]
[null,null,null,null,0]
[null,null,null,null,0]
[null,null,null,null,0]
[null,null,null,null,0]
[null,null,null,null,0]
[null,null,null,null,0]
[null,null,null,null,0]
[null,null,null,null,0]
[null,null,null,null,0]
[null,null,null,null,0]
[null,null,null,null,0]
[null,null,null,null,0]
[null,null,null,null,0]
[null,null,null,null,0]
[null,null,null,null,0]
[null,null,null,null,0]
[null,null,null,null,0]
[null,null,null,null,0]
[null,null,null,null,0]
[null,null,null,null,{"$f":"ABS(D7821-C7821)","v":0}]
[null,null,null,null,0]
[null,null,null,null,0]
[null,null,null,null,0]
[null,null,null,null,0]
[null,null,null,null,0]
[null,null,null,null,0]
[null,null,null,null,0]
[null,null,null,null,0]
[null,null,null,null,0]
[null,null,null,null,0]
[null,null,null,null,0]
[null,null,null,null,0]
[null,null,null,null,0]
[null,null,null,null,0]
[null,null,null,null,0]
[null,null,null,null,0]
[null,null,null,null,0]
[null,null,null,null,0]
[null,null,null,null,0]
[null,null,null,null,0]
[null,null,null,null,0]
[null,null,null,null,0]
[null,null,null,null,0]
[null,null,null,null,0]
[null,null,null,null,0]
[null,null,null,null,0]
[null,null,null,null,0]
[null,null,null,null,0]
[null,null,null,null,0]
[null,null,null,null,0]
[null,null,null,null,0]
[null,null,null,null,0]
[null,null,null,null,0]
[null,null,null,null,0]
[null,null,null,null,0]
[null,null,null,null,0]
[null,null,null,null,0]
[null,null,null,null,0]
[null,null,null,null,0]
[null,null,null,null,0]
[null,null,null,null,0]
[null,null,null,null,0]
[null,null,null,null,0]
[null,null,null,null,0]
[null,null,null,null,0]
[null,null,null,null,0]
[null,null,null,null,0]
[null,null,null,null,0]
[null,null,null,null,0]
[null,null,null,null,0]
[null,null,null,null,0]
[null,null,null,null,0]
[null,null,null,null,0]
[null,null,null,null,0]
[null,null,null,null,0]
[null,null,null,null,0]
[null,null,null,null,0]
[null,null,null,null,0]
[null,null,null,null,0]
[null,null,null,null,0]
[null,null,null,null,0]
[null,null,null,null,0]
[null,null,null,null,0]
[null,null,null,null,{"$f":"ABS(D7885-C7885)","v":0}]
[null,null,null,null,0]
[null,null,null,null,0]
[null,null,null,null,0]
[null,null,null,null,0]
[null,null,null,null,0]
[null,null,null,null,0]
[null,null,null,null,0]
[null,null,null,null,0]
[null,null,null,null,0]
[null,null,null,null,0]
[null,null,null,null,0]
[null,null,null,null,0]
[null,null,null,null,0]
[null,null,null,null,0]
[null,null,null,null,0]
[null,null,null,null,0]
[null,null,null,null,0]
[null,null,null,null,0]
[null,null,null,null,0]
[null,null,null,null,0]
[null,null,null,null,0]
[null,null,null,null,0]
[null,null,null,null,0]
[null,null,null,null,0]
[null,null,null,null,0]
[null,null,null,null,0]
[null,null,null,null,0]
[null,null,null,null,0]
[null,null,null,null,0]
[null,null,null,null,0]
[null,null,null,null,0]
[null,null,null,null,0]
[null,null,null,null,0]
[null,null,null,null,0]
[null,null,null,null,0]
[null,null,null,null,0]
[null,null,null,null,0]
[null,null,null,null,0]
[null,null,null,null,0]
[null,null,null,null,0]
[null,null,null,null,0]
[null,null,null,null,0]
[null,null,null,null,0]
[null,null,null,null,0]
[null,null,null,null,0]
[null,null,null,null,0]
[null,null,null,null,0]
[null,null,null,null,0]
[null,null,null,null,0]
[null,null,null,null,0]
[null,null,null,null,0]
[null,null,null,null,0]
[null,null,null,null,0]
[null,null,null,null,0]
[null,null,null,null,0]
[null,null,null,null,0]
[null,null,null,null,0]
[null,null,null,null,0]
[null,null,null,null,0]
[null,null,null,null,0]
[null,null,null,null,0]
[null,null,null,null,0]
[null,null,null,null,0]
[null,null,null,null,{"$f":"ABS(D7949-C7949)","v":0}]
[null,null,null,null,0]
[null,null,null,null,0]
[null,null,null,null,0]
[null,null,null,null,0]
[null,null,null,null,0]
[null,null,null,null,0]
[null,null,null,null,0]
[null,null,null,null,0]
[null,null,null,null,0]
[null,null,null,null,0]
[null,null,null,null,0]
[null,null,null,null,0]
[null,null,null,null,0]
[null,null,null,null,0]
[null,null,null,null,0]
[null,null,null,null,0]
[null,null,null,null,0]
[null,null,null,null,0]
[null,null,null,null,0]
[null,null,null,null,0]
[null,null,null,null,0]
[null,null,null,null,0]
[null,null,null,null,0]
[null,null,null,null,0]
[null,null,null,null,0]
[null,null,null,null,0]
[null,null,null,null,0]
[null,null,null,null,0]
[null,null,null,null,0]
[null,null,null,null,0]
[null,null,null,null,0]
[null,null,null,null,0]
[null,null,null,null,0]
[null,null,null,null,0]
[null,null,null,null,0]
[null,null,null,null,0]
[null,null,null,null,0]
[null,null,null,null,0]
[null,null,null,null,0]
[null,null,null,null,0]
[null,null,null,null,0]
[null,null,null,null,0]
[null,null,null,null,0]
[null,null,null,null,0]
[null,null,null,null,0]
[null,null,null,null,0]
[null,null,null,null,0]
[null,null,null,null,0]
[null,null,null,null,0]
[null,null,null,null,0]
[null,null,null,null,0]
[null,null,null,null,0]
[null,null,null,null,0]
[null,null,null,null,0]
[null,null,null,null,0]
[null,null,null,null,0]
[null,null,null,null,0]
[null,null,null,null,0]
[null,null,null,null,0]
[null,null,null,null,0]
[null,null,null,null,0]
[null,null,null,null,0]
[null,null,null,null,0]
[null,null,null,null,{"$f":"ABS(D8013-C8013)","v":0}]
[null,null,null,null,0]
[null,null,null,null,0]
[null,null,null,null,0]
[null,null,null,null,0]
[null,null,null,null,0]
[null,null,null,null,0]
[null,null,null,null,0]
[null,null,null,null,0]
[null,null,null,null,0]
[null,null,null,null,0]
[null,null,null,null,0]
[null,null,null,null,0]
[null,null,null,null,0]
[null,null,null,null,0]
[null,null,null,null,0]
[null,null,null,null,0]
[null,null,null,null,0]
[null,null,null,null,0]
[null,null,null,null,0]
[null,null,null,null,0]
[null,null,null,null,0]
[null,null,null,null,0]
[null,null,null,null,0]
[null,null,null,null,0]
[null,null,null,null,0]
[null,null,null,null,0]
[null,null,null,null,0]
[null,null,null,null,0]
[null,null,null,null,0]
[null,null,null,null,0]
[null,null,null,null,0]
[null,null,null,null,0]
[null,null,null,null,0]
[null,null,null,null,0]
[null,null,null,null,0]
[null,null,null,null,0]
[null,null,null,null,0]
[null,null,null,null,0]
[null,null,null,null,0]
[null,null,null,null,0]
[null,null,null,null,0]
[null,null,null,null,0]
[null,null,null,null,0]
[null,null,null,null,0]
[null,null,null,null,0]
[null,null,null,null,0]
[null,null,null,null,0]
[null,null,null,null,0]
[null,null,null,null,0]
[null,null,null,null,0]
[null,null,null,null,0]
[null,null,null,null,0]
[null,null,null,null,0]
[null,null,null,null,0]
[null,null,null,null,0]
[null,null,null,null,0]
[null,null,null,null,0]
[null,null,null,null,0]
[null,null,null,null,0]
[null,null,null,null,0]
[null,null,null,null,0]
[null,null,null,null,0]
[null,null,null,null,0]
[null,null,null,null,{"$f":"ABS(D8077-C8077)","v":0}]
[null,null,null,null,0]
[null,null,null,null,0]
[null,null,null,null,0]
[null,null,null,null,0]
[null,null,null,null,0]
[null,null,null,null,0]
[null,null,null,null,0]
[null,null,null,null,0]
[null,null,null,null,0]
[null,null,null,null,0]
[null,null,null,null,0]
[null,null,null,null,0]
[null,null,null,null,0]
[null,null,null,null,0]
[null,null,null,null,0]
[null,null,null,null,0]
[null,null,null,null,0]
[null,null,null,null,0]
[null,null,null,null,0]
[null,null,null,null,0]
[null,null,null,null,0]
[null,null,null,null,0]
[null,null,null,null,0]
[null,null,null,null,0]
[null,null,null,null,0]
[null,null,null,null,0]
[null,null,null,null,0]
[null,null,null,null,0]
[null,null,null,null,0]
[null,null,null,null,0]
[null,null,null,null,0]
[null,null,null,null,0]
[null,null,null,null,0]
[null,null,null,null,0]
[null,null,null,null,0]
[null,null,null,null,0]
[null,null,null,null,0]
[null,null,null,null,0]
[null,null,null,null,0]
[null,null,null,null,0]
[null,null,null,null,0]
[null,null,null,null,0]
[null,null,null,null,0]
[null,null,null,null,0]
[null,null,null,null,0]
[null,null,null,null,0]
[null,null,null,null,0]
[null,null,null,null,0]
[null,null,null,null,0]
[null,null,null,null,0]
[null,null,null,null,0]
[null,null,null,null,0]
[null,null,null,null,0]
[null,null,null,null,0]
[null,null,null,null,0]
[null,null,null,null,0]
[null,null,null,null,0]
[null,null,null,null,0]
[null,null,null,null,0]
[null,null,null,null,0]
[null,null,null,null,0]
[null,null,null,null,0]
[null,null,null,null,0]
[null,null,null,null,{"$f":"ABS(D8141-C8141)","v":0}]
[null,null,null,null,0]
[null,null,null,null,0]
[null,null,null,null,0]
[null,null,null,null,0]
[null,null,null,null,0]
[null,null,null,null,0]
[null,null,null,null,0]
[null,null,null,null,0]
[null,null,null,null,0]
[null,null,null,null,0]
[null,null,null,null,0]
[null,null,null,null,0]
[null,null,null,null,0]
[null,null,null,null,0]
[null,null,null,null,0]
[null,null,null,null,0]
[null,null,null,null,0]
[null,null,null,null,0]
[null,null,null,null,0]
[null,null,null,null,0]
[null,null,null,null,0]
[null,null,null,null,0]
[null,null,null,null,0]
[null,null,null,null,0]
[null,null,null,null,0]
[null,null,null,null,0]
[null,null,null,null,0]
[null,null,null,null,0]
[null,null,null,null,0]
[null,null,null,null,0]
[null,null,null,null,0]
[null,null,null,null,0]
[null,null,null,null,0]
[null,null,null,null,0]
[null,null,null,null,0]
[null,null,null,null,0]
[null,null,null,null,0]
[null,null,null,null,0]
[null,null,null,null,0]
[null,null,null,null,0]
[null,null,null,null,0]
[null,null,null,null,0]
[null,null,null,null,0]
[null,null,null,null,0]
[null,null,null,null,0]
[null,null,null,null,0]
[null,null,null,null,0]
[null,null,null,null,0]
[null,null,null,null,0]
[null,null,null,null,0]
[null,null,null,null,0]
[null,null,null,null,0]
[null,null,null,null,0]
[null,null,null,null,0]
[null,null,null,null,0]
[null,null,null,null,0]
[null,null,null,null,0]
[null,null,null,null,0]
[null,null,null,null,0]
[null,null,null,null,0]
[null,null,null,null,0]
[null,null,null,null,0]
[null,null,null,null,0]
[null,null,null,null,{"$f":"ABS(D8205-C8205)","v":0}]
[null,null,null,null,0]
[null,null,null,null,0]
[null,null,null,null,0]
[null,null,null,null,0]
[null,null,null,null,0]
[null,null,null,null,0]
[null,null,null,null,0]
[null,null,null,null,0]
[null,null,null,null,0]
[null,null,null,null,0]
[null,null,null,null,0]
[null,null,null,null,0]
[null,null,null,null,0]
[null,null,null,null,0]
[null,null,null,null,0]
[null,null,null,null,0]
[null,null,null,null,0]
[null,null,null,null,0]
[null,null,null,null,0]
[null,null,null,null,0]
[null,null,null,null,0]
[null,null,null,null,0]
[null,null,null,null,0]
[null,null,null,null,0]
[null,null,null,null,0]
[null,null,null,null,0]
[null,null,null,null,0]
[null,null,null,null,0]
[null,null,null,null,0]
[null,null,null,null,0]
[null,null,null,null,0]
[null,null,null,null,0]
[null,null,null,null,0]
[null,null,null,null,0]
[null,null,null,null,0]
[null,null,null,null,0]
[null,null,null,null,0]
[null,null,null,null,0]
[null,null,null,null,0]
[null,null,null,null,0]
[null,null,null,null,0]
[null,null,null,null,0]
[null,null,null,null,0]
[null,null,null,null,0]
[null,null,null,null,0]
[null,null,null,null,0]
[null,null,null,null,0]
[null,null,null,null,0]
[null,null,null,null,0]
[null,null,null,null,0]
[null,null,null,null,0]
[null,null,null,null,0]
[null,null,null,null,0]
[null,null,null,null,0]
[null,null,null,null,0]
[null,null,null,null,0]
[null,null,null,null,0]
[null,null,null,null,0]
[null,null,null,null,0]
[null,null,null,null,0]
[null,null,null,null,0]
[null,null,null,null,0]
[null,null,null,null,0]
[null,null,null,null,{"$f":"ABS(D8269-C8269)","v":0}]
[null,null,null,null,0]
[null,null,null,null,0]
[null,null,null,null,0]
[null,null,null,null,0]
[null,null,null,null,0]
[null,null,null,null,0]
[null,null,null,null,0]
[null,null,null,null,0]
[null,null,null,null,0]
[null,null,null,null,0]
[null,null,null,null,0]
[null,null,null,null,0]
[null,null,null,null,0]
[null,null,null,null,0]
[null,null,null,null,0]
[null,null,null,null,0]
[null,null,null,null,0]
[null,null,null,null,0]
[null,null,null,null,0]
[null,null,null,null,0]
[null,null,null,null,0]
[null,null,null,null,0]
[null,null,null,null,0]
[null,null,null,null,0]
[null,null,null,null,0]
[null,null,null,null,0]
[null,null,null,null,0]
[null,null,null,null,0]
[null,null,null,null,0]
[null,null,null,null,0]
[null,null,null,null,0]
[null,null,null,null,0]
[null,null,null,null,0]
[null,null,null,null,0]
[null,null,null,null,0]
[null,null,null,null,0]
[null,null,null,null,0]
[null,null,null,null,0]
[null,null,null,null,0]
[null,null,null,null,0]
[null,null,null,null,0]
[null,null,null,null,0]
[null,null,null,null,0]
[null,null,null,null,0]
[null,null,null,null,0]
[null,null,null,null,0]
[null,null,null,null,0]
[null,null,null,null,0]
[null,null,null,null,0]
[null,null,null,null,0]
[null,null,null,null,0]
[null,null,null,null,0]
[null,null,null,null,0]
[null,null,null,null,0]
[null,null,null,null,0]
[null,null,null,null,0]
[null,null,null,null,0]
[null,null,null,null,0]
[null,null,null,null,0]
[null,null,null,null,0]
[null,null,null,null,0]
[null,null,null,null,0]
[null,null,null,null,0]
[null,null,null,null,{"$f":"ABS(D8333-C8333)","v":0}]
[null,null,null,null,0]
[null,null,null,null,0]
[null,null,null,null,0]
[null,null,null,null,0]
[null,null,null,null,0]
[null,null,null,null,0]
[null,null,null,null,0]
[null,null,null,null,0]
[null,null,null,null,0]
[null,null,null,null,0]
[null,null,null,null,0]
[null,null,null,null,0]
[null,null,null,null,0]
[null,null,null,null,0]
[null,null,null,null,0]
[null,null,null,null,0]
[null,null,null,null,0]
[null,null,null,null,0]
[null,null,null,null,0]
[null,null,null,null,0]
[null,null,null,null,0]
[null,null,null,null,0]
[null,null,null,null,0]
[null,null,null,null,0]
[null,null,null,null,0]
[null,null,null,null,0]
[null,null,null,null,0]
[null,null,null,null,0]
[null,null,null,null,0]
[null,null,null,null,0]
[null,null,null,null,0]
[null,null,null,null,0]
[null,null,null,null,0]
[null,null,null,null,0]
[null,null,null,null,0]
[null,null,null,null,0]
[null,null,null,null,0]
[null,null,null,null,0]
[null,null,null,null,0]
[null,null,null,null,0]
[null,null,null,null,0]
[null,null,null,null,0]
[null,null,null,null,0]
[null,null,null,null,0]
[null,null,null,null,0]
[null,null,null,null,0]
[null,null,null,null,0]
[null,null,null,null,0]
[null,null,null,null,0]
[null,null,null,null,0]
[null,null,null,null,0]
[null,null,null,null,0]
[null,null,null,null,0]
[null,null,null,null,0]
[null,null,null,null,0]
[null,null,null,null,0]
[null,null,null,null,0]
[null,null,null,null,0]
[null,null,null,null,0]
[null,null,null,null,0]
[null,null,null,null,0]
[null,null,null,null,0]
[null,null,null,null,0]
[null,null,null,null,{"$f":"ABS(D8397-C8397)","v":0}]
[null,null,null,null,0]
[null,null,null,null,0]
[null,null,null,null,0]
[null,null,null,null,0]
[null,null,null,null,0]
[null,null,null,null,0]
[null,null,null,null,0]
[null,null,null,null,0]
[null,null,null,null,0]
[null,null,null,null,0]
[null,null,null,null,0]
[null,null,null,null,0]
[null,null,null,null,0]
[null,null,null,null,0]
[null,null,null,null,0]
[null,null,null,null,0]
[null,null,null,null,0]
[null,null,null,null,0]
[null,null,null,null,0]
[null,null,null,null,0]
[null,null,null,null,0]
[null,null,null,null,0]
[null,null,null,null,0]
[null,null,null,null,0]
[null,null,null,null,0]
[null,null,null,null,0]
[null,null,null,null,0]
[null,null,null,null,0]
[null,null,null,null,0]
[null,null,null,null,0]
[null,null,null,null,0]
[null,null,null,null,0]
[null,null,null,null,0]
[null,null,null,null,0]
[null,null,null,null,0]
[null,null,null,null,0]
[null,null,null,null,0]
[null,null,null,null,0]
[null,null,null,null,0]
[null,null,null,null,0]
[null,null,null,null,0]
[null,null,null,null,0]
[null,null,null,null,0]
[null,null,null,null,0]
[null,null,null,null,0]
[null,null,null,null,0]
[null,null,null,null,0]
[null,null,null,null,0]
[null,null,null,null,0]
[null,null,null,null,0]
[null,null,null,null,0]
[null,null,null,null,0]
[null,null,null,null,0]
[null,null,null,null,0]
[null,null,null,null,0]
[null,null,null,null,0]
[null,null,null,null,0]
[null,null,null,null,0]
[null,null,null,null,0]
[null,null,null,null,0]
[null,null,null,null,0]
[null,null,null,null,0]
[null,null,null,null,0]
[null,null,null,null,{"$f":"ABS(D8461-C8461)","v":0}]
[null,null,null,null,0]
[null,null,null,null,0]
[null,null,null,null,0]
[null,null,null,null,0]
[null,null,null,null,0]
[null,null,null,null,0]
[null,null,null,null,0]
[null,null,null,null,0]
[null,null,null,null,0]
[null,null,null,null,0]
[null,null,null,null,0]
[null,null,null,null,0]
[null,null,null,null,0]
[null,null,null,null,0]
[null,null,null,null,0]
[null,null,null,null,0]
[null,null,null,null,0]
[null,null,null,null,0]
[null,null,null,null,0]
[null,null,null,null,0]
[null,null,null,null,0]
[null,null,null,null,0]
[null,null,null,null,0]
[null,null,null,null,0]
[null,null,null,null,0]
[null,null,null,null,0]
[null,null,null,null,0]
[null,null,null,null,0]
[null,null,null,null,0]
[null,null,null,null,0]
[null,null,null,null,0]
[null,null,null,null,0]
[null,null,null,null,0]
[null,null,null,null,0]
[null,null,null,null,0]
[null,null,null,null,0]
[null,null,null,null,0]
[null,null,null,null,0]
[null,null,null,null,0]
[null,null,null,null,0]
[null,null,null,null,0]
[null,null,null,null,0]
[null,null,null,null,0]
[null,null,null,null,0]
[null,null,null,null,0]
[null,null,null,null,0]
[null,null,null,null,0]
[null,null,null,null,0]
[null,null,null,null,0]
[null,null,null,null,0]
[null,null,null,null,0]
[null,null,null,null,0]
[null,null,null,null,0]
[null,null,null,null,0]
[null,null,null,null,0]
[null,null,null,null,0]
[null,null,null,null,0]
[null,null,null,null,0]
[null,null,null,null,0]
[null,null,null,null,0]
[null,null,null,null,0]
[null,null,null,null,0]
[null,null,null,null,0]
[null,null,null,null,{"$f":"ABS(D8525-C8525)","v":0}]
[null,null,null,null,0]
[null,null,null,null,0]
[null,null,null,null,0]
[null,null,null,null,0]
[null,null,null,null,0]
[null,null,null,null,0]
[null,null,null,null,0]
[null,null,null,null,0]
[null,null,null,null,0]
[null,null,null,null,0]
[null,null,null,null,0]
[null,null,null,null,0]
[null,null,null,null,0]
[null,null,null,null,0]
[null,null,null,null,0]
[null,null,null,null,0]
[null,null,null,null,0]
[null,null,null,null,0]
[null,null,null,null,0]
[null,null,null,null,0]
[null,null,null,null,0]
[null,null,null,null,0]
[null,null,null,null,0]
[null,null,null,null,0]
[null,null,null,null,0]
[null,null,null,null,0]
[null,null,null,null,0]
[null,null,null,null,0]
[null,null,null,null,0]
[null,null,null,null,0]
[null,null,null,null,0]
[null,null,null,null,0]
[null,null,null,null,0]
[null,null,null,null,0]
[null,null,null,null,0]
[null,null,null,null,0]
[null,null,null,null,0]
[null,null,null,null,0]
[null,null,null,null,0]
[null,null,null,null,0]
[null,null,null,null,0]
[null,null,null,null,0]
[null,null,null,null,0]
[null,null,null,null,0]
[null,null,null,null,0]
[null,null,null,null,0]
[null,null,null,null,0]
[null,null,null,null,0]
[null,null,null,null,0]
[null,null,null,null,0]
[null,null,null,null,0]
[null,null,null,null,0]
[null,null,null,null,0]
[null,null,null,null,0]
[null,null,null,null,0]
[null,null,null,null,0]
[null,null,null,null,0]
[null,null,null,null,0]
[null,null,null,null,0]
[null,null,null,null,0]
[null,null,null,null,0]
[null,null,null,null,0]
[null,null,null,null,0]
[null,null,null,null,{"$f":"ABS(D8589-C8589)","v":0}]
[null,null,null,null,0]
[null,null,null,null,0]
[null,null,null,null,0]
[null,null,null,null,0]
[null,null,null,null,0]
[null,null,null,null,0]
[null,null,null,null,0]
[null,null,null,null,0]
[null,null,null,null,0]
[null,null,null,null,0]
[null,null,null,null,0]
[null,null,null,null,0]
[null,null,null,null,0]
[null,null,null,null,0]
[null,null,null,null,0]
[null,null,null,null,0]
[null,null,null,null,0]
[null,null,null,null,0]
[null,null,null,null,0]
[null,null,null,null,0]
[null,null,null,null,0]
[null,null,null,null,0]
[null,null,null,null,0]
[null,null,null,null,0]
[null,null,null,null,0]
[null,null,null,null,0]
[null,null,null,null,0]
[null,null,null,null,0]
[null,null,null,null,0]
[null,null,null,null,0]
[null,null,null,null,0]
[null,null,null,null,0]
[null,null,null,null,0]
[null,null,null,null,0]
[null,null,null,null,0]
[null,null,null,null,0]
[null,null,null,null,0]
[null,null,null,null,0]
[null,null,null,null,0]
[null,null,null,null,0]
[null,null,null,null,0]
[null,null,null,null,0]
[null,null,null,null,0]
[null,null,null,null,0]
[null,null,null,null,0]
[null,null,null,null,0]
[null,null,null,null,0]
[null,null,null,null,0]
[null,null,null,null,0]
[null,null,null,null,0]
[null,null,null,null,0]
[null,null,null,null,0]
[null,null,null,null,0]
[null,null,null,null,0]
[null,null,null,null,0]
[null,null,null,null,0]
[null,null,null,null,0]
[null,null,null,null,0]
[null,null,null,null,0]
[null,null,null,null,0]
[null,null,null,null,0]
[null,null,null,null,0]
[null,null,null,null,0]
[null,null,null,null,{"$f":"ABS(D8653-C8653)","v":0}]
[null,null,null,null,0]
[null,null,null,null,0]
[null,null,null,null,0]
[null,null,null,null,0]
[null,null,null,null,0]
[null,null,null,null,0]
[null,null,null,null,0]
[null,null,null,null,0]
[null,null,null,null,0]
[null,null,null,null,0]
[null,null,null,null,0]
[null,null,null,null,0]
[null,null,null,null,0]
[null,null,null,null,0]
[null,null,null,null,0]
[null,null,null,null,0]
[null,null,null,null,0]
[null,null,null,null,0]
[null,null,null,null,0]
[null,null,null,null,0]
[null,null,null,null,0]
[null,null,null,null,0]
[null,null,null,null,0]
[null,null,null,null,0]
[null,null,null,null,0]
[null,null,null,null,0]
[null,null,null,null,0]
[null,null,null,null,0]
[null,null,null,null,0]
[null,null,null,null,0]
[null,null,null,null,0]
[null,null,null,null,0]
[null,null,null,null,0]
[null,null,null,null,0]
[null,null,null,null,0]
[null,null,null,null,0]
[null,null,null,null,0]
[null,null,null,null,0]
[null,null,null,null,0]
[null,null,null,null,0]
[null,null,null,null,0]
[null,null,null,null,0]
[null,null,null,null,0]
[null,null,null,null,0]
[null,null,null,null,0]
[null,null,null,null,0]
[null,null,null,null,0]
[null,null,null,null,0]
[null,null,null,null,0]
[null,null,null,null,0]
[null,null,null,null,0]
[null,null,null,null,0]
[null,null,null,null,0]
[null,null,null,null,0]
[null,null,null,null,0]
[null,null,null,null,0]
[null,null,null,null,0]
[null,null,null,null,0]
[null,null,null,null,0]
[null,null,null,null,0]
[null,null,null,null,0]
[null,null,null,null,0]
[null,null,null,null,0]
[null,null,null,null,{"$f":"ABS(D8717-C8717)","v":0}]
[null,null,null,null,0]
[null,null,null,null,0]
[null,null,null,null,0]
[null,null,null,null,0]
[null,null,null,null,0]
[null,null,null,null,0]
[null,null,null,null,0]
[null,null,null,null,0]
[null,null,null,null,0]
[null,null,null,null,0]
[null,null,null,null,0]
[null,null,null,null,0]
[null,null,null,null,0]
[null,null,null,null,0]
[null,null,null,null,0]
[null,null,null,null,0]
[null,null,null,null,0]
[null,null,null,null,0]
[null,null,null,null,0]
[null,null,null,null,0]
[null,null,null,null,0]
[null,null,null,null,0]
[null,null,null,null,0]
[null,null,null,null,0]
[null,null,null,null,0]
[null,null,null,null,0]
[null,null,null,null,0]
[null,null,null,null,0]
[null,null,null,null,0]
[null,null,null,null,0]
[null,null,null,null,0]
[null,null,null,null,0]
[null,null,null,null,0]
[null,null,null,null,0]
[null,null,null,null,0]
[null,null,null,null,0]
[null,null,null,null,0]
[null,null,null,null,0]
[null,null,null,null,0]
[null,null,null,null,0]
[null,null,null,null,0]
[null,null,null,null,0]
[null,null,null,null,0]
[null,null,null,null,0]
[null,null,null,null,0]
[null,null,null,null,0]
[null,null,null,null,0]
[null,null,null,null,0]
[null,null,null,null,0]
[null,null,null,null,0]
[null,null,null,null,0]
[null,null,null,null,0]
[null,null,null,null,0]
[null,null,null,null,0]
[null,null,null,null,0]
[null,null,null,null,0]
[null,null,null,null,0]
[null,null,null,null,0]
[null,null,null,null,0]
[null,null,null,null,0]
[null,null,null,null,0]
[null,null,null,null,0]
[null,null,null,null,0]
[null,null,null,null,{"$f":"ABS(D8781-C8781)","v":0}]
[null,null,null,null,0]
[null,null,null,null,0]
[null,null,null,null,0]
[null,null,null,null,0]
[null,null,null,null,0]
[null,null,null,null,0]
[null,null,null,null,0]
[null,null,null,null,0]
[null,null,null,null,0]
[null,null,null,null,0]
[null,null,null,null,0]
[null,null,null,null,0]
[null,null,null,null,0]
[null,null,null,null,0]
[null,null,null,null,0]
[null,null,null,null,0]
[null,null,null,null,0]
[null,null,null,null,0]
[null,null,null,null,0]
[null,null,null,null,0]
[null,null,null,null,0]
[null,null,null,null,0]
[null,null,null,null,0]
[null,null,null,null,0]
[null,null,null,null,0]
[null,null,null,null,0]
[null,null,null,null,0]
[null,null,null,null,0]
[null,null,null,null,0]
[null,null,null,null,0]
[null,null,null,null,0]
[null,null,null,null,0]
[null,null,null,null,0]
[null,null,null,null,0]
[null,null,null,null,0]
[null,null,null,null,0]
[null,null,null,null,0]
[null,null,null,null,0]
[null,null,null,null,0]
[null,null,null,null,0]
[null,null,null,null,0]
[null,null,null,null,0]
[null,null,null,null,0]
[null,null,null,null,0]
[null,null,null,null,0]
[null,null,null,null,0]
[null,null,null,null,0]
[null,null,null,null,0]
[null,null,null,null,0]
[null,null,null,null,0]
[null,null,null,null,0]
[null,null,null,null,0]
[null,null,null,null,0]
[null,null,null,null,0]
[null,null,null,null,0]
[null,null,null,null,0]
[null,null,null,null,0]
[null,null,null,null,0]
[null,null,null,null,0]
[null,null,null,null,0]
[null,null,null,null,0]
[null,null,null,null,0]
[null,null,null,null,0]
[null,null,null,null,{"$f":"ABS(D8845-C8845)","v":0}]
[null,null,null,null,0]
[null,null,null,null,0]
[null,null,null,null,0]
[null,null,null,null,0]
[null,null,null,null,0]
[null,null,null,null,0]
[null,null,null,null,0]
[null,null,null,null,0]
[null,null,null,null,0]
[null,null,null,null,0]
[null,null,null,null,0]
[null,null,null,null,0]
[null,null,null,null,0]
[null,null,null,null,0]
[null,null,null,null,0]
[null,null,null,null,0]
[null,null,null,null,0]
[null,null,null,null,0]
[null,null,null,null,0]
[null,null,null,null,0]
[null,null,null,null,0]
[null,null,null,null,0]
[null,null,null,null,0]
[null,null,null,null,0]
[null,null,null,null,0]
[null,null,null,null,0]
[null,null,null,null,0]
[null,null,null,null,0]
[null,null,null,null,0]
[null,null,null,null,0]
[null,null,null,null,0]
[null,null,null,null,0]
[null,null,null,null,0]
[null,null,null,null,0]
[null,null,null,null,0]
[null,null,null,null,0]
[null,null,null,null,0]
[null,null,null,null,0]
[null,null,null,null,0]
[null,null,null,null,0]
[null,null,null,null,0]
[null,null,null,null,0]
[null,null,null,null,0]
[null,null,null,null,0]
[null,null,null,null,0]
[null,null,null,null,0]
[null,null,null,null,0]
[null,null,null,null,0]
[null,null,null,null,0]
[null,null,null,null,0]
[null,null,null,null,0]
[null,null,null,null,0]
[null,null,null,null,0]
[null,null,null,null,0]
[null,null,null,null,0]
[null,null,null,null,0]
[null,null,null,null,0]
[null,null,null,null,0]
[null,null,null,null,0]
[null,null,null,null,0]
[null,null,null,null,0]
[null,null,null,null,0]
[null,null,null,null,0]
[null,null,null,null,{"$f":"ABS(D8909-C8909)","v":0}]
[null,null,null,null,0]
[null,null,null,null,0]
[null,null,null,null,0]
[null,null,null,null,0]
[null,null,null,null,0]
[null,null,null,null,0]
[null,null,null,null,0]
[null,null,null,null,0]
[null,null,null,null,0]
[null,null,null,null,0]
[null,null,null,null,0]
[null,null,null,null,0]
[null,null,null,null,0]
[null,null,null,null,0]
[null,null,null,null,0]
[null,null,null,null,0]
[null,null,null,null,0]
[null,null,null,null,0]
[null,null,null,null,0]
[null,null,null,null,0]
[null,null,null,null,0]
[null,null,null,null,0]
[null,null,null,null,0]
[null,null,null,null,0]
[null,null,null,null,0]
[null,null,null,null,0]
[null,null,null,null,0]
[null,null,null,null,0]
[null,null,null,null,0]
[null,null,null,null,0]
[null,null,null,null,0]
[null,null,null,null,0]
[null,null,null,null,0]
[null,null,null,null,0]
[null,null,null,null,0]
[null,null,null,null,0]
[null,null,null,null,0]
[null,null,null,null,0]
[null,null,null,null,0]
[null,null,null,null,0]
[null,null,null,null,0]
[null,null,null,null,0]
[null,null,null,null,0]
[null,null,null,null,0]
[null,null,null,null,0]
[null,null,null,null,0]
[null,null,null,null,0]
[null,null,null,null,0]
[null,null,null,null,0]
[null,null,null,null,0]
[null,null,null,null,0]
[null,null,null,null,0]
[null,null,null,null,0]
[null,null,null,null,0]
[null,null,null,null,0]
[null,null,null,null,0]
[null,null,null,null,0]
[null,null,null,null,0]
[null,null,null,null,0]
[null,null,null,null,0]
[null,null,null,null,0]
[null,null,null,null,0]
[null,null,null,null,0]
[null,null,null,null,{"$f":"ABS(D8973-C8973)","v":0}]
[null,null,null,null,0]
[null,null,null,null,0]
[null,null,null,null,0]
[null,null,null,null,0]
[null,null,null,null,0]
[null,null,null,null,0]
[null,null,null,null,0]
[null,null,null,null,0]
[null,null,null,null,0]
[null,null,null,null,0]
[null,null,null,null,0]
[null,null,null,null,0]
[null,null,null,null,0]
[null,null,null,null,0]
[null,null,null,null,0]
[null,null,null,null,0]
[null,null,null,null,0]
[null,null,null,null,0]
[null,null,null,null,0]
[null,null,null,null,0]
[null,null,null,null,0]
[null,null,null,null,0]
[null,null,null,null,0]
[null,null,null,null,0]
[null,null,null,null,0]
[null,null,null,null,0]
[null,null,null,null,0]
[null,null,null,null,0]
[null,null,null,null,0]
[null,null,null,null,0]
[null,null,null,null,0]
[null,null,null,null,0]
[null,null,null,null,0]
[null,null,null,null,0]
[null,null,null,null,0]
[null,null,null,null,0]
[null,null,null,null,0]
[null,null,null,null,0]
[null,null,null,null,0]
[null,null,null,null,0]
[null,null,null,null,0]
[null,null,null,null,0]
[null,null,null,null,0]
[null,null,null,null,0]
[null,null,null,null,0]
[null,null,null,null,0]
[null,null,null,null,0]
[null,null,null,null,0]
[null,null,null,null,0]
[null,null,null,null,0]
[null,null,null,null,0]
[null,null,null,null,0]
[null,null,null,null,0]
[null,null,null,null,0]
[null,null,null,null,0]
[null,null,null,null,0]
[null,null,null,null,0]
[null,null,null,null,0]
[null,null,null,null,0]
[null,null,null,null,0]
[null,null,null,null,0]
[null,null,null,null,0]
[null,null,null,null,0]
[null,null,null,null,{"$f":"ABS(D9037-C9037)","v":0}]
[null,null,null,null,0]
[null,null,null,null,0]
[null,null,null,null,0]
[null,null,null,null,0]
[null,null,null,null,0]
[null,null,null,null,0]
[null,null,null,null,0]
[null,null,null,null,0]
[null,null,null,null,0]
[null,null,null,null,0]
[null,null,null,null,0]
[null,null,null,null,0]
[null,null,null,null,0]
[null,null,null,null,0]
[null,null,null,null,0]
[null,null,null,null,0]
[null,null,null,null,0]
[null,null,null,null,0]
[null,null,null,null,0]
[null,null,null,null,0]
[null,null,null,null,0]
[null,null,null,null,0]
[null,null,null,null,0]
[null,null,null,null,0]
[null,null,null,null,0]
[null,null,null,null,0]
[null,null,null,null,0]
[null,null,null,null,0]
[null,null,null,null,0]
[null,null,null,null,0]
[null,null,null,null,0]
[null,null,null,null,0]
[null,null,null,null,0]
[null,null,null,null,0]
[null,null,null,null,0]
[null,null,null,null,0]
[null,null,null,null,0]
[null,null,null,null,0]
[null,null,null,null,0]
[null,null,null,null,0]
[null,null,null,null,0]
[null,null,null,null,0]
[null,null,null,null,0]
[null,null,null,null,0]
[null,null,null,null,0]
[null,null,null,null,0]
[null,null,null,null,0]
[null,null,null,null,0]
[null,null,null,null,0]
[null,null,null,null,0]
[null,null,null,null,0]
[null,null,null,null,0]
[null,null,null,null,0]
[null,null,null,null,0]
[null,null,null,null,0]
[null,null,null,null,0]
[null,null,null,null,0]
[null,null,null,null,0]
[null,null,null,null,0]
[null,null,null,null,0]
[null,null,null,null,0]
[null,null,null,null,0]
[null,null,null,null,0]
[null,null,null,null,{"$f":"ABS(D9101-C9101)","v":0}]
[null,null,null,null,0]
[null,null,null,null,0]
[null,null,null,null,0]
[null,null,null,null,0]
[null,null,null,null,0]
[null,null,null,null,0]
[null,null,null,null,0]
[null,null,null,null,0]
[null,null,null,null,0]
[null,null,null,null,0]
[null,null,null,null,0]
[null,null,null,null,0]
[null,null,null,null,0]
[null,null,null,null,0]
[null,null,null,null,0]
[null,null,null,null,0]
[null,null,null,null,0]
[null,null,null,null,0]
[null,null,null,null,0]
[null,null,null,null,0]
[null,null,null,null,0]
[null,null,null,null,0]
[null,null,null,null,0]
[null,null,null,null,0]
[null,null,null,null,0]
[null,null,null,null,0]
[null,null,null,null,0]
[null,null,null,null,0]
[null,null,null,null,0]
[null,null,null,null,0]
[null,null,null,null,0]
[null,null,null,null,0]
[null,null,null,null,0]
[null,null,null,null,0]
[null,null,null,null,0]
[null,null,null,null,0]
[null,null,null,null,0]
[null,null,null,null,0]
[null,null,null,null,0]
[null,null,null,null,0]
[null,null,null,null,0]
[null,null,null,null,0]
[null,null,null,null,0]
[null,null,null,null,0]
[null,null,null,null,0]
[null,null,null,null,0]
[null,null,null,null,0]
[null,null,null,null,0]
[null,null,null,null,0]
[null,null,null,null,0]
[null,null,null,null,0]
[null,null,null,null,0]
[null,null,null,null,0]
[null,null,null,null,0]
[null,null,null,null,0]
[null,null,null,null,0]
[null,null,null,null,0]
[null,null,null,null,0]
[null,null,null,null,0]
[null,null,null,null,0]
[null,null,null,null,0]
[null,null,null,null,0]
[null,null,null,null,0]
[null,null,null,null,{"$f":"ABS(D9165-C9165)","v":0}]
[null,null,null,null,0]
[null,null,null,null,0]
[null,null,null,null,0]
[null,null,null,null,0]
[null,null,null,null,0]
[null,null,null,null,0]
[null,null,null,null,0]
[null,null,null,null,0]
[null,null,null,null,0]
[null,null,null,null,0]
[null,null,null,null,0]
[null,null,null,null,0]
[null,null,null,null,0]
[null,null,null,null,0]
[null,null,null,null,0]
[null,null,null,null,0]
[null,null,null,null,0]
[null,null,null,null,0]
[null,null,null,null,0]
[null,null,null,null,0]
[null,null,null,null,0]
[null,null,null,null,0]
[null,null,null,null,0]
[null,null,null,null,0]
[null,null,null,null,0]
[null,null,null,null,0]
[null,null,null,null,0]
[null,null,null,null,0]
[null,null,null,null,0]
[null,null,null,null,0]
[null,null,null,null,0]
[null,null,null,null,0]
[null,null,null,null,0]
[null,null,null,null,0]
[null,null,null,null,0]
[null,null,null,null,0]
[null,null,null,null,0]
[null,null,null,null,0]
[null,null,null,null,0]
[null,null,null,null,0]
[null,null,null,null,0]
[null,null,null,null,0]
[null,null,null,null,0]
[null,null,null,null,0]
[null,null,null,null,0]
[null,null,null,null,0]
[null,null,null,null,0]
[null,null,null,null,0]
[null,null,null,null,0]
[null,null,null,null,0]
[null,null,null,null,0]
[null,null,null,null,0]
[null,null,null,null,0]
[null,null,null,null,0]
[null,null,null,null,0]
[null,null,null,null,0]
[null,null,null,null,0]
[null,null,null,null,0]
[null,null,null,null,0]
[null,null,null,null,0]
[null,null,null,null,0]
[null,null,null,null,0]
[null,null,null,null,0]
[null,null,null,null,{"$f":"ABS(D9229-C9229)","v":0}]
[null,null,null,null,0]
[null,null,null,null,0]
[null,null,null,null,0]
[null,null,null,null,0]
[null,null,null,null,0]
[null,null,null,null,0]
[null,null,null,null,0]
[null,null,null,null,0]
[null,null,null,null,0]
[null,null,null,null,0]
[null,null,null,null,0]
[null,null,null,null,0]
[null,null,null,null,0]
[null,null,null,null,0]
[null,null,null,null,0]
[null,null,null,null,0]
[null,null,null,null,0]
[null,null,null,null,0]
[null,null,null,null,0]
[null,null,null,null,0]
[null,null,null,null,0]
[null,null,null,null,0]
[null,null,null,null,0]
[null,null,null,null,0]
[null,null,null,null,0]
[null,null,null,null,0]
[null,null,null,null,0]
[null,null,null,null,0]
[null,null,null,null,0]
[null,null,null,null,0]
[null,null,null,null,0]
[null,null,null,null,0]
[null,null,null,null,0]
[null,null,null,null,0]
[null,null,null,null,0]
[null,null,null,null,0]
[null,null,null,null,0]
[null,null,null,null,0]
[null,null,null,null,0]
[null,null,null,null,0]
[null,null,null,null,0]
[null,null,null,null,0]
[null,null,null,null,0]
[null,null,null,null,0]
[null,null,null,null,0]
[null,null,null,null,0]
[null,null,null,null,0]
[null,null,null,null,0]
[null,null,null,null,0]
[null,null,null,null,0]
[null,null,null,null,0]
[null,null,null,null,0]
[null,null,null,null,0]
[null,null,null,null,0]
[null,null,null,null,0]
[null,null,null,null,0]
[null,null,null,null,0]
[null,null,null,null,0]
[null,null,null,null,0]
[null,null,null,null,0]
[null,null,null,null,0]
[null,null,null,null,0]
[null,null,null,null,0]
[null,null,null,null,{"$f":"ABS(D9293-C9293)","v":0}]
[null,null,null,null,0]
[null,null,null,null,0]
[null,null,null,null,0]
[null,null,null,null,0]
[null,null,null,null,0]
[null,null,null,null,0]
[null,null,null,null,0]
[null,null,null,null,0]
[null,null,null,null,0]
[null,null,null,null,0]
[null,null,null,null,0]
[null,null,null,null,0]
[null,null,null,null,0]
[null,null,null,null,0]
[null,null,null,null,0]
[null,null,null,null,0]
[null,null,null,null,0]
[null,null,null,null,0]
[null,null,null,null,0]
[null,null,null,null,0]
[null,null,null,null,0]
[null,null,null,null,0]
[null,null,null,null,0]
[null,null,null,null,0]
[null,null,null,null,0]
[null,null,null,null,0]
[null,null,null,null,0]
[null,null,null,null,0]
[null,null,null,null,0]
[null,null,null,null,0]
[null,null,null,null,0]
[null,null,null,null,0]
[null,null,null,null,0]
[null,null,null,null,0]
[null,null,null,null,0]
[null,null,null,null,0]
[null,null,null,null,0]
[null,null,null,null,0]
[null,null,null,null,0]
[null,null,null,null,0]
[null,null,null,null,0]
[null,null,null,null,0]
[null,null,null,null,0]
[null,null,null,null,0]
[null,null,null,null,0]
[null,null,null,null,0]
[null,null,null,null,0]
[null,null,null,null,0]
[null,null,null,null,0]
[null,null,null,null,0]
[null,null,null,null,0]
[null,null,null,null,0]
[null,null,null,null,0]
[null,null,null,null,0]
[null,null,null,null,0]
[null,null,null,null,0]
[null,null,null,null,0]
[null,null,null,null,0]
[null,null,null,null,0]
[null,null,null,null,0]
[null,null,null,null,0]
[null,null,null,null,0]
[null,null,null,null,0]
[null,null,null,null,{"$f":"ABS(D9357-C9357)","v":0}]
[null,null,null,null,0]
[null,null,null,null,0]
[null,null,null,null,0]
[null,null,null,null,0]
[null,null,null,null,0]
[null,null,null,null,0]
[null,null,null,null,0]
[null,null,null,null,0]
[null,null,null,null,0]
[null,null,null,null,0]
[null,null,null,null,0]
[null,null,null,null,0]
[null,null,null,null,0]
[null,null,null,null,0]
[null,null,null,null,0]
[null,null,null,null,0]
[null,null,null,null,0]
[null,null,null,null,0]
[null,null,null,null,0]
[null,null,null,null,0]
[null,null,null,null,0]
[null,null,null,null,0]
[null,null,null,null,0]
[null,null,null,null,0]
[null,null,null,null,0]
[null,null,null,null,0]
[null,null,null,null,0]
[null,null,null,null,0]
[null,null,null,null,0]
[null,null,null,null,0]
[null,null,null,null,0]
[null,null,null,null,0]
[null,null,null,null,0]
[null,null,null,null,0]
[null,null,null,null,0]
[null,null,null,null,0]
[null,null,null,null,0]
[null,null,null,null,0]
[null,null,null,null,0]
[null,null,null,null,0]
[null,null,null,null,0]
[null,null,null,null,0]
[null,null,null,null,0]
[null,null,null,null,0]
[null,null,null,null,0]
[null,null,null,null,0]
[null,null,null,null,0]
[null,null,null,null,0]
[null,null,null,null,0]
[null,null,null,null,0]
[null,null,null,null,0]
[null,null,null,null,0]
[null,null,null,null,0]
[null,null,null,null,0]
[null,null,null,null,0]
[null,null,null,null,0]
[null,null,null,null,0]
[null,null,null,null,0]
[null,null,null,null,0]
[null,null,null,null,0]
[null,null,null,null,0]
[null,null,null,null,0]
[null,null,null,null,0]
[null,null,null,null,{"$f":"ABS(D9421-C9421)","v":0}]
[null,null,null,null,0]
[null,null,null,null,0]
[null,null,null,null,0]
[null,null,null,null,0]
[null,null,null,null,0]
[null,null,null,null,0]
[null,null,null,null,0]
[null,null,null,null,0]
[null,null,null,null,0]
[null,null,null,null,0]
[null,null,null,null,0]
[null,null,null,null,0]
[null,null,null,null,0]
[null,null,null,null,0]
[null,null,null,null,0]
[null,null,null,null,0]
[null,null,null,null,0]
[null,null,null,null,0]
[null,null,null,null,0]
[null,null,null,null,0]
[null,null,null,null,0]
[null,null,null,null,0]
[null,null,null,null,0]
[null,null,null,null,0]
[null,null,null,null,0]
[null,null,null,null,0]
[null,null,null,null,0]
[null,null,null,null,0]
[null,null,null,null,0]
[null,null,null,null,0]
[null,null,null,null,0]
[null,null,null,null,0]
[null,null,null,null,0]
[null,null,null,null,0]
[null,null,null,null,0]
[null,null,null,null,0]
[null,null,null,null,0]
[null,null,null,null,0]
[null,null,null,null,0]
[null,null,null,null,0]
[null,null,null,null,0]
[null,null,null,null,0]
[null,null,null,null,0]
[null,null,null,null,0]
[null,null,null,null,0]
[null,null,null,null,0]
[null,null,null,null,0]
[null,null,null,null,0]
[null,null,null,null,0]
[null,null,null,null,0]
[null,null,null,null,0]
[null,null,null,null,0]
[null,null,null,null,0]
[null,null,null,null,0]
[null,null,null,null,0]
[null,null,null,null,0]
[null,null,null,null,0]
[null,null,null,null,0]
[null,null,null,null,0]
[null,null,null,null,0]
[null,null,null,null,0]
[null,null,null,null,0]
[null,null,null,null,0]
[null,null,null,null,{"$f":"ABS(D9485-C9485)","v":0}]
[null,null,null,null,0]
[null,null,null,null,0]
[null,null,null,null,0]
[null,null,null,null,0]
[null,null,null,null,0]
[null,null,null,null,0]
[null,null,null,null,0]
[null,null,null,null,0]
[null,null,null,null,0]
[null,null,null,null,0]
[null,null,null,null,0]
[null,null,null,null,0]
[null,null,null,null,0]
[null,null,null,null,0]
[null,null,null,null,0]
[null,null,null,null,0]
[null,null,null,null,0]
[null,null,null,null,0]
[null,null,null,null,0]
[null,null,null,null,0]
[null,null,null,null,0]
[null,null,null,null,0]
[null,null,null,null,0]
[null,null,null,null,0]
[null,null,null,null,0]
[null,null,null,null,0]
[null,null,null,null,0]
[null,null,null,null,0]
[null,null,null,null,0]
[null,null,null,null,0]
[null,null,null,null,0]
[null,null,null,null,0]
[null,null,null,null,0]
[null,null,null,null,0]
[null,null,null,null,0]
[null,null,null,null,0]
[null,null,null,null,0]
[null,null,null,null,0]
[null,null,null,null,0]
[null,null,null,null,0]
[null,null,null,null,0]
[null,null,null,null,0]
[null,null,null,null,0]
[null,null,null,null,0]
[null,null,null,null,0]
[null,null,null,null,0]
[null,null,null,null,0]
[null,null,null,null,0]
[null,null,null,null,0]
[null,null,null,null,0]
[null,null,null,null,0]
[null,null,null,null,0]
[null,null,null,null,0]
[null,null,null,null,0]
[null,null,null,null,0]
[null,null,null,null,0]
[null,null,null,null,0]
[null,null,null,null,0]
[null,null,null,null,0]
[null,null,null,null,0]
[null,null,null,null,0]
[null,null,null,null,0]
[null,null,null,null,0]
[null,null,null,null,{"$f":"ABS(D9549-C9549)","v":0}]
[null,null,null,null,0]
[null,null,null,null,0]
[null,null,null,null,0]
[null,null,null,null,0]
[null,null,null,null,0]
[null,null,null,null,0]
[null,null,null,null,0]
[null,null,null,null,0]
[null,null,null,null,0]
[null,null,null,null,0]
[null,null,null,null,0]
[null,null,null,null,0]
[null,null,null,null,0]
[null,null,null,null,0]
[null,null,null,null,0]
[null,null,null,null,0]
[null,null,null,null,0]
[null,null,null,null,0]
[null,null,null,null,0]
[null,null,null,null,0]
[null,null,null,null,0]
[null,null,null,null,0]
[null,null,null,null,0]
[null,null,null,null,0]
[null,null,null,null,0]
[null,null,null,null,0]
[null,null,null,null,0]
[null,null,null,null,0]
[null,null,null,null,0]
[null,null,null,null,0]
[null,null,null,null,0]
[null,null,null,null,0]
[null,null,null,null,0]
[null,null,null,null,0]
[null,null,null,null,0]
[null,null,null,null,0]
[null,null,null,null,0]
[null,null,null,null,0]
[null,null,null,null,0]
[null,null,null,null,0]
[null,null,null,null,0]
[null,null,null,null,0]
[null,null,null,null,0]
[null,null,null,null,0]
[null,null,null,null,0]
[null,null,null,null,0]
[null,null,null,null,0]
[null,null,null,null,0]
[null,null,null,null,0]
[null,null,null,null,0]
[null,null,null,null,0]
[null,null,null,null,0]
[null,null,null,null,0]
[null,null,null,null,0]
[null,null,null,null,0]
[null,null,null,null,0]
[null,null,null,null,0]
[null,null,null,null,0]
[null,null,null,null,0]
[null,null,null,null,0]
[null,null,null,null,0]
[null,null,null,null,0]
[null,null,null,null,0]
[null,null,null,null,{"$f":"ABS(D9613-C9613)","v":0}]
[null,null,null,null,0]
[null,null,null,null,0]
[null,null,null,null,0]
[null,null,null,null,0]
[null,null,null,null,0]
[null,null,null,null,0]
[null,null,null,null,0]
[null,null,null,null,0]
[null,null,null,null,0]
[null,null,null,null,0]
[null,null,null,null,0]
[null,null,null,null,0]
[null,null,null,null,0]
[null,null,null,null,0]
[null,null,null,null,0]
[null,null,null,null,0]
[null,null,null,null,0]
[null,null,null,null,0]
[null,null,null,null,0]
[null,null,null,null,0]
[null,null,null,null,0]
[null,null,null,null,0]
[null,null,null,null,0]
[null,null,null,null,0]
[null,null,null,null,0]
[null,null,null,null,0]
[null,null,null,null,0]
[null,null,null,null,0]
[null,null,null,null,0]
[null,null,null,null,0]
[null,null,null,null,0]
[null,null,null,null,0]
[null,null,null,null,0]
[null,null,null,null,0]
[null,null,null,null,0]
[null,null,null,null,0]
[null,null,null,null,0]
[null,null,null,null,0]
[null,null,null,null,0]
[null,null,null,null,0]
[null,null,null,null,0]
[null,null,null,null,0]
[null,null,null,null,0]
[null,null,null,null,0]
[null,null,null,null,0]
[null,null,null,null,0]
[null,null,null,null,0]
[null,null,null,null,0]
[null,null,null,null,0]
[null,null,null,null,0]
[null,null,null,null,0]
[null,null,null,null,0]
[null,null,null,null,0]
[null,null,null,null,0]
[null,null,null,null,0]
[null,null,null,null,0]
[null,null,null,null,0]
[null,null,null,null,0]
[null,null,null,null,0]
[null,null,null,null,0]
[null,null,null,null,0]
[null,null,null,null,0]
[null,null,null,null,0]
[null,null,null,null,{"$f":"ABS(D9677-C9677)","v":0}]
[null,null,null,null,0]
[null,null,null,null,0]
[null,null,null,null,0]
[null,null,null,null,0]
[null,null,null,null,0]
[null,null,null,null,0]
[null,null,null,null,0]
[null,null,null,null,0]
[null,null,null,null,0]
[null,null,null,null,0]
[null,null,null,null,0]
[null,null,null,null,0]
[null,null,null,null,0]
[null,null,null,null,0]
[null,null,null,null,0]
[null,null,null,null,0]
[null,null,null,null,0]
[null,null,null,null,0]
[null,null,null,null,0]
[null,null,null,null,0]
[null,null,null,null,0]
[null,null,null,null,0]
[null,null,null,null,0]
[null,null,null,null,0]
[null,null,null,null,0]
[null,null,null,null,0]
[null,null,null,null,0]
[null,null,null,null,0]
[null,null,null,null,0]
[null,null,null,null,0]
[null,null,null,null,0]
[null,null,null,null,0]
[null,null,null,null,0]
[null,null,null,null,0]
[null,null,null,null,0]
[null,null,null,null,0]
[null,null,null,null,0]
[null,null,null,null,0]
[null,null,null,null,0]
[null,null,null,null,0]
[null,null,null,null,0]
[null,null,null,null,0]
[null,null,null,null,0]
[null,null,null,null,0]
[null,null,null,null,0]
[null,null,null,null,0]
[null,null,null,null,0]
[null,null,null,null,0]
[null,null,null,null,0]
[null,null,null,null,0]
[null,null,null,null,0]
[null,null,null,null,0]
[null,null,null,null,0]
[null,null,null,null,0]
[null,null,null,null,0]
[null,null,null,null,0]
[null,null,null,null,0]
[null,null,null,null,0]
[null,null,null,null,0]
[null,null,null,null,0]
[null,null,null,null,0]
[null,null,null,null,0]
[null,null,null,null,0]
[null,null,null,null,{"$f":"ABS(D9741-C9741)","v":0}]
[null,null,null,null,0]
[null,null,null,null,0]
[null,null,null,null,0]
[null,null,null,null,0]
[null,null,null,null,0]
[null,null,null,null,0]
[null,null,null,null,0]
[null,null,null,null,0]
[null,null,null,null,0]
[null,null,null,null,0]
[null,null,null,null,0]
[null,null,null,null,0]
[null,null,null,null,0]
[null,null,null,null,0]
[null,null,null,null,0]
[null,null,null,null,0]
[null,null,null,null,0]
[null,null,null,null,0]
[null,null,null,null,0]
[null,null,null,null,0]
[null,null,null,null,0]
[null,null,null,null,0]
[null,null,null,null,0]
[null,null,null,null,0]
[null,null,null,null,0]
[null,null,null,null,0]
[null,null,null,null,0]
[null,null,null,null,0]
[null,null,null,null,0]
[null,null,null,null,0]
[null,null,null,null,0]
[null,null,null,null,0]
[null,null,null,null,0]
[null,null,null,null,0]
[null,null,null,null,0]
[null,null,null,null,0]
[null,null,null,null,0]
[null,null,null,null,0]
[null,null,null,null,0]
[null,null,null,null,0]
[null,null,null,null,0]
[null,null,null,null,0]
[null,null,null,null,0]
[null,null,null,null,0]
[null,null,null,null,0]
[null,null,null,null,0]
[null,null,null,null,0]
[null,null,null,null,0]
[null,null,null,null,0]
[null,null,null,null,0]
[null,null,null,null,0]
[null,null,null,null,0]
[null,null,null,null,0]
[null,null,null,null,0]
[null,null,null,null,0]
[null,null,null,null,0]
[null,null,null,null,0]
[null,null,null,null,0]
[null,null,null,null,0]
[null,null,null,null,0]
[null,null,null,null,0]
[null,null,null,null,0]
[null,null,null,null,0]
[null,null,null,null,{"$f":"ABS(D9805-C9805)","v":0}]
[null,null,null,null,0]
[null,null,null,null,0]
[null,null,null,null,0]
[null,null,null,null,0]
[null,null,null,null,0]
[null,null,null,null,0]
[null,null,null,null,0]
[null,null,null,null,0]
[null,null,null,null,0]
[null,null,null,null,0]
[null,null,null,null,0]
[null,null,null,null,0]
[null,null,null,null,0]
[null,null,null,null,0]
[null,null,null,null,0]
[null,null,null,null,0]
[null,null,null,null,0]
[null,null,null,null,0]
[null,null,null,null,0]
[null,null,null,null,0]
[null,null,null,null,0]
[null,null,null,null,0]
[null,null,null,null,0]
[null,null,null,null,0]
[null,null,null,null,0]
[null,null,null,null,0]
[null,null,null,null,0]
[null,null,null,null,0]
[null,null,null,null,0]
[null,null,null,null,0]
[null,null,null,null,0]
[null,null,null,null,0]
[null,null,null,null,0]
[null,null,null,null,0]
[null,null,null,null,0]
[null,null,null,null,0]
[null,null,null,null,0]
[null,null,null,null,0]
[null,null,null,null,0]
[null,null,null,null,0]
[null,null,null,null,0]
[null,null,null,null,0]
[null,null,null,null,0]
[null,null,null,null,0]
[null,null,null,null,0]
[null,null,null,null,0]
[null,null,null,null,0]
[null,null,null,null,0]
[null,null,null,null,0]
[null,null,null,null,0]
[null,null,null,null,0]
[null,null,null,null,0]
[null,null,null,null,0]
[null,null,null,null,0]
[null,null,null,null,0]
[null,null,null,null,0]
[null,null,null,null,0]
[null,null,null,null,0]
[null,null,null,null,0]
[null,null,null,null,0]
[null,null,null,null,0]
[null,null,null,null,0]
[null,null,null,null,0]
[null,null,null,null,{"$f":"ABS(D9869-C9869)","v":0}]
[null,null,null,null,0]
[null,null,null,null,0]
[null,null,null,null,0]
[null,null,null,null,0]
[null,null,null,null,0]
[null,null,null,null,0]
[null,null,null,null,0]
[null,null,null,null,0]
[null,null,null,null,0]
[null,null,null,null,0]
[null,null,null,null,0]
[null,null,null,null,0]
[null,null,null,null,0]
[null,null,null,null,0]
[null,null,null,null,0]
[null,null,null,null,0]
[null,null,null,null,0]
[null,null,null,null,0]
[null,null,null,null,0]
[null,null,null,null,0]
[null,null,null,null,0]
[null,null,null,null,0]
[null,null,null,null,0]
[null,null,null,null,0]
[null,null,null,null,0]
[null,null,null,null,0]
[null,null,null,null,0]
[null,null,null,null,0]
[null,null,null,null,0]
[null,null,null,null,0]
[null,null,null,null,0]
[null,null,null,null,0]
[null,null,null,null,0]
[null,null,null,null,0]
[null,null,null,null,0]
[null,null,null,null,0]
[null,null,null,null,0]
[null,null,null,null,0]
[null,null,null,null,0]
[null,null,null,null,0]
[null,null,null,null,0]
[null,null,null,null,0]
[null,null,null,null,0]
[null,null,null,null,0]
[null,null,null,null,0]
[null,null,null,null,0]
[null,null,null,null,0]
[null,null,null,null,0]
[null,null,null,null,0]
[null,null,null,null,0]
[null,null,null,null,0]
[null,null,null,null,0]
[null,null,null,null,0]
[null,null,null,null,0]
[null,null,null,null,0]
[null,null,null,null,0]
[null,null,null,null,0]
[null,null,null,null,0]
[null,null,null,null,0]
[null,null,null,null,0]
[null,null,null,null,0]
[null,null,null,null,0]
[null,null,null,null,0]
[null,null,null,null,{"$f":"ABS(D9933-C9933)","v":0}]
[null,null,null,null,0]
[null,null,null,null,0]
[null,null,null,null,0]
[null,null,null,null,0]
[null,null,null,null,0]
[null,null,null,null,0]
[null,null,null,null,0]
[null,null,null,null,0]
[null,null,null,null,0]
[null,null,null,null,0]
[null,null,null,null,0]
[null,null,null,null,0]
[null,null,null,null,0]
[null,null,null,null,0]
[null,null,null,null,0]
[null,null,null,null,0]
[null,null,null,null,0]
[null,null,null,null,0]
[null,null,null,null,0]
[null,null,null,null,0]
[null,null,null,null,0]
[null,null,null,null,0]
[null,null,null,null,0]
[null,null,null,null,0]
[null,null,null,null,0]
[null,null,null,null,0]
[null,null,null,null,0]
[null,null,null,null,0]
[null,null,null,null,0]
[null,null,null,null,0]
[null,null,null,null,0]
[null,null,null,null,0]
[null,null,null,null,0]
[null,null,null,null,0]
[null,null,null,null,0]
[null,null,null,null,0]
[null,null,null,null,0]
[null,null,null,null,0]
[null,null,null,null,0]
[null,null,null,null,0]
[null,null,null,null,0]
[null,null,null,null,0]
[null,null,null,null,0]
[null,null,null,null,0]
[null,null,null,null,0]
[null,null,null,null,0]
[null,null,null,null,0]
[null,null,null,null,0]
[null,null,null,null,0]
[null,null,null,null,0]
[null,null,null,null,0]
[null,null,null,null,0]
[null,null,null,null,0]
[null,null,null,null,0]
[null,null,null,null,0]
[null,null,null,null,0]
[null,null,null,null,0]
[null,null,null,null,0]
[null,null,null,null,0]
[null,null,null,null,0]
[null,null,null,null,0]
[null,null,null,null,0]
[null,null,null,null,0]
[null,null,null,null,{"$f":"ABS(D9997-C9997)","v":0}]
[null,null,null,null,{"$f":"ABS(D9998-C9998)","v":0}]
[null,null,null,null,{"$f":"ABS(D9999-C9999)","v":0}]
[null,null,null,null,{"$f":"ABS(D10000-C10000)","v":0}]

{"sheet":"Chart-Solar Flux","index":12,"n_rows":12,"n_cols":12,"rows_kept":12,"cut":false,"hidden":false,"merged":[]}
[]
[null,null,null,null,null,null,null,null,null,"Diel Solar Heat Flux Profile for River KM = 101.28"]
[]
[]
[null,null,null,null,null,null,null,null,null,null,"Effective Shade = ",0.73000001907348633]
[]
[]
[]
[null,null,"Solar Radiation (W/m2)"]
[null,null,"Directly","Received"]
[null,null,"Above","by"]
[null,"Potential","Stream","Stream"]

{"sheet":"Output - Temperature","index":13,"n_rows":16,"n_cols":245,"rows_kept":16,"cut":false,"hidden":false,"merged":[]}
[]
[null,null,null,null,null,null,null,"Simulation Name:"]
[null,null,null,null,null,null,null,"Date:"]
[null,null,null,null,null,null,null,"Time Step - dT (min):"]
[null,null,null,null,null,null,null,"Distance Step - dX (m):"]
[null,null,null,null,null,null,null,"Stream Length (km):"]
[null,null,null,null,null,null,null,"Longitudinal Sample Rate (m):"]
[null,null,null,null,null,null,null,"Transverse Sample Rate (m):"]
[null,null,null,null,null,null,null,"Inflow Sites:"]
[null,null,null,null,null,null,null,"Continuous Data Sites:"]
[null,null,null,null,null,null,null,"Flush Initial Condition (days):"]
[null,null,null,null,null,null,null,"Time Zone:"]
[null,null,null,null,null,null,null,"Simulation Period (days):"]
[]
[]
[null,"Locational Information (optional)","Heat Source Node","Long. Distance (km)","Stream km","2002-07-12T00:00:00.001","2002-07-12T02:00:00.001","2002-07-12T04:00:00.001","2002-07-12T06:00:00.001","2002-07-12T08:00:00.002","2002-07-12T10:00:00.002","2002-07-12T12:00:00.002","2002-07-12T14:00:00.002","2002-07-12T16:00:00.002","2002-07-12T18:00:00.002","2002-07-12T20:00:00.002","2002-07-12T22:00:00.002","2002-07-13T00:00:00.002","2002-07-13T02:00:00.002","2002-07-13T04:00:00.002","2002-07-13T06:00:00.002","2002-07-13T08:00:00.002","2002-07-13T10:00:00.002","2002-07-13T12:00:00.002","2002-07-13T14:00:00.002","2002-07-13T16:00:00.002","2002-07-13T18:00:00.002","2002-07-13T20:00:00.002","2002-07-13T22:00:00.002","2002-07-14T00:00:00.002","2002-07-14T02:00:00.002","2002-07-14T04:00:00.002","2002-07-14T06:00:00.002","2002-07-14T08:00:00.002","2002-07-14T10:00:00.002","2002-07-14T12:00:00.002","2002-07-14T14:00:00.002","2002-07-14T16:00:00.002","2002-07-14T18:00:00.002","2002-07-14T20:00:00.002","2002-07-14T22:00:00.002","2002-07-15T00:00:00.002","2002-07-15T02:00:00.002","2002-07-15T04:00:00.002","2002-07-15T06:00:00.002","2002-07-15T08:00:00.002","2002-07-15T10:00:00.002","2002-07-15T12:00:00.002","2002-07-15T14:00:00.002","2002-07-15T16:00:00.002","2002-07-15T18:00:00.002","2002-07-15T20:00:00.002","2002-07-15T22:00:00.003","2002-07-16T00:00:00.003","2002-07-16T02:00:00.003","2002-07-16T04:00:00.003","2002-07-16T06:00:00.003","2002-07-16T08:00:00.003","2002-07-16T10:00:00.003","2002-07-16T12:00:00.003","2002-07-16T14:00:00.003","2002-07-16T16:00:00.003","2002-07-16T18:00:00.003","2002-07-16T20:00:00.003","2002-07-16T22:00:00.003","2002-07-17T00:00:00.003","2002-07-17T02:00:00.003","2002-07-17T04:00:00.003","2002-07-17T06:00:00.003","2002-07-17T08:00:00.003","2002-07-17T10:00:00.003","2002-07-17T12:00:00.003","2002-07-17T14:00:00.003","2002-07-17T16:00:00.003","2002-07-17T18:00:00.003","2002-07-17T20:00:00.003","2002-07-17T22:00:00.003","2002-07-18T00:00:00.003","2002-07-18T02:00:00.003","2002-07-18T04:00:00.003","2002-07-18T06:00:00.003","2002-07-18T08:00:00.003","2002-07-18T10:00:00.003","2002-07-18T12:00:00.003","2002-07-18T14:00:00.003","2002-07-18T16:00:00.003","2002-07-18T18:00:00.003","2002-07-18T20:00:00.003","2002-07-18T22:00:00.003","2002-07-19T00:00:00.003","2002-07-19T02:00:00.003","2002-07-19T04:00:00.003","2002-07-19T06:00:00.003","2002-07-19T08:00:00.003","2002-07-19T10:00:00.003","2002-07-19T12:00:00.004","2002-07-19T14:00:00.004","2002-07-19T16:00:00.004","2002-07-19T18:00:00.004","2002-07-19T20:00:00.004","2002-07-19T22:00:00.004","2002-07-20T00:00:00.004","2002-07-20T02:00:00.004","2002-07-20T04:00:00.004","2002-07-20T06:00:00.004","2002-07-20T08:00:00.004","2002-07-20T10:00:00.004","2002-07-20T12:00:00.004","2002-07-20T14:00:00.004","2002-07-20T16:00:00.004","2002-07-20T18:00:00.004","2002-07-20T20:00:00.004","2002-07-20T22:00:00.004","2002-07-21T00:00:00.004","2002-07-21T02:00:00.004","2002-07-21T04:00:00.004","2002-07-21T06:00:00.004","2002-07-21T08:00:00.004","2002-07-21T10:00:00.004","2002-07-21T12:00:00.004","2002-07-21T14:00:00.004","2002-07-21T16:00:00.004","2002-07-21T18:00:00.004","2002-07-21T20:00:00.004","2002-07-21T22:00:00.004","2002-07-22T00:00:00.004","2002-07-22T02:00:00.004","2002-07-22T04:00:00.004","2002-07-22T06:00:00.004","2002-07-22T08:00:00.004","2002-07-22T10:00:00.004","2002-07-22T12:00:00.004","2002-07-22T14:00:00.004","2002-07-22T16:00:00.004","2002-07-22T18:00:00.004","2002-07-22T20:00:00.004","2002-07-22T22:00:00.004","2002-07-23T00:00:00.005","2002-07-23T02:00:00.005","2002-07-23T04:00:00.005","2002-07-23T06:00:00.005","2002-07-23T08:00:00.005","2002-07-23T10:00:00.005","2002-07-23T12:00:00.005","2002-07-23T14:00:00.005","2002-07-23T16:00:00.005","2002-07-23T18:00:00.005","2002-07-23T20:00:00.005","2002-07-23T22:00:00.005","2002-07-24T00:00:00.005","2002-07-24T02:00:00.005","2002-07-24T04:00:00.005","2002-07-24T06:00:00.005","2002-07-24T08:00:00.005","2002-07-24T10:00:00.005","2002-07-24T12:00:00.005","2002-07-24T14:00:00.005","2002-07-24T16:00:00.005","2002-07-24T18:00:00.005","2002-07-24T20:00:00.005","2002-07-24T22:00:00.005","2002-07-25T00:00:00.005","2002-07-25T02:00:00.005","2002-07-25T04:00:00.005","2002-07-25T06:00:00.005","2002-07-25T08:00:00.005","2002-07-25T10:00:00.005","2002-07-25T12:00:00.005","2002-07-25T14:00:00.005","2002-07-25T16:00:00.005","2002-07-25T18:00:00.005","2002-07-25T20:00:00.005","2002-07-25T22:00:00.005","2002-07-26T00:00:00.005","2002-07-26T02:00:00.005","2002-07-26T04:00:00.005","2002-07-26T06:00:00.005","2002-07-26T08:00:00.005","2002-07-26T10:00:00.005","2002-07-26T12:00:00.005","2002-07-26T14:00:00.006","2002-07-26T16:00:00.006","2002-07-26T18:00:00.006","2002-07-26T20:00:00.006","2002-07-26T22:00:00.006","2002-07-27T00:00:00.006","2002-07-27T02:00:00.006","2002-07-27T04:00:00.006","2002-07-27T06:00:00.006","2002-07-27T08:00:00.006","2002-07-27T10:00:00.006","2002-07-27T12:00:00.006","2002-07-27T14:00:00.006","2002-07-27T16:00:00.006","2002-07-27T18:00:00.006","2002-07-27T20:00:00.006","2002-07-27T22:00:00.006","2002-07-28T00:00:00.006","2002-07-28T02:00:00.006","2002-07-28T04:00:00.006","2002-07-28T06:00:00.006","2002-07-28T08:00:00.006","2002-07-28T10:00:00.006","2002-07-28T12:00:00.006","2002-07-28T14:00:00.006","2002-07-28T16:00:00.006","2002-07-28T18:00:00.006","2002-07-28T20:00:00.006","2002-07-28T22:00:00.006","2002-07-29T00:00:00.006","2002-07-29T02:00:00.006","2002-07-29T04:00:00.006","2002-07-29T06:00:00.006","2002-07-29T08:00:00.006","2002-07-29T10:00:00.006","2002-07-29T12:00:00.006","2002-07-29T14:00:00.006","2002-07-29T16:00:00.006","2002-07-29T18:00:00.006","2002-07-29T20:00:00.006","2002-07-29T22:00:00.006","2002-07-30T00:00:00.006","2002-07-30T02:00:00.007","2002-07-30T04:00:00.007","2002-07-30T06:00:00.007","2002-07-30T08:00:00.007","2002-07-30T10:00:00.007","2002-07-30T12:00:00.007","2002-07-30T14:00:00.007","2002-07-30T16:00:00.007","2002-07-30T18:00:00.007","2002-07-30T20:00:00.007","2002-07-30T22:00:00.007","2002-07-31T00:00:00.007","2002-07-31T02:00:00.007","2002-07-31T04:00:00.007","2002-07-31T06:00:00.007","2002-07-31T08:00:00.007","2002-07-31T10:00:00.007","2002-07-31T12:00:00.007","2002-07-31T14:00:00.007","2002-07-31T16:00:00.007","2002-07-31T18:00:00.007","2002-07-31T20:00:00.007","2002-07-31T22:00:00.007"]

{"sheet":"Output - Solar Potential","index":14,"n_rows":16,"n_cols":245,"rows_kept":16,"cut":false,"hidden":false,"merged":[]}
[]
[null,null,null,null,null,null,null,"Simulation Name:"]
[null,null,null,null,null,null,null,"Date:"]
[null,null,null,null,null,null,null,"Time Step - dT (min):"]
[null,null,null,null,null,null,null,"Distance Step - dX (m):"]
[null,null,null,null,null,null,null,"Stream Length (km):"]
[null,null,null,null,null,null,null,"Longitudinal Sample Rate (m):"]
[null,null,null,null,null,null,null,"Transverse Sample Rate (m):"]
[null,null,null,null,null,null,null,"Inflow Sites:"]
[null,null,null,null,null,null,null,"Continuous Data Sites:"]
[null,null,null,null,null,null,null,"Flush Initial Condition (days):"]
[null,null,null,null,null,null,null,"Time Zone:"]
[null,null,null,null,null,null,null,"Simulation Period (days):"]
[]
[]
[null,"Locational Information (optional)","Heat Source Node","Long. Distance (km)","Stream km","2002-07-12T00:00:00.001","2002-07-12T02:00:00.001","2002-07-12T04:00:00.001","2002-07-12T06:00:00.001","2002-07-12T08:00:00.002","2002-07-12T10:00:00.002","2002-07-12T12:00:00.002","2002-07-12T14:00:00.002","2002-07-12T16:00:00.002","2002-07-12T18:00:00.002","2002-07-12T20:00:00.002","2002-07-12T22:00:00.002","2002-07-13T00:00:00.002","2002-07-13T02:00:00.002","2002-07-13T04:00:00.002","2002-07-13T06:00:00.002","2002-07-13T08:00:00.002","2002-07-13T10:00:00.002","2002-07-13T12:00:00.002","2002-07-13T14:00:00.002","2002-07-13T16:00:00.002","2002-07-13T18:00:00.002","2002-07-13T20:00:00.002","2002-07-13T22:00:00.002","2002-07-14T00:00:00.002","2002-07-14T02:00:00.002","2002-07-14T04:00:00.002","2002-07-14T06:00:00.002","2002-07-14T08:00:00.002","2002-07-14T10:00:00.002","2002-07-14T12:00:00.002","2002-07-14T14:00:00.002","2002-07-14T16:00:00.002","2002-07-14T18:00:00.002","2002-07-14T20:00:00.002","2002-07-14T22:00:00.002","2002-07-15T00:00:00.002","2002-07-15T02:00:00.002","2002-07-15T04:00:00.002","2002-07-15T06:00:00.002","2002-07-15T08:00:00.002","2002-07-15T10:00:00.002","2002-07-15T12:00:00.002","2002-07-15T14:00:00.002","2002-07-15T16:00:00.002","2002-07-15T18:00:00.002","2002-07-15T20:00:00.002","2002-07-15T22:00:00.003","2002-07-16T00:00:00.003","2002-07-16T02:00:00.003","2002-07-16T04:00:00.003","2002-07-16T06:00:00.003","2002-07-16T08:00:00.003","2002-07-16T10:00:00.003","2002-07-16T12:00:00.003","2002-07-16T14:00:00.003","2002-07-16T16:00:00.003","2002-07-16T18:00:00.003","2002-07-16T20:00:00.003","2002-07-16T22:00:00.003","2002-07-17T00:00:00.003","2002-07-17T02:00:00.003","2002-07-17T04:00:00.003","2002-07-17T06:00:00.003","2002-07-17T08:00:00.003","2002-07-17T10:00:00.003","2002-07-17T12:00:00.003","2002-07-17T14:00:00.003","2002-07-17T16:00:00.003","2002-07-17T18:00:00.003","2002-07-17T20:00:00.003","2002-07-17T22:00:00.003","2002-07-18T00:00:00.003","2002-07-18T02:00:00.003","2002-07-18T04:00:00.003","2002-07-18T06:00:00.003","2002-07-18T08:00:00.003","2002-07-18T10:00:00.003","2002-07-18T12:00:00.003","2002-07-18T14:00:00.003","2002-07-18T16:00:00.003","2002-07-18T18:00:00.003","2002-07-18T20:00:00.003","2002-07-18T22:00:00.003","2002-07-19T00:00:00.003","2002-07-19T02:00:00.003","2002-07-19T04:00:00.003","2002-07-19T06:00:00.003","2002-07-19T08:00:00.003","2002-07-19T10:00:00.003","2002-07-19T12:00:00.004","2002-07-19T14:00:00.004","2002-07-19T16:00:00.004","2002-07-19T18:00:00.004","2002-07-19T20:00:00.004","2002-07-19T22:00:00.004","2002-07-20T00:00:00.004","2002-07-20T02:00:00.004","2002-07-20T04:00:00.004","2002-07-20T06:00:00.004","2002-07-20T08:00:00.004","2002-07-20T10:00:00.004","2002-07-20T12:00:00.004","2002-07-20T14:00:00.004","2002-07-20T16:00:00.004","2002-07-20T18:00:00.004","2002-07-20T20:00:00.004","2002-07-20T22:00:00.004","2002-07-21T00:00:00.004","2002-07-21T02:00:00.004","2002-07-21T04:00:00.004","2002-07-21T06:00:00.004","2002-07-21T08:00:00.004","2002-07-21T10:00:00.004","2002-07-21T12:00:00.004","2002-07-21T14:00:00.004","2002-07-21T16:00:00.004","2002-07-21T18:00:00.004","2002-07-21T20:00:00.004","2002-07-21T22:00:00.004","2002-07-22T00:00:00.004","2002-07-22T02:00:00.004","2002-07-22T04:00:00.004","2002-07-22T06:00:00.004","2002-07-22T08:00:00.004","2002-07-22T10:00:00.004","2002-07-22T12:00:00.004","2002-07-22T14:00:00.004","2002-07-22T16:00:00.004","2002-07-22T18:00:00.004","2002-07-22T20:00:00.004","2002-07-22T22:00:00.004","2002-07-23T00:00:00.005","2002-07-23T02:00:00.005","2002-07-23T04:00:00.005","2002-07-23T06:00:00.005","2002-07-23T08:00:00.005","2002-07-23T10:00:00.005","2002-07-23T12:00:00.005","2002-07-23T14:00:00.005","2002-07-23T16:00:00.005","2002-07-23T18:00:00.005","2002-07-23T20:00:00.005","2002-07-23T22:00:00.005","2002-07-24T00:00:00.005","2002-07-24T02:00:00.005","2002-07-24T04:00:00.005","2002-07-24T06:00:00.005","2002-07-24T08:00:00.005","2002-07-24T10:00:00.005","2002-07-24T12:00:00.005","2002-07-24T14:00:00.005","2002-07-24T16:00:00.005","2002-07-24T18:00:00.005","2002-07-24T20:00:00.005","2002-07-24T22:00:00.005","2002-07-25T00:00:00.005","2002-07-25T02:00:00.005","2002-07-25T04:00:00.005","2002-07-25T06:00:00.005","2002-07-25T08:00:00.005","2002-07-25T10:00:00.005","2002-07-25T12:00:00.005","2002-07-25T14:00:00.005","2002-07-25T16:00:00.005","2002-07-25T18:00:00.005","2002-07-25T20:00:00.005","2002-07-25T22:00:00.005","2002-07-26T00:00:00.005","2002-07-26T02:00:00.005","2002-07-26T04:00:00.005","2002-07-26T06:00:00.005","2002-07-26T08:00:00.005","2002-07-26T10:00:00.005","2002-07-26T12:00:00.005","2002-07-26T14:00:00.006","2002-07-26T16:00:00.006","2002-07-26T18:00:00.006","2002-07-26T20:00:00.006","2002-07-26T22:00:00.006","2002-07-27T00:00:00.006","2002-07-27T02:00:00.006","2002-07-27T04:00:00.006","2002-07-27T06:00:00.006","2002-07-27T08:00:00.006","2002-07-27T10:00:00.006","2002-07-27T12:00:00.006","2002-07-27T14:00:00.006","2002-07-27T16:00:00.006","2002-07-27T18:00:00.006","2002-07-27T20:00:00.006","2002-07-27T22:00:00.006","2002-07-28T00:00:00.006","2002-07-28T02:00:00.006","2002-07-28T04:00:00.006","2002-07-28T06:00:00.006","2002-07-28T08:00:00.006","2002-07-28T10:00:00.006","2002-07-28T12:00:00.006","2002-07-28T14:00:00.006","2002-07-28T16:00:00.006","2002-07-28T18:00:00.006","2002-07-28T20:00:00.006","2002-07-28T22:00:00.006","2002-07-29T00:00:00.006","2002-07-29T02:00:00.006","2002-07-29T04:00:00.006","2002-07-29T06:00:00.006","2002-07-29T08:00:00.006","2002-07-29T10:00:00.006","2002-07-29T12:00:00.006","2002-07-29T14:00:00.006","2002-07-29T16:00:00.006","2002-07-29T18:00:00.006","2002-07-29T20:00:00.006","2002-07-29T22:00:00.006","2002-07-30T00:00:00.006","2002-07-30T02:00:00.007","2002-07-30T04:00:00.007","2002-07-30T06:00:00.007","2002-07-30T08:00:00.007","2002-07-30T10:00:00.007","2002-07-30T12:00:00.007","2002-07-30T14:00:00.007","2002-07-30T16:00:00.007","2002-07-30T18:00:00.007","2002-07-30T20:00:00.007","2002-07-30T22:00:00.007","2002-07-31T00:00:00.007","2002-07-31T02:00:00.007","2002-07-31T04:00:00.007","2002-07-31T06:00:00.007","2002-07-31T08:00:00.007","2002-07-31T10:00:00.007","2002-07-31T12:00:00.007","2002-07-31T14:00:00.007","2002-07-31T16:00:00.007","2002-07-31T18:00:00.007","2002-07-31T20:00:00.007","2002-07-31T22:00:00.007"]

{"sheet":"Output - Solar Surface","index":15,"n_rows":16,"n_cols":245,"rows_kept":16,"cut":false,"hidden":false,"merged":[]}
[]
[null,null,null,null,null,null,null,"Simulation Name:"]
[null,null,null,null,null,null,null,"Date:"]
[null,null,null,null,null,null,null,"Time Step - dT (min):"]
[null,null,null,null,null,null,null,"Distance Step - dX (m):"]
[null,null,null,null,null,null,null,"Stream Length (km):"]
[null,null,null,null,null,null,null,"Longitudinal Sample Rate (m):"]
[null,null,null,null,null,null,null,"Transverse Sample Rate (m):"]
[null,null,null,null,null,null,null,"Inflow Sites:"]
[null,null,null,null,null,null,null,"Continuous Data Sites:"]
[null,null,null,null,null,null,null,"Flush Initial Condition (days):"]
[null,null,null,null,null,null,null,"Time Zone:"]
[null,null,null,null,null,null,null,"Simulation Period (days):"]
[]
[]
[null,"Locational Information (optional)","Heat Source Node","Long. Distance (km)","Stream km","2002-07-12T00:00:00.001","2002-07-12T02:00:00.001","2002-07-12T04:00:00.001","2002-07-12T06:00:00.001","2002-07-12T08:00:00.002","2002-07-12T10:00:00.002","2002-07-12T12:00:00.002","2002-07-12T14:00:00.002","2002-07-12T16:00:00.002","2002-07-12T18:00:00.002","2002-07-12T20:00:00.002","2002-07-12T22:00:00.002","2002-07-13T00:00:00.002","2002-07-13T02:00:00.002","2002-07-13T04:00:00.002","2002-07-13T06:00:00.002","2002-07-13T08:00:00.002","2002-07-13T10:00:00.002","2002-07-13T12:00:00.002","2002-07-13T14:00:00.002","2002-07-13T16:00:00.002","2002-07-13T18:00:00.002","2002-07-13T20:00:00.002","2002-07-13T22:00:00.002","2002-07-14T00:00:00.002","2002-07-14T02:00:00.002","2002-07-14T04:00:00.002","2002-07-14T06:00:00.002","2002-07-14T08:00:00.002","2002-07-14T10:00:00.002","2002-07-14T12:00:00.002","2002-07-14T14:00:00.002","2002-07-14T16:00:00.002","2002-07-14T18:00:00.002","2002-07-14T20:00:00.002","2002-07-14T22:00:00.002","2002-07-15T00:00:00.002","2002-07-15T02:00:00.002","2002-07-15T04:00:00.002","2002-07-15T06:00:00.002","2002-07-15T08:00:00.002","2002-07-15T10:00:00.002","2002-07-15T12:00:00.002","2002-07-15T14:00:00.002","2002-07-15T16:00:00.002","2002-07-15T18:00:00.002","2002-07-15T20:00:00.002","2002-07-15T22:00:00.003","2002-07-16T00:00:00.003","2002-07-16T02:00:00.003","2002-07-16T04:00:00.003","2002-07-16T06:00:00.003","2002-07-16T08:00:00.003","2002-07-16T10:00:00.003","2002-07-16T12:00:00.003","2002-07-16T14:00:00.003","2002-07-16T16:00:00.003","2002-07-16T18:00:00.003","2002-07-16T20:00:00.003","2002-07-16T22:00:00.003","2002-07-17T00:00:00.003","2002-07-17T02:00:00.003","2002-07-17T04:00:00.003","2002-07-17T06:00:00.003","2002-07-17T08:00:00.003","2002-07-17T10:00:00.003","2002-07-17T12:00:00.003","2002-07-17T14:00:00.003","2002-07-17T16:00:00.003","2002-07-17T18:00:00.003","2002-07-17T20:00:00.003","2002-07-17T22:00:00.003","2002-07-18T00:00:00.003","2002-07-18T02:00:00.003","2002-07-18T04:00:00.003","2002-07-18T06:00:00.003","2002-07-18T08:00:00.003","2002-07-18T10:00:00.003","2002-07-18T12:00:00.003","2002-07-18T14:00:00.003","2002-07-18T16:00:00.003","2002-07-18T18:00:00.003","2002-07-18T20:00:00.003","2002-07-18T22:00:00.003","2002-07-19T00:00:00.003","2002-07-19T02:00:00.003","2002-07-19T04:00:00.003","2002-07-19T06:00:00.003","2002-07-19T08:00:00.003","2002-07-19T10:00:00.003","2002-07-19T12:00:00.004","2002-07-19T14:00:00.004","2002-07-19T16:00:00.004","2002-07-19T18:00:00.004","2002-07-19T20:00:00.004","2002-07-19T22:00:00.004","2002-07-20T00:00:00.004","2002-07-20T02:00:00.004","2002-07-20T04:00:00.004","2002-07-20T06:00:00.004","2002-07-20T08:00:00.004","2002-07-20T10:00:00.004","2002-07-20T12:00:00.004","2002-07-20T14:00:00.004","2002-07-20T16:00:00.004","2002-07-20T18:00:00.004","2002-07-20T20:00:00.004","2002-07-20T22:00:00.004","2002-07-21T00:00:00.004","2002-07-21T02:00:00.004","2002-07-21T04:00:00.004","2002-07-21T06:00:00.004","2002-07-21T08:00:00.004","2002-07-21T10:00:00.004","2002-07-21T12:00:00.004","2002-07-21T14:00:00.004","2002-07-21T16:00:00.004","2002-07-21T18:00:00.004","2002-07-21T20:00:00.004","2002-07-21T22:00:00.004","2002-07-22T00:00:00.004","2002-07-22T02:00:00.004","2002-07-22T04:00:00.004","2002-07-22T06:00:00.004","2002-07-22T08:00:00.004","2002-07-22T10:00:00.004","2002-07-22T12:00:00.004","2002-07-22T14:00:00.004","2002-07-22T16:00:00.004","2002-07-22T18:00:00.004","2002-07-22T20:00:00.004","2002-07-22T22:00:00.004","2002-07-23T00:00:00.005","2002-07-23T02:00:00.005","2002-07-23T04:00:00.005","2002-07-23T06:00:00.005","2002-07-23T08:00:00.005","2002-07-23T10:00:00.005","2002-07-23T12:00:00.005","2002-07-23T14:00:00.005","2002-07-23T16:00:00.005","2002-07-23T18:00:00.005","2002-07-23T20:00:00.005","2002-07-23T22:00:00.005","2002-07-24T00:00:00.005","2002-07-24T02:00:00.005","2002-07-24T04:00:00.005","2002-07-24T06:00:00.005","2002-07-24T08:00:00.005","2002-07-24T10:00:00.005","2002-07-24T12:00:00.005","2002-07-24T14:00:00.005","2002-07-24T16:00:00.005","2002-07-24T18:00:00.005","2002-07-24T20:00:00.005","2002-07-24T22:00:00.005","2002-07-25T00:00:00.005","2002-07-25T02:00:00.005","2002-07-25T04:00:00.005","2002-07-25T06:00:00.005","2002-07-25T08:00:00.005","2002-07-25T10:00:00.005","2002-07-25T12:00:00.005","2002-07-25T14:00:00.005","2002-07-25T16:00:00.005","2002-07-25T18:00:00.005","2002-07-25T20:00:00.005","2002-07-25T22:00:00.005","2002-07-26T00:00:00.005","2002-07-26T02:00:00.005","2002-07-26T04:00:00.005","2002-07-26T06:00:00.005","2002-07-26T08:00:00.005","2002-07-26T10:00:00.005","2002-07-26T12:00:00.005","2002-07-26T14:00:00.006","2002-07-26T16:00:00.006","2002-07-26T18:00:00.006","2002-07-26T20:00:00.006","2002-07-26T22:00:00.006","2002-07-27T00:00:00.006","2002-07-27T02:00:00.006","2002-07-27T04:00:00.006","2002-07-27T06:00:00.006","2002-07-27T08:00:00.006","2002-07-27T10:00:00.006","2002-07-27T12:00:00.006","2002-07-27T14:00:00.006","2002-07-27T16:00:00.006","2002-07-27T18:00:00.006","2002-07-27T20:00:00.006","2002-07-27T22:00:00.006","2002-07-28T00:00:00.006","2002-07-28T02:00:00.006","2002-07-28T04:00:00.006","2002-07-28T06:00:00.006","2002-07-28T08:00:00.006","2002-07-28T10:00:00.006","2002-07-28T12:00:00.006","2002-07-28T14:00:00.006","2002-07-28T16:00:00.006","2002-07-28T18:00:00.006","2002-07-28T20:00:00.006","2002-07-28T22:00:00.006","2002-07-29T00:00:00.006","2002-07-29T02:00:00.006","2002-07-29T04:00:00.006","2002-07-29T06:00:00.006","2002-07-29T08:00:00.006","2002-07-29T10:00:00.006","2002-07-29T12:00:00.006","2002-07-29T14:00:00.006","2002-07-29T16:00:00.006","2002-07-29T18:00:00.006","2002-07-29T20:00:00.006","2002-07-29T22:00:00.006","2002-07-30T00:00:00.006","2002-07-30T02:00:00.007","2002-07-30T04:00:00.007","2002-07-30T06:00:00.007","2002-07-30T08:00:00.007","2002-07-30T10:00:00.007","2002-07-30T12:00:00.007","2002-07-30T14:00:00.007","2002-07-30T16:00:00.007","2002-07-30T18:00:00.007","2002-07-30T20:00:00.007","2002-07-30T22:00:00.007","2002-07-31T00:00:00.007","2002-07-31T02:00:00.007","2002-07-31T04:00:00.007","2002-07-31T06:00:00.007","2002-07-31T08:00:00.007","2002-07-31T10:00:00.007","2002-07-31T12:00:00.007","2002-07-31T14:00:00.007","2002-07-31T16:00:00.007","2002-07-31T18:00:00.007","2002-07-31T20:00:00.007","2002-07-31T22:00:00.007"]

{"sheet":"Output - Solar Received","index":16,"n_rows":16,"n_cols":245,"rows_kept":16,"cut":false,"hidden":false,"merged":[]}
[]
[null,null,null,null,null,null,null,"Simulation Name:"]
[null,null,null,null,null,null,null,"Date:"]
[null,null,null,null,null,null,null,"Time Step - dT (min):"]
[null,null,null,null,null,null,null,"Distance Step - dX (m):"]
[null,null,null,null,null,null,null,"Stream Length (km):"]
[null,null,null,null,null,null,null,"Longitudinal Sample Rate (m):"]
[null,null,null,null,null,null,null,"Transverse Sample Rate (m):"]
[null,null,null,null,null,null,null,"Inflow Sites:"]
[null,null,null,null,null,null,null,"Continuous Data Sites:"]
[null,null,null,null,null,null,null,"Flush Initial Condition (days):"]
[null,null,null,null,null,null,null,"Time Zone:"]
[null,null,null,null,null,null,null,"Simulation Period (days):"]
[]
[]
[null,"Locational Information (optional)","Heat Source Node","Long. Distance (km)","Stream km","2002-07-12T00:00:00.001","2002-07-12T02:00:00.001","2002-07-12T04:00:00.001","2002-07-12T06:00:00.001","2002-07-12T08:00:00.002","2002-07-12T10:00:00.002","2002-07-12T12:00:00.002","2002-07-12T14:00:00.002","2002-07-12T16:00:00.002","2002-07-12T18:00:00.002","2002-07-12T20:00:00.002","2002-07-12T22:00:00.002","2002-07-13T00:00:00.002","2002-07-13T02:00:00.002","2002-07-13T04:00:00.002","2002-07-13T06:00:00.002","2002-07-13T08:00:00.002","2002-07-13T10:00:00.002","2002-07-13T12:00:00.002","2002-07-13T14:00:00.002","2002-07-13T16:00:00.002","2002-07-13T18:00:00.002","2002-07-13T20:00:00.002","2002-07-13T22:00:00.002","2002-07-14T00:00:00.002","2002-07-14T02:00:00.002","2002-07-14T04:00:00.002","2002-07-14T06:00:00.002","2002-07-14T08:00:00.002","2002-07-14T10:00:00.002","2002-07-14T12:00:00.002","2002-07-14T14:00:00.002","2002-07-14T16:00:00.002","2002-07-14T18:00:00.002","2002-07-14T20:00:00.002","2002-07-14T22:00:00.002","2002-07-15T00:00:00.002","2002-07-15T02:00:00.002","2002-07-15T04:00:00.002","2002-07-15T06:00:00.002","2002-07-15T08:00:00.002","2002-07-15T10:00:00.002","2002-07-15T12:00:00.002","2002-07-15T14:00:00.002","2002-07-15T16:00:00.002","2002-07-15T18:00:00.002","2002-07-15T20:00:00.002","2002-07-15T22:00:00.003","2002-07-16T00:00:00.003","2002-07-16T02:00:00.003","2002-07-16T04:00:00.003","2002-07-16T06:00:00.003","2002-07-16T08:00:00.003","2002-07-16T10:00:00.003","2002-07-16T12:00:00.003","2002-07-16T14:00:00.003","2002-07-16T16:00:00.003","2002-07-16T18:00:00.003","2002-07-16T20:00:00.003","2002-07-16T22:00:00.003","2002-07-17T00:00:00.003","2002-07-17T02:00:00.003","2002-07-17T04:00:00.003","2002-07-17T06:00:00.003","2002-07-17T08:00:00.003","2002-07-17T10:00:00.003","2002-07-17T12:00:00.003","2002-07-17T14:00:00.003","2002-07-17T16:00:00.003","2002-07-17T18:00:00.003","2002-07-17T20:00:00.003","2002-07-17T22:00:00.003","2002-07-18T00:00:00.003","2002-07-18T02:00:00.003","2002-07-18T04:00:00.003","2002-07-18T06:00:00.003","2002-07-18T08:00:00.003","2002-07-18T10:00:00.003","2002-07-18T12:00:00.003","2002-07-18T14:00:00.003","2002-07-18T16:00:00.003","2002-07-18T18:00:00.003","2002-07-18T20:00:00.003","2002-07-18T22:00:00.003","2002-07-19T00:00:00.003","2002-07-19T02:00:00.003","2002-07-19T04:00:00.003","2002-07-19T06:00:00.003","2002-07-19T08:00:00.003","2002-07-19T10:00:00.003","2002-07-19T12:00:00.004","2002-07-19T14:00:00.004","2002-07-19T16:00:00.004","2002-07-19T18:00:00.004","2002-07-19T20:00:00.004","2002-07-19T22:00:00.004","2002-07-20T00:00:00.004","2002-07-20T02:00:00.004","2002-07-20T04:00:00.004","2002-07-20T06:00:00.004","2002-07-20T08:00:00.004","2002-07-20T10:00:00.004","2002-07-20T12:00:00.004","2002-07-20T14:00:00.004","2002-07-20T16:00:00.004","2002-07-20T18:00:00.004","2002-07-20T20:00:00.004","2002-07-20T22:00:00.004","2002-07-21T00:00:00.004","2002-07-21T02:00:00.004","2002-07-21T04:00:00.004","2002-07-21T06:00:00.004","2002-07-21T08:00:00.004","2002-07-21T10:00:00.004","2002-07-21T12:00:00.004","2002-07-21T14:00:00.004","2002-07-21T16:00:00.004","2002-07-21T18:00:00.004","2002-07-21T20:00:00.004","2002-07-21T22:00:00.004","2002-07-22T00:00:00.004","2002-07-22T02:00:00.004","2002-07-22T04:00:00.004","2002-07-22T06:00:00.004","2002-07-22T08:00:00.004","2002-07-22T10:00:00.004","2002-07-22T12:00:00.004","2002-07-22T14:00:00.004","2002-07-22T16:00:00.004","2002-07-22T18:00:00.004","2002-07-22T20:00:00.004","2002-07-22T22:00:00.004","2002-07-23T00:00:00.005","2002-07-23T02:00:00.005","2002-07-23T04:00:00.005","2002-07-23T06:00:00.005","2002-07-23T08:00:00.005","2002-07-23T10:00:00.005","2002-07-23T12:00:00.005","2002-07-23T14:00:00.005","2002-07-23T16:00:00.005","2002-07-23T18:00:00.005","2002-07-23T20:00:00.005","2002-07-23T22:00:00.005","2002-07-24T00:00:00.005","2002-07-24T02:00:00.005","2002-07-24T04:00:00.005","2002-07-24T06:00:00.005","2002-07-24T08:00:00.005","2002-07-24T10:00:00.005","2002-07-24T12:00:00.005","2002-07-24T14:00:00.005","2002-07-24T16:00:00.005","2002-07-24T18:00:00.005","2002-07-24T20:00:00.005","2002-07-24T22:00:00.005","2002-07-25T00:00:00.005","2002-07-25T02:00:00.005","2002-07-25T04:00:00.005","2002-07-25T06:00:00.005","2002-07-25T08:00:00.005","2002-07-25T10:00:00.005","2002-07-25T12:00:00.005","2002-07-25T14:00:00.005","2002-07-25T16:00:00.005","2002-07-25T18:00:00.005","2002-07-25T20:00:00.005","2002-07-25T22:00:00.005","2002-07-26T00:00:00.005","2002-07-26T02:00:00.005","2002-07-26T04:00:00.005","2002-07-26T06:00:00.005","2002-07-26T08:00:00.005","2002-07-26T10:00:00.005","2002-07-26T12:00:00.005","2002-07-26T14:00:00.006","2002-07-26T16:00:00.006","2002-07-26T18:00:00.006","2002-07-26T20:00:00.006","2002-07-26T22:00:00.006","2002-07-27T00:00:00.006","2002-07-27T02:00:00.006","2002-07-27T04:00:00.006","2002-07-27T06:00:00.006","2002-07-27T08:00:00.006","2002-07-27T10:00:00.006","2002-07-27T12:00:00.006","2002-07-27T14:00:00.006","2002-07-27T16:00:00.006","2002-07-27T18:00:00.006","2002-07-27T20:00:00.006","2002-07-27T22:00:00.006","2002-07-28T00:00:00.006","2002-07-28T02:00:00.006","2002-07-28T04:00:00.006","2002-07-28T06:00:00.006","2002-07-28T08:00:00.006","2002-07-28T10:00:00.006","2002-07-28T12:00:00.006","2002-07-28T14:00:00.006","2002-07-28T16:00:00.006","2002-07-28T18:00:00.006","2002-07-28T20:00:00.006","2002-07-28T22:00:00.006","2002-07-29T00:00:00.006","2002-07-29T02:00:00.006","2002-07-29T04:00:00.006","2002-07-29T06:00:00.006","2002-07-29T08:00:00.006","2002-07-29T10:00:00.006","2002-07-29T12:00:00.006","2002-07-29T14:00:00.006","2002-07-29T16:00:00.006","2002-07-29T18:00:00.006","2002-07-29T20:00:00.006","2002-07-29T22:00:00.006","2002-07-30T00:00:00.006","2002-07-30T02:00:00.007","2002-07-30T04:00:00.007","2002-07-30T06:00:00.007","2002-07-30T08:00:00.007","2002-07-30T10:00:00.007","2002-07-30T12:00:00.007","2002-07-30T14:00:00.007","2002-07-30T16:00:00.007","2002-07-30T18:00:00.007","2002-07-30T20:00:00.007","2002-07-30T22:00:00.007","2002-07-31T00:00:00.007","2002-07-31T02:00:00.007","2002-07-31T04:00:00.007","2002-07-31T06:00:00.007","2002-07-31T08:00:00.007","2002-07-31T10:00:00.007","2002-07-31T12:00:00.007","2002-07-31T14:00:00.007","2002-07-31T16:00:00.007","2002-07-31T18:00:00.007","2002-07-31T20:00:00.007","2002-07-31T22:00:00.007"]

{"sheet":"Output - Longwave","index":17,"n_rows":16,"n_cols":245,"rows_kept":16,"cut":false,"hidden":false,"merged":[]}
[]
[null,null,null,null,null,null,null,"Simulation Name:"]
[null,null,null,null,null,null,null,"Date:"]
[null,null,null,null,null,null,null,"Time Step - dT (min):"]
[null,null,null,null,null,null,null,"Distance Step - dX (m):"]
[null,null,null,null,null,null,null,"Stream Length (km):"]
[null,null,null,null,null,null,null,"Longitudinal Sample Rate (m):"]
[null,null,null,null,null,null,null,"Transverse Sample Rate (m):"]
[null,null,null,null,null,null,null,"Inflow Sites:"]
[null,null,null,null,null,null,null,"Continuous Data Sites:"]
[null,null,null,null,null,null,null,"Flush Initial Condition (days):"]
[null,null,null,null,null,null,null,"Time Zone:"]
[null,null,null,null,null,null,null,"Simulation Period (days):"]
[]
[]
[null,"Locational Information (optional)","Heat Source Node","Long. Distance (km)","Stream km","2002-07-12T00:00:00.001","2002-07-12T02:00:00.001","2002-07-12T04:00:00.001","2002-07-12T06:00:00.001","2002-07-12T08:00:00.002","2002-07-12T10:00:00.002","2002-07-12T12:00:00.002","2002-07-12T14:00:00.002","2002-07-12T16:00:00.002","2002-07-12T18:00:00.002","2002-07-12T20:00:00.002","2002-07-12T22:00:00.002","2002-07-13T00:00:00.002","2002-07-13T02:00:00.002","2002-07-13T04:00:00.002","2002-07-13T06:00:00.002","2002-07-13T08:00:00.002","2002-07-13T10:00:00.002","2002-07-13T12:00:00.002","2002-07-13T14:00:00.002","2002-07-13T16:00:00.002","2002-07-13T18:00:00.002","2002-07-13T20:00:00.002","2002-07-13T22:00:00.002","2002-07-14T00:00:00.002","2002-07-14T02:00:00.002","2002-07-14T04:00:00.002","2002-07-14T06:00:00.002","2002-07-14T08:00:00.002","2002-07-14T10:00:00.002","2002-07-14T12:00:00.002","2002-07-14T14:00:00.002","2002-07-14T16:00:00.002","2002-07-14T18:00:00.002","2002-07-14T20:00:00.002","2002-07-14T22:00:00.002","2002-07-15T00:00:00.002","2002-07-15T02:00:00.002","2002-07-15T04:00:00.002","2002-07-15T06:00:00.002","2002-07-15T08:00:00.002","2002-07-15T10:00:00.002","2002-07-15T12:00:00.002","2002-07-15T14:00:00.002","2002-07-15T16:00:00.002","2002-07-15T18:00:00.002","2002-07-15T20:00:00.002","2002-07-15T22:00:00.003","2002-07-16T00:00:00.003","2002-07-16T02:00:00.003","2002-07-16T04:00:00.003","2002-07-16T06:00:00.003","2002-07-16T08:00:00.003","2002-07-16T10:00:00.003","2002-07-16T12:00:00.003","2002-07-16T14:00:00.003","2002-07-16T16:00:00.003","2002-07-16T18:00:00.003","2002-07-16T20:00:00.003","2002-07-16T22:00:00.003","2002-07-17T00:00:00.003","2002-07-17T02:00:00.003","2002-07-17T04:00:00.003","2002-07-17T06:00:00.003","2002-07-17T08:00:00.003","2002-07-17T10:00:00.003","2002-07-17T12:00:00.003","2002-07-17T14:00:00.003","2002-07-17T16:00:00.003","2002-07-17T18:00:00.003","2002-07-17T20:00:00.003","2002-07-17T22:00:00.003","2002-07-18T00:00:00.003","2002-07-18T02:00:00.003","2002-07-18T04:00:00.003","2002-07-18T06:00:00.003","2002-07-18T08:00:00.003","2002-07-18T10:00:00.003","2002-07-18T12:00:00.003","2002-07-18T14:00:00.003","2002-07-18T16:00:00.003","2002-07-18T18:00:00.003","2002-07-18T20:00:00.003","2002-07-18T22:00:00.003","2002-07-19T00:00:00.003","2002-07-19T02:00:00.003","2002-07-19T04:00:00.003","2002-07-19T06:00:00.003","2002-07-19T08:00:00.003","2002-07-19T10:00:00.003","2002-07-19T12:00:00.004","2002-07-19T14:00:00.004","2002-07-19T16:00:00.004","2002-07-19T18:00:00.004","2002-07-19T20:00:00.004","2002-07-19T22:00:00.004","2002-07-20T00:00:00.004","2002-07-20T02:00:00.004","2002-07-20T04:00:00.004","2002-07-20T06:00:00.004","2002-07-20T08:00:00.004","2002-07-20T10:00:00.004","2002-07-20T12:00:00.004","2002-07-20T14:00:00.004","2002-07-20T16:00:00.004","2002-07-20T18:00:00.004","2002-07-20T20:00:00.004","2002-07-20T22:00:00.004","2002-07-21T00:00:00.004","2002-07-21T02:00:00.004","2002-07-21T04:00:00.004","2002-07-21T06:00:00.004","2002-07-21T08:00:00.004","2002-07-21T10:00:00.004","2002-07-21T12:00:00.004","2002-07-21T14:00:00.004","2002-07-21T16:00:00.004","2002-07-21T18:00:00.004","2002-07-21T20:00:00.004","2002-07-21T22:00:00.004","2002-07-22T00:00:00.004","2002-07-22T02:00:00.004","2002-07-22T04:00:00.004","2002-07-22T06:00:00.004","2002-07-22T08:00:00.004","2002-07-22T10:00:00.004","2002-07-22T12:00:00.004","2002-07-22T14:00:00.004","2002-07-22T16:00:00.004","2002-07-22T18:00:00.004","2002-07-22T20:00:00.004","2002-07-22T22:00:00.004","2002-07-23T00:00:00.005","2002-07-23T02:00:00.005","2002-07-23T04:00:00.005","2002-07-23T06:00:00.005","2002-07-23T08:00:00.005","2002-07-23T10:00:00.005","2002-07-23T12:00:00.005","2002-07-23T14:00:00.005","2002-07-23T16:00:00.005","2002-07-23T18:00:00.005","2002-07-23T20:00:00.005","2002-07-23T22:00:00.005","2002-07-24T00:00:00.005","2002-07-24T02:00:00.005","2002-07-24T04:00:00.005","2002-07-24T06:00:00.005","2002-07-24T08:00:00.005","2002-07-24T10:00:00.005","2002-07-24T12:00:00.005","2002-07-24T14:00:00.005","2002-07-24T16:00:00.005","2002-07-24T18:00:00.005","2002-07-24T20:00:00.005","2002-07-24T22:00:00.005","2002-07-25T00:00:00.005","2002-07-25T02:00:00.005","2002-07-25T04:00:00.005","2002-07-25T06:00:00.005","2002-07-25T08:00:00.005","2002-07-25T10:00:00.005","2002-07-25T12:00:00.005","2002-07-25T14:00:00.005","2002-07-25T16:00:00.005","2002-07-25T18:00:00.005","2002-07-25T20:00:00.005","2002-07-25T22:00:00.005","2002-07-26T00:00:00.005","2002-07-26T02:00:00.005","2002-07-26T04:00:00.005","2002-07-26T06:00:00.005","2002-07-26T08:00:00.005","2002-07-26T10:00:00.005","2002-07-26T12:00:00.005","2002-07-26T14:00:00.006","2002-07-26T16:00:00.006","2002-07-26T18:00:00.006","2002-07-26T20:00:00.006","2002-07-26T22:00:00.006","2002-07-27T00:00:00.006","2002-07-27T02:00:00.006","2002-07-27T04:00:00.006","2002-07-27T06:00:00.006","2002-07-27T08:00:00.006","2002-07-27T10:00:00.006","2002-07-27T12:00:00.006","2002-07-27T14:00:00.006","2002-07-27T16:00:00.006","2002-07-27T18:00:00.006","2002-07-27T20:00:00.006","2002-07-27T22:00:00.006","2002-07-28T00:00:00.006","2002-07-28T02:00:00.006","2002-07-28T04:00:00.006","2002-07-28T06:00:00.006","2002-07-28T08:00:00.006","2002-07-28T10:00:00.006","2002-07-28T12:00:00.006","2002-07-28T14:00:00.006","2002-07-28T16:00:00.006","2002-07-28T18:00:00.006","2002-07-28T20:00:00.006","2002-07-28T22:00:00.006","2002-07-29T00:00:00.006","2002-07-29T02:00:00.006","2002-07-29T04:00:00.006","2002-07-29T06:00:00.006","2002-07-29T08:00:00.006","2002-07-29T10:00:00.006","2002-07-29T12:00:00.006","2002-07-29T14:00:00.006","2002-07-29T16:00:00.006","2002-07-29T18:00:00.006","2002-07-29T20:00:00.006","2002-07-29T22:00:00.006","2002-07-30T00:00:00.006","2002-07-30T02:00:00.007","2002-07-30T04:00:00.007","2002-07-30T06:00:00.007","2002-07-30T08:00:00.007","2002-07-30T10:00:00.007","2002-07-30T12:00:00.007","2002-07-30T14:00:00.007","2002-07-30T16:00:00.007","2002-07-30T18:00:00.007","2002-07-30T20:00:00.007","2002-07-30T22:00:00.007","2002-07-31T00:00:00.007","2002-07-31T02:00:00.007","2002-07-31T04:00:00.007","2002-07-31T06:00:00.007","2002-07-31T08:00:00.007","2002-07-31T10:00:00.007","2002-07-31T12:00:00.007","2002-07-31T14:00:00.007","2002-07-31T16:00:00.007","2002-07-31T18:00:00.007","2002-07-31T20:00:00.007","2002-07-31T22:00:00.007"]

{"sheet":"Output - Evaporation","index":18,"n_rows":16,"n_cols":245,"rows_kept":16,"cut":false,"hidden":false,"merged":[]}
[]
[null,null,null,null,null,null,null,"Simulation Name:"]
[null,null,null,null,null,null,null,"Date:"]
[null,null,null,null,null,null,null,"Time Step - dT (min):"]
[null,null,null,null,null,null,null,"Distance Step - dX (m):"]
[null,null,null,null,null,null,null,"Stream Length (km):"]
[null,null,null,null,null,null,null,"Longitudinal Sample Rate (m):"]
[null,null,null,null,null,null,null,"Transverse Sample Rate (m):"]
[null,null,null,null,null,null,null,"Inflow Sites:"]
[null,null,null,null,null,null,null,"Continuous Data Sites:"]
[null,null,null,null,null,null,null,"Flush Initial Condition (days):"]
[null,null,null,null,null,null,null,"Time Zone:"]
[null,null,null,null,null,null,null,"Simulation Period (days):"]
[]
[]
[null,"Locational Information (optional)","Heat Source Node","Long. Distance (km)","Stream km","2002-07-12T00:00:00.001","2002-07-12T02:00:00.001","2002-07-12T04:00:00.001","2002-07-12T06:00:00.001","2002-07-12T08:00:00.002","2002-07-12T10:00:00.002","2002-07-12T12:00:00.002","2002-07-12T14:00:00.002","2002-07-12T16:00:00.002","2002-07-12T18:00:00.002","2002-07-12T20:00:00.002","2002-07-12T22:00:00.002","2002-07-13T00:00:00.002","2002-07-13T02:00:00.002","2002-07-13T04:00:00.002","2002-07-13T06:00:00.002","2002-07-13T08:00:00.002","2002-07-13T10:00:00.002","2002-07-13T12:00:00.002","2002-07-13T14:00:00.002","2002-07-13T16:00:00.002","2002-07-13T18:00:00.002","2002-07-13T20:00:00.002","2002-07-13T22:00:00.002","2002-07-14T00:00:00.002","2002-07-14T02:00:00.002","2002-07-14T04:00:00.002","2002-07-14T06:00:00.002","2002-07-14T08:00:00.002","2002-07-14T10:00:00.002","2002-07-14T12:00:00.002","2002-07-14T14:00:00.002","2002-07-14T16:00:00.002","2002-07-14T18:00:00.002","2002-07-14T20:00:00.002","2002-07-14T22:00:00.002","2002-07-15T00:00:00.002","2002-07-15T02:00:00.002","2002-07-15T04:00:00.002","2002-07-15T06:00:00.002","2002-07-15T08:00:00.002","2002-07-15T10:00:00.002","2002-07-15T12:00:00.002","2002-07-15T14:00:00.002","2002-07-15T16:00:00.002","2002-07-15T18:00:00.002","2002-07-15T20:00:00.002","2002-07-15T22:00:00.003","2002-07-16T00:00:00.003","2002-07-16T02:00:00.003","2002-07-16T04:00:00.003","2002-07-16T06:00:00.003","2002-07-16T08:00:00.003","2002-07-16T10:00:00.003","2002-07-16T12:00:00.003","2002-07-16T14:00:00.003","2002-07-16T16:00:00.003","2002-07-16T18:00:00.003","2002-07-16T20:00:00.003","2002-07-16T22:00:00.003","2002-07-17T00:00:00.003","2002-07-17T02:00:00.003","2002-07-17T04:00:00.003","2002-07-17T06:00:00.003","2002-07-17T08:00:00.003","2002-07-17T10:00:00.003","2002-07-17T12:00:00.003","2002-07-17T14:00:00.003","2002-07-17T16:00:00.003","2002-07-17T18:00:00.003","2002-07-17T20:00:00.003","2002-07-17T22:00:00.003","2002-07-18T00:00:00.003","2002-07-18T02:00:00.003","2002-07-18T04:00:00.003","2002-07-18T06:00:00.003","2002-07-18T08:00:00.003","2002-07-18T10:00:00.003","2002-07-18T12:00:00.003","2002-07-18T14:00:00.003","2002-07-18T16:00:00.003","2002-07-18T18:00:00.003","2002-07-18T20:00:00.003","2002-07-18T22:00:00.003","2002-07-19T00:00:00.003","2002-07-19T02:00:00.003","2002-07-19T04:00:00.003","2002-07-19T06:00:00.003","2002-07-19T08:00:00.003","2002-07-19T10:00:00.003","2002-07-19T12:00:00.004","2002-07-19T14:00:00.004","2002-07-19T16:00:00.004","2002-07-19T18:00:00.004","2002-07-19T20:00:00.004","2002-07-19T22:00:00.004","2002-07-20T00:00:00.004","2002-07-20T02:00:00.004","2002-07-20T04:00:00.004","2002-07-20T06:00:00.004","2002-07-20T08:00:00.004","2002-07-20T10:00:00.004","2002-07-20T12:00:00.004","2002-07-20T14:00:00.004","2002-07-20T16:00:00.004","2002-07-20T18:00:00.004","2002-07-20T20:00:00.004","2002-07-20T22:00:00.004","2002-07-21T00:00:00.004","2002-07-21T02:00:00.004","2002-07-21T04:00:00.004","2002-07-21T06:00:00.004","2002-07-21T08:00:00.004","2002-07-21T10:00:00.004","2002-07-21T12:00:00.004","2002-07-21T14:00:00.004","2002-07-21T16:00:00.004","2002-07-21T18:00:00.004","2002-07-21T20:00:00.004","2002-07-21T22:00:00.004","2002-07-22T00:00:00.004","2002-07-22T02:00:00.004","2002-07-22T04:00:00.004","2002-07-22T06:00:00.004","2002-07-22T08:00:00.004","2002-07-22T10:00:00.004","2002-07-22T12:00:00.004","2002-07-22T14:00:00.004","2002-07-22T16:00:00.004","2002-07-22T18:00:00.004","2002-07-22T20:00:00.004","2002-07-22T22:00:00.004","2002-07-23T00:00:00.005","2002-07-23T02:00:00.005","2002-07-23T04:00:00.005","2002-07-23T06:00:00.005","2002-07-23T08:00:00.005","2002-07-23T10:00:00.005","2002-07-23T12:00:00.005","2002-07-23T14:00:00.005","2002-07-23T16:00:00.005","2002-07-23T18:00:00.005","2002-07-23T20:00:00.005","2002-07-23T22:00:00.005","2002-07-24T00:00:00.005","2002-07-24T02:00:00.005","2002-07-24T04:00:00.005","2002-07-24T06:00:00.005","2002-07-24T08:00:00.005","2002-07-24T10:00:00.005","2002-07-24T12:00:00.005","2002-07-24T14:00:00.005","2002-07-24T16:00:00.005","2002-07-24T18:00:00.005","2002-07-24T20:00:00.005","2002-07-24T22:00:00.005","2002-07-25T00:00:00.005","2002-07-25T02:00:00.005","2002-07-25T04:00:00.005","2002-07-25T06:00:00.005","2002-07-25T08:00:00.005","2002-07-25T10:00:00.005","2002-07-25T12:00:00.005","2002-07-25T14:00:00.005","2002-07-25T16:00:00.005","2002-07-25T18:00:00.005","2002-07-25T20:00:00.005","2002-07-25T22:00:00.005","2002-07-26T00:00:00.005","2002-07-26T02:00:00.005","2002-07-26T04:00:00.005","2002-07-26T06:00:00.005","2002-07-26T08:00:00.005","2002-07-26T10:00:00.005","2002-07-26T12:00:00.005","2002-07-26T14:00:00.006","2002-07-26T16:00:00.006","2002-07-26T18:00:00.006","2002-07-26T20:00:00.006","2002-07-26T22:00:00.006","2002-07-27T00:00:00.006","2002-07-27T02:00:00.006","2002-07-27T04:00:00.006","2002-07-27T06:00:00.006","2002-07-27T08:00:00.006","2002-07-27T10:00:00.006","2002-07-27T12:00:00.006","2002-07-27T14:00:00.006","2002-07-27T16:00:00.006","2002-07-27T18:00:00.006","2002-07-27T20:00:00.006","2002-07-27T22:00:00.006","2002-07-28T00:00:00.006","2002-07-28T02:00:00.006","2002-07-28T04:00:00.006","2002-07-28T06:00:00.006","2002-07-28T08:00:00.006","2002-07-28T10:00:00.006","2002-07-28T12:00:00.006","2002-07-28T14:00:00.006","2002-07-28T16:00:00.006","2002-07-28T18:00:00.006","2002-07-28T20:00:00.006","2002-07-28T22:00:00.006","2002-07-29T00:00:00.006","2002-07-29T02:00:00.006","2002-07-29T04:00:00.006","2002-07-29T06:00:00.006","2002-07-29T08:00:00.006","2002-07-29T10:00:00.006","2002-07-29T12:00:00.006","2002-07-29T14:00:00.006","2002-07-29T16:00:00.006","2002-07-29T18:00:00.006","2002-07-29T20:00:00.006","2002-07-29T22:00:00.006","2002-07-30T00:00:00.006","2002-07-30T02:00:00.007","2002-07-30T04:00:00.007","2002-07-30T06:00:00.007","2002-07-30T08:00:00.007","2002-07-30T10:00:00.007","2002-07-30T12:00:00.007","2002-07-30T14:00:00.007","2002-07-30T16:00:00.007","2002-07-30T18:00:00.007","2002-07-30T20:00:00.007","2002-07-30T22:00:00.007","2002-07-31T00:00:00.007","2002-07-31T02:00:00.007","2002-07-31T04:00:00.007","2002-07-31T06:00:00.007","2002-07-31T08:00:00.007","2002-07-31T10:00:00.007","2002-07-31T12:00:00.007","2002-07-31T14:00:00.007","2002-07-31T16:00:00.007","2002-07-31T18:00:00.007","2002-07-31T20:00:00.007","2002-07-31T22:00:00.007"]

{"sheet":"Output - Convection","index":19,"n_rows":16,"n_cols":245,"rows_kept":16,"cut":false,"hidden":false,"merged":[]}
[]
[null,null,null,null,null,null,null,"Simulation Name:"]
[null,null,null,null,null,null,null,"Date:"]
[null,null,null,null,null,null,null,"Time Step - dT (min):"]
[null,null,null,null,null,null,null,"Distance Step - dX (m):"]
[null,null,null,null,null,null,null,"Stream Length (km):"]
[null,null,null,null,null,null,null,"Longitudinal Sample Rate (m):"]
[null,null,null,null,null,null,null,"Transverse Sample Rate (m):"]
[null,null,null,null,null,null,null,"Inflow Sites:"]
[null,null,null,null,null,null,null,"Continuous Data Sites:"]
[null,null,null,null,null,null,null,"Flush Initial Condition (days):"]
[null,null,null,null,null,null,null,"Time Zone:"]
[null,null,null,null,null,null,null,"Simulation Period (days):"]
[]
[]
[null,"Locational Information (optional)","Heat Source Node","Long. Distance (km)","Stream km","2002-07-12T00:00:00.001","2002-07-12T02:00:00.001","2002-07-12T04:00:00.001","2002-07-12T06:00:00.001","2002-07-12T08:00:00.002","2002-07-12T10:00:00.002","2002-07-12T12:00:00.002","2002-07-12T14:00:00.002","2002-07-12T16:00:00.002","2002-07-12T18:00:00.002","2002-07-12T20:00:00.002","2002-07-12T22:00:00.002","2002-07-13T00:00:00.002","2002-07-13T02:00:00.002","2002-07-13T04:00:00.002","2002-07-13T06:00:00.002","2002-07-13T08:00:00.002","2002-07-13T10:00:00.002","2002-07-13T12:00:00.002","2002-07-13T14:00:00.002","2002-07-13T16:00:00.002","2002-07-13T18:00:00.002","2002-07-13T20:00:00.002","2002-07-13T22:00:00.002","2002-07-14T00:00:00.002","2002-07-14T02:00:00.002","2002-07-14T04:00:00.002","2002-07-14T06:00:00.002","2002-07-14T08:00:00.002","2002-07-14T10:00:00.002","2002-07-14T12:00:00.002","2002-07-14T14:00:00.002","2002-07-14T16:00:00.002","2002-07-14T18:00:00.002","2002-07-14T20:00:00.002","2002-07-14T22:00:00.002","2002-07-15T00:00:00.002","2002-07-15T02:00:00.002","2002-07-15T04:00:00.002","2002-07-15T06:00:00.002","2002-07-15T08:00:00.002","2002-07-15T10:00:00.002","2002-07-15T12:00:00.002","2002-07-15T14:00:00.002","2002-07-15T16:00:00.002","2002-07-15T18:00:00.002","2002-07-15T20:00:00.002","2002-07-15T22:00:00.003","2002-07-16T00:00:00.003","2002-07-16T02:00:00.003","2002-07-16T04:00:00.003","2002-07-16T06:00:00.003","2002-07-16T08:00:00.003","2002-07-16T10:00:00.003","2002-07-16T12:00:00.003","2002-07-16T14:00:00.003","2002-07-16T16:00:00.003","2002-07-16T18:00:00.003","2002-07-16T20:00:00.003","2002-07-16T22:00:00.003","2002-07-17T00:00:00.003","2002-07-17T02:00:00.003","2002-07-17T04:00:00.003","2002-07-17T06:00:00.003","2002-07-17T08:00:00.003","2002-07-17T10:00:00.003","2002-07-17T12:00:00.003","2002-07-17T14:00:00.003","2002-07-17T16:00:00.003","2002-07-17T18:00:00.003","2002-07-17T20:00:00.003","2002-07-17T22:00:00.003","2002-07-18T00:00:00.003","2002-07-18T02:00:00.003","2002-07-18T04:00:00.003","2002-07-18T06:00:00.003","2002-07-18T08:00:00.003","2002-07-18T10:00:00.003","2002-07-18T12:00:00.003","2002-07-18T14:00:00.003","2002-07-18T16:00:00.003","2002-07-18T18:00:00.003","2002-07-18T20:00:00.003","2002-07-18T22:00:00.003","2002-07-19T00:00:00.003","2002-07-19T02:00:00.003","2002-07-19T04:00:00.003","2002-07-19T06:00:00.003","2002-07-19T08:00:00.003","2002-07-19T10:00:00.003","2002-07-19T12:00:00.004","2002-07-19T14:00:00.004","2002-07-19T16:00:00.004","2002-07-19T18:00:00.004","2002-07-19T20:00:00.004","2002-07-19T22:00:00.004","2002-07-20T00:00:00.004","2002-07-20T02:00:00.004","2002-07-20T04:00:00.004","2002-07-20T06:00:00.004","2002-07-20T08:00:00.004","2002-07-20T10:00:00.004","2002-07-20T12:00:00.004","2002-07-20T14:00:00.004","2002-07-20T16:00:00.004","2002-07-20T18:00:00.004","2002-07-20T20:00:00.004","2002-07-20T22:00:00.004","2002-07-21T00:00:00.004","2002-07-21T02:00:00.004","2002-07-21T04:00:00.004","2002-07-21T06:00:00.004","2002-07-21T08:00:00.004","2002-07-21T10:00:00.004","2002-07-21T12:00:00.004","2002-07-21T14:00:00.004","2002-07-21T16:00:00.004","2002-07-21T18:00:00.004","2002-07-21T20:00:00.004","2002-07-21T22:00:00.004","2002-07-22T00:00:00.004","2002-07-22T02:00:00.004","2002-07-22T04:00:00.004","2002-07-22T06:00:00.004","2002-07-22T08:00:00.004","2002-07-22T10:00:00.004","2002-07-22T12:00:00.004","2002-07-22T14:00:00.004","2002-07-22T16:00:00.004","2002-07-22T18:00:00.004","2002-07-22T20:00:00.004","2002-07-22T22:00:00.004","2002-07-23T00:00:00.005","2002-07-23T02:00:00.005","2002-07-23T04:00:00.005","2002-07-23T06:00:00.005","2002-07-23T08:00:00.005","2002-07-23T10:00:00.005","2002-07-23T12:00:00.005","2002-07-23T14:00:00.005","2002-07-23T16:00:00.005","2002-07-23T18:00:00.005","2002-07-23T20:00:00.005","2002-07-23T22:00:00.005","2002-07-24T00:00:00.005","2002-07-24T02:00:00.005","2002-07-24T04:00:00.005","2002-07-24T06:00:00.005","2002-07-24T08:00:00.005","2002-07-24T10:00:00.005","2002-07-24T12:00:00.005","2002-07-24T14:00:00.005","2002-07-24T16:00:00.005","2002-07-24T18:00:00.005","2002-07-24T20:00:00.005","2002-07-24T22:00:00.005","2002-07-25T00:00:00.005","2002-07-25T02:00:00.005","2002-07-25T04:00:00.005","2002-07-25T06:00:00.005","2002-07-25T08:00:00.005","2002-07-25T10:00:00.005","2002-07-25T12:00:00.005","2002-07-25T14:00:00.005","2002-07-25T16:00:00.005","2002-07-25T18:00:00.005","2002-07-25T20:00:00.005","2002-07-25T22:00:00.005","2002-07-26T00:00:00.005","2002-07-26T02:00:00.005","2002-07-26T04:00:00.005","2002-07-26T06:00:00.005","2002-07-26T08:00:00.005","2002-07-26T10:00:00.005","2002-07-26T12:00:00.005","2002-07-26T14:00:00.006","2002-07-26T16:00:00.006","2002-07-26T18:00:00.006","2002-07-26T20:00:00.006","2002-07-26T22:00:00.006","2002-07-27T00:00:00.006","2002-07-27T02:00:00.006","2002-07-27T04:00:00.006","2002-07-27T06:00:00.006","2002-07-27T08:00:00.006","2002-07-27T10:00:00.006","2002-07-27T12:00:00.006","2002-07-27T14:00:00.006","2002-07-27T16:00:00.006","2002-07-27T18:00:00.006","2002-07-27T20:00:00.006","2002-07-27T22:00:00.006","2002-07-28T00:00:00.006","2002-07-28T02:00:00.006","2002-07-28T04:00:00.006","2002-07-28T06:00:00.006","2002-07-28T08:00:00.006","2002-07-28T10:00:00.006","2002-07-28T12:00:00.006","2002-07-28T14:00:00.006","2002-07-28T16:00:00.006","2002-07-28T18:00:00.006","2002-07-28T20:00:00.006","2002-07-28T22:00:00.006","2002-07-29T00:00:00.006","2002-07-29T02:00:00.006","2002-07-29T04:00:00.006","2002-07-29T06:00:00.006","2002-07-29T08:00:00.006","2002-07-29T10:00:00.006","2002-07-29T12:00:00.006","2002-07-29T14:00:00.006","2002-07-29T16:00:00.006","2002-07-29T18:00:00.006","2002-07-29T20:00:00.006","2002-07-29T22:00:00.006","2002-07-30T00:00:00.006","2002-07-30T02:00:00.007","2002-07-30T04:00:00.007","2002-07-30T06:00:00.007","2002-07-30T08:00:00.007","2002-07-30T10:00:00.007","2002-07-30T12:00:00.007","2002-07-30T14:00:00.007","2002-07-30T16:00:00.007","2002-07-30T18:00:00.007","2002-07-30T20:00:00.007","2002-07-30T22:00:00.007","2002-07-31T00:00:00.007","2002-07-31T02:00:00.007","2002-07-31T04:00:00.007","2002-07-31T06:00:00.007","2002-07-31T08:00:00.007","2002-07-31T10:00:00.007","2002-07-31T12:00:00.007","2002-07-31T14:00:00.007","2002-07-31T16:00:00.007","2002-07-31T18:00:00.007","2002-07-31T20:00:00.007","2002-07-31T22:00:00.007"]

{"sheet":"Output - Conduction","index":20,"n_rows":16,"n_cols":245,"rows_kept":16,"cut":false,"hidden":false,"merged":[]}
[]
[null,null,null,null,null,null,null,"Simulation Name:"]
[null,null,null,null,null,null,null,"Date:"]
[null,null,null,null,null,null,null,"Time Step - dT (min):"]
[null,null,null,null,null,null,null,"Distance Step - dX (m):"]
[null,null,null,null,null,null,null,"Stream Length (km):"]
[null,null,null,null,null,null,null,"Longitudinal Sample Rate (m):"]
[null,null,null,null,null,null,null,"Transverse Sample Rate (m):"]
[null,null,null,null,null,null,null,"Inflow Sites:"]
[null,null,null,null,null,null,null,"Continuous Data Sites:"]
[null,null,null,null,null,null,null,"Flush Initial Condition (days):"]
[null,null,null,null,null,null,null,"Time Zone:"]
[null,null,null,null,null,null,null,"Simulation Period (days):"]
[]
[]
[null,"Locational Information (optional)","Heat Source Node","Long. Distance (km)","Stream km","2002-07-12T00:00:00.001","2002-07-12T02:00:00.001","2002-07-12T04:00:00.001","2002-07-12T06:00:00.001","2002-07-12T08:00:00.002","2002-07-12T10:00:00.002","2002-07-12T12:00:00.002","2002-07-12T14:00:00.002","2002-07-12T16:00:00.002","2002-07-12T18:00:00.002","2002-07-12T20:00:00.002","2002-07-12T22:00:00.002","2002-07-13T00:00:00.002","2002-07-13T02:00:00.002","2002-07-13T04:00:00.002","2002-07-13T06:00:00.002","2002-07-13T08:00:00.002","2002-07-13T10:00:00.002","2002-07-13T12:00:00.002","2002-07-13T14:00:00.002","2002-07-13T16:00:00.002","2002-07-13T18:00:00.002","2002-07-13T20:00:00.002","2002-07-13T22:00:00.002","2002-07-14T00:00:00.002","2002-07-14T02:00:00.002","2002-07-14T04:00:00.002","2002-07-14T06:00:00.002","2002-07-14T08:00:00.002","2002-07-14T10:00:00.002","2002-07-14T12:00:00.002","2002-07-14T14:00:00.002","2002-07-14T16:00:00.002","2002-07-14T18:00:00.002","2002-07-14T20:00:00.002","2002-07-14T22:00:00.002","2002-07-15T00:00:00.002","2002-07-15T02:00:00.002","2002-07-15T04:00:00.002","2002-07-15T06:00:00.002","2002-07-15T08:00:00.002","2002-07-15T10:00:00.002","2002-07-15T12:00:00.002","2002-07-15T14:00:00.002","2002-07-15T16:00:00.002","2002-07-15T18:00:00.002","2002-07-15T20:00:00.002","2002-07-15T22:00:00.003","2002-07-16T00:00:00.003","2002-07-16T02:00:00.003","2002-07-16T04:00:00.003","2002-07-16T06:00:00.003","2002-07-16T08:00:00.003","2002-07-16T10:00:00.003","2002-07-16T12:00:00.003","2002-07-16T14:00:00.003","2002-07-16T16:00:00.003","2002-07-16T18:00:00.003","2002-07-16T20:00:00.003","2002-07-16T22:00:00.003","2002-07-17T00:00:00.003","2002-07-17T02:00:00.003","2002-07-17T04:00:00.003","2002-07-17T06:00:00.003","2002-07-17T08:00:00.003","2002-07-17T10:00:00.003","2002-07-17T12:00:00.003","2002-07-17T14:00:00.003","2002-07-17T16:00:00.003","2002-07-17T18:00:00.003","2002-07-17T20:00:00.003","2002-07-17T22:00:00.003","2002-07-18T00:00:00.003","2002-07-18T02:00:00.003","2002-07-18T04:00:00.003","2002-07-18T06:00:00.003","2002-07-18T08:00:00.003","2002-07-18T10:00:00.003","2002-07-18T12:00:00.003","2002-07-18T14:00:00.003","2002-07-18T16:00:00.003","2002-07-18T18:00:00.003","2002-07-18T20:00:00.003","2002-07-18T22:00:00.003","2002-07-19T00:00:00.003","2002-07-19T02:00:00.003","2002-07-19T04:00:00.003","2002-07-19T06:00:00.003","2002-07-19T08:00:00.003","2002-07-19T10:00:00.003","2002-07-19T12:00:00.004","2002-07-19T14:00:00.004","2002-07-19T16:00:00.004","2002-07-19T18:00:00.004","2002-07-19T20:00:00.004","2002-07-19T22:00:00.004","2002-07-20T00:00:00.004","2002-07-20T02:00:00.004","2002-07-20T04:00:00.004","2002-07-20T06:00:00.004","2002-07-20T08:00:00.004","2002-07-20T10:00:00.004","2002-07-20T12:00:00.004","2002-07-20T14:00:00.004","2002-07-20T16:00:00.004","2002-07-20T18:00:00.004","2002-07-20T20:00:00.004","2002-07-20T22:00:00.004","2002-07-21T00:00:00.004","2002-07-21T02:00:00.004","2002-07-21T04:00:00.004","2002-07-21T06:00:00.004","2002-07-21T08:00:00.004","2002-07-21T10:00:00.004","2002-07-21T12:00:00.004","2002-07-21T14:00:00.004","2002-07-21T16:00:00.004","2002-07-21T18:00:00.004","2002-07-21T20:00:00.004","2002-07-21T22:00:00.004","2002-07-22T00:00:00.004","2002-07-22T02:00:00.004","2002-07-22T04:00:00.004","2002-07-22T06:00:00.004","2002-07-22T08:00:00.004","2002-07-22T10:00:00.004","2002-07-22T12:00:00.004","2002-07-22T14:00:00.004","2002-07-22T16:00:00.004","2002-07-22T18:00:00.004","2002-07-22T20:00:00.004","2002-07-22T22:00:00.004","2002-07-23T00:00:00.005","2002-07-23T02:00:00.005","2002-07-23T04:00:00.005","2002-07-23T06:00:00.005","2002-07-23T08:00:00.005","2002-07-23T10:00:00.005","2002-07-23T12:00:00.005","2002-07-23T14:00:00.005","2002-07-23T16:00:00.005","2002-07-23T18:00:00.005","2002-07-23T20:00:00.005","2002-07-23T22:00:00.005","2002-07-24T00:00:00.005","2002-07-24T02:00:00.005","2002-07-24T04:00:00.005","2002-07-24T06:00:00.005","2002-07-24T08:00:00.005","2002-07-24T10:00:00.005","2002-07-24T12:00:00.005","2002-07-24T14:00:00.005","2002-07-24T16:00:00.005","2002-07-24T18:00:00.005","2002-07-24T20:00:00.005","2002-07-24T22:00:00.005","2002-07-25T00:00:00.005","2002-07-25T02:00:00.005","2002-07-25T04:00:00.005","2002-07-25T06:00:00.005","2002-07-25T08:00:00.005","2002-07-25T10:00:00.005","2002-07-25T12:00:00.005","2002-07-25T14:00:00.005","2002-07-25T16:00:00.005","2002-07-25T18:00:00.005","2002-07-25T20:00:00.005","2002-07-25T22:00:00.005","2002-07-26T00:00:00.005","2002-07-26T02:00:00.005","2002-07-26T04:00:00.005","2002-07-26T06:00:00.005","2002-07-26T08:00:00.005","2002-07-26T10:00:00.005","2002-07-26T12:00:00.005","2002-07-26T14:00:00.006","2002-07-26T16:00:00.006","2002-07-26T18:00:00.006","2002-07-26T20:00:00.006","2002-07-26T22:00:00.006","2002-07-27T00:00:00.006","2002-07-27T02:00:00.006","2002-07-27T04:00:00.006","2002-07-27T06:00:00.006","2002-07-27T08:00:00.006","2002-07-27T10:00:00.006","2002-07-27T12:00:00.006","2002-07-27T14:00:00.006","2002-07-27T16:00:00.006","2002-07-27T18:00:00.006","2002-07-27T20:00:00.006","2002-07-27T22:00:00.006","2002-07-28T00:00:00.006","2002-07-28T02:00:00.006","2002-07-28T04:00:00.006","2002-07-28T06:00:00.006","2002-07-28T08:00:00.006","2002-07-28T10:00:00.006","2002-07-28T12:00:00.006","2002-07-28T14:00:00.006","2002-07-28T16:00:00.006","2002-07-28T18:00:00.006","2002-07-28T20:00:00.006","2002-07-28T22:00:00.006","2002-07-29T00:00:00.006","2002-07-29T02:00:00.006","2002-07-29T04:00:00.006","2002-07-29T06:00:00.006","2002-07-29T08:00:00.006","2002-07-29T10:00:00.006","2002-07-29T12:00:00.006","2002-07-29T14:00:00.006","2002-07-29T16:00:00.006","2002-07-29T18:00:00.006","2002-07-29T20:00:00.006","2002-07-29T22:00:00.006","2002-07-30T00:00:00.006","2002-07-30T02:00:00.007","2002-07-30T04:00:00.007","2002-07-30T06:00:00.007","2002-07-30T08:00:00.007","2002-07-30T10:00:00.007","2002-07-30T12:00:00.007","2002-07-30T14:00:00.007","2002-07-30T16:00:00.007","2002-07-30T18:00:00.007","2002-07-30T20:00:00.007","2002-07-30T22:00:00.007","2002-07-31T00:00:00.007","2002-07-31T02:00:00.007","2002-07-31T04:00:00.007","2002-07-31T06:00:00.007","2002-07-31T08:00:00.007","2002-07-31T10:00:00.007","2002-07-31T12:00:00.007","2002-07-31T14:00:00.007","2002-07-31T16:00:00.007","2002-07-31T18:00:00.007","2002-07-31T20:00:00.007","2002-07-31T22:00:00.007"]

{"sheet":"Output - Total Heat","index":21,"n_rows":16,"n_cols":245,"rows_kept":16,"cut":false,"hidden":false,"merged":[]}
[]
[null,null,null,null,null,null,null,"Simulation Name:"]
[null,null,null,null,null,null,null,"Date:"]
[null,null,null,null,null,null,null,"Time Step - dT (min):"]
[null,null,null,null,null,null,null,"Distance Step - dX (m):"]
[null,null,null,null,null,null,null,"Stream Length (km):"]
[null,null,null,null,null,null,null,"Longitudinal Sample Rate (m):"]
[null,null,null,null,null,null,null,"Transverse Sample Rate (m):"]
[null,null,null,null,null,null,null,"Inflow Sites:"]
[null,null,null,null,null,null,null,"Continuous Data Sites:"]
[null,null,null,null,null,null,null,"Flush Initial Condition (days):"]
[null,null,null,null,null,null,null,"Time Zone:"]
[null,null,null,null,null,null,null,"Simulation Period (days):"]
[]
[]
[null,"Locational Information (optional)","Heat Source Node","Long. Distance (km)","Stream km","2002-07-12T00:00:00.001","2002-07-12T02:00:00.001","2002-07-12T04:00:00.001","2002-07-12T06:00:00.001","2002-07-12T08:00:00.002","2002-07-12T10:00:00.002","2002-07-12T12:00:00.002","2002-07-12T14:00:00.002","2002-07-12T16:00:00.002","2002-07-12T18:00:00.002","2002-07-12T20:00:00.002","2002-07-12T22:00:00.002","2002-07-13T00:00:00.002","2002-07-13T02:00:00.002","2002-07-13T04:00:00.002","2002-07-13T06:00:00.002","2002-07-13T08:00:00.002","2002-07-13T10:00:00.002","2002-07-13T12:00:00.002","2002-07-13T14:00:00.002","2002-07-13T16:00:00.002","2002-07-13T18:00:00.002","2002-07-13T20:00:00.002","2002-07-13T22:00:00.002","2002-07-14T00:00:00.002","2002-07-14T02:00:00.002","2002-07-14T04:00:00.002","2002-07-14T06:00:00.002","2002-07-14T08:00:00.002","2002-07-14T10:00:00.002","2002-07-14T12:00:00.002","2002-07-14T14:00:00.002","2002-07-14T16:00:00.002","2002-07-14T18:00:00.002","2002-07-14T20:00:00.002","2002-07-14T22:00:00.002","2002-07-15T00:00:00.002","2002-07-15T02:00:00.002","2002-07-15T04:00:00.002","2002-07-15T06:00:00.002","2002-07-15T08:00:00.002","2002-07-15T10:00:00.002","2002-07-15T12:00:00.002","2002-07-15T14:00:00.002","2002-07-15T16:00:00.002","2002-07-15T18:00:00.002","2002-07-15T20:00:00.002","2002-07-15T22:00:00.003","2002-07-16T00:00:00.003","2002-07-16T02:00:00.003","2002-07-16T04:00:00.003","2002-07-16T06:00:00.003","2002-07-16T08:00:00.003","2002-07-16T10:00:00.003","2002-07-16T12:00:00.003","2002-07-16T14:00:00.003","2002-07-16T16:00:00.003","2002-07-16T18:00:00.003","2002-07-16T20:00:00.003","2002-07-16T22:00:00.003","2002-07-17T00:00:00.003","2002-07-17T02:00:00.003","2002-07-17T04:00:00.003","2002-07-17T06:00:00.003","2002-07-17T08:00:00.003","2002-07-17T10:00:00.003","2002-07-17T12:00:00.003","2002-07-17T14:00:00.003","2002-07-17T16:00:00.003","2002-07-17T18:00:00.003","2002-07-17T20:00:00.003","2002-07-17T22:00:00.003","2002-07-18T00:00:00.003","2002-07-18T02:00:00.003","2002-07-18T04:00:00.003","2002-07-18T06:00:00.003","2002-07-18T08:00:00.003","2002-07-18T10:00:00.003","2002-07-18T12:00:00.003","2002-07-18T14:00:00.003","2002-07-18T16:00:00.003","2002-07-18T18:00:00.003","2002-07-18T20:00:00.003","2002-07-18T22:00:00.003","2002-07-19T00:00:00.003","2002-07-19T02:00:00.003","2002-07-19T04:00:00.003","2002-07-19T06:00:00.003","2002-07-19T08:00:00.003","2002-07-19T10:00:00.003","2002-07-19T12:00:00.004","2002-07-19T14:00:00.004","2002-07-19T16:00:00.004","2002-07-19T18:00:00.004","2002-07-19T20:00:00.004","2002-07-19T22:00:00.004","2002-07-20T00:00:00.004","2002-07-20T02:00:00.004","2002-07-20T04:00:00.004","2002-07-20T06:00:00.004","2002-07-20T08:00:00.004","2002-07-20T10:00:00.004","2002-07-20T12:00:00.004","2002-07-20T14:00:00.004","2002-07-20T16:00:00.004","2002-07-20T18:00:00.004","2002-07-20T20:00:00.004","2002-07-20T22:00:00.004","2002-07-21T00:00:00.004","2002-07-21T02:00:00.004","2002-07-21T04:00:00.004","2002-07-21T06:00:00.004","2002-07-21T08:00:00.004","2002-07-21T10:00:00.004","2002-07-21T12:00:00.004","2002-07-21T14:00:00.004","2002-07-21T16:00:00.004","2002-07-21T18:00:00.004","2002-07-21T20:00:00.004","2002-07-21T22:00:00.004","2002-07-22T00:00:00.004","2002-07-22T02:00:00.004","2002-07-22T04:00:00.004","2002-07-22T06:00:00.004","2002-07-22T08:00:00.004","2002-07-22T10:00:00.004","2002-07-22T12:00:00.004","2002-07-22T14:00:00.004","2002-07-22T16:00:00.004","2002-07-22T18:00:00.004","2002-07-22T20:00:00.004","2002-07-22T22:00:00.004","2002-07-23T00:00:00.005","2002-07-23T02:00:00.005","2002-07-23T04:00:00.005","2002-07-23T06:00:00.005","2002-07-23T08:00:00.005","2002-07-23T10:00:00.005","2002-07-23T12:00:00.005","2002-07-23T14:00:00.005","2002-07-23T16:00:00.005","2002-07-23T18:00:00.005","2002-07-23T20:00:00.005","2002-07-23T22:00:00.005","2002-07-24T00:00:00.005","2002-07-24T02:00:00.005","2002-07-24T04:00:00.005","2002-07-24T06:00:00.005","2002-07-24T08:00:00.005","2002-07-24T10:00:00.005","2002-07-24T12:00:00.005","2002-07-24T14:00:00.005","2002-07-24T16:00:00.005","2002-07-24T18:00:00.005","2002-07-24T20:00:00.005","2002-07-24T22:00:00.005","2002-07-25T00:00:00.005","2002-07-25T02:00:00.005","2002-07-25T04:00:00.005","2002-07-25T06:00:00.005","2002-07-25T08:00:00.005","2002-07-25T10:00:00.005","2002-07-25T12:00:00.005","2002-07-25T14:00:00.005","2002-07-25T16:00:00.005","2002-07-25T18:00:00.005","2002-07-25T20:00:00.005","2002-07-25T22:00:00.005","2002-07-26T00:00:00.005","2002-07-26T02:00:00.005","2002-07-26T04:00:00.005","2002-07-26T06:00:00.005","2002-07-26T08:00:00.005","2002-07-26T10:00:00.005","2002-07-26T12:00:00.005","2002-07-26T14:00:00.006","2002-07-26T16:00:00.006","2002-07-26T18:00:00.006","2002-07-26T20:00:00.006","2002-07-26T22:00:00.006","2002-07-27T00:00:00.006","2002-07-27T02:00:00.006","2002-07-27T04:00:00.006","2002-07-27T06:00:00.006","2002-07-27T08:00:00.006","2002-07-27T10:00:00.006","2002-07-27T12:00:00.006","2002-07-27T14:00:00.006","2002-07-27T16:00:00.006","2002-07-27T18:00:00.006","2002-07-27T20:00:00.006","2002-07-27T22:00:00.006","2002-07-28T00:00:00.006","2002-07-28T02:00:00.006","2002-07-28T04:00:00.006","2002-07-28T06:00:00.006","2002-07-28T08:00:00.006","2002-07-28T10:00:00.006","2002-07-28T12:00:00.006","2002-07-28T14:00:00.006","2002-07-28T16:00:00.006","2002-07-28T18:00:00.006","2002-07-28T20:00:00.006","2002-07-28T22:00:00.006","2002-07-29T00:00:00.006","2002-07-29T02:00:00.006","2002-07-29T04:00:00.006","2002-07-29T06:00:00.006","2002-07-29T08:00:00.006","2002-07-29T10:00:00.006","2002-07-29T12:00:00.006","2002-07-29T14:00:00.006","2002-07-29T16:00:00.006","2002-07-29T18:00:00.006","2002-07-29T20:00:00.006","2002-07-29T22:00:00.006","2002-07-30T00:00:00.006","2002-07-30T02:00:00.007","2002-07-30T04:00:00.007","2002-07-30T06:00:00.007","2002-07-30T08:00:00.007","2002-07-30T10:00:00.007","2002-07-30T12:00:00.007","2002-07-30T14:00:00.007","2002-07-30T16:00:00.007","2002-07-30T18:00:00.007","2002-07-30T20:00:00.007","2002-07-30T22:00:00.007","2002-07-31T00:00:00.007","2002-07-31T02:00:00.007","2002-07-31T04:00:00.007","2002-07-31T06:00:00.007","2002-07-31T08:00:00.007","2002-07-31T10:00:00.007","2002-07-31T12:00:00.007","2002-07-31T14:00:00.007","2002-07-31T16:00:00.007","2002-07-31T18:00:00.007","2002-07-31T20:00:00.007","2002-07-31T22:00:00.007"]

{"sheet":"Output - Evaporation Rate","index":22,"n_rows":16,"n_cols":245,"rows_kept":16,"cut":false,"hidden":false,"merged":[]}
[]
[null,null,null,null,null,null,null,"Simulation Name:"]
[null,null,null,null,null,null,null,"Date:"]
[null,null,null,null,null,null,null,"Time Step - dT (min):"]
[null,null,null,null,null,null,null,"Distance Step - dX (m):"]
[null,null,null,null,null,null,null,"Stream Length (km):"]
[null,null,null,null,null,null,null,"Longitudinal Sample Rate (m):"]
[null,null,null,null,null,null,null,"Transverse Sample Rate (m):"]
[null,null,null,null,null,null,null,"Inflow Sites:"]
[null,null,null,null,null,null,null,"Continuous Data Sites:"]
[null,null,null,null,null,null,null,"Flush Initial Condition (days):"]
[null,null,null,null,null,null,null,"Time Zone:"]
[null,null,null,null,null,null,null,"Simulation Period (days):"]
[]
[]
[null,"Locational Information (optional)","Heat Source Node","Long. Distance (km)","Stream km","2002-07-12T00:00:00.001","2002-07-12T02:00:00.001","2002-07-12T04:00:00.001","2002-07-12T06:00:00.001","2002-07-12T08:00:00.002","2002-07-12T10:00:00.002","2002-07-12T12:00:00.002","2002-07-12T14:00:00.002","2002-07-12T16:00:00.002","2002-07-12T18:00:00.002","2002-07-12T20:00:00.002","2002-07-12T22:00:00.002","2002-07-13T00:00:00.002","2002-07-13T02:00:00.002","2002-07-13T04:00:00.002","2002-07-13T06:00:00.002","2002-07-13T08:00:00.002","2002-07-13T10:00:00.002","2002-07-13T12:00:00.002","2002-07-13T14:00:00.002","2002-07-13T16:00:00.002","2002-07-13T18:00:00.002","2002-07-13T20:00:00.002","2002-07-13T22:00:00.002","2002-07-14T00:00:00.002","2002-07-14T02:00:00.002","2002-07-14T04:00:00.002","2002-07-14T06:00:00.002","2002-07-14T08:00:00.002","2002-07-14T10:00:00.002","2002-07-14T12:00:00.002","2002-07-14T14:00:00.002","2002-07-14T16:00:00.002","2002-07-14T18:00:00.002","2002-07-14T20:00:00.002","2002-07-14T22:00:00.002","2002-07-15T00:00:00.002","2002-07-15T02:00:00.002","2002-07-15T04:00:00.002","2002-07-15T06:00:00.002","2002-07-15T08:00:00.002","2002-07-15T10:00:00.002","2002-07-15T12:00:00.002","2002-07-15T14:00:00.002","2002-07-15T16:00:00.002","2002-07-15T18:00:00.002","2002-07-15T20:00:00.002","2002-07-15T22:00:00.003","2002-07-16T00:00:00.003","2002-07-16T02:00:00.003","2002-07-16T04:00:00.003","2002-07-16T06:00:00.003","2002-07-16T08:00:00.003","2002-07-16T10:00:00.003","2002-07-16T12:00:00.003","2002-07-16T14:00:00.003","2002-07-16T16:00:00.003","2002-07-16T18:00:00.003","2002-07-16T20:00:00.003","2002-07-16T22:00:00.003","2002-07-17T00:00:00.003","2002-07-17T02:00:00.003","2002-07-17T04:00:00.003","2002-07-17T06:00:00.003","2002-07-17T08:00:00.003","2002-07-17T10:00:00.003","2002-07-17T12:00:00.003","2002-07-17T14:00:00.003","2002-07-17T16:00:00.003","2002-07-17T18:00:00.003","2002-07-17T20:00:00.003","2002-07-17T22:00:00.003","2002-07-18T00:00:00.003","2002-07-18T02:00:00.003","2002-07-18T04:00:00.003","2002-07-18T06:00:00.003","2002-07-18T08:00:00.003","2002-07-18T10:00:00.003","2002-07-18T12:00:00.003","2002-07-18T14:00:00.003","2002-07-18T16:00:00.003","2002-07-18T18:00:00.003","2002-07-18T20:00:00.003","2002-07-18T22:00:00.003","2002-07-19T00:00:00.003","2002-07-19T02:00:00.003","2002-07-19T04:00:00.003","2002-07-19T06:00:00.003","2002-07-19T08:00:00.003","2002-07-19T10:00:00.003","2002-07-19T12:00:00.004","2002-07-19T14:00:00.004","2002-07-19T16:00:00.004","2002-07-19T18:00:00.004","2002-07-19T20:00:00.004","2002-07-19T22:00:00.004","2002-07-20T00:00:00.004","2002-07-20T02:00:00.004","2002-07-20T04:00:00.004","2002-07-20T06:00:00.004","2002-07-20T08:00:00.004","2002-07-20T10:00:00.004","2002-07-20T12:00:00.004","2002-07-20T14:00:00.004","2002-07-20T16:00:00.004","2002-07-20T18:00:00.004","2002-07-20T20:00:00.004","2002-07-20T22:00:00.004","2002-07-21T00:00:00.004","2002-07-21T02:00:00.004","2002-07-21T04:00:00.004","2002-07-21T06:00:00.004","2002-07-21T08:00:00.004","2002-07-21T10:00:00.004","2002-07-21T12:00:00.004","2002-07-21T14:00:00.004","2002-07-21T16:00:00.004","2002-07-21T18:00:00.004","2002-07-21T20:00:00.004","2002-07-21T22:00:00.004","2002-07-22T00:00:00.004","2002-07-22T02:00:00.004","2002-07-22T04:00:00.004","2002-07-22T06:00:00.004","2002-07-22T08:00:00.004","2002-07-22T10:00:00.004","2002-07-22T12:00:00.004","2002-07-22T14:00:00.004","2002-07-22T16:00:00.004","2002-07-22T18:00:00.004","2002-07-22T20:00:00.004","2002-07-22T22:00:00.004","2002-07-23T00:00:00.005","2002-07-23T02:00:00.005","2002-07-23T04:00:00.005","2002-07-23T06:00:00.005","2002-07-23T08:00:00.005","2002-07-23T10:00:00.005","2002-07-23T12:00:00.005","2002-07-23T14:00:00.005","2002-07-23T16:00:00.005","2002-07-23T18:00:00.005","2002-07-23T20:00:00.005","2002-07-23T22:00:00.005","2002-07-24T00:00:00.005","2002-07-24T02:00:00.005","2002-07-24T04:00:00.005","2002-07-24T06:00:00.005","2002-07-24T08:00:00.005","2002-07-24T10:00:00.005","2002-07-24T12:00:00.005","2002-07-24T14:00:00.005","2002-07-24T16:00:00.005","2002-07-24T18:00:00.005","2002-07-24T20:00:00.005","2002-07-24T22:00:00.005","2002-07-25T00:00:00.005","2002-07-25T02:00:00.005","2002-07-25T04:00:00.005","2002-07-25T06:00:00.005","2002-07-25T08:00:00.005","2002-07-25T10:00:00.005","2002-07-25T12:00:00.005","2002-07-25T14:00:00.005","2002-07-25T16:00:00.005","2002-07-25T18:00:00.005","2002-07-25T20:00:00.005","2002-07-25T22:00:00.005","2002-07-26T00:00:00.005","2002-07-26T02:00:00.005","2002-07-26T04:00:00.005","2002-07-26T06:00:00.005","2002-07-26T08:00:00.005","2002-07-26T10:00:00.005","2002-07-26T12:00:00.005","2002-07-26T14:00:00.006","2002-07-26T16:00:00.006","2002-07-26T18:00:00.006","2002-07-26T20:00:00.006","2002-07-26T22:00:00.006","2002-07-27T00:00:00.006","2002-07-27T02:00:00.006","2002-07-27T04:00:00.006","2002-07-27T06:00:00.006","2002-07-27T08:00:00.006","2002-07-27T10:00:00.006","2002-07-27T12:00:00.006","2002-07-27T14:00:00.006","2002-07-27T16:00:00.006","2002-07-27T18:00:00.006","2002-07-27T20:00:00.006","2002-07-27T22:00:00.006","2002-07-28T00:00:00.006","2002-07-28T02:00:00.006","2002-07-28T04:00:00.006","2002-07-28T06:00:00.006","2002-07-28T08:00:00.006","2002-07-28T10:00:00.006","2002-07-28T12:00:00.006","2002-07-28T14:00:00.006","2002-07-28T16:00:00.006","2002-07-28T18:00:00.006","2002-07-28T20:00:00.006","2002-07-28T22:00:00.006","2002-07-29T00:00:00.006","2002-07-29T02:00:00.006","2002-07-29T04:00:00.006","2002-07-29T06:00:00.006","2002-07-29T08:00:00.006","2002-07-29T10:00:00.006","2002-07-29T12:00:00.006","2002-07-29T14:00:00.006","2002-07-29T16:00:00.006","2002-07-29T18:00:00.006","2002-07-29T20:00:00.006","2002-07-29T22:00:00.006","2002-07-30T00:00:00.006","2002-07-30T02:00:00.007","2002-07-30T04:00:00.007","2002-07-30T06:00:00.007","2002-07-30T08:00:00.007","2002-07-30T10:00:00.007","2002-07-30T12:00:00.007","2002-07-30T14:00:00.007","2002-07-30T16:00:00.007","2002-07-30T18:00:00.007","2002-07-30T20:00:00.007","2002-07-30T22:00:00.007","2002-07-31T00:00:00.007","2002-07-31T02:00:00.007","2002-07-31T04:00:00.007","2002-07-31T06:00:00.007","2002-07-31T08:00:00.007","2002-07-31T10:00:00.007","2002-07-31T12:00:00.007","2002-07-31T14:00:00.007","2002-07-31T16:00:00.007","2002-07-31T18:00:00.007","2002-07-31T20:00:00.007","2002-07-31T22:00:00.007"]

{"sheet":"Output - Daily Heat Flux","index":23,"n_rows":16,"n_cols":194,"rows_kept":16,"cut":false,"hidden":false,"merged":[]}
[]
[null,null,null,null,null,null,null,"Simulation Name:"]
[null,null,null,null,null,null,null,"Date:"]
[null,null,null,null,null,null,null,"Time Step - dT (min):"]
[null,null,null,null,null,null,null,"Distance Step - dX (m):"]
[null,null,null,null,null,null,null,"Stream Length (km):"]
[null,null,null,null,null,null,null,"Longitudinal Sample Rate (m):"]
[null,null,null,null,null,null,null,"Transverse Sample Rate (m):"]
[null,null,null,null,null,null,null,"Inflow Sites:"]
[null,null,null,null,null,null,null,"Continuous Data Sites:"]
[null,null,null,null,null,null,null,"Flush Initial Condition (days):"]
[null,null,null,null,null,null,null,"Time Zone:"]
[null,null,null,null,null,null,null,"Simulation Period (days):"]
[]
[]
[null,"Locational Information (optional)","Heat Source Node","Long. Distance (km)","Stream km","View to Sky","7/13/2002 Effective Shade","7/14/2002 Effective Shade","7/15/2002 Effective Shade","7/16/2002 Effective Shade","7/17/2002 Effective Shade","7/18/2002 Effective Shade","7/19/2002 Effective Shade","7/20/2002 Effective Shade","7/21/2002 Effective Shade","7/22/2002 Effective Shade","7/23/2002 Effective Shade","7/24/2002 Effective Shade","7/25/2002 Effective Shade","7/26/2002 Effective Shade","7/27/2002 Effective Shade","7/28/2002 Effective Shade","7/29/2002 Effective Shade","7/30/2002 Effective Shade","7/31/2002 Effective Shade","8/1/2002 Effective Shade",null,"7/13/2002 Potential Solar (W/m2)","7/14/2002 Potential Solar (W/m2)","7/15/2002 Potential Solar (W/m2)","7/16/2002 Potential Solar (W/m2)","7/17/2002 Potential Solar (W/m2)","7/18/2002 Potential Solar (W/m2)","7/19/2002 Potential Solar (W/m2)","7/20/2002 Potential Solar (W/m2)","7/21/2002 Potential Solar (W/m2)","7/22/2002 Potential Solar (W/m2)","7/23/2002 Potential Solar (W/m2)","7/24/2002 Potential Solar (W/m2)","7/25/2002 Potential Solar (W/m2)","7/26/2002 Potential Solar (W/m2)","7/27/2002 Potential Solar (W/m2)","7/28/2002 Potential Solar (W/m2)","7/29/2002 Potential Solar (W/m2)","7/30/2002 Potential Solar (W/m2)","7/31/2002 Potential Solar (W/m2)","8/1/2002 Potential Solar (W/m2)",null,"7/13/2002 Solar Above Stream (W/m2)","7/14/2002 Solar Above Stream (W/m2)","7/15/2002 Solar Above Stream (W/m2)","7/16/2002 Solar Above Stream (W/m2)","7/17/2002 Solar Above Stream (W/m2)","7/18/2002 Solar Above Stream (W/m2)","7/19/2002 Solar Above Stream (W/m2)","7/20/2002 Solar Above Stream (W/m2)","7/21/2002 Solar Above Stream (W/m2)","7/22/2002 Solar Above Stream (W/m2)","7/23/2002 Solar Above Stream (W/m2)","7/24/2002 Solar Above Stream (W/m2)","7/25/2002 Solar Above Stream (W/m2)","7/26/2002 Solar Above Stream (W/m2)","7/27/2002 Solar Above Stream (W/m2)","7/28/2002 Solar Above Stream (W/m2)","7/29/2002 Solar Above Stream (W/m2)","7/30/2002 Solar Above Stream (W/m2)","7/31/2002 Solar Above Stream (W/m2)","8/1/2002 Solar Above Stream (W/m2)",null,"7/13/2002 Solar Received by Stream (W/m2)","7/14/2002 Solar Received by Stream (W/m2)","7/15/2002 Solar Received by Stream (W/m2)","7/16/2002 Solar Received by Stream (W/m2)","7/17/2002 Solar Received by Stream (W/m2)","7/18/2002 Solar Received by Stream (W/m2)","7/19/2002 Solar Received by Stream (W/m2)","7/20/2002 Solar Received by Stream (W/m2)","7/21/2002 Solar Received by Stream (W/m2)","7/22/2002 Solar Received by Stream (W/m2)","7/23/2002 Solar Received by Stream (W/m2)","7/24/2002 Solar Received by Stream (W/m2)","7/25/2002 Solar Received by Stream (W/m2)","7/26/2002 Solar Received by Stream (W/m2)","7/27/2002 Solar Received by Stream (W/m2)","7/28/2002 Solar Received by Stream (W/m2)","7/29/2002 Solar Received by Stream (W/m2)","7/30/2002 Solar Received by Stream (W/m2)","7/31/2002 Solar Received by Stream (W/m2)","8/1/2002 Solar Received by Stream (W/m2)",null,"7/13/2002 Longwave (W/m2)","7/14/2002 Longwave (W/m2)","7/15/2002 Longwave (W/m2)","7/16/2002 Longwave (W/m2)","7/17/2002 Longwave (W/m2)","7/18/2002 Longwave (W/m2)","7/19/2002 Longwave (W/m2)","7/20/2002 Longwave (W/m2)","7/21/2002 Longwave (W/m2)","7/22/2002 Longwave (W/m2)","7/23/2002 Longwave (W/m2)","7/24/2002 Longwave (W/m2)","7/25/2002 Longwave (W/m2)","7/26/2002 Longwave (W/m2)","7/27/2002 Longwave (W/m2)","7/28/2002 Longwave (W/m2)","7/29/2002 Longwave (W/m2)","7/30/2002 Longwave (W/m2)","7/31/2002 Longwave (W/m2)","8/1/2002 Longwave (W/m2)",null,"7/13/2002 Convection (W/m2)","7/14/2002 Convection (W/m2)","7/15/2002 Convection (W/m2)","7/16/2002 Convection (W/m2)","7/17/2002 Convection (W/m2)","7/18/2002 Convection (W/m2)","7/19/2002 Convection (W/m2)","7/20/2002 Convection (W/m2)","7/21/2002 Convection (W/m2)","7/22/2002 Convection (W/m2)","7/23/2002 Convection (W/m2)","7/24/2002 Convection (W/m2)","7/25/2002 Convection (W/m2)","7/26/2002 Convection (W/m2)","7/27/2002 Convection (W/m2)","7/28/2002 Convection (W/m2)","7/29/2002 Convection (W/m2)","7/30/2002 Convection (W/m2)","7/31/2002 Convection (W/m2)","8/1/2002 Convection (W/m2)",null,"7/13/2002 Evaporation (W/m2)","7/14/2002 Evaporation (W/m2)","7/15/2002 Evaporation (W/m2)","7/16/2002 Evaporation (W/m2)","7/17/2002 Evaporation (W/m2)","7/18/2002 Evaporation (W/m2)","7/19/2002 Evaporation (W/m2)","7/20/2002 Evaporation (W/m2)","7/21/2002 Evaporation (W/m2)","7/22/2002 Evaporation (W/m2)","7/23/2002 Evaporation (W/m2)","7/24/2002 Evaporation (W/m2)","7/25/2002 Evaporation (W/m2)","7/26/2002 Evaporation (W/m2)","7/27/2002 Evaporation (W/m2)","7/28/2002 Evaporation (W/m2)","7/29/2002 Evaporation (W/m2)","7/30/2002 Evaporation (W/m2)","7/31/2002 Evaporation (W/m2)","8/1/2002 Evaporation (W/m2)",null,"7/13/2002 Conduction (W/m2)","7/14/2002 Conduction (W/m2)","7/15/2002 Conduction (W/m2)","7/16/2002 Conduction (W/m2)","7/17/2002 Conduction (W/m2)","7/18/2002 Conduction (W/m2)","7/19/2002 Conduction (W/m2)","7/20/2002 Conduction (W/m2)","7/21/2002 Conduction (W/m2)","7/22/2002 Conduction (W/m2)","7/23/2002 Conduction (W/m2)","7/24/2002 Conduction (W/m2)","7/25/2002 Conduction (W/m2)","7/26/2002 Conduction (W/m2)","7/27/2002 Conduction (W/m2)","7/28/2002 Conduction (W/m2)","7/29/2002 Conduction (W/m2)","7/30/2002 Conduction (W/m2)","7/31/2002 Conduction (W/m2)","8/1/2002 Conduction (W/m2)",null,"7/13/2002 Total Heat (W/m2)","7/14/2002 Total Heat (W/m2)","7/15/2002 Total Heat (W/m2)","7/16/2002 Total Heat (W/m2)","7/17/2002 Total Heat (W/m2)","7/18/2002 Total Heat (W/m2)","7/19/2002 Total Heat (W/m2)","7/20/2002 Total Heat (W/m2)","7/21/2002 Total Heat (W/m2)","7/22/2002 Total Heat (W/m2)","7/23/2002 Total Heat (W/m2)","7/24/2002 Total Heat (W/m2)","7/25/2002 Total Heat (W/m2)","7/26/2002 Total Heat (W/m2)","7/27/2002 Total Heat (W/m2)","7/28/2002 Total Heat (W/m2)","7/29/2002 Total Heat (W/m2)","7/30/2002 Total Heat (W/m2)","7/31/2002 Total Heat (W/m2)","8/1/2002 Total Heat (W/m2)"]